Workbook

Sheet INTRODUCTORY

Sheet Semicircle
J2: scemicircle | K2: to the left | L2: FALSE
J4: 10 | K4: ="ANGLE OF SINGLE RAY ="&TEXT(A57/10,"0,00") -> ANGLE OF SINGLE RAY =34,00 | M4: SINGLE RAY | N4: TO CHANGE THE DIRECTION OF THE SEMICIRCLE MOVE THE SLIDER
K6: show rays | L6: =TRUE -> TRUE | M6: show rays | N6: =IF(circle_right,"semicircle to the right","semicircle to the left") -> semicircle to the left
J7: table of values | K7: Index n= | L7: 1.5
J8: ANGLE OF INCIDENT RAY ON THE RIGHT SIDE WITH HORIZONTAL AXIS | K8: EXPECTED ANGLE OF EMERGING RAY WITH THE HORIZONTAL AXIS | L8: MEASURED ANGLE OF THE EMERGING RAY WITH THE HORIZONTAL AXIS | M8: MEASURED INDEX OF REFRACTION | O8: 1
G9: x` | J9: 6 | K9: =IF(circle_left,DEGREES(ASIN(SIN(RADIANS(J9))/nn)),IF(J9<DEGREES(critical_angle),DEGREES(ASIN(nn*SIN(RADIANS(J9)))),"total REFLECTION")) -> 3.99593175 | L9: =CALC_POINT!B205 -> 1.523533378 | M9: =IF(circle_left,SIN(RADIANS(J9))/SIN(RADIANS(L9)),SIN(RADIANS(L9))/SIN(RADIANS(J9))) -> 3.931483026
E10: 6 | J10: 10 | K10: 6.647777093 | L10: =CALC_POINT!D205 -> 4.176066617 | M10: =IF(circle_left,SIN(RADIANS(J10))/SIN(RADIANS(L10)),SIN(RADIANS(L10))/SIN(RADIANS(J10))) -> 2.38456978
J11: 20 | K11: 13.18014216 | L11: =CALC_POINT!F205 -> 10.71932182 | M11: =IF(circle_left,SIN(RADIANS(J11))/SIN(RADIANS(L11)),SIN(RADIANS(L11))/SIN(RADIANS(J11))) -> 1.838838037
J12: 30 | K12: 19.47122063 | L12: =CALC_POINT!H205 -> 17.02777469 | M12: =IF(circle_left,SIN(RADIANS(J12))/SIN(RADIANS(L12)),SIN(RADIANS(L12))/SIN(RADIANS(J12))) -> 1.707444724
J13: 40 | K13: 25.37399394 | L13: =CALC_POINT!J205 -> 22.9411719 | M13: =IF(circle_left,SIN(RADIANS(J13))/SIN(RADIANS(L13)),IF((J13)<VALUE(MEASURED_CRITICAL),SIN(RADIANS(L13))/SIN(RADIANS(J13)),"")) -> 1.649079084
J14: 50 | K14: 30.71022077 | L14: =CALC_POINT!L205 -> 28.26153738 | M14: =IF(circle_left,SIN(RADIANS(J14))/SIN(RADIANS(L14)),IF((J14)<VALUE(MEASURED_CRITICAL),SIN(RADIANS(L14))/SIN(RADIANS(J14)),"")) -> 1.617844213
J15: 60 | K15: 35.26438968 | L15: =CALC_POINT!N205 -> 32.74656562 | M15: =IF(circle_left,SIN(RADIANS(J15))/SIN(RADIANS(L15)),IF((J15)<VALUE(MEASURED_CRITICAL),SIN(RADIANS(L15))/SIN(RADIANS(J15)),"")) -> 1.60101107
J16: 70 | K16: 38.78955642 | L16: =CALC_POINT!P205 -> 36.11279372 | M16: =IF(circle_left,SIN(RADIANS(J16))/SIN(RADIANS(L16)),IF((J16)<VALUE(MEASURED_CRITICAL),SIN(RADIANS(L16))/SIN(RADIANS(J16)),"")) -> 1.594383565
J17: 80 | K17: 41.03641053 | L17: =CALC_POINT!R205 -> 38.01672581 | M17: =IF(circle_left,SIN(RADIANS(J17))/SIN(RADIANS(L17)),IF((J17)<VALUE(MEASURED_CRITICAL),SIN(RADIANS(L17))/SIN(RADIANS(J17)),"")) -> 1.598995563
J18: =THETA -> 34 | K18: =IF(circle_left,DEGREES(ASIN(SIN(RADIANS(THETA))/nn)),IF(J18<DEGREES(critical_angle),DEGREES(ASIN(nn*SIN(RADIANS(J18)))),"total REFLECTION")) -> 21.88811239 | L18: =CALC_POINT!U205 -> 19.45067849 | M18: =IF(circle_left,SIN(RADIANS(J18))/SIN(RADIANS(L18)),IF((J18)<VALUE(MEASURED_CRITICAL),SIN(RADIANS(L18))/SIN(RADIANS(THETA)),"")) -> 1.679281729
L19: AVERAGE FROM MEASURED INDEX | N19: EXTIMATED FROM LEAST SQUARE FIT
M20: =AVERAGE(M9:M17) -> 1.991516562
F21: 807386475.1 | K21: estimated from | L21: =X121 -> least square fit, n = 1,63
J22: =IF(circle_right, "EXPECTED CRITICAL ANGLE","NO CRITICAL ANGLE") -> NO CRITICAL ANGLE | K22: =IF(circle_right,TEXT(DEGREES(ASIN(1/nn)),"0,00"),"NO CRITICAL ANGLE") -> NO CRITICAL ANGLE
J23: measured critical angle | K23: =IF(circle_right,TEXT(CALC_POINT!AA203,"0,00"),"NO CRITICAL ANGLE") -> NO CRITICAL ANGLE | L23: =IF(circle_right,1/SIN(RADIANS(K23)),"") ->  | M23: =IF(circle_right,"MEASURED INDEX FROM CRITICAL ANGLE","") -> 
D27: _
J33: ="ANGLE ON THE RIGHT SIDE WJCH WILL BE CONSIDERED AS THE " -> ANGLE ON THE RIGHT SIDE WJCH WILL BE CONSIDERED AS THE | L33: ="ANGLE ON THE LEFT SIDE WHICH WILL BE CONSIDERED AS THE " -> ANGLE ON THE LEFT SIDE WHICH WILL BE CONSIDERED AS THE
J34: =IF(circle_left,"ANGLE OF INCIDENCE","ANGLE OF REFRACTION") -> ANGLE OF INCIDENCE | L34: =IF(circle_left,"ANGLE OF REFACTION","ANGLE OF INCIDENCE") -> ANGLE OF REFACTION
J35: =J33&J34 -> ANGLE ON THE RIGHT SIDE WJCH WILL BE CONSIDERED AS THE ANGLE OF INCIDENCE
A57: 340 | H57: =A57/10 -> 34
U76: =RADIANS(U75) -> 0 | V76: =RADIANS(V75) -> 0 | W76: =RADIANS(W75) -> 0 | X76: =RADIANS(X75) -> 0 | Y76: =RADIANS(Y75) -> 0
J95: =XC+RADIUS_OF_SEMICIRCLE*SIN(radiansg) -> 2.617462253 | K95: =YC+RADIUS_OF_SEMICIRCLE*COS(radiansg) -> 74.95431203 | L95: =XC-RADIUS_OF_SEMICIRCLE*SIN(radiansg) -> -2.617462253 | M95: =YC-RADIUS_OF_SEMICIRCLE*COS(radiansg) -> -74.95431203 | N95: =IF(circle_left,J95,L95) -> 2.617462253 | O95: =IF(circle_left,K95,M95) -> 74.95431203
J96: =XC-RADIUS_OF_SEMICIRCLE*SIN(radiansg) -> -2.617462253 | K96: =YC-RADIUS_OF_SEMICIRCLE*COS(radiansg) -> -74.95431203 | L96: =XC+RADIUS_OF_SEMICIRCLE*SIN(radiansg) -> 2.617462253 | M96: =YC+RADIUS_OF_SEMICIRCLE*COS(radiansg) -> 74.95431203 | N96: -2.617462253 | O96: -74.95431203
I97: 0 | J97: =-RADIUS_OF_SEMICIRCLE*SIN(radiansg+PI()/180*I97)+XC -> -2.617462253 | K97: =YC-RADIUS_OF_SEMICIRCLE*COS(radiansg+PI()/180*I88) -> -74.95431203 | L97: =RADIUS_OF_SEMICIRCLE*SIN(radiansg+PI()/180*I97)+XC -> 2.617462253 | M97: =YC+RADIUS_OF_SEMICIRCLE*COS(radiansg+PI()/180*I97) -> 74.95431203 | N97: -2.617462253 | O97: -74.95431203
I98: =I97+1 -> 1 | J98: -3.925196718 | K98: =YC-RADIUS_OF_SEMICIRCLE*COS(radiansg+PI()/180*I89) -> -74.95431203 | L98: 3.925196718 | M98: 74.89721511 | N98: -3.925196718 | O98: -74.95431203
I99: =I98+1 -> 2 | J99: -5.231735531 | K99: =YC-RADIUS_OF_SEMICIRCLE*COS(radiansg+PI()/180*I90) -> -74.95431203 | L99: 5.231735531 | M99: 74.81730377 | N99: -5.231735531 | O99: -74.95431203
A100: -2.405234692 | B100: -72.33941924 | E100: 150 | F100: 0 | I100: 3 | J100: -6.536680706 | K100: =YC-RADIUS_OF_SEMICIRCLE*COS(radiansg+PI()/180*I97) -> -74.95431203 | L100: 6.536680706 | M100: 74.71460236 | N100: -6.536680706 | O100: -74.95431203
A101: -3.710615563 | B101: -72.24241269 | C101: 7.405234692 | D101: 77.33941924 | E101: 149.9086241 | F101: 5.234924505 | I101: 4 | J101: -7.839634745 | K101: -74.89721511 | L101: 7.839634745 | M101: 74.58914215 | N101: -7.839634745 | O101: -74.89721511
A102: -5.014104621 | B102: -72.12263887 | C102: -2.405234692 | D102: -72.33941924 | E102: 149.6346075 | F102: 10.46347106 | I102: 5 | J102: -9.140200755 | K102: -74.81730377 | L102: 9.140200755 | M102: 74.44096137 | N102: -9.140200755 | O102: -74.81730377
A103: -6.315304809 | B103: -71.98013427 | E103: 149.1782843 | F103: 15.67926949 | I103: 6 | J103: -10.43798257 | K103: -74.71460236 | L103: 10.43798257 | M103: 74.27010516 | N103: -10.43798257 | O103: -74.71460236
A104: -7.613819771 | B104: -71.8149423 | E104: 148.5402103 | F104: 20.87596514 | I104: 7 | J104: -11.73258488 | K104: -74.58914215 | L104: 11.73258488 | M104: 74.07662554 | N104: -11.73258488 | O104: -74.58914215
A105: -8.909253964 | B105: -71.62711329 | E105: 147.721163 | F105: 26.04722665 | I105: 8 | J105: -13.02361333 | K105: -74.44096137 | L105: 13.02361333 | M105: 73.86058148 | N105: -13.02361333 | O105: -74.44096137
A106: -10.20121279 | B106: -71.41670443 | E106: 146.7221401 | F106: 31.18675362 | I106: 9 | J106: -14.31067465 | K106: -74.27010516 | L106: 14.31067465 | M106: 73.62203876 | N106: -14.31067465 | O106: -74.27010516
A107: -11.4893027 | B107: -71.18377983 | E107: 145.5443589 | F107: 36.28828434 | I107: 10 | J107: -15.59337681 | K107: -74.07662554 | L107: 15.59337681 | M107: 73.36107006 | N107: -15.59337681 | O107: -74.07662554
A108: -12.77313134 | B108: -70.92841044 | E108: 144.1892544 | F108: 41.34560337 | I108: 11 | J108: -16.87132908 | K108: -73.86058148 | L108: 16.87132908 | M108: 73.07775486 | N108: -16.87132908 | O108: -73.86058148
A109: -14.05230763 | B109: -70.65067404 | E109: 142.6584774 | F109: 46.35254916 | I109: 12 | J109: -18.14414217 | K109: -73.62203876 | L109: 18.14414217 | M109: 72.77217947 | N109: -18.14414217 | O109: -73.62203876
A110: -15.32644192 | B110: -70.35065524 | E110: 140.9538931 | F110: 51.3030215 | I110: 13 | J110: -19.41142838 | K110: -73.36107006 | L110: 19.41142838 | M110: 72.44443697 | N110: -19.41142838 | O110: -73.36107006
A111: -16.59514612 | B111: -70.02844542 | E111: 139.0775782 | F111: 56.19098901 | I111: 14 | J111: -20.67280169 | K111: -73.07775486 | L111: 20.67280169 | M111: 72.0946272 | N111: -20.67280169 | O111: -73.07775486
A112: -17.85803374 | B112: -69.68414273 | E112: 137.0318186 | F112: 61.01049646 | I112: 15 | J112: -21.92787785 | K112: -72.77217947 | L112: 21.92787785 | M112: 71.7228567 | N112: -21.92787785 | O112: -72.77217947
A113: -19.11472011 | B113: -69.31785206 | E113: 134.8191069 | F113: 65.75567202 | I113: 16 | J113: -23.17627458 | K113: -72.44443697 | L113: 23.17627458 | M113: 71.32923872 | N113: -23.17627458 | O113: -72.44443697
A114: -20.36482243 | B114: -68.92968497 | E114: 132.4421389 | F114: 70.42073442 | I114: 17 | J114: -24.41761158 | K114: -72.0946272 | L114: 24.41761158 | M114: 70.91389317 | N114: -24.41761158 | O114: -72.0946272
A115: -21.6079599 | B115: -68.51975971 | E115: 129.9038106 | F115: 75 | I115: 18 | J115: -25.65151075 | K115: -71.7228567 | L115: 25.65151075 | M115: 70.47694656 | N115: -25.65151075 | O115: -71.7228567
A116: -22.84375385 | B116: -68.08820114 | E116: 127.2072144 | F116: 79.48788963 | I116: 19 | J116: -26.87759622 | K116: -71.32923872 | L116: 26.87759622 | M116: 70.01853199 | N116: -26.87759622 | O116: -71.32923872
A117: -24.07182785 | B117: -67.63514073 | E117: 124.3556359 | F117: 83.87893552 | I117: 20 | J117: -28.09549451 | K117: -70.91389317 | L117: 28.09549451 | M117: 69.53878909 | N117: -28.09549451 | O117: -70.91389317
A118: -25.29180781 | B118: -67.16071647 | E118: 121.3525492 | F118: 88.16778784 | I118: 21 | J118: -29.30483464 | K118: -70.47694656 | L118: 29.30483464 | M118: 69.03786401 | N118: -29.30483464 | O118: -70.47694656
A119: -26.50332212 | B119: -66.66507288 | E119: 118.201613 | F119: 92.3492213 | I119: 22 | J119: -30.50524823 | K119: -70.01853199 | L119: 30.50524823 | M119: 68.51590932 | N119: -30.50524823 | O119: -70.01853199
A120: -27.70600174 | B120: -66.14836093 | E120: 114.9066665 | F120: 96.41814145 | I120: 23 | J120: -31.69636963 | K120: -69.53878909 | L120: 31.69636963 | M120: 67.97308403 | N120: -31.69636963 | O120: -69.53878909 | AE120: ="n = "&TEXT(AE123,"0,00") -> n = 1,63
A121: -28.89948032 | B121: -65.61073804 | E121: 111.4717238 | F121: 100.369591 | I121: 24 | J121: -32.87783601 | K121: -69.03786401 | L121: 32.87783601 | M121: 67.40955347 | N121: -32.87783601 | O121: -69.03786401 | V121: 0.5 | W121: 0.8 | X121: ="least square fit, n = "&TEXT(AE123,"0,00") -> least square fit, n = 1,63
A122: -30.08339431 | B122: -65.05236795 | E122: 107.9009701 | F122: 104.1987556 | I122: 25 | J122: -34.04928748 | K122: -68.51590932 | L122: 34.04928748 | M122: 66.82548931 | N122: -34.04928748 | O122: -68.51590932 | V122: 0.5 | W122: 0.8 | X122: ="expected n = "&nn -> expected n = 1,5
A123: -31.25738308 | B123: -64.47342076 | E123: 104.1987556 | F123: 107.9009701 | I123: 26 | J123: -35.21036721 | K123: -67.97308403 | L123: 35.21036721 | M123: 66.22106946 | N123: -35.21036721 | O123: -67.97308403 | V123: exp inc | W123: expected | X123: radians of incident | Y123: radians of refracted | Z123: sin(incident) | AA123: sin(refracted) | AE123: =IF(circle_left,1/AE124,AE124) -> 1.625470317 | AH123: x | AI123: x^2 | AJ123: x^3 | AK123: x^4 | AL123: Y | AM123: XY | AN123: yx^2
A124: -32.42108902 | B124: -63.87407281 | E124: 100.369591 | F124: 111.4717238 | I124: 27 | J124: -36.36072152 | K124: -67.40955347 | L124: 36.36072152 | M124: 65.59647804 | N124: -36.36072152 | O124: -67.40955347 | V124: =IF(W124<>0,SIN(Y124),0) -> 0.02658754027 | W124: =IF(SIN(Y124)*nn<1,SIN(Y124)*nn,0) -> 0.0398813104 | X124: =IF(circle_left,RADIANS(J9), RADIANS(L9)) -> 0.1047197551 | Y124: =IF(circle_left,RADIANS(L9),RADIANS(J9)) -> 0.02659067371 | Z124: =IF(circle_left,SIN(X124),SIN(Y124)) -> 0.1045284633 | AA124: =IF(circle_left,SIN(Y124),SIN(X124)) -> 0.02658754027 | AB124: =IF(AA124<>0,MAX(Z124:AA124),0) -> 0.1045284633 | AC124: =MIN(Z124:AA124) -> 0.02658754027 | AD124: =LINEST(AB124:AB132,AC124:AC132) -> 1.485579585 | AE124: =IF(circle_left,LINEST(AA124:AA132,Z124:Z132,FALSE,TRUE),AD124) -> 0.6152065588 | AH124: =J9 -> 6 | AI124: =J9^2 -> 36 | AJ124: =J9^3 -> 216 | AK124: =J9^4 -> 1296 | AL124: =L9 -> 1.523533378 | AM124: =J9*L9 -> 9.141200267 | AN124: =AL124*AI124 -> 54.8472016
A125: -33.57415767 | B125: -63.25450668 | E125: 96.41814145 | F125: 114.9066665 | I125: 28 | J125: -37.5 | K125: -66.82548931 | L125: 37.5 | M125: 64.95190528 | N125: -37.5 | O125: -66.82548931 | V125: =IF(W125<>0,SIN(Y125),0) -> 0.07282159621 | W125: =IF(SIN(Y125)*nn<1,SIN(Y125)*nn,0) -> 0.1092323943 | X125: =IF(circle_left,RADIANS(J10), RADIANS(L10)) -> 0.1745329252 | Y125: 0.07288611225 | Z125: 0.1736481777 | AA125: 0.07282159621 | AB125: =IF(AA125<>0,MAX(Z125:AA125),0) -> 0.1736481777 | AC125: =MIN(Z125:AA125) -> 0.07282159621 | AD125: =LINEST(W124:W132,V124:V132,FALSE,TRUE) -> 1.5 | AE125: =LINEST(AA124:AA132,Z124:Z132,FALSE,TRUE) -> 0.6152065588 | AF125: 0 | AH125: 10 | AI125: 100 | AJ125: 1000 | AK125: 10000 | AL125: 4.176066617 | AM125: 41.76066617 | AN125: =AL125*AI125 -> 417.6066617
A126: -34.71623778 | B126: -62.61491109 | E126: 92.3492213 | F126: 118.201613 | I126: 29 | J126: -38.62785562 | K126: -66.22106946 | L126: 38.62785562 | M126: 64.28754755 | N126: -38.62785562 | O126: -66.22106946 | V126: 0.1859979707 | W126: =IF(SIN(Y126)*nn<1,SIN(Y126)*nn,0) -> 0.278996956 | X126: =IF(circle_left,RADIANS(J11), RADIANS(L11)) -> 0.3490658504 | Y126: 0.1870874593 | Z126: 0.3420201433 | AA126: 0.1859979707 | AB126: 0.3420201433 | AC126: 0.1859979707 | AE126: 0.01077355744 | AH126: 20 | AI126: 400 | AJ126: 8000 | AK126: 160000 | AL126: 10.71932182 | AM126: 214.3864364 | AN126: 4287.728727
A127: -35.84698146 | B127: -61.95548086 | E127: 88.16778784 | F127: 121.3525492 | I127: 30 | J127: -39.74394482 | K127: -65.59647804 | L127: 39.74394482 | M127: 63.60360721 | N127: =IF(circle_left,J127,L127) -> -39.74394482 | O127: =IF(circle_left,K127,M127) -> -65.59647804 | V127: 0.2928352484 | W127: =IF(SIN(Y127)*nn<1,SIN(Y127)*nn,0) -> 0.4392528726 | X127: =IF(circle_left,RADIANS(J12), RADIANS(L12)) -> 0.5235987756 | Y127: 0.2971907326 | Z127: 0.5 | AA127: 0.2928352484 | AB127: 0.5 | AC127: 0.2928352484 | AE127: 0.9975526158 | AF127: 0.02157652333 | AH127: 30 | AI127: 900 | AJ127: 27000 | AK127: 810000 | AL127: 17.02777469 | AM127: 510.8332407 | AN127: 15324.99722
A128: -36.96604427 | B128: -61.27641687 | E128: 83.87893552 | F128: 124.3556359 | I128: 31 | J128: -40.84792763 | K128: -64.95190528 | L128: 40.84792763 | M128: 62.9002926 | N128: -40.84792763 | O128: -64.95190528 | V128: 0.3897857999 | W128: =IF(SIN(Y128)*nn<1,SIN(Y128)*nn,0) -> 0.5846786998 | X128: =IF(circle_left,IF(J13="NO REFRACTION",0,RADIANS(J13)),IF(L13="NO REFRACTION",0,RADIANS(L13))) -> 0.6981317008 | Y128: 0.400398984 | Z128: 0.6427876097 | AA128: 0.3897857999 | AB128: 0.6427876097 | AC128: 0.3897857999 | AE128: 3260.796158 | AF128: 8 | AH128: 40 | AI128: 1600 | AJ128: 64000 | AK128: 2560000 | AL128: 22.9411719 | AM128: 917.6468761 | AN128: 36705.87504
A129: -38.07308535 | B129: -60.57792597 | E129: 79.48788963 | F129: 127.2072144 | I129: 32 | J129: =-RADIUS_OF_SEMICIRCLE*SIN(radiansg+PI()/180*I129)+XC -> -41.93946776 | K129: -64.28754755 | L129: =RADIUS_OF_SEMICIRCLE*SIN(radiansg+PI()/180*I129)+XC -> 41.93946776 | M129: =YC+RADIUS_OF_SEMICIRCLE*COS(radiansg+PI()/180*I129) -> 62.17781794 | N129: -41.93946776 | O129: -64.28754755 | V129: 0.4734970383 | W129: =IF(SIN(Y129)*nn<1,SIN(ASIN(SIN(Y129)*nn)),0) -> 0.7102455575 | X129: =IF(circle_left,IF(J14="NO REFRACTION",0,RADIANS(J14)),IF(L14="NO REFRACTION",0,RADIANS(L14))) -> 0.872664626 | Y129: 0.4932568789 | Z129: 0.7660444431 | AA129: 0.4734970383 | AB129: 0.7660444431 | AC129: 0.4734970383 | AE129: 1.518051778 | AF129: 0.003724370871 | AH129: 50 | AI129: 2500 | AJ129: 125000 | AK129: 6250000 | AL129: 28.26153738 | AM129: 1413.076869 | AN129: 70653.84344
A130: -39.16776748 | B130: -59.86022092 | E130: 75 | F130: 129.9038106 | I130: 33 | J130: -43.01823273 | K130: -63.60360721 | L130: 43.01823273 | M130: 61.43640332 | N130: -43.01823273 | O130: -63.60360721 | V130: 0.5409240574 | W130: =IF(SIN(Y130)*nn<1,SIN(ASIN(SIN(Y130)*nn)),0) -> 0.8113860861 | X130: =IF(circle_left,IF(J15="NO REFRACTION",0,RADIANS(J15)),IF(L15="NO REFRACTION",0,RADIANS(L15))) -> 1.047197551 | Y130: 0.5715353887 | Z130: 0.8660254038 | AA130: 0.5409240574 | AB130: 0.8660254038 | AC130: 0.5409240574 | AH130: 60 | AI130: 3600 | AJ130: 216000 | AK130: 12960000 | AL130: 32.74656562 | AM130: 1964.793937 | AN130: 117887.6362
A131: -40.24975719 | B131: -59.12352035 | E131: 70.42073442 | F131: 132.4421389 | I131: 34 | J131: -44.08389392 | K131: -62.9002926 | L131: 44.08389392 | M131: 60.67627458 | N131: -44.08389392 | O131: -62.9002926 | V131: 0.5893767608 | W131: =IF(SIN(Y131)*nn<1,SIN(ASIN(SIN(Y131)*nn)),0) -> 0.8840651412 | X131: =IF(circle_left,IF(J16="NO REFRACTION",0,RADIANS(J16)),IF(L16="NO REFRACTION",0,RADIANS(L16))) -> 1.221730476 | Y131: 0.6302871526 | Z131: 0.9396926208 | AA131: 0.5893767608 | AB131: 0.9396926208 | AC131: 0.5893767608 | AH131: 70 | AI131: 4900 | AJ131: 343000 | AK131: 24010000 | AL131: 36.11279372 | AM131: 2527.895561 | AN131: 176952.6892
A132: -41.31872492 | B132: -58.36804865 | E132: 65.75567202 | F132: 134.8191069 | I132: 35 | J132: -45.13612674 | K132: =YC-RADIUS_OF_SEMICIRCLE*COS(radiansg+PI()/180*I129) -> -62.17781794 | L132: 45.13612674 | M132: 59.89766325 | N132: -45.13612674 | O132: -62.17781794 | V132: 0.6158914856 | W132: =IF(SIN(Y132)*nn<1,SIN(ASIN(SIN(Y132)*nn)),0) -> 0.9238372284 | X132: =IF(circle_left,IF(J17="NO REFRACTION",0,RADIANS(J17)),IF(L17="NO REFRACTION",0,RADIANS(L17))) -> 1.396263402 | Y132: 0.6635170363 | Z132: 0.984807753 | AA132: 0.6158914856 | AB132: 0.984807753 | AC132: 0.6158914856 | AH132: 80 | AI132: 6400 | AJ132: 512000 | AK132: 40960000 | AL132: 38.01672581 | AM132: 3041.338065 | AN132: 243307.0452
A133: -42.37434504 | B133: -57.59403595 | E133: 61.01049646 | F133: 137.0318186 | I133: 36 | J133: -46.17461065 | K133: -61.43640332 | L133: 46.17461065 | M133: 59.10080652 | N133: -46.17461065 | O133: -61.43640332 | AG133: SUMS | AH133: =SUM(AH124:AH132) -> 366 | AI133: 20436 | AJ133: 1296216 | AK133: 87721296 | AL133: 191.5254909 | AM133: 10640.87285 | AN133: 665592.269
A134: -43.416296 | B134: -56.80171803 | E134: 56.19098901 | F134: 139.0775782 | I134: 37 | J134: -47.19902933 | K134: -60.67627458 | L134: 47.19902933 | M134: 58.28594711 | N134: -47.19902933 | O134: -60.67627458 | AH134: DDD | AI134: AAA | AJ134: bbb | AK134: ccc | AL134: EEE | AM134: GGG | AN134: III
A135: -44.44426041 | B135: -55.99133623 | E135: 51.3030215 | F135: 140.9538931 | I135: 38 | J135: -48.20907073 | K135: -59.89766325 | L135: 48.20907073 | M135: 57.45333323 | N135: -48.20907073 | O135: -59.89766325 | AH135: x | AI135: x^2 | AJ135: x^3 | AK135: x^4 | AL135: Y | AM135: XY | AN135: yx^2
A136: -45.45792515 | B136: -55.16313741 | E136: 46.35254916 | F136: 142.6584774 | I136: 39 | J136: -49.20442717 | K136: -59.10080652 | L136: 49.20442717 | M136: 56.60321852 | N136: -49.20442717 | O136: -59.10080652
A137: -46.45698143 | B137: -54.31737383 | E137: 41.34560337 | F137: 144.1892544 | I137: 40 | J137: -50.18479548 | K137: -58.28594711 | L137: 50.18479548 | M137: 55.73586191 | N137: -50.18479548 | O137: -58.28594711 | AJ137: Y=A*X^2+B*X
A138: -47.44112495 | B138: -53.45430313 | E138: 36.28828434 | F138: 145.5443589 | I138: 41 | J138: -51.149877 | K138: -57.45333323 | L138: 51.149877 | M138: 54.85152762 | N138: -51.149877 | O138: -57.45333323 | V138: =LINEST(L9:L17,J9:J17,FALSE,TRUE) -> 0.5206925451 | AJ138: A= | AK138: =(aaa*iii-GGG*bbb)/(aaa*ccc-bbb^2) -> -0.0016962844 | AL138: =(aaa*iii-GGG*bbb)/(aaa*ccc-bbb^2)
A139: -48.41005591 | B139: -52.57418821 | E139: 31.18675362 | F139: 146.7221401 | I139: 42 | J139: -52.09937778 | K139: -56.60321852 | L139: 52.09937778 | M139: 53.95048503 | N139: -52.09937778 | O139: -56.60321852 | AJ139: b= | AK139: =(GGG-AK138*bbb)/aaa -> 0.6282845875 | AL139: =(GGG-AI24*bbb)/aaa
A140: -49.36347918 | B140: -51.67729715 | E140: 26.04722665 | F140: 147.721163 | I140: 43 | J140: -53.03300859 | K140: -55.73586191 | L140: 53.03300859 | M140: 53.03300859 | N140: -53.03300859 | O140: -55.73586191 | AJ140: B=`` | AK140: =(GGG*ccc-iii*bbb)/(ccc*aaa-bbb^2) -> 0.6282845875 | AL140: =(GGG*ccc-iii*bbb)/(ccc*aaa-bbb^2)
A141: -50.30110433 | B141: -50.76390317 | E141: 20.87596514 | F141: 148.5402103 | I141: 44 | J141: -53.95048503 | K141: -54.85152762 | L141: 53.95048503 | M141: 52.09937778 | N141: -53.95048503 | O141: -54.85152762
A142: -51.22264576 | B142: -49.83428449 | E142: 15.67926949 | F142: 149.1782843 | I142: 45 | J142: -54.85152762 | K142: -53.95048503 | L142: 54.85152762 | M142: 51.149877 | N142: -54.85152762 | O142: -53.95048503
A143: -52.12782274 | B143: -48.88872427 | E143: 10.46347106 | F143: 149.6346075 | I143: 46 | J143: -55.73586191 | K143: -53.03300859 | L143: 55.73586191 | M143: 50.18479548 | N143: -55.73586191 | O143: -53.03300859
A144: -53.01635956 | B144: -47.92751056 | E144: 5.234924505 | F144: 149.9086241 | I144: 47 | J144: -56.60321852 | K144: -52.09937778 | L144: 56.60321852 | M144: 49.20442717 | N144: -56.60321852 | O144: -52.09937778
A145: -53.88798556 | B145: -46.95093613 | E145: 9.184547654e-15 | F145: 150 | I145: 48 | J145: -57.45333323 | K145: -51.149877 | L145: 57.45333323 | M145: 48.20907073 | N145: -57.45333323 | O145: -51.149877
A146: -54.74243523 | B146: -45.95929847 | E146: -5.234924505 | F146: 149.9086241 | I146: 49 | J146: -58.28594711 | K146: -50.18479548 | L146: 58.28594711 | M146: 47.19902933 | N146: -58.28594711 | O146: -50.18479548
A147: -55.57944831 | B147: -44.95289964 | E147: -10.46347106 | F147: 149.6346075 | I147: 50 | J147: -59.10080652 | K147: -49.20442717 | L147: 59.10080652 | M147: 46.17461065 | N147: -59.10080652 | O147: -49.20442717
A148: -56.39876982 | B148: -43.9320462 | E148: -15.67926949 | F148: 149.1782843 | I148: 51 | J148: -59.89766325 | K148: -48.20907073 | L148: 59.89766325 | M148: 45.13612674 | N148: -59.89766325 | O148: -48.20907073
A149: -57.20015019 | B149: -42.8970491 | E149: -20.87596514 | F149: 148.5402103 | I149: 52 | J149: -60.67627458 | K149: -47.19902933 | L149: 60.67627458 | M149: 44.08389392 | N149: -60.67627458 | O149: -47.19902933
A150: -57.98334532 | B150: -41.84822363 | E150: -26.04722665 | F150: 147.721163 | I150: 53 | J150: -61.43640332 | K150: -46.17461065 | L150: 61.43640332 | M150: 43.01823273 | N150: -61.43640332 | O150: -46.17461065
A151: -58.74811664 | B151: -40.78588925 | E151: -31.18675362 | F151: 146.7221401 | I151: 54 | J151: -62.17781794 | K151: -45.13612674 | L151: 62.17781794 | M151: 41.93946776 | N151: -62.17781794 | O151: -45.13612674
A152: -59.49423118 | B152: -39.71036958 | E152: -36.28828434 | F152: 145.5443589 | I152: 55 | J152: -62.9002926 | K152: -44.08389392 | L152: 62.9002926 | M152: 40.84792763 | N152: -62.9002926 | O152: -44.08389392
A153: -60.22146169 | B153: -38.62199221 | E153: -41.34560337 | F153: 144.1892544 | I153: 56 | J153: -63.60360721 | K153: -43.01823273 | L153: 63.60360721 | M153: 39.74394482 | N153: -63.60360721 | O153: -43.01823273
A154: -60.92958663 | B154: -37.52108869 | E154: -46.35254916 | F154: 142.6584774 | I154: 57 | J154: -64.28754755 | K154: -41.93946776 | L154: 64.28754755 | M154: 38.62785562 | N154: -64.28754755 | O154: -41.93946776
A155: -61.6183903 | B155: -36.40799436 | E155: -51.3030215 | F155: 140.9538931 | I155: 58 | J155: -64.95190528 | K155: -40.84792763 | L155: 64.95190528 | M155: 37.5 | N155: -64.95190528 | O155: -40.84792763
A156: -62.28766289 | B156: -35.28304828 | E156: -56.19098901 | F156: 139.0775782 | I156: 59 | J156: -65.59647804 | K156: -39.74394482 | L156: 65.59647804 | M156: 36.36072152 | N156: -65.59647804 | O156: -39.74394482
A157: -62.93720053 | B157: -34.14659311 | E157: -61.01049646 | F157: 137.0318186 | I157: 60 | J157: -66.22106946 | K157: -38.62785562 | L157: 66.22106946 | M157: 35.21036721 | N157: -66.22106946 | O157: -38.62785562
A158: -63.56680537 | B158: -32.99897504 | E158: -65.75567202 | F158: 134.8191069 | I158: 61 | J158: -66.82548931 | K158: -37.5 | L158: 66.82548931 | M158: 34.04928748 | N158: -66.82548931 | O158: -37.5
A159: -64.17628561 | B159: -31.84054363 | E159: -70.42073442 | F159: 132.4421389 | I159: 62 | J159: -67.40955347 | K159: -36.36072152 | L159: 67.40955347 | M159: 32.87783601 | N159: =IF(circle_left,J159,L159) -> -67.40955347 | O159: =IF(circle_left,K159,M159) -> -36.36072152
A160: -64.76545561 | B160: -30.67165177 | E160: -75 | F160: 129.9038106 | I160: 63 | J160: -67.97308403 | K160: -35.21036721 | L160: 67.97308403 | M160: 31.69636963 | N160: -67.97308403 | O160: -35.21036721
A161: -65.33413591 | B161: -29.49265549 | E161: -79.48788963 | F161: 127.2072144 | I161: 64 | J161: =-RADIUS_OF_SEMICIRCLE*SIN(radiansg+PI()/180*I161)+XC -> -68.51590932 | K161: -34.04928748 | L161: =RADIUS_OF_SEMICIRCLE*SIN(radiansg+PI()/180*I161)+XC -> 68.51590932 | M161: =YC+RADIUS_OF_SEMICIRCLE*COS(radiansg+PI()/180*I161) -> 30.50524823 | N161: -68.51590932 | O161: -34.04928748
A162: -65.88215327 | B162: -28.30391395 | E162: -83.87893552 | F162: 124.3556359 | I162: 65 | J162: -69.03786401 | K162: -32.87783601 | L162: 69.03786401 | M162: 29.30483464 | N162: -69.03786401 | O162: -32.87783601
A163: -66.40934076 | B163: -27.10578923 | E163: -88.16778784 | F163: 121.3525492 | I163: =I162+1 -> 66 | J163: -69.53878909 | K163: -31.69636963 | L163: 69.53878909 | M163: 28.09549451 | N163: -69.53878909 | O163: -31.69636963
A164: -66.9155378 | B164: -25.8986463 | E164: -92.3492213 | F164: 118.201613 | I164: 67 | J164: -70.01853199 | K164: =YC-RADIUS_OF_SEMICIRCLE*COS(radiansg+PI()/180*I161) -> -30.50524823 | L164: 70.01853199 | M164: 26.87759622 | N164: -70.01853199 | O164: -30.50524823
A165: -67.4005902 | B165: -24.68285287 | E165: -96.41814145 | F165: 114.9066665 | I165: 68 | J165: -70.47694656 | K165: -29.30483464 | L165: 70.47694656 | M165: 25.65151075 | N165: -70.47694656 | O165: -29.30483464
A166: -67.86435019 | B166: -23.45877928 | E166: -100.369591 | F166: 111.4717238 | I166: 69 | J166: -70.91389317 | K166: -28.09549451 | L166: 70.91389317 | M166: 24.41761158 | N166: -70.91389317 | O166: -28.09549451
A167: -68.30667653 | B167: -22.22679839 | E167: -104.1987556 | F167: 107.9009701 | I167: 70 | J167: -71.32923872 | K167: -26.87759622 | L167: 71.32923872 | M167: 23.17627458 | N167: -71.32923872 | O167: -26.87759622
A168: -68.72743447 | B168: -20.98728549 | E168: -107.9009701 | F168: 104.1987556 | I168: 71 | J168: -71.7228567 | K168: -25.65151075 | L168: 71.7228567 | M168: 21.92787785 | N168: -71.7228567 | O168: -25.65151075
A169: -69.12649583 | B169: -19.74061812 | E169: -111.4717238 | F169: 100.369591 | I169: 72 | J169: -72.0946272 | K169: -24.41761158 | L169: 72.0946272 | M169: 20.67280169 | N169: -72.0946272 | O169: -24.41761158
A170: -69.50373908 | B170: -18.48717605 | E170: -114.9066665 | F170: 96.41814145 | I170: 73 | J170: -72.44443697 | K170: -23.17627458 | L170: 72.44443697 | M170: 19.41142838 | N170: -72.44443697 | O170: -23.17627458
A171: -69.85904929 | B171: -17.22734108 | E171: -118.201613 | F171: 92.3492213 | I171: 74 | J171: -72.77217947 | K171: -21.92787785 | L171: 72.77217947 | M171: 18.14414217 | N171: -72.77217947 | O171: -21.92787785
A172: -70.19231823 | B172: -15.96149698 | E172: -121.3525492 | F172: 88.16778784 | I172: 75 | J172: -73.07775486 | K172: -20.67280169 | L172: 73.07775486 | M172: 16.87132908 | N172: -73.07775486 | O172: -20.67280169
A173: -70.50344438 | B173: -14.69002932 | E173: -124.3556359 | F173: 83.87893552 | I173: 76 | J173: -73.36107006 | K173: -19.41142838 | L173: 73.36107006 | M173: 15.59337681 | N173: -73.36107006 | O173: -19.41142838
A174: -70.79233298 | B174: -13.41332541 | E174: -127.2072144 | F174: 79.48788963 | I174: 77 | J174: -73.62203876 | K174: -18.14414217 | L174: 73.62203876 | M174: 14.31067465 | N174: -73.62203876 | O174: -18.14414217
A175: -71.05889603 | B175: -12.13177415 | E175: -129.9038106 | F175: 75 | I175: 78 | J175: -73.86058148 | K175: -16.87132908 | L175: 73.86058148 | M175: 13.02361333 | N175: -73.86058148 | O175: -16.87132908
A176: -71.30305232 | B176: -10.84576591 | E176: -132.4421389 | F176: 70.42073442 | I176: 79 | J176: -74.07662554 | K176: -15.59337681 | L176: 74.07662554 | M176: 11.73258488 | N176: -74.07662554 | O176: -15.59337681
A177: -71.52472749 | B177: -9.55569242 | E177: -134.8191069 | F177: 65.75567202 | I177: 80 | J177: -74.27010516 | K177: -14.31067465 | L177: 74.27010516 | M177: 10.43798257 | N177: -74.27010516 | O177: -14.31067465
A178: -71.72385401 | B178: -8.261946649 | E178: -137.0318186 | F178: 61.01049646 | I178: 81 | J178: -74.44096137 | K178: -13.02361333 | L178: 74.44096137 | M178: 9.140200755 | N178: -74.44096137 | O178: -13.02361333
A179: -71.90037123 | B179: -6.964922685 | E179: -139.0775782 | F179: 56.19098901 | I179: 82 | J179: -74.58914215 | K179: -11.73258488 | L179: 74.58914215 | M179: 7.839634745 | N179: -74.58914215 | O179: -11.73258488
A180: -72.05422537 | B180: -5.665015614 | E180: -140.9538931 | F180: 51.3030215 | I180: 83 | J180: -74.71460236 | K180: -10.43798257 | L180: 74.71460236 | M180: 6.536680706 | N180: -74.71460236 | O180: -10.43798257
A181: -72.18536957 | B181: -4.3626214 | E181: -142.6584774 | F181: 46.35254916 | I181: 84 | J181: -74.81730377 | K181: -9.140200755 | L181: 74.81730377 | M181: 5.231735531 | N181: -74.81730377 | O181: -9.140200755
A182: -72.29376388 | B182: -3.058136765 | E182: -144.1892544 | F182: 41.34560337 | I182: 85 | J182: -74.89721511 | K182: -7.839634745 | L182: 74.89721511 | M182: 3.925196718 | N182: -74.89721511 | O182: -7.839634745
A183: -72.37937529 | B183: -1.751959067 | E183: -145.5443589 | F183: 36.28828434 | I183: 86 | J183: -74.95431203 | K183: -6.536680706 | L183: 74.95431203 | M183: 2.617462253 | N183: -74.95431203 | O183: -6.536680706
A184: -72.44217772 | B184: -0.4444861819 | E184: -146.7221401 | F184: 31.18675362 | I184: 87 | J184: -74.98857714 | K184: -5.231735531 | L184: 74.98857714 | M184: 1.308930483 | N184: -74.98857714 | O184: -5.231735531
A185: -72.48215203 | B185: 0.8638836224 | E185: -147.721163 | F185: 26.04722665 | I185: 88 | J185: -75 | K185: -3.925196718 | L185: 75 | M185: 4.594306706e-15 | N185: -75 | O185: -3.925196718
A186: -72.49928605 | B186: 2.172751804 | E186: -148.5402103 | F186: 20.87596514 | I186: 89 | J186: -74.98857714 | K186: -2.617462253 | L186: 74.98857714 | M186: -1.308930483 | N186: -74.98857714 | O186: -2.617462253
A187: -72.49357457 | B187: 3.481719668 | E187: -149.1782843 | F187: 15.67926949 | I187: 90 | J187: -74.95431203 | K187: -1.308930483 | L187: 74.95431203 | M187: -2.617462253 | N187: -74.95431203 | O187: -1.308930483
A188: -72.46501931 | B188: 4.790388491 | E188: -149.6346075 | F188: 10.46347106 | I188: 91 | J188: -74.89721511 | K188: -4.594306706e-15 | L188: 74.89721511 | M188: -3.925196718 | N188: -74.89721511 | O188: -4.594306706e-15
A189: -72.41362899 | B189: 6.098359639 | E189: -149.9086241 | F189: 5.234924505 | I189: 92 | J189: -74.81730377 | K189: 1.308930483 | L189: 74.81730377 | M189: -5.231735531 | N189: -74.81730377 | O189: 1.308930483
A190: -72.33941924 | B190: 7.405234692 | E190: -150 | F190: 1.836909531e-14 | I190: 93 | J190: -74.71460236 | K190: 2.617462253 | L190: 74.71460236 | M190: -6.536680706 | N190: -74.71460236 | O190: 2.617462253
A191: -72.24241269 | B191: 8.710615563 | E191: -149.9086241 | F191: -5.234924505 | I191: 94 | J191: -74.58914215 | K191: 3.925196718 | L191: 74.58914215 | M191: -7.839634745 | N191: =IF(circle_left,J191,L191) -> -74.58914215 | O191: =IF(circle_left,K191,M191) -> 3.925196718
A192: -72.12263887 | B192: 10.01410462 | E192: -149.6346075 | F192: -10.46347106 | I192: 95 | J192: -74.44096137 | K192: 5.231735531 | L192: 74.44096137 | M192: -9.140200755 | N192: -74.44096137 | O192: 5.231735531
A193: -71.98013427 | B193: 11.31530481 | E193: -149.1782843 | F193: -15.67926949 | I193: 96 | J193: =-RADIUS_OF_SEMICIRCLE*SIN(radiansg+PI()/180*I193)+XC -> -74.27010516 | K193: 6.536680706 | L193: =RADIUS_OF_SEMICIRCLE*SIN(radiansg+PI()/180*I193)+XC -> 74.27010516 | M193: =YC+RADIUS_OF_SEMICIRCLE*COS(radiansg+PI()/180*I193) -> -10.43798257 | N193: -74.27010516 | O193: 6.536680706
A194: -71.8149423 | B194: 12.61381977 | E194: -148.5402103 | F194: -20.87596514 | I194: 97 | J194: -74.07662554 | K194: 7.839634745 | L194: 74.07662554 | M194: -11.73258488 | N194: -74.07662554 | O194: 7.839634745
A195: -71.62711329 | B195: 13.90925396 | E195: -147.721163 | F195: -26.04722665 | I195: 98 | J195: -73.86058148 | K195: 9.140200755 | L195: 73.86058148 | M195: -13.02361333 | N195: -73.86058148 | O195: 9.140200755
A196: -71.41670443 | B196: 15.20121279 | E196: -146.7221401 | F196: -31.18675362 | I196: 99 | J196: -73.62203876 | K196: =YC-RADIUS_OF_SEMICIRCLE*COS(radiansg+PI()/180*I193) -> 10.43798257 | L196: 73.62203876 | M196: -14.31067465 | N196: -73.62203876 | O196: 10.43798257
A197: -71.18377983 | B197: 16.4893027 | E197: -145.5443589 | F197: -36.28828434 | I197: 100 | J197: -73.36107006 | K197: 11.73258488 | L197: 73.36107006 | M197: -15.59337681 | N197: -73.36107006 | O197: 11.73258488
A198: -70.92841044 | B198: 17.77313134 | E198: -144.1892544 | F198: -41.34560337 | I198: 101 | J198: -73.07775486 | K198: 13.02361333 | L198: 73.07775486 | M198: -16.87132908 | N198: -73.07775486 | O198: 13.02361333
A199: -70.65067404 | B199: 19.05230763 | E199: -142.6584774 | F199: -46.35254916 | I199: 102 | J199: -72.77217947 | K199: 14.31067465 | L199: 72.77217947 | M199: -18.14414217 | N199: -72.77217947 | O199: 14.31067465
A200: -70.35065524 | B200: 20.32644192 | E200: -140.9538931 | F200: -51.3030215 | I200: 103 | J200: -72.44443697 | K200: 15.59337681 | L200: 72.44443697 | M200: -19.41142838 | N200: -72.44443697 | O200: 15.59337681
A201: -70.02844542 | B201: 21.59514612 | E201: -139.0775782 | F201: -56.19098901 | I201: 104 | J201: -72.0946272 | K201: 16.87132908 | L201: 72.0946272 | M201: -20.67280169 | N201: -72.0946272 | O201: 16.87132908
A202: -69.68414273 | B202: 22.85803374 | E202: -137.0318186 | F202: -61.01049646 | I202: 105 | J202: -71.7228567 | K202: 18.14414217 | L202: 71.7228567 | M202: -21.92787785 | N202: -71.7228567 | O202: 18.14414217
A203: -69.31785206 | B203: 24.11472011 | E203: -134.8191069 | F203: -65.75567202 | I203: 106 | J203: -71.32923872 | K203: 19.41142838 | L203: 71.32923872 | M203: -23.17627458 | N203: -71.32923872 | O203: 19.41142838
A204: -68.92968497 | B204: 25.36482243 | E204: -132.4421389 | F204: -70.42073442 | I204: 107 | J204: -70.91389317 | K204: 20.67280169 | L204: 70.91389317 | M204: -24.41761158 | N204: -70.91389317 | O204: 20.67280169
A205: -68.51975971 | B205: 26.6079599 | E205: -129.9038106 | F205: -75 | I205: 108 | J205: -70.47694656 | K205: 21.92787785 | L205: 70.47694656 | M205: -25.65151075 | N205: -70.47694656 | O205: 21.92787785
A206: -68.08820114 | B206: 27.84375385 | E206: -127.2072144 | F206: -79.48788963 | I206: 109 | J206: -70.01853199 | K206: 23.17627458 | L206: 70.01853199 | M206: -26.87759622 | N206: -70.01853199 | O206: 23.17627458
A207: -67.63514073 | B207: 29.07182785 | E207: -124.3556359 | F207: -83.87893552 | I207: 110 | J207: -69.53878909 | K207: 24.41761158 | L207: 69.53878909 | M207: -28.09549451 | N207: -69.53878909 | O207: 24.41761158
A208: -67.16071647 | B208: 30.29180781 | E208: -121.3525492 | F208: -88.16778784 | I208: 111 | J208: -69.03786401 | K208: 25.65151075 | L208: 69.03786401 | M208: -29.30483464 | N208: -69.03786401 | O208: 25.65151075
A209: -66.66507288 | B209: 31.50332212 | E209: -118.201613 | F209: -92.3492213 | I209: 112 | J209: -68.51590932 | K209: 26.87759622 | L209: 68.51590932 | M209: -30.50524823 | N209: -68.51590932 | O209: 26.87759622
A210: -66.14836093 | B210: 32.70600174 | E210: -114.9066665 | F210: -96.41814145 | I210: 113 | J210: -67.97308403 | K210: 28.09549451 | L210: 67.97308403 | M210: -31.69636963 | N210: -67.97308403 | O210: 28.09549451
A211: -65.61073804 | B211: 33.89948032 | E211: -111.4717238 | F211: -100.369591 | I211: 114 | J211: -67.40955347 | K211: 29.30483464 | L211: 67.40955347 | M211: -32.87783601 | N211: -67.40955347 | O211: 29.30483464
A212: -65.05236795 | B212: 35.08339431 | E212: -107.9009701 | F212: -104.1987556 | I212: 115 | J212: -66.82548931 | K212: 30.50524823 | L212: 66.82548931 | M212: -34.04928748 | N212: -66.82548931 | O212: 30.50524823
A213: -64.47342076 | B213: 36.25738308 | E213: -104.1987556 | F213: -107.9009701 | I213: 116 | J213: -66.22106946 | K213: 31.69636963 | L213: 66.22106946 | M213: -35.21036721 | N213: -66.22106946 | O213: 31.69636963
A214: -63.87407281 | B214: 37.42108902 | E214: -100.369591 | F214: -111.4717238 | I214: 117 | J214: -65.59647804 | K214: 32.87783601 | L214: 65.59647804 | M214: -36.36072152 | N214: -65.59647804 | O214: 32.87783601
A215: -63.25450668 | B215: 38.57415767 | E215: -96.41814145 | F215: -114.9066665 | I215: 118 | J215: -64.95190528 | K215: 34.04928748 | L215: 64.95190528 | M215: -37.5 | N215: -64.95190528 | O215: 34.04928748
A216: -62.61491109 | B216: 39.71623778 | E216: -92.3492213 | F216: -118.201613 | I216: 119 | J216: -64.28754755 | K216: 35.21036721 | L216: 64.28754755 | M216: -38.62785562 | N216: -64.28754755 | O216: 35.21036721
A217: -61.95548086 | B217: 40.84698146 | E217: -88.16778784 | F217: -121.3525492 | I217: 120 | J217: -63.60360721 | K217: 36.36072152 | L217: 63.60360721 | M217: -39.74394482 | N217: -63.60360721 | O217: 36.36072152
A218: -61.27641687 | B218: 41.96604427 | E218: -83.87893552 | F218: -124.3556359 | I218: 121 | J218: -62.9002926 | K218: 37.5 | L218: 62.9002926 | M218: -40.84792763 | N218: -62.9002926 | O218: 37.5
A219: -60.57792597 | B219: 43.07308535 | E219: -79.48788963 | F219: -127.2072144 | I219: 122 | J219: -62.17781794 | K219: 38.62785562 | L219: 62.17781794 | M219: -41.93946776 | N219: -62.17781794 | O219: 38.62785562
A220: -59.86022092 | B220: 44.16776748 | E220: -75 | F220: -129.9038106 | I220: 123 | J220: -61.43640332 | K220: 39.74394482 | L220: 61.43640332 | M220: -43.01823273 | N220: -61.43640332 | O220: 39.74394482
A221: -59.12352035 | B221: 45.24975719 | E221: -70.42073442 | F221: -132.4421389 | I221: 124 | J221: -60.67627458 | K221: 40.84792763 | L221: 60.67627458 | M221: -44.08389392 | N221: -60.67627458 | O221: 40.84792763
A222: -58.36804865 | B222: 46.31872492 | E222: -65.75567202 | F222: -134.8191069 | I222: 125 | J222: -59.89766325 | K222: 41.93946776 | L222: 59.89766325 | M222: -45.13612674 | N222: -59.89766325 | O222: 41.93946776
A223: -57.59403595 | B223: 47.37434504 | E223: -61.01049646 | F223: -137.0318186 | I223: 126 | J223: -59.10080652 | K223: 43.01823273 | L223: 59.10080652 | M223: -46.17461065 | N223: =IF(circle_left,J223,L223) -> -59.10080652 | O223: =IF(circle_left,K223,M223) -> 43.01823273
A224: -56.80171803 | B224: 48.416296 | E224: -56.19098901 | F224: -139.0775782 | I224: 127 | J224: -58.28594711 | K224: 44.08389392 | L224: 58.28594711 | M224: -47.19902933 | N224: -58.28594711 | O224: 44.08389392
A225: -55.99133623 | B225: 49.44426041 | E225: -51.3030215 | F225: -140.9538931 | I225: 128 | J225: =-RADIUS_OF_SEMICIRCLE*SIN(radiansg+PI()/180*I225)+XC -> -57.45333323 | K225: 45.13612674 | L225: =RADIUS_OF_SEMICIRCLE*SIN(radiansg+PI()/180*I225)+XC -> 57.45333323 | M225: =YC+RADIUS_OF_SEMICIRCLE*COS(radiansg+PI()/180*I225) -> -48.20907073 | N225: -57.45333323 | O225: 45.13612674
A226: -55.16313741 | B226: 50.45792515 | E226: -46.35254916 | F226: -142.6584774 | I226: 129 | J226: -56.60321852 | K226: 46.17461065 | L226: 56.60321852 | M226: -49.20442717 | N226: -56.60321852 | O226: 46.17461065
A227: -54.31737383 | B227: 51.45698143 | E227: -41.34560337 | F227: -144.1892544 | I227: =I226+1 -> 130 | J227: -55.73586191 | K227: 47.19902933 | L227: 55.73586191 | M227: -50.18479548 | N227: -55.73586191 | O227: 47.19902933
A228: -53.45430313 | B228: 52.44112495 | E228: -36.28828434 | F228: -145.5443589 | I228: 131 | J228: -54.85152762 | K228: =YC-RADIUS_OF_SEMICIRCLE*COS(radiansg+PI()/180*I225) -> 48.20907073 | L228: 54.85152762 | M228: -51.149877 | N228: -54.85152762 | O228: 48.20907073
A229: -52.57418821 | B229: 53.41005591 | E229: -31.18675362 | F229: -146.7221401 | I229: 132 | J229: -53.95048503 | K229: 49.20442717 | L229: 53.95048503 | M229: -52.09937778 | N229: -53.95048503 | O229: 49.20442717
A230: -51.67729715 | B230: 54.36347918 | E230: -26.04722665 | F230: -147.721163 | I230: 133 | J230: -53.03300859 | K230: 50.18479548 | L230: 53.03300859 | M230: -53.03300859 | N230: -53.03300859 | O230: 50.18479548
A231: -50.76390317 | B231: 55.30110433 | E231: -20.87596514 | F231: -148.5402103 | I231: 134 | J231: -52.09937778 | K231: 51.149877 | L231: 52.09937778 | M231: -53.95048503 | N231: -52.09937778 | O231: 51.149877
A232: -49.83428449 | B232: 56.22264576 | E232: -15.67926949 | F232: -149.1782843 | I232: 135 | J232: -51.149877 | K232: 52.09937778 | L232: 51.149877 | M232: -54.85152762 | N232: -51.149877 | O232: 52.09937778
A233: -48.88872427 | B233: 57.12782274 | E233: -10.46347106 | F233: -149.6346075 | I233: 136 | J233: -50.18479548 | K233: 53.03300859 | L233: 50.18479548 | M233: -55.73586191 | N233: -50.18479548 | O233: 53.03300859
A234: -47.92751056 | B234: 58.01635956 | E234: -5.234924505 | F234: -149.9086241 | I234: 137 | J234: -49.20442717 | K234: 53.95048503 | L234: 49.20442717 | M234: -56.60321852 | N234: -49.20442717 | O234: 53.95048503
A235: -46.95093613 | B235: 58.88798556 | E235: -2.755364296e-14 | F235: -150 | I235: 138 | J235: -48.20907073 | K235: 54.85152762 | L235: 48.20907073 | M235: -57.45333323 | N235: -48.20907073 | O235: 54.85152762
A236: -45.95929847 | B236: 59.74243523 | E236: 5.234924505 | F236: -149.9086241 | I236: 139 | J236: -47.19902933 | K236: 55.73586191 | L236: 47.19902933 | M236: -58.28594711 | N236: -47.19902933 | O236: 55.73586191
A237: -44.95289964 | B237: 60.57944831 | E237: 10.46347106 | F237: -149.6346075 | I237: 140 | J237: -46.17461065 | K237: 56.60321852 | L237: 46.17461065 | M237: -59.10080652 | N237: -46.17461065 | O237: 56.60321852
A238: -43.9320462 | B238: 61.39876982 | E238: 15.67926949 | F238: -149.1782843 | I238: 141 | J238: -45.13612674 | K238: 57.45333323 | L238: 45.13612674 | M238: -59.89766325 | N238: -45.13612674 | O238: 57.45333323
A239: -42.8970491 | B239: 62.20015019 | E239: 20.87596514 | F239: -148.5402103 | I239: 142 | J239: -44.08389392 | K239: 58.28594711 | L239: 44.08389392 | M239: -60.67627458 | N239: -44.08389392 | O239: 58.28594711
A240: -41.84822363 | B240: 62.98334532 | E240: 26.04722665 | F240: -147.721163 | I240: 143 | J240: -43.01823273 | K240: 59.10080652 | L240: 43.01823273 | M240: -61.43640332 | N240: -43.01823273 | O240: 59.10080652
A241: -40.78588925 | B241: 63.74811664 | E241: 31.18675362 | F241: -146.7221401 | I241: 144 | J241: -41.93946776 | K241: 59.89766325 | L241: 41.93946776 | M241: -62.17781794 | N241: -41.93946776 | O241: 59.89766325
A242: -39.71036958 | B242: 64.49423118 | E242: 36.28828434 | F242: -145.5443589 | I242: 145 | J242: -40.84792763 | K242: 60.67627458 | L242: 40.84792763 | M242: -62.9002926 | N242: -40.84792763 | O242: 60.67627458
A243: -38.62199221 | B243: 65.22146169 | E243: 41.34560337 | F243: -144.1892544 | I243: 146 | J243: -39.74394482 | K243: 61.43640332 | L243: 39.74394482 | M243: -63.60360721 | N243: -39.74394482 | O243: 61.43640332
A244: -37.52108869 | B244: 65.92958663 | E244: 46.35254916 | F244: -142.6584774 | I244: 147 | J244: -38.62785562 | K244: 62.17781794 | L244: 38.62785562 | M244: -64.28754755 | N244: -38.62785562 | O244: 62.17781794
A245: -36.40799436 | B245: 66.6183903 | E245: 51.3030215 | F245: -140.9538931 | I245: 148 | J245: -37.5 | K245: 62.9002926 | L245: 37.5 | M245: -64.95190528 | N245: -37.5 | O245: 62.9002926
A246: -35.28304828 | B246: 67.28766289 | E246: 56.19098901 | F246: -139.0775782 | I246: 149 | J246: -36.36072152 | K246: 63.60360721 | L246: 36.36072152 | M246: -65.59647804 | N246: -36.36072152 | O246: 63.60360721
A247: -34.14659311 | B247: 67.93720053 | E247: 61.01049646 | F247: -137.0318186 | I247: 150 | J247: -35.21036721 | K247: 64.28754755 | L247: 35.21036721 | M247: -66.22106946 | N247: -35.21036721 | O247: 64.28754755
A248: -32.99897504 | B248: 68.56680537 | E248: 65.75567202 | F248: -134.8191069 | I248: 151 | J248: -34.04928748 | K248: 64.95190528 | L248: 34.04928748 | M248: -66.82548931 | N248: -34.04928748 | O248: 64.95190528
A249: -31.84054363 | B249: 69.17628561 | E249: 70.42073442 | F249: -132.4421389 | I249: 152 | J249: -32.87783601 | K249: 65.59647804 | L249: 32.87783601 | M249: -67.40955347 | N249: -32.87783601 | O249: 65.59647804
A250: -30.67165177 | B250: 69.76545561 | E250: 75 | F250: -129.9038106 | I250: 153 | J250: -31.69636963 | K250: 66.22106946 | L250: 31.69636963 | M250: -67.97308403 | N250: -31.69636963 | O250: 66.22106946
A251: -29.49265549 | B251: 70.33413591 | E251: 79.48788963 | F251: -127.2072144 | I251: 154 | J251: -30.50524823 | K251: 66.82548931 | L251: 30.50524823 | M251: -68.51590932 | N251: -30.50524823 | O251: 66.82548931
A252: -28.30391395 | B252: 70.88215327 | E252: 83.87893552 | F252: -124.3556359 | I252: 155 | J252: -29.30483464 | K252: 67.40955347 | L252: 29.30483464 | M252: -69.03786401 | N252: -29.30483464 | O252: 67.40955347
A253: -27.10578923 | B253: 71.40934076 | E253: 88.16778784 | F253: -121.3525492 | I253: 156 | J253: -28.09549451 | K253: 67.97308403 | L253: 28.09549451 | M253: -69.53878909 | N253: -28.09549451 | O253: 67.97308403
A254: -25.8986463 | B254: 71.9155378 | E254: 92.3492213 | F254: -118.201613 | I254: 157 | J254: -26.87759622 | K254: 68.51590932 | L254: 26.87759622 | M254: -70.01853199 | N254: -26.87759622 | O254: 68.51590932
A255: -24.68285287 | B255: 72.4005902 | E255: 96.41814145 | F255: -114.9066665 | I255: 158 | J255: -25.65151075 | K255: 69.03786401 | L255: 25.65151075 | M255: -70.47694656 | N255: =IF(circle_left,J255,L255) -> -25.65151075 | O255: =IF(circle_left,K255,M255) -> 69.03786401
A256: -23.45877928 | B256: 72.86435019 | E256: 100.369591 | F256: -111.4717238 | I256: 159 | J256: -24.41761158 | K256: 69.53878909 | L256: 24.41761158 | M256: -70.91389317 | N256: -24.41761158 | O256: 69.53878909
A257: -22.22679839 | B257: 73.30667653 | E257: 104.1987556 | F257: -107.9009701 | I257: 160 | J257: =-RADIUS_OF_SEMICIRCLE*SIN(radiansg+PI()/180*I257)+XC -> -23.17627458 | K257: 70.01853199 | L257: =RADIUS_OF_SEMICIRCLE*SIN(radiansg+PI()/180*I257)+XC -> 23.17627458 | M257: =YC+RADIUS_OF_SEMICIRCLE*COS(radiansg+PI()/180*I257) -> -71.32923872 | N257: -23.17627458 | O257: 70.01853199
A258: -20.98728549 | B258: 73.72743447 | E258: 107.9009701 | F258: -104.1987556 | I258: 161 | J258: -21.92787785 | K258: 70.47694656 | L258: 21.92787785 | M258: -71.7228567 | N258: -21.92787785 | O258: 70.47694656
A259: -19.74061812 | B259: 74.12649583 | E259: 111.4717238 | F259: -100.369591 | I259: 162 | J259: -20.67280169 | K259: 70.91389317 | L259: 20.67280169 | M259: -72.0946272 | N259: -20.67280169 | O259: 70.91389317
A260: -18.48717605 | B260: 74.50373908 | E260: 114.9066665 | F260: -96.41814145 | I260: 163 | J260: -19.41142838 | K260: =YC-RADIUS_OF_SEMICIRCLE*COS(radiansg+PI()/180*I257) -> 71.32923872 | L260: 19.41142838 | M260: -72.44443697 | N260: -19.41142838 | O260: 71.32923872
A261: -17.22734108 | B261: 74.85904929 | E261: 118.201613 | F261: -92.3492213 | I261: 164 | J261: -18.14414217 | K261: 71.7228567 | L261: 18.14414217 | M261: -72.77217947 | N261: -18.14414217 | O261: 71.7228567
A262: -15.96149698 | B262: 75.19231823 | E262: 121.3525492 | F262: -88.16778784 | I262: 165 | J262: -16.87132908 | K262: 72.0946272 | L262: 16.87132908 | M262: -73.07775486 | N262: -16.87132908 | O262: 72.0946272
A263: -14.69002932 | B263: 75.50344438 | E263: 124.3556359 | F263: -83.87893552 | I263: 166 | J263: -15.59337681 | K263: 72.44443697 | L263: 15.59337681 | M263: -73.36107006 | N263: -15.59337681 | O263: 72.44443697
A264: -13.41332541 | B264: 75.79233298 | E264: 127.2072144 | F264: -79.48788963 | I264: 167 | J264: -14.31067465 | K264: 72.77217947 | L264: 14.31067465 | M264: -73.62203876 | N264: -14.31067465 | O264: 72.77217947
A265: -12.13177415 | B265: 76.05889603 | E265: 129.9038106 | F265: -75 | I265: 168 | J265: -13.02361333 | K265: 73.07775486 | L265: 13.02361333 | M265: -73.86058148 | N265: -13.02361333 | O265: 73.07775486
A266: -10.84576591 | B266: 76.30305232 | E266: 132.4421389 | F266: -70.42073442 | I266: 169 | J266: -11.73258488 | K266: 73.36107006 | L266: 11.73258488 | M266: -74.07662554 | N266: -11.73258488 | O266: 73.36107006
A267: -9.55569242 | B267: 76.52472749 | E267: 134.8191069 | F267: -65.75567202 | I267: 170 | J267: -10.43798257 | K267: 73.62203876 | L267: 10.43798257 | M267: -74.27010516 | N267: -10.43798257 | O267: 73.62203876
A268: -8.261946649 | B268: 76.72385401 | E268: 137.0318186 | F268: -61.01049646 | I268: 171 | J268: -9.140200755 | K268: 73.86058148 | L268: 9.140200755 | M268: -74.44096137 | N268: -9.140200755 | O268: 73.86058148
... 196 more rows

Sheet CALC_POINT
A1: RADIUS OF SEMICIRCLE | B1: d | E1: 204 | F1: X_SOURCE | G1: 204 | H1: y_SOURCE | I1: 26 | K1: 180 | N1: FIND THE TANGENT FROM SOURCE | T1: SOURCE | U1: =X_SOURCE -> 204 | V1: =y_SOURCE -> 26 | W1: =ATAN(V1/U1) -> 0.1267675351 | Y1: FIND THE EXT | AA1: =U2 -> 2.617462253 | AB1: =V2 -> 74.95431203 | BG1: PARALLEL BUNDLE | BJ1: NUMBER_OF_RAYS | BL1: =15 -> 15 | BM1: ANGLE_p | BN1: 0 | BO1: =RADIANS(BN1) -> 0 | BP1: ANGLE_p_R | BR1: Klisi | BS1: =0 -> 0 | BT1: 180 | BV1: KLISI_PAR | BW1: =radiansg+ANGLE_p_R -> 0.03490658504 | BZ1: ="ANGLE OF BUNDLE = "&ANGLE_p -> ANGLE OF BUNDLE = 0
A2: 75 | C2: circle_right | D2: =IF(RHO=1,TRUE,FALSE) -> FALSE | E2: =IF(RHO=1,TRUE,FALSE) -> FALSE | F2: angle of ray | H2: =K1-90 -> 90 | I2: =RADIANS(H2) -> 1.570796327 | K2: =KLISI_PAR -> 0.03490658504 | N2: IN ROTATED AN MOVED | R2: =XC+RADIUS_OF_SEMICIRCLE*SIN(radiansg) -> 2.617462253 | S2: =YC+RADIUS_OF_SEMICIRCLE*COS(radiansg) -> 74.95431203 | U2: =IF(circle_right,IF(P8*COS(radiansg)+Q8*SIN(radiansg)+XC>0,P8*COS(radiansg)+Q8*SIN(radiansg)+XC,XC+RADIUS_OF_SEMICIRCLE*SIN(radiansg)),R2) -> 2.617462253 | V2: =IF(circle_right,-P8*SIN(radiansg)+Q8*COS(radiansg)+YC,S2) -> 74.95431203 | W2: =ATAN(V2/U2) -> 1.535889742 | AA2: =X_SOURCE -> 204 | AB2: =y_SOURCE -> 26 | BE2: MAX_WIDTH | BF2: =2*RADIUS_OF_SEMICIRCLE -> 150 | BG2: WIDTH_OF_BUNDLE | BI2: =2*RADIUS_OF_SEMICIRCLE*BL2/100 -> 30 | BJ2: PERCENTAGE | BK2: =BL2/100 -> 0.2 | BL2: 20 | BM2: 0 | BN2: 190 | BO2: ="PERCENTAGE OF MAX WIDTH "&BK2 -> PERCENTAGE OF MAX WIDTH 0,2 | BR2: =(BR3-XC)*COS(radiansg)-(BT3-YC)*SIN(radiansg) -> -0.5234924505 | BS2: =(BR3-XC)*SIN(radiansg)+(BT3-YC)*COS(radiansg) -> 14.99086241 | BT2: =(BT4-XC)*COS(radiansg)-(BU4-YC)*SIN(radiansg) -> -0.5234924505 | BU2: =(BT4-XC)*SIN(radiansg)+(BU4-YC)*COS(radiansg) -> 14.99086241 | BV2: =ATAN((BU2-BS2)/(BT2-BR2)) ->  | BW2: =DEGREES(BV2) -> 
A3: XC = | B3: 0 | C3: circle_left | D3: =NOT(circle_right) -> TRUE | E3: CHANGE DIRECTION | L3: =F15 -> 205.6501884 | N3: DISTANCE OF SOURCE | R3: =XC-RADIUS_OF_SEMICIRCLE*SIN(radiansg) -> -2.617462253 | S3: =YC-RADIUS_OF_SEMICIRCLE*COS(radiansg) -> -74.95431203 | U3: =IF(circle_right,IF(P9*COS(radiansg)+Q9*SIN(radiansg)+XC>0,P9*COS(radiansg)+Q9*SIN(radiansg)+XC,YC+RADIUS_OF_SEMICIRCLE*COS(radiansg)),R3) -> -2.617462253 | V3: =IF(circle_right,-P9*SIN(radiansg)+Q9*COS(radiansg)+YC,S3) -> -74.95431203 | W3: =ATAN(V3/U3) -> 1.535889742 | AA3: =U3 -> -2.617462253 | AB3: =V3 -> -74.95431203 | BG3: CENTRAL | BH3: CENTR_x | BI3: =200*COS(ANGLE_p_R) -> 200 | BJ3: CENTR_Y | BK3: =200*SIN(ANGLE_p_R) -> 0 | BL3: UPPER RAY | BM3: UP_ray_x | BN3: =-WIDTH_BAND/2*SIN(ANGLE_p_R)+200*COS(ANGLE_p_R) -> 200 | BO3: UP_RAY_Y | BP3: =(200)*SIN(ANGLE_p_R)+WIDTH_BAND/2*COS(ANGLE_p_R) -> 15 | BQ3: Left_x | BR3: =-WIDTH_BAND/2*SIN(ANGLE_p_R) -> 0 | BS3: left_y | BT3: =WIDTH_BAND/2*COS(ANGLE_p_R) -> 15 | BU3: =WIDTH_BAND/2/COS(ANGLE_p_R)-BT3 -> 0 | BV3: =ATAN((WIDTH_BAND/2-BT3)/(0-BR3)) ->  | BW3: =DEGREES(BV3) -> 
A4: YC = | B4: 0 | C4: radians | E4: =1/RADIUS_OF_SEMICIRCLE*(nn-1) -> 0.006666666667 | G4: 271 | H4: FOR ANGLE | N4: 0 | O4: RHO | Q4: percentage | R4: =XSR*((YSR+RADIUS_OF_SEMICIRCLE)-(YSR-RADIUS_OF_SEMICIRCLE))/(SQRT(XSR^2+(YSR-RADIUS_OF_SEMICIRCLE)^2)*SQRT(XSR^2+(YSR+RADIUS_OF_SEMICIRCLE)^2)) -> 0.6388140397 | T4: in transposed | Y4: CIRCLE RIGHT | Z4: 1 | AA4: =1 -> 1 | AB4: =Z4+1 -> 2 | AC4: =AB4 -> 2 | AD4: =AB4+1 -> 3 | AE4: =AD4 -> 3 | AF4: =AD4+1 -> 4 | AG4: =AF4 -> 4 | AH4: =AF4+1 -> 5 | AI4: =AH4 -> 5 | AJ4: =AH4+1 -> 6 | AK4: =AJ4 -> 6 | AM4: =AJ4+1 -> 7 | AN4: =AM4 -> 7 | AO4: =AM4+1 -> 8 | AP4: =AO4 -> 8 | AQ4: =AO4+1 -> 9 | AR4: =AQ4 -> 9 | AS4: =AQ4+1 -> 10 | AT4: =AS4 -> 10 | AU4: =AS4+1 -> 11 | AV4: =AU4 -> 11 | AW4: =AU4+1 -> 12 | AX4: =AW4 -> 12 | AY4: =AW4+1 -> 13 | AZ4: =AY4 -> 13 | BA4: =AY4+1 -> 14 | BB4: =BA4 -> 14 | BC4: =BA4+1 -> 15 | BD4: =BC4 -> 15 | BH4: CENTR_Y | BI4: =WIDTH_BAND/2 -> 15 | BM4: LOW_RA_X | BN4: =WIDTH_BAND/2*SIN(ANGLE_p_R)+200*COS(ANGLE_p_R) -> 200 | BO4: LOW_R_y | BP4: =-WIDTH_BAND/2*COS(ANGLE_p_R)+200*SIN(ANGLE_p_R) -> -15 | BT4: =0 -> 0 | BU4: =WIDTH_BAND/2/COS(ANGLE_p_R) -> 15
A5: ANGLE= | B5: 2 | C5: =RADIANS(ANGLE) -> 0.03490658504 | E5: =1/E4 -> 150 | F5: =1/(1/E5-1/X_SOURCE) -> 566.6666667 | L5: Maximum angle | N5: =IF(circle_right,ASIN(RADIUS_OF_SEMICIRCLE/rho_2),R5) -> 0.3464778951 | O5: =IF(circle_right,ASIN(RADIUS_OF_SEMICIRCLE/rho_2)*Q5/100,R5*Q5/100) -> 0.1801685054 | P5: A_GONIA | Q5: 52 | R5: =ASIN(R4)/2 -> 0.3464778951 | T5: X1,Y1 | U5: =U1-XC -> 204 | V5: =V1-XC -> 26 | Y5: KLISI_F | Z5: =-(A_GONIA-DGON*Z4-OMEGA) -> 0.005528082098 | AA5: =Z5 -> 0.005528082098 | AB5: =-(A_GONIA-DGON*AB4-OMEGA) -> 0.02955054949 | AC5: =AB5 -> 0.02955054949 | AD5: =-(A_GONIA-DGON*AD4-OMEGA) -> 0.05357301688 | AE5: =AD5 -> 0.05357301688 | AF5: =-(A_GONIA-DGON*AF4-OMEGA) -> 0.07759548427 | AG5: =AF5 -> 0.07759548427 | AH5: =-(A_GONIA-DGON*AH4-OMEGA) -> 0.1016179517 | AI5: =AH5 -> 0.1016179517 | AJ5: =-(A_GONIA-DGON*AJ4-OMEGA) -> 0.1256404191 | AK5: =AJ5 -> 0.1256404191 | AM5: =-(A_GONIA-DGON*AM4-OMEGA) -> 0.1496628864 | AN5: =AM5 -> 0.1496628864 | AO5: =-(A_GONIA-DGON*AO4-OMEGA) -> 0.1736853538 | AP5: =AO5 -> 0.1736853538 | AQ5: =-(A_GONIA-DGON*AQ4-OMEGA) -> 0.1977078212 | AR5: =AQ5 -> 0.1977078212 | AS5: =-(A_GONIA-DGON*AS4-OMEGA) -> 0.2217302886 | AT5: =AS5 -> 0.2217302886 | AU5: =-(A_GONIA-DGON*AU4-OMEGA) -> 0.245752756 | AV5: =AU5 -> 0.245752756 | AW5: =-(A_GONIA-DGON*AW4-OMEGA) -> 0.2697752234 | AX5: =AW5 -> 0.2697752234 | AY5: =-(A_GONIA-DGON*AY4-OMEGA) -> 0.2937976908 | AZ5: =AY5 -> 0.2937976908 | BA5: =-(A_GONIA-DGON*BA4-OMEGA) -> 0.3178201582 | BB5: =BA5 -> 0.3178201582 | BC5: =-(A_GONIA-DGON*BC4-OMEGA) -> 0.3418426256 | BD5: =BC5 -> 0.3418426256 | BG5: 'IF(A_GONIA-DGON*X4>OMEGA;A_GONIA-DGON*X4-OMEGA;-OMEGA+A_GONIA-X4*DGON)
A6: h= | B6: 1.8 | C6: 20 | L6: THE RADIUS AT TANGENT ANGL | N6: gon1: | O6: =PI()/2-O5 -> 1.390627821 | Q6: ="PERCENTAGE OF MAXIMUM ANGLE ="&Q5&"/100" -> PERCENTAGE OF MAXIMUM ANGLE =52/100 | T6: IN ROTATED | Y6: TAN(KLISI_F)=K | Z6: =TAN(Z5) -> 0.005528138411 | AA6: =TAN(AA5) -> 0.005528138411 | AB6: 0.02955915402 | AC6: 0.02955915402 | AD6: 0.05362432852 | AE6: 0.05362432852 | AF6: 0.07775159593 | AG6: 0.07775159593 | AH6: 0.1019691785 | AI6: 0.1019691785 | AJ6: 0.1263057198 | AK6: 0.1263057198 | AM6: 0.1507904218 | AN6: 0.1507904218 | AO6: 0.1754531877 | AP6: 0.1754531877 | AQ6: 0.2003247721 | AR6: 0.2003247721 | AS6: 0.2254369394 | AT6: 0.2254369394 | AU6: 0.2508226331 | AV6: 0.2508226331 | AW6: 0.2765161575 | AX6: 0.2765161575 | AY6: 0.3025533748 | AZ6: 0.3025533748 | BA6: 0.328971918 | BB6: 0.328971918 | BC6: 0.3558114255 | BD6: 0.3558114255 | BG6: 0 | BH6: =0 -> 0 | BI6: =BG6+1 -> 1 | BJ6: =BI6 -> 1 | BK6: =BI6+1 -> 2 | BL6: =BK6 -> 2 | BM6: =BK6+1 -> 3 | BN6: =BM6 -> 3 | BO6: =BM6+1 -> 4 | BP6: =BO6 -> 4 | BQ6: =BO6+1 -> 5 | BR6: =BQ6 -> 5 | BS6: =BQ6+1 -> 6 | BT6: =BS6 -> 6 | BU6: =BS6+1 -> 7 | BV6: =BU6 -> 7 | BW6: =BU6+1 -> 8 | BX6: =BW6 -> 8 | BY6: =BW6+1 -> 9 | BZ6: =BY6 -> 9 | CA6: =BY6+1 -> 10 | CB6: =CA6 -> 10 | CC6: =CA6+1 -> 11 | CD6: =CC6 -> 11 | CE6: =CC6+1 -> 12 | CF6: =CE6 -> 12 | CG6: =CE6+1 -> 13 | CH6: =CG6 -> 13 | CI6: =CG6+1 -> 14 | CJ6: =CI6 -> 14 | CK6: =CI6+1 -> 15 | CL6: =CK6 -> 15
A7: Index n= | B7: 1.5 | D7: 0 | E7: 145 | F7: =Q6 -> PERCENTAGE OF MAXIMUM ANGLE =52/100 | L7: ANGLE OF SOURCE | N7: OMEGA | O7: =ATAN(V7/U7) -> 0.1616741201 | P7: X | Q7: Y | T7: X1,Y1 | U7: =U5*COS(radiansg)-V5*SIN(radiansg) -> 202.9683418 | V7: =U5*SIN(radiansg)+V5*COS(radiansg) -> 33.10365883 | Y7: CUT WITH CIRCLE | Z7: X^2+Y^2=r^2 Y=Y11+TAN(KLISI)*(X-X11 Y11^2+K^2*(X-X11)^2+2*Y11*k*(X-X11)+X^2=R^2 | BF7: x1,y1 | BG7: =UP_ray_x+WIDTH_BAND/NUMBER_OF_RAYS*BG6*SIN(ANGLE_p_R) -> 200 | BH7: =UP_RAY_Y-WIDTH_BAND/NUMBER_OF_RAYS*COS(ANGLE_p_R)*BH6 -> 15 | BI7: =UP_ray_x+WIDTH_BAND/NUMBER_OF_RAYS*BI6*SIN(ANGLE_p_R) -> 200 | BJ7: =UP_RAY_Y-WIDTH_BAND/NUMBER_OF_RAYS*COS(ANGLE_p_R)*BJ6 -> 13 | BK7: =UP_ray_x+WIDTH_BAND/NUMBER_OF_RAYS*BK6*SIN(ANGLE_p_R) -> 200 | BL7: =UP_RAY_Y-WIDTH_BAND/NUMBER_OF_RAYS*COS(ANGLE_p_R)*BL6 -> 11 | BM7: =UP_ray_x+WIDTH_BAND/NUMBER_OF_RAYS*BM6*SIN(ANGLE_p_R) -> 200 | BN7: =UP_RAY_Y-WIDTH_BAND/NUMBER_OF_RAYS*COS(ANGLE_p_R)*BN6 -> 9 | BO7: =UP_ray_x+WIDTH_BAND/NUMBER_OF_RAYS*BO6*SIN(ANGLE_p_R) -> 200 | BP7: =UP_RAY_Y-WIDTH_BAND/NUMBER_OF_RAYS*COS(ANGLE_p_R)*BP6 -> 7 | BQ7: =UP_ray_x+WIDTH_BAND/NUMBER_OF_RAYS*BQ6*SIN(ANGLE_p_R) -> 200 | BR7: =UP_RAY_Y-WIDTH_BAND/NUMBER_OF_RAYS*COS(ANGLE_p_R)*BR6 -> 5 | BS7: =UP_ray_x+WIDTH_BAND/NUMBER_OF_RAYS*BS6*SIN(ANGLE_p_R) -> 200 | BT7: =UP_RAY_Y-WIDTH_BAND/NUMBER_OF_RAYS*COS(ANGLE_p_R)*BT6 -> 3 | BU7: =UP_ray_x+WIDTH_BAND/NUMBER_OF_RAYS*BU6*SIN(ANGLE_p_R) -> 200 | BV7: =UP_RAY_Y-WIDTH_BAND/NUMBER_OF_RAYS*COS(ANGLE_p_R)*BV6 -> 1 | BW7: =UP_ray_x+WIDTH_BAND/NUMBER_OF_RAYS*BW6*SIN(ANGLE_p_R) -> 200 | BX7: =UP_RAY_Y-WIDTH_BAND/NUMBER_OF_RAYS*COS(ANGLE_p_R)*BX6 -> -1 | BY7: =UP_ray_x+WIDTH_BAND/NUMBER_OF_RAYS*BY6*SIN(ANGLE_p_R) -> 200 | BZ7: =UP_RAY_Y-WIDTH_BAND/NUMBER_OF_RAYS*COS(ANGLE_p_R)*BZ6 -> -3 | CA7: =UP_ray_x+WIDTH_BAND/NUMBER_OF_RAYS*CA6*SIN(ANGLE_p_R) -> 200 | CB7: =UP_RAY_Y-WIDTH_BAND/NUMBER_OF_RAYS*COS(ANGLE_p_R)*CB6 -> -5 | CC7: =UP_ray_x+WIDTH_BAND/NUMBER_OF_RAYS*CC6*SIN(ANGLE_p_R) -> 200 | CD7: =UP_RAY_Y-WIDTH_BAND/NUMBER_OF_RAYS*COS(ANGLE_p_R)*CD6 -> -7 | CE7: =UP_ray_x+WIDTH_BAND/NUMBER_OF_RAYS*CE6*SIN(ANGLE_p_R) -> 200 | CF7: =UP_RAY_Y-WIDTH_BAND/NUMBER_OF_RAYS*COS(ANGLE_p_R)*CF6 -> -9 | CG7: =UP_ray_x+WIDTH_BAND/NUMBER_OF_RAYS*CG6*SIN(ANGLE_p_R) -> 200 | CH7: =UP_RAY_Y-WIDTH_BAND/NUMBER_OF_RAYS*COS(ANGLE_p_R)*CH6 -> -11 | CI7: =UP_ray_x+WIDTH_BAND/NUMBER_OF_RAYS*CI6*SIN(ANGLE_p_R) -> 200 | CJ7: =UP_RAY_Y-WIDTH_BAND/NUMBER_OF_RAYS*COS(ANGLE_p_R)*CJ6 -> -13 | CK7: =UP_ray_x+WIDTH_BAND/NUMBER_OF_RAYS*CK6*SIN(ANGLE_p_R) -> 200 | CL7: =UP_RAY_Y-WIDTH_BAND/NUMBER_OF_RAYS*COS(ANGLE_p_R)*CL6 -> -15 | CM7: x1,y1
D8: 0 | E8: 145 | F8: ="Point at "& X_SOURCE & " , " & y_SOURCE -> Point at 204 , 26 | L8: RADIUS A POIN 1= | N8: gonia_1 | O8: =PI()/2-A_GONIA+OMEGA -> 1.552301942 | P8: =RADIUS_OF_SEMICIRCLE*COS(O8) -> 1.386999825 | Q8: =RADIUS_OF_SEMICIRCLE*SIN(O8) -> 74.98717378 | R8: =-ATAN(Q8/P8) -> -1.552301942 | U8: XSR | V8: YSR | Z8: x^2(1+k^2)+2*X*k(Y11-X11*K)+(Y11-X11*k)^2-R^2 K=TAN(KLISI) | BF8: rot+transposed | BG8: =(BG7-XC)*COS(radiansg)-(BH7-YC)*SIN(radiansg) -> 199.354673 | BH8: =(BG7-XC)*SIN(radiansg)+(BH7-YC)*COS(radiansg) -> 21.97076175 | BI8: =(BI7-XC)*COS(radiansg)-(BJ7-YC)*SIN(radiansg) -> 199.4244719 | BJ8: =(BI7-XC)*SIN(radiansg)+(BJ7-YC)*COS(radiansg) -> 19.97198009 | BK8: =(BK7-XC)*COS(radiansg)-(BL7-YC)*SIN(radiansg) -> 199.4942709 | BL8: =(BK7-XC)*SIN(radiansg)+(BL7-YC)*COS(radiansg) -> 17.97319844 | BM8: =(BM7-XC)*COS(radiansg)-(BN7-YC)*SIN(radiansg) -> 199.5640699 | BN8: =(BM7-XC)*SIN(radiansg)+(BN7-YC)*COS(radiansg) -> 15.97441678 | BO8: =(BO7-XC)*COS(radiansg)-(BP7-YC)*SIN(radiansg) -> 199.6338689 | BP8: =(BO7-XC)*SIN(radiansg)+(BP7-YC)*COS(radiansg) -> 13.97563513 | BQ8: =(BQ7-XC)*COS(radiansg)-(BR7-YC)*SIN(radiansg) -> 199.7036679 | BR8: =(BQ7-XC)*SIN(radiansg)+(BR7-YC)*COS(radiansg) -> 11.97685348 | BS8: =(BS7-XC)*COS(radiansg)-(BT7-YC)*SIN(radiansg) -> 199.7734669 | BT8: =(BS7-XC)*SIN(radiansg)+(BT7-YC)*COS(radiansg) -> 9.978071822 | BU8: =(BU7-XC)*COS(radiansg)-(BV7-YC)*SIN(radiansg) -> 199.8432659 | BV8: =(BU7-XC)*SIN(radiansg)+(BV7-YC)*COS(radiansg) -> 7.979290168 | BW8: =(BW7-XC)*COS(radiansg)-(BX7-YC)*SIN(radiansg) -> 199.9130649 | BX8: =(BW7-XC)*SIN(radiansg)+(BX7-YC)*COS(radiansg) -> 5.980508513 | BY8: =(BY7-XC)*COS(radiansg)-(BZ7-YC)*SIN(radiansg) -> 199.9828639 | BZ8: =(BY7-XC)*SIN(radiansg)+(BZ7-YC)*COS(radiansg) -> 3.981726859 | CA8: =(CA7-XC)*COS(radiansg)-(CB7-YC)*SIN(radiansg) -> 200.0526629 | CB8: =(CA7-XC)*SIN(radiansg)+(CB7-YC)*COS(radiansg) -> 1.982945205 | CC8: =(CC7-XC)*COS(radiansg)-(CD7-YC)*SIN(radiansg) -> 200.1224619 | CD8: =(CC7-XC)*SIN(radiansg)+(CD7-YC)*COS(radiansg) -> -0.01583644863 | CE8: =(CE7-XC)*COS(radiansg)-(CF7-YC)*SIN(radiansg) -> 200.1922609 | CF8: =(CE7-XC)*SIN(radiansg)+(CF7-YC)*COS(radiansg) -> -2.014618103 | CG8: =(CG7-XC)*COS(radiansg)-(CH7-YC)*SIN(radiansg) -> 200.2620599 | CH8: =(CG7-XC)*SIN(radiansg)+(CH7-YC)*COS(radiansg) -> -4.013399757 | CI8: =(CI7-XC)*COS(radiansg)-(CJ7-YC)*SIN(radiansg) -> 200.3318589 | CJ8: =(CI7-XC)*SIN(radiansg)+(CJ7-YC)*COS(radiansg) -> -6.012181411 | CK8: =(CK7-XC)*COS(radiansg)-(CL7-YC)*SIN(radiansg) -> 200.4016579 | CL8: =(CK7-XC)*SIN(radiansg)+(CL7-YC)*COS(radiansg) -> -8.010963065 | CM8: rot+transposed
A9: Calculstion of max angle | E9: Second: ROTATION at angle g: | L9: RADIUS AT POINT 2 | N9: gonia_2 | O9: =-O6+ABS(O7) -> -1.228953701 | P9: =RADIUS_OF_SEMICIRCLE*COS(O9) -> 25.14177517 | Q9: =RADIUS_OF_SEMICIRCLE*SIN(O9) -> -70.66039302 | R9: =-ATAN(Q9/P9) -> 1.228953701 | V9: KLISI_F = -(A_GONIA - dgon * I - omeGA) | Z9: X=(-K*(Y11-X11*K)+SQRT(R^2*(1+K^2)-(Y11-X11*K)^2))/(1+K^) | BF9: CUT OF CIRCLE | BG9: =RADIUS_OF_SEMICIRCLE^2*(1+TAN(KLISI_PAR)^2)-(BH8-TAN(KLISI_PAR)*BG8)^2 -> 5406.585085 | BH9: =BG9 -> 5406.585085 | BI9: =RADIUS_OF_SEMICIRCLE^2*(1+TAN(KLISI_PAR)^2)-(BJ8-TAN(KLISI_PAR)*BI8)^2 -> 5462.653375 | BJ9: =BI9 -> 5462.653375 | BK9: =RADIUS_OF_SEMICIRCLE^2*(1+TAN(KLISI_PAR)^2)-(BL8-TAN(KLISI_PAR)*BK8)^2 -> 5510.711909 | BL9: =BK9 -> 5510.711909 | BM9: =RADIUS_OF_SEMICIRCLE^2*(1+TAN(KLISI_PAR)^2)-(BN8-TAN(KLISI_PAR)*BM8)^2 -> 5550.760687 | BN9: =BM9 -> 5550.760687 | BO9: =RADIUS_OF_SEMICIRCLE^2*(1+TAN(KLISI_PAR)^2)-(BP8-TAN(KLISI_PAR)*BO8)^2 -> 5582.79971 | BP9: =BO9 -> 5582.79971 | BQ9: =RADIUS_OF_SEMICIRCLE^2*(1+TAN(KLISI_PAR)^2)-(BR8-TAN(KLISI_PAR)*BQ8)^2 -> 5606.828977 | BR9: =BQ9 -> 5606.828977 | BS9: =RADIUS_OF_SEMICIRCLE^2*(1+TAN(KLISI_PAR)^2)-(BT8-TAN(KLISI_PAR)*BS8)^2 -> 5622.848488 | BT9: =BS9 -> 5622.848488 | BU9: =RADIUS_OF_SEMICIRCLE^2*(1+TAN(KLISI_PAR)^2)-(BV8-TAN(KLISI_PAR)*BU8)^2 -> 5630.858244 | BV9: =BU9 -> 5630.858244 | BW9: =RADIUS_OF_SEMICIRCLE^2*(1+TAN(KLISI_PAR)^2)-(BX8-TAN(KLISI_PAR)*BW8)^2 -> 5630.858244 | BX9: =BW9 -> 5630.858244 | BY9: =RADIUS_OF_SEMICIRCLE^2*(1+TAN(KLISI_PAR)^2)-(BZ8-TAN(KLISI_PAR)*BY8)^2 -> 5622.848488 | BZ9: =BY9 -> 5622.848488 | CA9: =RADIUS_OF_SEMICIRCLE^2*(1+TAN(KLISI_PAR)^2)-(CB8-TAN(KLISI_PAR)*CA8)^2 -> 5606.828977 | CB9: =CA9 -> 5606.828977 | CC9: =RADIUS_OF_SEMICIRCLE^2*(1+TAN(KLISI_PAR)^2)-(CD8-TAN(KLISI_PAR)*CC8)^2 -> 5582.79971 | CD9: =CC9 -> 5582.79971 | CE9: =RADIUS_OF_SEMICIRCLE^2*(1+TAN(KLISI_PAR)^2)-(CF8-TAN(KLISI_PAR)*CE8)^2 -> 5550.760687 | CF9: =CE9 -> 5550.760687 | CG9: =RADIUS_OF_SEMICIRCLE^2*(1+TAN(KLISI_PAR)^2)-(CH8-TAN(KLISI_PAR)*CG8)^2 -> 5510.711909 | CH9: =CG9 -> 5510.711909 | CI9: =RADIUS_OF_SEMICIRCLE^2*(1+TAN(KLISI_PAR)^2)-(CJ8-TAN(KLISI_PAR)*CI8)^2 -> 5462.653375 | CJ9: =CI9 -> 5462.653375 | CK9: =RADIUS_OF_SEMICIRCLE^2*(1+TAN(KLISI_PAR)^2)-(CL8-TAN(KLISI_PAR)*CK8)^2 -> 5406.585085 | CL9: =CK9 -> 5406.585085 | CM9: CUT OF CIRCLE
N10: anoigma | O10: =GONIA_1-GONIA_2 -> 2.781255643 | Z10: =RADIUS_OF_SEMICIRCLE^2*(1+Z6^2)-(YSR-XSR*Z6)^2 -> 4602.347772 | AA10: 4602.347772 | AB10: 4895.283311 | AC10: 4895.283311 | AD10: 5147.463659 | AE10: 5147.463659 | AF10: 5358.934261 | AG10: 5358.934261 | AH10: 5529.549922 | AI10: 5529.549922 | AJ10: 5658.971389 | AK10: 5658.971389 | AM10: 5746.659962 | AN10: 5746.659962 | AO10: 5791.870014 | AP10: 5791.870014 | AQ10: 5793.639283 | AR10: 5793.639283 | AS10: 5750.776749 | AT10: 5750.776749 | AU10: 5661.847868 | AV10: 5661.847868 | AW10: 5525.156864 | AX10: 5525.156864 | AY10: 5338.725743 | AZ10: 5338.725743 | BA10: 5100.269593 | BB10: 5100.269593 | BC10: 4807.167678 | BF10: X2,Y2 | BG10: =IF(BH8+TAN(KLISI_PAR)*(0-BG8)>RADIUS_OF_SEMICIRCLE,IF(BG9>0,(-TAN(KLISI_PAR)*(BH8-TAN(KLISI_PAR)*BG8)+SQRT(BG9))/(1+TAN(KLISI_PAR)^2),0),0) -> 0 | BH10: =BH8+TAN(KLISI_PAR)*(BG10-BG8) -> 15.00914316 | BI10: =IF(BJ8+TAN(KLISI_PAR)*(0-BI8)>RADIUS_OF_SEMICIRCLE,IF(BI9>0,(-TAN(KLISI_PAR)*(BJ8-TAN(KLISI_PAR)*BI8)+SQRT(BI9))/(1+TAN(KLISI_PAR)^2),0),0) -> 0 | BJ10: =BJ8+TAN(KLISI_PAR)*(BI10-BI8) -> 13.00792408 | BK10: =IF(BL8+TAN(KLISI_PAR)*(0-BK8)>RADIUS_OF_SEMICIRCLE,IF(BK9>0,(-TAN(KLISI_PAR)*(BL8-TAN(KLISI_PAR)*BK8)+SQRT(BK9))/(1+TAN(KLISI_PAR)^2),0),0) -> 0 | BL10: =BL8+TAN(KLISI_PAR)*(BK10-BK8) -> 11.00670499 | BM10: =IF(BN8+TAN(KLISI_PAR)*(0-BM8)>RADIUS_OF_SEMICIRCLE,IF(BM9>0,(-TAN(KLISI_PAR)*(BN8-TAN(KLISI_PAR)*BM8)+SQRT(BM9))/(1+TAN(KLISI_PAR)^2),0),0) -> 0 | BN10: =BN8+TAN(KLISI_PAR)*(BM10-BM8) -> 9.005485899 | BO10: =IF(BP8+TAN(KLISI_PAR)*(0-BO8)>RADIUS_OF_SEMICIRCLE,IF(BO9>0,(-TAN(KLISI_PAR)*(BP8-TAN(KLISI_PAR)*BO8)+SQRT(BO9))/(1+TAN(KLISI_PAR)^2),0),0) -> 0 | BP10: =BP8+TAN(KLISI_PAR)*(BO10-BO8) -> 7.00426681 | BQ10: =IF(BR8+TAN(KLISI_PAR)*(0-BQ8)>RADIUS_OF_SEMICIRCLE,IF(BQ9>0,(-TAN(KLISI_PAR)*(BR8-TAN(KLISI_PAR)*BQ8)+SQRT(BQ9))/(1+TAN(KLISI_PAR)^2),0),0) -> 0 | BR10: =BR8+TAN(KLISI_PAR)*(BQ10-BQ8) -> 5.003047721 | BS10: =IF(BT8+TAN(KLISI_PAR)*(0-BS8)>RADIUS_OF_SEMICIRCLE,IF(BS9>0,(-TAN(KLISI_PAR)*(BT8-TAN(KLISI_PAR)*BS8)+SQRT(BS9))/(1+TAN(KLISI_PAR)^2),0),0) -> 0 | BT10: =BT8+TAN(KLISI_PAR)*(BS10-BS8) -> 3.001828633 | BU10: =IF(BV8+TAN(KLISI_PAR)*(0-BU8)>RADIUS_OF_SEMICIRCLE,IF(BU9>0,(-TAN(KLISI_PAR)*(BV8-TAN(KLISI_PAR)*BU8)+SQRT(BU9))/(1+TAN(KLISI_PAR)^2),0),0) -> 0 | BV10: =BV8+TAN(KLISI_PAR)*(BU10-BU8) -> 1.000609544 | BW10: =IF(BX8+TAN(KLISI_PAR)*(0-BW8)>RADIUS_OF_SEMICIRCLE,IF(BW9>0,(-TAN(KLISI_PAR)*(BX8-TAN(KLISI_PAR)*BW8)+SQRT(BW9))/(1+TAN(KLISI_PAR)^2),0),0) -> 0 | BX10: =BX8+TAN(KLISI_PAR)*(BW10-BW8) -> -1.000609544 | BY10: =IF(BZ8+TAN(KLISI_PAR)*(0-BY8)>RADIUS_OF_SEMICIRCLE,IF(BY9>0,(-TAN(KLISI_PAR)*(BZ8-TAN(KLISI_PAR)*BY8)+SQRT(BY9))/(1+TAN(KLISI_PAR)^2),0),0) -> 0 | BZ10: =BZ8+TAN(KLISI_PAR)*(BY10-BY8) -> -3.001828633 | CA10: =IF(CB8+TAN(KLISI_PAR)*(0-CA8)>RADIUS_OF_SEMICIRCLE,IF(CA9>0,(-TAN(KLISI_PAR)*(CB8-TAN(KLISI_PAR)*CA8)+SQRT(CA9))/(1+TAN(KLISI_PAR)^2),0),0) -> 0 | CB10: =CB8+TAN(KLISI_PAR)*(CA10-CA8) -> -5.003047721 | CC10: =IF(CD8+TAN(KLISI_PAR)*(0-CC8)>RADIUS_OF_SEMICIRCLE,IF(CC9>0,(-TAN(KLISI_PAR)*(CD8-TAN(KLISI_PAR)*CC8)+SQRT(CC9))/(1+TAN(KLISI_PAR)^2),0),0) -> 0 | CD10: =CD8+TAN(KLISI_PAR)*(CC10-CC8) -> -7.00426681 | CE10: =IF(CF8+TAN(KLISI_PAR)*(0-CE8)>RADIUS_OF_SEMICIRCLE,IF(CE9>0,(-TAN(KLISI_PAR)*(CF8-TAN(KLISI_PAR)*CE8)+SQRT(CE9))/(1+TAN(KLISI_PAR)^2),0),0) -> 0 | CF10: =CF8+TAN(KLISI_PAR)*(CE10-CE8) -> -9.005485899 | CG10: =IF(CH8+TAN(KLISI_PAR)*(0-CG8)>RADIUS_OF_SEMICIRCLE,IF(CG9>0,(-TAN(KLISI_PAR)*(CH8-TAN(KLISI_PAR)*CG8)+SQRT(CG9))/(1+TAN(KLISI_PAR)^2),0),0) -> 0 | CH10: =CH8+TAN(KLISI_PAR)*(CG10-CG8) -> -11.00670499 | CI10: =IF(CJ8+TAN(KLISI_PAR)*(0-CI8)>RADIUS_OF_SEMICIRCLE,IF(CI9>0,(-TAN(KLISI_PAR)*(CJ8-TAN(KLISI_PAR)*CI8)+SQRT(CI9))/(1+TAN(KLISI_PAR)^2),0),0) -> 0 | CJ10: =CJ8+TAN(KLISI_PAR)*(CI10-CI8) -> -13.00792408 | CK10: =IF(CL8+TAN(KLISI_PAR)*(0-CK8)>RADIUS_OF_SEMICIRCLE,IF(CK9>0,(-TAN(KLISI_PAR)*(CL8-TAN(KLISI_PAR)*CK8)+SQRT(CK9))/(1+TAN(KLISI_PAR)^2),0),0) -> 0 | CL10: =CL8+TAN(KLISI_PAR)*(CK10-CK8) -> -15.00914316 | CM10: X2,Y2
A11: We transforn to a reference frame | E11: x11=x1cosg-y1singy11=x1sing+y1cosg | N11: DGON | O11: =(2*A_GONIA)/15 -> 0.02402246739 | P11: =2*A_GONIA/15 -> 0.02402246739 | T11: incidence | Y11: X2,Y2 | Z11: =IF(RADIUS_OF_SEMICIRCLE^2*(1+Z6^2)-(YSR-XSR*Z6)^2>0,(-Z6*(YSR-XSR*Z6)+SQRT(RADIUS_OF_SEMICIRCLE^2*(1+Z6^2)-(YSR-XSR*Z6)^2))/(1+Z6^2),XSR) -> 67.66173904 | AA11: =IF(Z11<>X_SOURCE,YSR+AA6*(Z11-XSR),YSR) -> 32.3556652 | AB11: =IF(RADIUS_OF_SEMICIRCLE^2*(1+AB6^2)-(YSR-XSR*AB6)^2>0,(-AB6*(YSR-XSR*AB6)+SQRT(RADIUS_OF_SEMICIRCLE^2*(1+AB6^2)-(YSR-XSR*AB6)^2))/(1+AB6^2),XSR) -> 69.10474756 | AC11: =IF(AB11<>X_SOURCE,YSR+AC6*(AB11-XSR),YSR) -> 29.14676423 | AD11: =IF(RADIUS_OF_SEMICIRCLE^2*(1+AD6^2)-(YSR-XSR*AD6)^2>0,(-AD6*(YSR-XSR*AD6)+SQRT(RADIUS_OF_SEMICIRCLE^2*(1+AD6^2)-(YSR-XSR*AD6)^2))/(1+AD6^2),XSR) -> 70.35201265 | AE11: =IF(AD11<>X_SOURCE,YSR+AE6*(AD11-XSR),YSR) -> 25.99219723 | AF11: =IF(RADIUS_OF_SEMICIRCLE^2*(1+AF6^2)-(YSR-XSR*AF6)^2>0,(-AF6*(YSR-XSR*AF6)+SQRT(RADIUS_OF_SEMICIRCLE^2*(1+AF6^2)-(YSR-XSR*AF6)^2))/(1+AF6^2),XSR) -> 71.42609352 | AG11: =IF(AF11<>X_SOURCE,YSR+AG6*(AF11-XSR),YSR) -> 22.87603909 | AH11: =IF(RADIUS_OF_SEMICIRCLE^2*(1+AH6^2)-(YSR-XSR*AH6)^2>0,(-AH6*(YSR-XSR*AH6)+SQRT(RADIUS_OF_SEMICIRCLE^2*(1+AH6^2)-(YSR-XSR*AH6)^2))/(1+AH6^2),XSR) -> 72.34358936 | AI11: =IF(AH11<>X_SOURCE,YSR+AI6*(AH11-XSR),YSR) -> 19.78396013 | AJ11: =IF(RADIUS_OF_SEMICIRCLE^2*(1+AJ6^2)-(YSR-XSR*AJ6)^2>0,(-AJ6*(YSR-XSR*AJ6)+SQRT(RADIUS_OF_SEMICIRCLE^2*(1+AJ6^2)-(YSR-XSR*AJ6)^2))/(1+AJ6^2),XSR) -> 73.11649754 | AK11: =IF(AJ11<>X_SOURCE,YSR+AK6*(AJ11-XSR),YSR) -> 16.70262818 | AM11: =IF(RADIUS_OF_SEMICIRCLE^2*(1+AM6^2)-(YSR-XSR*AM6)^2>0,(-AM6*(YSR-XSR*AM6)+SQRT(RADIUS_OF_SEMICIRCLE^2*(1+AM6^2)-(YSR-XSR*AM6)^2))/(1+AM6^2),XSR) -> 73.75307755 | AN11: =IF(AM11<>X_SOURCE,YSR+AN6*(AM11-XSR),YSR) -> 13.61923464 | AO11: =IF(RADIUS_OF_SEMICIRCLE^2*(1+AO6^2)-(YSR-XSR*AO6)^2>0,(-AO6*(YSR-XSR*AO6)+SQRT(RADIUS_OF_SEMICIRCLE^2*(1+AO6^2)-(YSR-XSR*AO6)^2))/(1+AO6^2),XSR) -> 74.25837839 | AP11: =IF(AO11<>X_SOURCE,YSR+AP6*(AO11-XSR),YSR) -> 10.52108546 | AQ11: =IF(RADIUS_OF_SEMICIRCLE^2*(1+AQ6^2)-(YSR-XSR*AQ6)^2>0,(-AQ6*(YSR-XSR*AQ6)+SQRT(RADIUS_OF_SEMICIRCLE^2*(1+AQ6^2)-(YSR-XSR*AQ6)^2))/(1+AQ6^2),XSR) -> 74.63451485 | AR11: =IF(AQ11<>X_SOURCE,YSR+AR6*(AQ11-XSR),YSR) -> 7.395214191 | AS11: =IF(RADIUS_OF_SEMICIRCLE^2*(1+AS6^2)-(YSR-XSR*AS6)^2>0,(-AS6*(YSR-XSR*AS6)+SQRT(RADIUS_OF_SEMICIRCLE^2*(1+AS6^2)-(YSR-XSR*AS6)^2))/(1+AS6^2),XSR) -> 74.88073305 | AT11: =IF(AS11<>X_SOURCE,YSR+AT6*(AS11-XSR),YSR) -> 4.227980339 | AU11: =IF(RADIUS_OF_SEMICIRCLE^2*(1+AU6^2)-(YSR-XSR*AU6)^2>0,(-AU6*(YSR-XSR*AU6)+SQRT(RADIUS_OF_SEMICIRCLE^2*(1+AU6^2)-(YSR-XSR*AU6)^2))/(1+AU6^2),XSR) -> 74.99327136 | AV11: =IF(AU11<>X_SOURCE,YSR+AV6*(AU11-XSR),YSR) -> 1.004614698 | AW11: =IF(RADIUS_OF_SEMICIRCLE^2*(1+AW6^2)-(YSR-XSR*AW6)^2>0,(-AW6*(YSR-XSR*AW6)+SQRT(RADIUS_OF_SEMICIRCLE^2*(1+AW6^2)-(YSR-XSR*AW6)^2))/(1+AW6^2),XSR) -> 74.96499036 | AX11: =IF(AW11<>X_SOURCE,YSR+AX6*(AW11-XSR),YSR) -> -2.291336064 | AY11: =IF(RADIUS_OF_SEMICIRCLE^2*(1+AY6^2)-(YSR-XSR*AY6)^2>0,(-AY6*(YSR-XSR*AY6)+SQRT(RADIUS_OF_SEMICIRCLE^2*(1+AY6^2)-(YSR-XSR*AY6)^2))/(1+AY6^2),XSR) -> 74.78470424 | AZ11: =IF(AY11<>X_SOURCE,YSR+AZ6*(AY11-XSR),YSR) -> -5.678733308 | BA11: =IF(RADIUS_OF_SEMICIRCLE^2*(1+BA6^2)-(YSR-XSR*BA6)^2>0,(-BA6*(YSR-XSR*BA6)+SQRT(RADIUS_OF_SEMICIRCLE^2*(1+BA6^2)-(YSR-XSR*BA6)^2))/(1+BA6^2),XSR) -> 74.43608297 | BB11: =IF(BA11<>X_SOURCE,YSR+BB6*(BA11-XSR),YSR) -> -9.179844882 | BC11: =IF(RADIUS_OF_SEMICIRCLE^2*(1+BC6^2)-(YSR-XSR*BC6)^2>0,(-BC6*(YSR-XSR*BC6)+SQRT(RADIUS_OF_SEMICIRCLE^2*(1+BC6^2)-(YSR-XSR*BC6)^2))/(1+BC6^2),XSR) -> 73.89588303 | BD11: =IF(BC11<>X_SOURCE,YSR+BD6*(BC11-XSR),YSR) -> -12.82179672 | BE11: in or out of circle | BF11: true =in | BH11: =IF(ABS(BH10)<RADIUS_OF_SEMICIRCLE,TRUE,FALSE) -> TRUE | BJ11: =IF(ABS(BJ10)<RADIUS_OF_SEMICIRCLE,TRUE,FALSE) -> TRUE | BL11: =IF(ABS(BL10)<RADIUS_OF_SEMICIRCLE,TRUE,FALSE) -> TRUE | BN11: =IF(ABS(BN10)<RADIUS_OF_SEMICIRCLE,TRUE,FALSE) -> TRUE | BP11: =IF(ABS(BP10)<RADIUS_OF_SEMICIRCLE,TRUE,FALSE) -> TRUE | BR11: =IF(ABS(BR10)<RADIUS_OF_SEMICIRCLE,TRUE,FALSE) -> TRUE | BT11: =IF(ABS(BT10)<RADIUS_OF_SEMICIRCLE,TRUE,FALSE) -> TRUE | BV11: =IF(ABS(BV10)<RADIUS_OF_SEMICIRCLE,TRUE,FALSE) -> TRUE | BX11: =IF(ABS(BX10)<RADIUS_OF_SEMICIRCLE,TRUE,FALSE) -> TRUE | BZ11: =IF(ABS(BZ10)<RADIUS_OF_SEMICIRCLE,TRUE,FALSE) -> TRUE | CB11: =IF(ABS(CB10)<RADIUS_OF_SEMICIRCLE,TRUE,FALSE) -> TRUE | CD11: =IF(ABS(CD10)<RADIUS_OF_SEMICIRCLE,TRUE,FALSE) -> TRUE | CF11: =IF(ABS(CF10)<RADIUS_OF_SEMICIRCLE,TRUE,FALSE) -> TRUE | CH11: =IF(ABS(CH10)<RADIUS_OF_SEMICIRCLE,TRUE,FALSE) -> TRUE | CJ11: =IF(ABS(CJ10)<RADIUS_OF_SEMICIRCLE,TRUE,FALSE) -> TRUE | CL11: =IF(ABS(CL10)<RADIUS_OF_SEMICIRCLE,TRUE,FALSE) -> TRUE | CM11: true =in
A12: where the center of the cirlce is at 0,0 | E12: x11 | F12: =B16*COS(radiansg)-B18*SIN(radiansg) -> 202.9683418 | K12: KLISI_F = -(A_GONIA - dgon * I - omeGA) | T12: in degrees | Y12: INCID = Atn(ykyklos / xkyklos) - agoN(I) | Z12: =ATAN(AA11/Z11)-Z5 -> 0.4405257812 | AA12: =Z12 -> 0.4405257812 | AB12: =ATAN(AC11/AB11)-AB5 -> 0.369586669 | AC12: =AB12 -> 0.369586669 | AD12: =ATAN(AE11/AD11)-AD5 -> 0.3003311255 | AE12: =AD12 -> 0.3003311255 | AF12: =ATAN(AG11/AF11)-AF5 -> 0.2323574928 | AG12: =AF12 -> 0.2323574928 | AH12: =ATAN(AI11/AH11)-AH5 -> 0.1653273164 | AI12: =AH12 -> 0.1653273164 | AJ12: =ATAN(AK11/AJ11)-AJ5 -> 0.09894448414 | AK12: =AJ12 -> 0.09894448414 | AM12: =ATAN(AN11/AM11)-AM5 -> 0.03293999762 | AN12: =AM12 -> 0.03293999762 | AO12: =ATAN(AP11/AO11)-AO5 -> -0.03293999762 | AP12: =AO12 -> -0.03293999762 | AQ12: =ATAN(AR11/AQ11)-AQ5 -> -0.09894448414 | AR12: =AQ12 -> -0.09894448414 | AS12: =ATAN(AT11/AS11)-AS5 -> -0.1653273164 | AT12: =AS12 -> -0.1653273164 | AU12: =ATAN(AV11/AU11)-AU5 -> -0.2323574928 | AV12: =AU12 -> -0.2323574928 | AW12: =ATAN(AX11/AW11)-AW5 -> -0.3003311255 | AX12: =AW12 -> -0.3003311255 | AY12: =ATAN(AZ11/AY11)-AY5 -> -0.369586669 | AZ12: =AY12 -> -0.369586669 | BA12: =ATAN(BB11/BA11)-BA5 -> -0.4405257812 | BB12: =BA12 -> -0.4405257812 | BC12: =ATAN(BD11/BC11)-BC5 -> -0.5136438059 | BD12: =BC12 -> -0.5136438059 | BH12: =IF(BG12<>0,BH8+TAN(radiansg+ANGLE_p_R)*(BG12-BG8),BG8+(0-BG8)*TAN(radiansg+ANGLE_p_R)) -> 192.3930544 | BJ12: =IF(BI12<>0,BJ8+TAN(radiansg+ANGLE_p_R)*(BI12-BI8),BI8+(0-BI8)*TAN(radiansg+ANGLE_p_R)) -> 192.4604159 | BL12: =IF(BK12<>0,BL8+TAN(radiansg+ANGLE_p_R)*(BK12-BK8),BK8+(0-BK8)*TAN(radiansg+ANGLE_p_R)) -> 192.5277775 | BN12: =IF(BM12<>0,BN8+TAN(radiansg+ANGLE_p_R)*(BM12-BM8),BM8+(0-BM8)*TAN(radiansg+ANGLE_p_R)) -> 192.595139 | BP12: =IF(BO12<>0,BP8+TAN(radiansg+ANGLE_p_R)*(BO12-BO8),BO8+(0-BO8)*TAN(radiansg+ANGLE_p_R)) -> 192.6625006 | BR12: =IF(BQ12<>0,BR8+TAN(radiansg+ANGLE_p_R)*(BQ12-BQ8),BR8+(0-BQ8)*TAN(radiansg+ANGLE_p_R)) -> 5.003047721 | BT12: =IF(BS10<>0,BT8+TAN(radiansg+ANGLE_p_R)*(BS12-BS8),BT8+(0-BS8)*TAN(radiansg+ANGLE_p_R)) -> 3.001828633 | BV12: =IF(BU10<>0,BV8+TAN(radiansg+ANGLE_p_R)*(BU12-BU8),BV8+(0-BU8)*TAN(radiansg+ANGLE_p_R)) -> 1.000609544 | BX12: =IF(BW10<>0,BX8+TAN(radiansg+ANGLE_p_R)*(BW12-BW8),BX8+(0-BW8)*TAN(radiansg+ANGLE_p_R)) -> -1.000609544 | BZ12: =IF(BY10<>0,BZ8+TAN(radiansg+ANGLE_p_R)*(BY12-BY8),BZ8+(0-BY8)*TAN(radiansg+ANGLE_p_R)) -> -3.001828633 | CB12: =IF(CA10<>0,CB8+TAN(radiansg+ANGLE_p_R)*(CA12-CA8),CB8+(0-CA8)*TAN(radiansg+ANGLE_p_R)) -> -5.003047721 | CD12: =IF(CC10<>0,CD8+TAN(radiansg+ANGLE_p_R)*(CC12-CC8),CD8+(0-CC8)*TAN(radiansg+ANGLE_p_R)) -> -7.00426681 | CF12: =IF(CE10<>0,CF8+TAN(radiansg+ANGLE_p_R)*(CE12-CE8),CF8+(0-CE8)*TAN(radiansg+ANGLE_p_R)) -> -9.005485899 | CH12: =IF(CG10<>0,CH8+TAN(radiansg+ANGLE_p_R)*(CG12-CG8),CH8+(0-CG8)*TAN(radiansg+ANGLE_p_R)) -> -11.00670499 | CJ12: =IF(CI10<>0,CJ8+TAN(radiansg+ANGLE_p_R)*(CI12-CI8),CJ8+(0-CI8)*TAN(radiansg+ANGLE_p_R)) -> -13.00792408 | CL12: =IF(CK10<>0,CL8+TAN(radiansg+ANGLE_p_R)*(CK12-CK8),CL8+(0-CK8)*TAN(radiansg+ANGLE_p_R)) -> -15.00914316
A13: and the diameter is perpendicular to the | E13: y11 | F13: =B16*SIN(radiansg)+B18*COS(radiansg) -> 33.10365883 | P13: =P8*COS(radiansg)+Q8*SIN(radiansg)+XC -> 4.003169526 | T13: refraction | U13: =ATAN((V7-htry)/(U7-htrx)) -> 0.1529822273 | V13: =U13 -> 0.1529822273 | Y13: REFRACTION | Z13: =ASIN(SIN(Z12)/nn) -> 0.2882519579 | AA13: =Z13 -> 0.2882519579 | AB13: =ASIN(SIN(AB12)/nn) -> 0.2432106555 | AC13: =AB13 -> 0.2432106555 | AD13: =ASIN(SIN(AD12)/nn) -> 0.1985258509 | AE13: =AD13 -> 0.1985258509 | AF13: =ASIN(SIN(AF12)/nn) -> 0.1541243281 | AG13: =AF13 -> 0.1541243281 | AH13: =ASIN(SIN(AH12)/nn) -> 0.1099381208 | AI13: =AH13 -> 0.1099381208 | AJ13: =ASIN(SIN(AJ12)/nn) -> 0.06590310729 | AK13: =AJ13 -> 0.06590310729 | AM13: =ASIN(SIN(AM12)/nn) -> 0.0219577918 | AN13: =AM13 -> 0.0219577918 | AO13: =ASIN(SIN(AO12)/nn) -> -0.0219577918 | AP13: =AO13 -> -0.0219577918 | AQ13: =ASIN(SIN(AQ12)/nn) -> -0.06590310729 | AR13: =AQ13 -> -0.06590310729 | AS13: =ASIN(SIN(AS12)/nn) -> -0.1099381208 | AT13: =AS13 -> -0.1099381208 | AU13: =ASIN(SIN(AU12)/nn) -> -0.1541243281 | AV13: =AU13 -> -0.1541243281 | AW13: =ASIN(SIN(AW12)/nn) -> -0.1985258509 | AX13: =AW13 -> -0.1985258509 | AY13: =ASIN(SIN(AY12)/nn) -> -0.2432106555 | AZ13: =AY13 -> -0.2432106555 | BA13: =ASIN(SIN(BA12)/nn) -> -0.2882519579 | BB13: =BA13 -> -0.2882519579 | BC13: =ASIN(SIN(BC12)/nn) -> -0.3337298974 | BD13: =BC13 -> -0.3337298974 | BE13: ANGLE | BF13: INCIDENCE | BG13: =KLISI_PAR -> 0.03490658504 | BH13: =BG13 -> 0.03490658504 | BI13: =KLISI_PAR -> 0.03490658504 | BJ13: =BI13 -> 0.03490658504 | BK13: =KLISI_PAR -> 0.03490658504 | BL13: =BK13 -> 0.03490658504 | BM13: =KLISI_PAR -> 0.03490658504 | BN13: =BM13 -> 0.03490658504 | BO13: =KLISI_PAR -> 0.03490658504 | BP13: =BO13 -> 0.03490658504 | BQ13: =KLISI_PAR -> 0.03490658504 | BR13: =BQ13 -> 0.03490658504 | BS13: =KLISI_PAR -> 0.03490658504 | BT13: =BS13 -> 0.03490658504 | BU13: =KLISI_PAR -> 0.03490658504 | BV13: =BU13 -> 0.03490658504 | BW13: =KLISI_PAR -> 0.03490658504 | BX13: =BW13 -> 0.03490658504 | BY13: =KLISI_PAR -> 0.03490658504 | BZ13: =BY13 -> 0.03490658504 | CA13: =KLISI_PAR -> 0.03490658504 | CB13: =CA13 -> 0.03490658504 | CC13: =KLISI_PAR -> 0.03490658504 | CD13: =CC13 -> 0.03490658504 | CE13: =KLISI_PAR -> 0.03490658504 | CF13: =CE13 -> 0.03490658504 | CG13: =KLISI_PAR -> 0.03490658504 | CH13: =CG13 -> 0.03490658504 | CI13: =KLISI_PAR -> 0.03490658504 | CJ13: =CI13 -> 0.03490658504 | CK13: =KLISI_PAR -> 0.03490658504 | CL13: =CK13 -> 0.03490658504 | CM13: INCIDENCE
A14: x axis | E14: Disance of source from center = | T14: in degrees | U14: =DEGREES(U13) -> 8.765235963 | V14: =DEGREES(V13) -> 8.765235963 | Y14: NEW KLISI | Z14: =ATAN(AA11/Z11)-Z13 -> 0.1578019055 | AA14: =Z14 -> 0.1578019055 | AB14: =ATAN(AC11/AB11)-AB13 -> 0.155926563 | AC14: =AB14 -> 0.155926563 | AD14: =ATAN(AE11/AD11)-AD13 -> 0.1553782915 | AE14: =AD14 -> 0.1553782915 | AF14: =ATAN(AG11/AF11)-AF13 -> 0.155828649 | AG14: =AF14 -> 0.155828649 | AH14: =ATAN(AI11/AH11)-AH13 -> 0.1570071473 | AI14: =AH14 -> 0.1570071473 | AJ14: =ATAN(AK11/AJ11)-AJ13 -> 0.1586817959 | AK14: =AJ14 -> 0.1586817959 | AM14: =ATAN(AN11/AM11)-AM13 -> 0.1606450923 | AN14: =AM14 -> 0.1606450923 | AO14: =ATAN(AP11/AO11)-AO13 -> 0.162703148 | AP14: =AO14 -> 0.162703148 | AQ14: =ATAN(AR11/AQ11)-AQ13 -> 0.1646664444 | AR14: =AQ14 -> 0.1646664444 | AS14: =ATAN(AT11/AS11)-AS13 -> 0.166341093 | AT14: =AS14 -> 0.166341093 | AU14: =ATAN(AV11/AU11)-AU13 -> 0.1675195913 | AV14: =AU14 -> 0.1675195913 | AW14: =ATAN(AX11/AW11)-AW13 -> 0.1679699488 | AX14: =AW14 -> 0.1679699488 | AY14: =ATAN(AZ11/AY11)-AY13 -> 0.1674216773 | AZ14: =AY14 -> 0.1674216773 | BA14: =ATAN(BB11/BA11)-BA13 -> 0.1655463348 | BB14: =BA14 -> 0.1655463348 | BC14: =ATAN(BD11/BC11)-BC13 -> 0.1619287171 | BD14: =BC14 -> 0.1619287171 | BF14: refraction | BG14: =ASIN(SIN(BG13)/nn) -> 0.02326843074 | BH14: =ASIN(SIN(BH13)/nn) -> 0.02326843074 | BI14: =ASIN(SIN(BI13)/nn) -> 0.02326843074 | BJ14: 0.02326843074 | BK14: 0.02326843074 | BL14: 0.02326843074 | BM14: 0.02326843074 | BN14: 0.02326843074 | BO14: 0.02326843074 | BP14: 0.02326843074 | BQ14: 0.02326843074 | BR14: 0.02326843074 | BS14: 0.02326843074 | BT14: 0.02326843074 | BU14: 0.02326843074 | BV14: 0.02326843074 | BW14: 0.02326843074 | BX14: 0.02326843074 | BY14: =ASIN(SIN(BY13)/nn) -> 0.02326843074 | BZ14: 0.02326843074 | CA14: 0.02326843074 | CB14: 0.02326843074 | CC14: 0.02326843074 | CD14: 0.02326843074 | CE14: 0.02326843074 | CF14: 0.02326843074 | CG14: 0.02326843074 | CH14: 0.02326843074 | CI14: 0.02326843074 | CJ14: 0.02326843074 | CK14: 0.02326843074 | CL14: 0.02326843074 | CM14: refraction
A15: First | B15: X1=X-XC Y1=Y-YC | E15: rho= | F15: =SQRT(F12^2+F13^2) -> 205.6501884 | T15: X2,Y2 | U15: =ASIN(SIN(U13)/nn) -> 0.1017663669 | V15: =ASIN(SIN(V13)/nn) -> 0.1017663669 | Y15: X3,Y3 | Z15: =IF(Z11<>XSR,0,XSR) -> 0 | AA15: =IF(Z11<>XSR,AA11+TAN(AA14)*(Z15-Z11),YSR) -> 21.58899662 | AB15: =IF(AB11<>XSR,0,XSR) -> 0 | AC15: =IF(AB11<>XSR,AC11+TAN(AC14)*(AB15-AB11),YSR) -> 18.28331406 | AD15: =IF(AD11<>XSR,0,XSR) -> 0 | AE15: =IF(AD11<>XSR,AE11+TAN(AE14)*(AD15-AD11),YSR) -> 14.97219549 | AF15: =IF(AF11<>XSR,0,XSR) -> 0 | AG15: =IF(AF11<>XSR,AG11+TAN(AG14)*(AF15-AF11),YSR) -> 11.6548335 | AH15: =IF(AH11<>XSR,0,XSR) -> 0 | AI15: =IF(AH11<>XSR,AI11+TAN(AI14)*(AH15-AH11),YSR) -> 8.331236555 | AJ15: =IF(AJ11<>XSR,0,XSR) -> 0 | AK15: =IF(AJ11<>XSR,AK11+TAN(AK14)*(AJ15-AJ11),YSR) -> 5.001998843 | AM15: =IF(AM11<>XSR,0,XSR) -> 0 | AN15: =IF(AM11<>XSR,AN11+TAN(AN14)*(AM15-AM11),YSR) -> 1.668181047 | AO15: =IF(AO11<>XSR,0,XSR) -> 0 | AP15: =IF(AO11<>XSR,AP11+TAN(AP14)*(AO15-AO11),YSR) -> -1.668741089 | AQ15: =IF(AQ11<>XSR,0,XSR) -> 0 | AR15: =IF(AQ11<>XSR,AR11+TAN(AR14)*(AQ15-AQ11),YSR) -> -5.006883603 | AS15: =IF(AS11<>XSR,0,XSR) -> 0 | AT15: =IF(AS11<>XSR,AT11+TAN(AT14)*(AS15-AS11),YSR) -> -8.343929321 | AU15: =IF(AU11<>XSR,0,XSR) -> 0 | AV15: =IF(AU11<>XSR,AV11+TAN(AV14)*(AU15-AU11),YSR) -> -11.67707799 | AW15: =IF(AW11<>XSR,0,XSR) -> 0 | AX15: =IF(AW11<>XSR,AX11+TAN(AX14)*(AW15-AW11),YSR) -> -15.00297544 | AY15: =IF(AY11<>XSR,0,XSR) -> 0 | AZ15: =IF(AY11<>XSR,AZ11+TAN(AZ14)*(AY15-AY11),YSR) -> -18.31762464 | BA15: =IF(BA11<>XSR,0,XSR) -> 0 | BB15: =IF(BA11<>XSR,BB11+TAN(BB14)*(BA15-BA11),YSR) -> -21.61628301 | BC15: =IF(BC11<>XSR,0,XSR) -> 0 | BD15: =IF(BC11<>XSR,BD11+TAN(BD14)*(BC15-BC11),YSR) -> -24.89335624 | BE15: angle of radius | BF15: f22 | BG15: =IF(BG10<>0,ASIN(BH10*BG10/ABS(BG10)/RADIUS_OF_SEMICIRCLE),ASIN(BH10/RADIUS_OF_SEMICIRCLE)) -> 0.2014823451 | BH15: =DEGREES(BG15) -> 11.54408802 | BI15: =IF(BI10<>0,ASIN(BJ10*BI10/ABS(BI10)/RADIUS_OF_SEMICIRCLE),ASIN(BJ10/RADIUS_OF_SEMICIRCLE)) -> 0.1743205121 | BJ15: =DEGREES(BI15) -> 9.987829626 | BK15: =IF(BK10<>0,ASIN(BL10*BK10/ABS(BK10)/RADIUS_OF_SEMICIRCLE),ASIN(BL10/RADIUS_OF_SEMICIRCLE)) -> 0.1472880278 | BL15: =DEGREES(BK15) -> 8.438982363 | BM15: =IF(BM10<>0,ASIN(BN10*BM10/ABS(BM10)/RADIUS_OF_SEMICIRCLE),ASIN(BN10/RADIUS_OF_SEMICIRCLE)) -> 0.1203635604 | BN15: =DEGREES(BM15) -> 6.89632402 | BO15: =IF(BO10<>0,ASIN(BP10*BO10/ABS(BO10)/RADIUS_OF_SEMICIRCLE),ASIN(BP10/RADIUS_OF_SEMICIRCLE)) -> 0.09352651384 | BP15: =DEGREES(BO15) -> 5.358674515 | BQ15: =IF(BQ10<>0,ASIN(BR10*BQ10/ABS(BQ10)/RADIUS_OF_SEMICIRCLE),ASIN(BR10/RADIUS_OF_SEMICIRCLE)) -> 0.06675687536 | BR15: =DEGREES(BQ15) -> 3.824887211 | BS15: =IF(BS10<>0,ASIN(BT10*BS10/ABS(BS10)/RADIUS_OF_SEMICIRCLE),ASIN(BT10/RADIUS_OF_SEMICIRCLE)) -> 0.04003507567 | BT15: =DEGREES(BS15) -> 2.293840868 | BU15: =IF(BU10<>0,ASIN(BV10*BU10/ABS(BU10)/RADIUS_OF_SEMICIRCLE),ASIN(BV10/RADIUS_OF_SEMICIRCLE)) -> 0.01334185641 | BV15: =DEGREES(BU15) -> 0.764432063 | BW15: =IF(BW10<>0,ASIN(BX10*BW10/ABS(BW10)/RADIUS_OF_SEMICIRCLE),ASIN(BX10/RADIUS_OF_SEMICIRCLE)) -> -0.01334185641 | BX15: =DEGREES(BW15) -> -0.764432063 | BY15: =IF(BY10<>0,ASIN(BZ10*BY10/ABS(BY10)/RADIUS_OF_SEMICIRCLE),ASIN(BZ10/RADIUS_OF_SEMICIRCLE)) -> -0.04003507567 | BZ15: =DEGREES(BY15) -> -2.293840868 | CA15: =IF(CA10<>0,ASIN(CB10*CA10/ABS(CA10)/RADIUS_OF_SEMICIRCLE),ASIN(CB10/RADIUS_OF_SEMICIRCLE)) -> -0.06675687536 | CB15: =DEGREES(CA15) -> -3.824887211 | CC15: =IF(CC10<>0,ASIN(CD10*CC10/ABS(CC10)/RADIUS_OF_SEMICIRCLE),ASIN(CD10/RADIUS_OF_SEMICIRCLE)) -> -0.09352651384 | CD15: =DEGREES(CC15) -> -5.358674515 | CE15: =IF(CE10<>0,ASIN(CF10*CE10/ABS(CE10)/RADIUS_OF_SEMICIRCLE),ASIN(CF10/RADIUS_OF_SEMICIRCLE)) -> -0.1203635604 | CF15: =DEGREES(CE15) -> -6.89632402 | CG15: =IF(CG10<>0,ASIN(CH10*CG10/ABS(CG10)/RADIUS_OF_SEMICIRCLE),ASIN(CH10/RADIUS_OF_SEMICIRCLE)) -> -0.1472880278 | CH15: =DEGREES(CG15) -> -8.438982363 | CI15: =IF(CI10<>0,ASIN(CJ10*CI10/ABS(CI10)/RADIUS_OF_SEMICIRCLE),ASIN(CJ10/RADIUS_OF_SEMICIRCLE)) -> -0.1743205121 | CJ15: =DEGREES(CI15) -> -9.987829626 | CK15: =IF(CK10<>0,ASIN(CL10*CK10/ABS(CK10)/RADIUS_OF_SEMICIRCLE),ASIN(CL10/RADIUS_OF_SEMICIRCLE)) -> -0.2014823451 | CL15: =DEGREES(CK15) -> -11.54408802 | CM15: f22
A16: x_SO1 | B16: =X_SOURCE-XC -> 204 | E16: Angle of tangent from source to circle | T16: point at | U16: =DEGREES(U15) -> 5.830783321 | V16: =DEGREES(V15) -> 5.830783321 | Y16: SIN(KLISI)*NN | Z16: =SIN(Z14)*nn -> 0.2357217069 | AA16: 0.2357217069 | AB16: 0.2329432317 | AC16: 0.2329432317 | AD16: 0.2321307669 | AE16: 0.2321307669 | AF16: 0.2327981414 | AG16: 0.2327981414 | AH16: 0.2345443075 | AI16: 0.2345443075 | AJ16: 0.2370250523 | AK16: 0.2370250523 | AM16: 0.2399325392 | AN16: 0.2399325392 | AO16: 0.2429793641 | AP16: 0.2429793641 | AQ16: 0.2458849447 | AR16: 0.2458849447 | AS16: 0.2483625924 | AT16: 0.2483625924 | AU16: 0.2501057672 | AV16: 0.2501057672 | AW16: 0.2507718214 | AX16: 0.2507718214 | AY16: 0.2499609509 | AZ16: 0.2499609509 | BA16: 0.2471868317 | BB16: 0.2471868317 | BC16: 0.2418329869 | BD16: 0.2418329869 | BE16: circle left | BF16: insi klisi | BG16: =IF(BG10<>0,PI()+BG14+BG15,BG14) -> 0.02326843074 | BH16: =BG16 -> 0.02326843074 | BI16: =IF(BI10<>0,PI()+BI14+BI15,BI14) -> 0.02326843074 | BJ16: =BI16 -> 0.02326843074 | BK16: =IF(BK10<>0,PI()+BK14+BK15,BK14) -> 0.02326843074 | BL16: =BK16 -> 0.02326843074 | BM16: =IF(BM10<>0,PI()+BM14+BM15,BM14) -> 0.02326843074 | BN16: =BM16 -> 0.02326843074 | BO16: =IF(BO10<>0,PI()+BO14+BO15,BO14) -> 0.02326843074 | BP16: =BO16 -> 0.02326843074 | BQ16: =IF(BQ10<>0,PI()+BQ14+BQ15,BQ14) -> 0.02326843074 | BR16: =BQ16 -> 0.02326843074 | BS16: =IF(BS10<>0,PI()+BS14+BS15,BS14) -> 0.02326843074 | BT16: =BS16 -> 0.02326843074 | BU16: =IF(BU10<>0,PI()+BU14+BU15,BU14) -> 0.02326843074 | BV16: =BU16 -> 0.02326843074 | BW16: =IF(BW10<>0,PI()+BW14+BW15,BW14) -> 0.02326843074 | BX16: =BW16 -> 0.02326843074 | BY16: 0.02326843074 | BZ16: =BY16 -> 0.02326843074 | CA16: 0.02326843074 | CB16: =CA16 -> 0.02326843074 | CC16: 0.02326843074 | CD16: =CC16 -> 0.02326843074 | CE16: 0.02326843074 | CF16: =CE16 -> 0.02326843074 | CG16: 0.02326843074 | CH16: =CG16 -> 0.02326843074 | CI16: 0.02326843074 | CJ16: =CI16 -> 0.02326843074 | CK16: 0.02326843074 | CL16: =CK16 -> 0.02326843074 | CM16: insi klisi
Y17: klisi3 | Z17: =IF(Z16<1,ASIN(Z16),-Z14) -> 0.2379611351 | AA17: =Z17 -> 0.2379611351 | AB17: =IF(AB16<1,ASIN(AB16),-AB14) -> 0.2351030807 | AC17: =AB17 -> 0.2351030807 | AD17: =IF(AD16<1,ASIN(AD16),-AD14) -> 0.2342677165 | AE17: =AD17 -> 0.2342677165 | AF17: =IF(AF16<1,ASIN(AF16),-AF14) -> 0.2349538887 | AG17: =AF17 -> 0.2349538887 | AH17: =IF(AH16<1,ASIN(AH16),-AH14) -> 0.236749773 | AI17: =AH17 -> 0.236749773 | AJ17: =IF(AJ16<1,ASIN(AJ16),-AJ14) -> 0.2393024916 | AK17: =AJ17 -> 0.2393024916 | AM17: =IF(AM16<1,ASIN(AM16),-AM14) -> 0.2422963597 | AN17: =AM17 -> 0.2422963597 | AO17: =IF(AO16<1,ASIN(AO16),-AO14) -> 0.2454360851 | AP17: =AO17 -> 0.2454360851 | AQ17: =IF(AQ16<1,ASIN(AQ16),-AQ14) -> 0.2484325609 | AR17: =AQ17 -> 0.2484325609 | AS17: =IF(AS16<1,ASIN(AS16),-AS14) -> 0.2509895161 | AT17: =AS17 -> 0.2509895161 | AU17: =IF(AU16<1,ASIN(AU16),-AU14) -> 0.2527894925 | AV17: =AU17 -> 0.2527894925 | AW17: =IF(AW16<1,ASIN(AW16),-AW14) -> 0.253477471 | AX17: =AW17 -> 0.253477471 | AY17: =IF(AY16<1,ASIN(AY16),-AY14) -> 0.2526399257 | AZ17: =AY17 -> 0.2526399257 | BA17: =IF(BA16<1,ASIN(BA16),-BA14) -> 0.2497759123 | BB17: =BA17 -> 0.2497759123 | BC17: =IF(BC16<1,ASIN(BC16),-BC14) -> 0.2442544658 | BD17: =BC17 -> 0.2442544658 | BE17: insid incl for circle | BF17: =COS(PI()+BG16) -> -0.9997293023 | BG17: =PI()+BG15+BG14 -> 3.366343429 | BH17: =(-(BG20)*BH20-SIGN(1)*SQRT(RADIUS_OF_SEMICIRCLE^2*(1+BG20^2)-BH20^2))/(1+BG20^2) -> -73.81287641 | BI17: =PI()+BI15+BI14 -> 3.339181596 | BJ17: =(-(BI20)*BJ20-SIGN(1)*SQRT(RADIUS_OF_SEMICIRCLE^2*(1+BI20^2)-BJ20^2))/(1+BI20^2) -> -74.14653616 | BK17: =PI()+BK15+BK14 -> 3.312149112 | BL17: =(-(BK20)*BL20-SIGN(1)*SQRT(RADIUS_OF_SEMICIRCLE^2*(1+BK20^2)-BL20^2))/(1+BK20^2) -> -74.42432918 | BM17: =PI()+BM15+BM14 -> 3.285224645 | BN17: =(-(BM20)*BN20-SIGN(1)*SQRT(RADIUS_OF_SEMICIRCLE^2*(1+BM20^2)-BN20^2))/(1+BM20^2) -> -74.64698575 | BO17: =PI()+BO15+BO14 -> 3.258387598 | BP17: =(-(BO20)*BP20-SIGN(1)*SQRT(RADIUS_OF_SEMICIRCLE^2*(1+BO20^2)-BP20^2))/(1+BO20^2) -> -74.81510236 | BQ17: =PI()+BQ15+BQ14 -> 3.23161796 | BR17: =(-(BQ20)*BR20-SIGN(1)*SQRT(RADIUS_OF_SEMICIRCLE^2*(1+BQ20^2)-BR20^2))/(1+BQ20^2) -> -74.92914849 | BS17: =PI()+BS15+BS14 -> 3.20489616 | BT17: =(-(BS20)*BT20-SIGN(1)*SQRT(RADIUS_OF_SEMICIRCLE^2*(1+BS20^2)-BT20^2))/(1+BS20^2) -> -74.98947186 | BU17: =PI()+BU15+BU14 -> 3.178202941 | BV17: =(-(BU20)*BV20-SIGN(1)*SQRT(RADIUS_OF_SEMICIRCLE^2*(1+BU20^2)-BV20^2))/(1+BU20^2) -> -74.99630221 | BW17: =PI()+BW15+BW14 -> 3.151519228 | BX17: =(-(BW20)*BX20-SIGN(1)*SQRT(RADIUS_OF_SEMICIRCLE^2*(1+BW20^2)-BX20^2))/(1+BW20^2) -> -74.94975379 | BY17: =PI()+BY15+BY14 -> 3.124826009 | BZ17: =(-(BY20)*BZ20-SIGN(1)*SQRT(RADIUS_OF_SEMICIRCLE^2*(1+BY20^2)-BZ20^2))/(1+BY20^2) -> -74.8498266 | CA17: =PI()+CA15+CA14 -> 3.098104209 | CB17: =(-(CA20)*CB20-SIGN(1)*SQRT(RADIUS_OF_SEMICIRCLE^2*(1+CA20^2)-CB20^2))/(1+CA20^2) -> -74.69640638 | CC17: =PI()+CC15+CC14 -> 3.07133457 | CD17: =(-(CC20)*CD20-SIGN(1)*SQRT(RADIUS_OF_SEMICIRCLE^2*(1+CC20^2)-CD20^2))/(1+CC20^2) -> -74.48926341 | CE17: =PI()+CE15+CE14 -> 3.044497524 | CF17: =(-(CE20)*CF20-SIGN(1)*SQRT(RADIUS_OF_SEMICIRCLE^2*(1+CE20^2)-CF20^2))/(1+CE20^2) -> -74.22804995 | CG17: =PI()+CG15+CG14 -> 3.017573057 | CH17: =(-(CG20)*CH20-SIGN(1)*SQRT(RADIUS_OF_SEMICIRCLE^2*(1+CG20^2)-CH20^2))/(1+CG20^2) -> -73.91229654 | CI17: =PI()+CI15+CI14 -> 2.990540572 | CJ17: =(-(CI20)*CJ20-SIGN(1)*SQRT(RADIUS_OF_SEMICIRCLE^2*(1+CI20^2)-CJ20^2))/(1+CI20^2) -> -73.54140667 | CK17: =PI()+CK15+CK14 -> 2.963378739 | CL17: =(-(CK20)*CL20-SIGN(1)*SQRT(RADIUS_OF_SEMICIRCLE^2*(1+CK20^2)-CL20^2))/(1+CK20^2) -> -73.11465008 | CM17: =COS(PI()+CN16) -> -1
A18: Y_SO1 | B18: =y_SOURCE-YC -> 26 | D18: angle of tangent with rho | E18: =ASIN(RADIUS_OF_SEMICIRCLE/rho_2) -> 0.3733073346 | F18: =DEGREES(E18) -> 21.38893473 | M18: xsr | N18: ysr4 | T18: semcircele | U18: =0 -> 0 | V18: =V7+(0-U7)*TAN(V13) -> 1.808589373 | Y18: X4,Y4 | Z18: =IF(Z11<>XSR,IF(Z16<1,-200,(-TAN(Z14)*AA15+SQRT(RADIUS_OF_SEMICIRCLE^2*(1+(TAN(Z17))^2)-AA15^2))/(1+(TAN(Z17))^2)),XSR) -> -200 | AA18: =IF(Z11<>XSR,IF(Z16<1,AA15+TAN(Z17)*(Z18-Z15),AA15-TAN(AA17)*(Z18-Z15)),YSR) -> -26.92236588 | AB18: =IF(AB11<>XSR,IF(AB16<1,-200,(-TAN(AB14)*AC15+SQRT(RADIUS_OF_SEMICIRCLE^2*(1+(TAN(AB17))^2)-AC15^2))/(1+(TAN(AB17))^2)),XSR) -> -200 | AC18: =IF(AB11<>XSR,IF(AB16<1,AC15+TAN(AB17)*(AB18-AB15),AC15-TAN(AC17)*(AB18-AB15)),YSR) -> -29.62322514 | AD18: =IF(AD11<>XSR,IF(AD16<1,-200,(-TAN(AD14)*AE15+SQRT(RADIUS_OF_SEMICIRCLE^2*(1+(TAN(AD17))^2)-AE15^2))/(1+(TAN(AD17))^2)),XSR) -> -200 | AE18: =IF(AD11<>XSR,IF(AD16<1,AE15+TAN(AD17)*(AD18-AD15),AE15-TAN(AE17)*(AD18-AD15)),YSR) -> -32.75772023 | AF18: =IF(AF11<>XSR,IF(AF16<1,-200,(-TAN(AF14)*AG15+SQRT(RADIUS_OF_SEMICIRCLE^2*(1+(TAN(AF17))^2)-AG15^2))/(1+(TAN(AF17))^2)),XSR) -> -200 | AG18: =IF(AF11<>XSR,IF(AF16<1,AG15+TAN(AF17)*(AF18-AF15),AG15-TAN(AG17)*(AF18-AF15)),YSR) -> -36.22015644 | AH18: =IF(AH11<>XSR,IF(AH16<1,-200,(-TAN(AH14)*AI15+SQRT(RADIUS_OF_SEMICIRCLE^2*(1+(TAN(AH17))^2)-AI15^2))/(1+(TAN(AH17))^2)),XSR) -> -200 | AI18: =IF(AH11<>XSR,IF(AH16<1,AI15+TAN(AH17)*(AH18-AH15),AI15-TAN(AI17)*(AH18-AH15)),YSR) -> -39.92367493 | AJ18: =IF(AJ11<>XSR,IF(AJ16<1,-200,(-TAN(AJ14)*AK15+SQRT(RADIUS_OF_SEMICIRCLE^2*(1+(TAN(AJ17))^2)-AK15^2))/(1+(TAN(AJ17))^2)),XSR) -> -200 | AK18: =IF(AJ11<>XSR,IF(AJ16<1,AK15+TAN(AJ17)*(AJ18-AJ15),AK15-TAN(AK17)*(AJ18-AJ15)),YSR) -> -43.793511 | AM18: =IF(AM11<>XSR,IF(AM16<1,-200,(-TAN(AM14)*AN15+SQRT(RADIUS_OF_SEMICIRCLE^2*(1+(TAN(AM17))^2)-AN15^2))/(1+(TAN(AM17))^2)),XSR) -> -200 | AN18: =IF(AM11<>XSR,IF(AM16<1,AN15+TAN(AM17)*(AM18-AM15),AN15-TAN(AN17)*(AM18-AM15)),YSR) -> -47.76221009 | AO18: =IF(AO11<>XSR,IF(AO16<1,-200,(-TAN(AO14)*AP15+SQRT(RADIUS_OF_SEMICIRCLE^2*(1+(TAN(AO17))^2)-AP15^2))/(1+(TAN(AO17))^2)),XSR) -> -200 | AP18: =IF(AO11<>XSR,IF(AO16<1,AP15+TAN(AO17)*(AO18-AO15),AP15-TAN(AP17)*(AO18-AO15)),YSR) -> -51.76595438 | AQ18: =IF(AQ11<>XSR,IF(AQ16<1,-200,(-TAN(AQ14)*AR15+SQRT(RADIUS_OF_SEMICIRCLE^2*(1+(TAN(AQ17))^2)-AR15^2))/(1+(TAN(AQ17))^2)),XSR) -> -200 | AR18: =IF(AQ11<>XSR,IF(AQ16<1,AR15+TAN(AQ17)*(AQ18-AQ15),AR15-TAN(AR17)*(AQ18-AQ15)),YSR) -> -55.74147409 | AS18: =IF(AS11<>XSR,IF(AS16<1,-200,(-TAN(AS14)*AT15+SQRT(RADIUS_OF_SEMICIRCLE^2*(1+(TAN(AS17))^2)-AT15^2))/(1+(TAN(AS17))^2)),XSR) -> -200 | AT18: =IF(AS11<>XSR,IF(AS16<1,AT15+TAN(AS17)*(AS18-AS15),AT15-TAN(AT17)*(AS18-AS15)),YSR) -> -59.62317333 | AU18: =IF(AU11<>XSR,IF(AU16<1,-200,(-TAN(AU14)*AV15+SQRT(RADIUS_OF_SEMICIRCLE^2*(1+(TAN(AU17))^2)-AV15^2))/(1+(TAN(AU17))^2)),XSR) -> -200 | AV18: =IF(AU11<>XSR,IF(AU16<1,AV15+TAN(AU17)*(AU18-AU15),AV15-TAN(AV17)*(AU18-AU15)),YSR) -> -63.34016058 | AW18: =IF(AW11<>XSR,IF(AW16<1,-200,(-TAN(AW14)*AX15+SQRT(RADIUS_OF_SEMICIRCLE^2*(1+(TAN(AW17))^2)-AX15^2))/(1+(TAN(AW17))^2)),XSR) -> -200 | AX18: =IF(AW11<>XSR,IF(AW16<1,AX15+TAN(AW17)*(AW18-AW15),AX15-TAN(AX17)*(AW18-AW15)),YSR) -> -66.81286115 | AY18: =IF(AY11<>XSR,IF(AY16<1,-200,(-TAN(AY14)*AZ15+SQRT(RADIUS_OF_SEMICIRCLE^2*(1+(TAN(AY17))^2)-AZ15^2))/(1+(TAN(AY17))^2)),XSR) -> -200 | AZ18: =IF(AY11<>XSR,IF(AY16<1,AZ15+TAN(AY17)*(AY18-AY15),AZ15-TAN(AZ17)*(AY18-AY15)),YSR) -> -69.94879906 | BA18: =IF(BA11<>XSR,IF(BA16<1,-200,(-TAN(BA14)*BB15+SQRT(RADIUS_OF_SEMICIRCLE^2*(1+(TAN(BA17))^2)-BB15^2))/(1+(TAN(BA17))^2)),XSR) -> -200 | BB18: =IF(BA11<>XSR,IF(BA16<1,BB15+TAN(BA17)*(BA18-BA15),BB15-TAN(BB17)*(BA18-BA15)),YSR) -> -72.63693038 | BC18: =IF(BC11<>XSR,IF(BC16<1,-200,(-TAN(BC14)*BD15+SQRT(RADIUS_OF_SEMICIRCLE^2*(1+(TAN(BC17))^2)-BD15^2))/(1+(TAN(BC17))^2)),XSR) -> -200 | BD18: =IF(BC11<>XSR,IF(BC16<1,BD15+TAN(BC17)*(BC18-BC15),BD15-TAN(BD17)*(BC18-BC15)),YSR) -> -74.73949214 | BE18: =BJ10-2*RADIUS_OF_SEMICIRCLE*COS(BI14)*SIN(BI16) -> 9.518919127 | BF18: R^2-(y-kx)^2 | BG18: =(RADIUS_OF_SEMICIRCLE^2*(1+BG20^2)-BH20^2) -> 5402.772208 | BH18: =BH10+BG20*(BG21-BG10) -> 13.29132333 | BI18: =(RADIUS_OF_SEMICIRCLE^2*(1+BI20^2)-BJ20^2) -> 5458.840498 | BJ18: =BJ10+BI20*(BI21-BI10) -> 11.2823391 | BK18: =(RADIUS_OF_SEMICIRCLE^2*(1+BK20^2)-BL20^2) -> 5506.899032 | BL18: =BL10+BK20*(BK21-BK10) -> 9.274655038 | BM18: =(RADIUS_OF_SEMICIRCLE^2*(1+BM20^2)-BN20^2) -> 5546.94781 | BN18: =BN10+BM20*(BM21-BM10) -> 7.268254145 | BO18: =(RADIUS_OF_SEMICIRCLE^2*(1+BO20^2)-BP20^2) -> 5578.986833 | BP18: =BP10+BO20*(BO21-BO10) -> 5.263122541 | BQ18: =(RADIUS_OF_SEMICIRCLE^2*(1+BQ20^2)-BR20^2) -> 5603.0161 | BR18: =BR10+BQ20*(BQ21-BQ10) -> 3.259249299 | BS18: =(RADIUS_OF_SEMICIRCLE^2*(1+BS20^2)-BT20^2) -> 5619.035611 | BT18: =BT10+BS20*(BS21-BS10) -> 1.256626327 | BU18: =(RADIUS_OF_SEMICIRCLE^2*(1+BU20^2)-BV20^2) -> 5627.045367 | BV18: =BV10+BU20*(BU21-BU10) -> -0.7447517221 | BW18: =(RADIUS_OF_SEMICIRCLE^2*(1+BW20^2)-BX20^2) -> 5627.045367 | BX18: =BX10+BW20*(BW21-BW10) -> -2.744887506 | BY18: =(RADIUS_OF_SEMICIRCLE^2*(1+BY20^2)-BZ20^2) -> 5619.035611 | BZ18: =BZ10+BY20*(BY21-BY10) -> -4.743781026 | CA18: =(RADIUS_OF_SEMICIRCLE^2*(1+CA20^2)-CB20^2) -> 5603.0161 | CB18: =CB10+CA20*(CA21-CA10) -> -6.741429623 | CC18: =(RADIUS_OF_SEMICIRCLE^2*(1+CC20^2)-CD20^2) -> 5578.986833 | CD18: =CD10+CC20*(CC21-CC10) -> -8.73782795 | CE18: =(RADIUS_OF_SEMICIRCLE^2*(1+CE20^2)-CF20^2) -> 5546.94781 | CF18: =CF10+CE20*(CE21-CE10) -> -10.73296791 | CG18: =(RADIUS_OF_SEMICIRCLE^2*(1+CG20^2)-CH20^2) -> 5506.899032 | CH18: =CH10+CG20*(CG21-CG10) -> -12.72683859 | CI18: =(RADIUS_OF_SEMICIRCLE^2*(1+CI20^2)-CJ20^2) -> 5458.840498 | CJ18: =CJ10+CI20*(CI21-CI10) -> -14.7194261 | CK18: =(RADIUS_OF_SEMICIRCLE^2*(1+CK20^2)-CL20^2) -> 5402.772208 | CL18: =CL10+CK20*(CK21-CK10) -> -16.71071344 | CM18: R^2-(y-kx)^2
D19: angle | E19: omega | F19: =ATAN(F13/F12) -> 0.1616741201 | G19: angle of source with x axis | K19: circle left | M19: =XSR -> 202.9683418 | N19: =YSR -> 33.10365883 | Y19: TRANSFORMATION TO LAB FRAME | BE19: =BG10-2*RADIUS_OF_SEMICIRCLE*COS(BG14)*COS(BG16) -> -149.9188017 | BF19: CIRCLE LEFT | BG19: =BE19+1 -> -148.9188017 | BH19: =BG19 -> -148.9188017 | BI19: =BG19+1 -> -147.9188017 | BJ19: =BI19 -> -147.9188017 | BK19: =BI19+1 -> -146.9188017 | BL19: =BK19 -> -146.9188017 | BM19: =BK19+1 -> -145.9188017 | BN19: =BM19 -> -145.9188017 | BO19: =BM19+1 -> -144.9188017 | BP19: =BO19 -> -144.9188017 | BQ19: =BO19+1 -> -143.9188017 | BR19: =BQ19 -> -143.9188017 | BS19: =BQ19+1 -> -142.9188017 | BT19: =BS19 -> -142.9188017 | BU19: =BS19+1 -> -141.9188017 | BV19: =BU19 -> -141.9188017 | BW19: =BU19+1 -> -140.9188017 | BX19: =BW19 -> -140.9188017 | BY19: =BW19+1 -> -139.9188017 | BZ19: =BY19 -> -139.9188017 | CA19: =BY19+1 -> -138.9188017 | CB19: =CA19 -> -138.9188017 | CC19: =CA19+1 -> -137.9188017 | CD19: =CC19 -> -137.9188017 | CE19: =CC19+1 -> -136.9188017 | CF19: =CE19 -> -136.9188017 | CG19: =CE19+1 -> -135.9188017 | CH19: =CG19 -> -135.9188017 | CI19: =CG19+1 -> -134.9188017 | CJ19: =CI19 -> -134.9188017 | CK19: =CI19+1 -> -133.9188017 | CL19: =CK19 -> -133.9188017 | CM19: CIRCLE LEFT
D20: angle of | E20: first tangent | F20: =E18-F19 -> 0.2116332145 | G20: transform back to initial frame | J20: top of circle | K20: =RADIUS_OF_SEMICIRCLE*SIN(radiansg)+XC -> 2.617462253 | L20: =RADIUS_OF_SEMICIRCLE*COS(radiansg)+YC -> 74.95431203 | T20: X3,Y3 | U20: =RADIUS_OF_SEMICIRCLE^2*(1+(TAN(U15))^2)-(V18-U18*TAN(U15))^2 -> 5680.388297 | V20: =RADIUS_OF_SEMICIRCLE^2*(1+(TAN(V15))^2)-(V18-U18*TAN(V15))^2 -> 5680.388297 | Y20: X1,Y1 | Z20: =X_SOURCE -> 204 | AA20: =y_SOURCE -> 26 | AB20: =X_SOURCE -> 204 | AC20: =y_SOURCE -> 26 | AD20: =X_SOURCE -> 204 | AE20: =y_SOURCE -> 26 | AF20: =X_SOURCE -> 204 | AG20: =y_SOURCE -> 26 | AH20: =X_SOURCE -> 204 | AI20: =y_SOURCE -> 26 | AJ20: =X_SOURCE -> 204 | AK20: =y_SOURCE -> 26 | AM20: =X_SOURCE -> 204 | AN20: =y_SOURCE -> 26 | AO20: =X_SOURCE -> 204 | AP20: =y_SOURCE -> 26 | AQ20: =X_SOURCE -> 204 | AR20: =y_SOURCE -> 26 | AS20: =X_SOURCE -> 204 | AT20: =y_SOURCE -> 26 | AU20: =X_SOURCE -> 204 | AV20: =y_SOURCE -> 26 | AW20: =X_SOURCE -> 204 | AX20: =y_SOURCE -> 26 | AY20: =X_SOURCE -> 204 | AZ20: =y_SOURCE -> 26 | BA20: =X_SOURCE -> 204 | BB20: =y_SOURCE -> 26 | BC20: =X_SOURCE -> 204 | BD20: =y_SOURCE -> 26 | BE20: TAN(KLISI) | BF20: (Y2-K*X2) | BG20: =TAN(BG16) -> 0.02327263098 | BH20: =BH10-BG20*BG10 -> 15.00914316 | BI20: =TAN(BI16) -> 0.02327263098 | BJ20: =BJ10-BI20*BI10 -> 13.00792408 | BK20: =TAN(BK16) -> 0.02327263098 | BL20: =BL10-BK20*BK10 -> 11.00670499 | BM20: =TAN(BM16) -> 0.02327263098 | BN20: =BN10-BM20*BM10 -> 9.005485899 | BO20: =TAN(BO16) -> 0.02327263098 | BP20: =BP10-BO20*BO10 -> 7.00426681 | BQ20: =TAN(BQ16) -> 0.02327263098 | BR20: =BR10-BQ20*BQ10 -> 5.003047721 | BS20: =TAN(BS16) -> 0.02327263098 | BT20: =BT10-BS20*BS10 -> 3.001828633 | BU20: =TAN(BU16) -> 0.02327263098 | BV20: =BV10-BU20*BU10 -> 1.000609544 | BW20: =TAN(BW16) -> 0.02327263098 | BX20: =BX10-BW20*BW10 -> -1.000609544 | BY20: =TAN(BY16) -> 0.02327263098 | BZ20: =BZ10-BY20*BY10 -> -3.001828633 | CA20: =TAN(CA16) -> 0.02327263098 | CB20: =CB10-CA20*CA10 -> -5.003047721 | CC20: =TAN(CC16) -> 0.02327263098 | CD20: =CD10-CC20*CC10 -> -7.00426681 | CE20: =TAN(CE16) -> 0.02327263098 | CF20: =CF10-CE20*CE10 -> -9.005485899 | CG20: =TAN(CG16) -> 0.02327263098 | CH20: =CH10-CG20*CG10 -> -11.00670499 | CI20: =TAN(CI16) -> 0.02327263098 | CJ20: =CJ10-CI20*CI10 -> -13.00792408 | CK20: =TAN(CK16) -> 0.02327263098 | CL20: =CL10-CK20*CK10 -> -15.00914316 | CM20: (Y2-K*X2)
D21: angle of | E21: second tangent | F21: =E18+F19 -> 0.5349814548 | G21: 30.74609757 | H21: 71.97775163 | J21: bottom | K21: =-RADIUS_OF_SEMICIRCLE*SIN(radiansg)+XC -> -2.617462253 | L21: =-RADIUS_OF_SEMICIRCLE*COS(radiansg)+YC -> -74.95431203 | T21: ext prod | U21: =(-(V18-U18*TAN(U15))+SQRT(U20))/(1+(TAN(U15))^2) -> 72.80057381 | V21: =(-(V18-U18*TAN(V15))+SQRT(V20))/(1+(TAN(V15))^2) -> 72.80057381 | Y21: X2,Y2 | Z21: =IF(circle_right,Z11*COS(radiansg)+AA11*SIN(radiansg)+XC,Z52) -> 1.116142503 | AA21: =IF(circle_right,-Z11*SIN(radiansg)+AA11*COS(radiansg)+YC,AA52) -> 31.9621394 | AB21: =IF(circle_right,AB11*COS(radiansg)+AC11*SIN(radiansg)+XC,AB52) -> 0.9459189723 | AC21: =IF(circle_right,-AB11*SIN(radiansg)+AC11*COS(radiansg)+YC,AC52) -> 27.08757528 | AD21: =IF(circle_right,AD11*COS(radiansg)+AE11*SIN(radiansg)+XC,AD52) -> 0.7754534778 | AE21: =IF(circle_right,-AD11*SIN(radiansg)+AE11*COS(radiansg)+YC,AE52) -> 22.2060822 | AF21: =IF(circle_right,AF11*COS(radiansg)+AG11*SIN(radiansg)+XC,AF52) -> 0.6045481486 | AG21: =IF(circle_right,-AF11*SIN(radiansg)+AG11*COS(radiansg)+YC,AG52) -> 17.3119939 | AH21: =IF(circle_right,AH11*COS(radiansg)+AI11*SIN(radiansg)+XC,AH52) -> 0.4330030725 | AI21: =IF(circle_right,-AH11*SIN(radiansg)+AI11*COS(radiansg)+YC,AI52) -> 12.39958566 | AJ21: =IF(circle_right,AJ11*COS(radiansg)+AK11*SIN(radiansg)+XC,AJ52) -> 0.2606153533 | AK21: =IF(circle_right,-AJ11*SIN(radiansg)+AK11*COS(radiansg)+YC,AK52) -> 7.463047268 | AM21: =IF(circle_right,AM11*COS(radiansg)+AN11*SIN(radiansg)+XC,AM52) -> 0.0871781389 | AN21: =IF(circle_right,-AM11*SIN(radiansg)+AN11*COS(radiansg)+YC,AN52) -> 2.496455266 | AO21: =IF(circle_right,AO11*COS(radiansg)+AP11*SIN(radiansg)+XC,AO52) -> -0.08752039047 | AP21: =IF(circle_right,-AO11*SIN(radiansg)+AP11*COS(radiansg)+YC,AP52) -> -2.506256069 | AQ21: =IF(circle_right,AQ11*COS(radiansg)+AR11*SIN(radiansg)+XC,AQ52) -> -0.263698084 | AR21: =IF(circle_right,-AQ11*SIN(radiansg)+AR11*COS(radiansg)+YC,AR52) -> -7.551325123 | AS21: =IF(circle_right,AS11*COS(radiansg)+AT11*SIN(radiansg)+XC,AS52) -> -0.4415799444 | AT21: =IF(circle_right,-AS11*SIN(radiansg)+AT11*COS(radiansg)+YC,AT52) -> -12.64519513 | AU21: =IF(circle_right,AU11*COS(radiansg)+AV11*SIN(radiansg)+XC,AU52) -> -0.6213993271 | AV21: =IF(circle_right,-AU11*SIN(radiansg)+AV11*COS(radiansg)+YC,AV52) -> -17.79454852 | AW21: =IF(circle_right,AW11*COS(radiansg)+AX11*SIN(radiansg)+XC,AW52) -> -0.8033992274 | AX21: =IF(circle_right,-AW11*SIN(radiansg)+AX11*COS(radiansg)+YC,AX52) -> -23.00634376 | AY21: =IF(circle_right,AY11*COS(radiansg)+AZ11*SIN(radiansg)+XC,AY52) -> -0.9878336729 | AZ21: =IF(circle_right,-AY11*SIN(radiansg)+AZ11*COS(radiansg)+YC,AZ52) -> -28.28785526 | BA21: =IF(circle_right,BA11*COS(radiansg)+BB11*SIN(radiansg)+XC,BA52) -> -1.174969238 | BB21: =IF(circle_right,-BA11*SIN(radiansg)+BB11*COS(radiansg)+YC,BB52) -> -33.6467167 | BC21: =IF(circle_right,BC11*COS(radiansg)+BD11*SIN(radiansg)+XC,BC52) -> -1.365086701 | BD21: =IF(circle_right,-BC11*SIN(radiansg)+BD11*COS(radiansg)+YC,BD52) -> -39.09096852 | BE21: circle left | BF21: X3,Y3 | BG21: =IF(ABS(BG10)<>0,2*RADIUS_OF_SEMICIRCLE*COS(PI()+BG16)*COS(BG14)+BG10,IF(BH11,BH17,0)) -> -73.81287641 | BH21: =IF(BG10<>0,IF(BH18<>0,BH10-2*RADIUS_OF_SEMICIRCLE*COS(BG14)*SIN(PI()-BH16),-BH10),BH18) -> 13.29132333 | BI21: =IF(ABS(BI10)<>0,2*RADIUS_OF_SEMICIRCLE*COS(PI()+BI16)*COS(BI14)+BI10,IF(BJ11,BJ17,0)) -> -74.14653616 | BJ21: =IF(BI10<>0,IF(BJ18<>0,BJ10-2*RADIUS_OF_SEMICIRCLE*COS(BI14)*SIN(PI()-BJ16),-BJ10),BJ18) -> 11.2823391 | BK21: =IF(ABS(BK10)<>0,2*RADIUS_OF_SEMICIRCLE*COS(PI()+BK16)*COS(BK14)+BK10,IF(BL11,BL17,0)) -> -74.42432918 | BL21: =IF(BK10<>0,IF(BL18<>0,BL10-2*RADIUS_OF_SEMICIRCLE*COS(BK14)*SIN(PI()-BL16),-BL10),BL18) -> 9.274655038 | BM21: =IF(ABS(BM10)<>0,2*RADIUS_OF_SEMICIRCLE*COS(PI()+BM16)*COS(BM14)+BM10,IF(BN11,BN17,0)) -> -74.64698575 | BN21: =IF(BM10<>0,IF(BN18<>0,BN10-2*RADIUS_OF_SEMICIRCLE*COS(BM14)*SIN(PI()-BN16),-BN10),BN18) -> 7.268254145 | BO21: =IF(ABS(BO10)<>0,2*RADIUS_OF_SEMICIRCLE*COS(PI()+BO16)*COS(BO14)+BO10,IF(BP11,BP17,0)) -> -74.81510236 | BP21: =IF(BO10<>0,IF(BP18<>0,BP10-2*RADIUS_OF_SEMICIRCLE*COS(BO14)*SIN(PI()-BP16),-BP10),BP18) -> 5.263122541 | BQ21: =IF(ABS(BQ10)<>0,2*RADIUS_OF_SEMICIRCLE*COS(PI()+BQ16)*COS(BQ14)+BQ10,IF(BR11,BR17,0)) -> -74.92914849 | BR21: =IF(BQ10<>0,IF(BR18<>0,BR10-2*RADIUS_OF_SEMICIRCLE*COS(BQ14)*SIN(PI()-BR16),-BR10),BR18) -> 3.259249299 | BS21: =IF(ABS(BS10)<>0,2*RADIUS_OF_SEMICIRCLE*COS(PI()+BS16)*COS(BS14)+BS10,IF(BT11,BT17,0)) -> -74.98947186 | BT21: =IF(BS10<>0,IF(BT18<>0,BT10-2*RADIUS_OF_SEMICIRCLE*COS(BS14)*SIN(PI()-BT16),-BT10),BT18) -> 1.256626327 | BU21: =IF(ABS(BU10)<>0,2*RADIUS_OF_SEMICIRCLE*COS(PI()+BU16)*COS(BU14)+BU10,IF(BV11,BV17,0)) -> -74.99630221 | BV21: =IF(BU10<>0,IF(BV18<>0,BV10-2*RADIUS_OF_SEMICIRCLE*COS(BU14)*SIN(PI()-BV16),-BV10),BV18) -> -0.7447517221 | BW21: =IF(ABS(BW10)<>0,2*RADIUS_OF_SEMICIRCLE*COS(PI()+BW16)*COS(BW14)+BW10,IF(BX11,BX17,0)) -> -74.94975379 | BX21: =IF(BW10<>0,IF(BX18<>0,BX10-2*RADIUS_OF_SEMICIRCLE*COS(BW14)*SIN(PI()-BX16),-BX10),BX18) -> -2.744887506 | BY21: =IF(ABS(BY10)<>0,2*RADIUS_OF_SEMICIRCLE*COS(PI()+BY16)*COS(BY14)+BY10,IF(BZ11,BZ17,0)) -> -74.8498266 | BZ21: =IF(BY10<>0,IF(BZ18<>0,BZ10-2*RADIUS_OF_SEMICIRCLE*COS(BY14)*SIN(PI()-BZ16),-BZ10),BZ18) -> -4.743781026 | CA21: =IF(ABS(CA10)<>0,2*RADIUS_OF_SEMICIRCLE*COS(PI()+CA16)*COS(CA14)+CA10,IF(CB11,CB17,0)) -> -74.69640638 | CB21: =IF(CA10<>0,IF(CB18<>0,CB10-2*RADIUS_OF_SEMICIRCLE*COS(CA14)*SIN(PI()-CB16),-CB10),CB18) -> -6.741429623 | CC21: =IF(ABS(CC10)<>0,2*RADIUS_OF_SEMICIRCLE*COS(PI()+CC16)*COS(CC14)+CC10,IF(CD11,CD17,0)) -> -74.48926341 | CD21: =IF(CC10<>0,IF(CD18<>0,CD10-2*RADIUS_OF_SEMICIRCLE*COS(CC14)*SIN(PI()-CD16),-CD10),CD18) -> -8.73782795 | CE21: =IF(ABS(CE10)<>0,2*RADIUS_OF_SEMICIRCLE*COS(PI()+CE16)*COS(CE14)+CE10,IF(CF11,CF17,0)) -> -74.22804995 | CF21: =IF(CE10<>0,IF(CF18<>0,CF10-2*RADIUS_OF_SEMICIRCLE*COS(CE14)*SIN(PI()-CF16),-CF10),CF18) -> -10.73296791 | CG21: =IF(ABS(CG10)<>0,2*RADIUS_OF_SEMICIRCLE*COS(PI()+CG16)*COS(CG14)+CG10,IF(CH11,CH17,0)) -> -73.91229654 | CH21: =IF(CG10<>0,IF(CH18<>0,CH10-2*RADIUS_OF_SEMICIRCLE*COS(CG14)*SIN(PI()-CH16),-CH10),CH18) -> -12.72683859 | CI21: =IF(ABS(CI10)<>0,2*RADIUS_OF_SEMICIRCLE*COS(PI()+CI16)*COS(CI14)+CI10,IF(CJ11,CJ17,0)) -> -73.54140667 | CJ21: =IF(CI10<>0,IF(CJ18<>0,CJ10-2*RADIUS_OF_SEMICIRCLE*COS(CI14)*SIN(PI()-CJ16),-CJ10),CJ18) -> -14.7194261 | CK21: =IF(ABS(CK10)<>0,2*RADIUS_OF_SEMICIRCLE*COS(PI()+CK16)*COS(CK14)+CK10,IF(CL11,CL17,0)) -> -73.11465008 | CL21: =IF(CK10<>0,IF(CL18<>0,CL10-2*RADIUS_OF_SEMICIRCLE*COS(CK14)*SIN(PI()-CL16),-CL10),CL18) -> -16.71071344 | CM21: X3,Y3
C22: first tangent | D22: poiny at circle | E22: x111 | F22: =RADIUS_OF_SEMICIRCLE*SIN(F20) -> 15.75427165 | G22: 134 | H22: 30 | J22: trnasformed to rotated | K22: =K20*COS(radiansg)-L20*SIN(radiansg) -> 0 | L22: =K20*SIN(radiansg)+L20*COS(radiansg) -> 75 | M22: =ATAN((RADIUS_OF_SEMICIRCLE-YSR)/(0-XSR)) -> -0.2035591323 | T22: sec incidence | U22: =(-(V18-U18*TAN(U15))-SQRT(U20))/(1+(TAN(U15))^2) -> -76.38042077 | V22: =V18+TAN(V15)*(U22-U18) -> -5.991313449 | Y22: X3,Y3 | Z22: =IF(circle_right,Z15*COS(radiansg)+AA15*SIN(radiansg)+XC,Z53) -> -66.80804417 | AA22: =IF(circle_right,-Z15*SIN(radiansg)+AA15*COS(radiansg)+YC,AA53) -> 34.08350384 | AB22: =IF(circle_right,AB15*COS(radiansg)+AC15*SIN(radiansg)+XC,AB53) -> -69.51302284 | AC22: =IF(circle_right,-AB15*SIN(radiansg)+AC15*COS(radiansg)+YC,AC53) -> 28.15918422 | AD22: =IF(circle_right,AD15*COS(radiansg)+AE15*SIN(radiansg)+XC,AD53) -> -71.65512986 | AE22: =IF(circle_right,-AD15*SIN(radiansg)+AE15*COS(radiansg)+YC,AE53) -> 22.14819101 | AF22: =IF(circle_right,AF15*COS(radiansg)+AG15*SIN(radiansg)+XC,AF53) -> -73.25784008 | AG22: =IF(circle_right,-AF15*SIN(radiansg)+AG15*COS(radiansg)+YC,AG53) -> 16.07136791 | AH22: =IF(circle_right,AH15*COS(radiansg)+AI15*SIN(radiansg)+XC,AH53) -> -74.33729453 | AI22: =IF(circle_right,-AH15*SIN(radiansg)+AI15*COS(radiansg)+YC,AI53) -> 9.948197949 | AJ22: =IF(circle_right,AJ15*COS(radiansg)+AK15*SIN(radiansg)+XC,AJ53) -> -74.90380793 | AK22: =IF(circle_right,-AJ15*SIN(radiansg)+AK15*COS(radiansg)+YC,AK53) -> 3.797309234 | AM22: =IF(circle_right,AM15*COS(radiansg)+AN15*SIN(radiansg)+XC,AM53) -> -74.96276163 | AN22: =IF(circle_right,-AM15*SIN(radiansg)+AN15*COS(radiansg)+YC,AN53) -> -2.363126861 | AO22: =IF(circle_right,AO15*COS(radiansg)+AP15*SIN(radiansg)+XC,AO53) -> -74.51505833 | AP22: =IF(circle_right,-AO15*SIN(radiansg)+AP15*COS(radiansg)+YC,AP53) -> -8.515050295 | AQ22: =IF(circle_right,AQ15*COS(radiansg)+AR15*SIN(radiansg)+XC,AQ53) -> -73.55722373 | AR22: =IF(circle_right,-AQ15*SIN(radiansg)+AR15*COS(radiansg)+YC,AR53) -> -14.64017885 | AS22: =IF(circle_right,AS15*COS(radiansg)+AT15*SIN(radiansg)+XC,AS53) -> -72.08117728 | AT22: =IF(circle_right,-AS15*SIN(radiansg)+AT15*COS(radiansg)+YC,AT53) -> -20.71964967 | AU22: =IF(circle_right,AU15*COS(radiansg)+AV15*SIN(radiansg)+XC,AU53) -> -70.07363924 | AV22: =IF(circle_right,-AU15*SIN(radiansg)+AV15*COS(radiansg)+YC,AV53) -> -26.73359467 | AW22: =IF(circle_right,AW15*COS(radiansg)+AX15*SIN(radiansg)+XC,AW53) -> -67.51507618 | AX22: =IF(circle_right,-AW15*SIN(radiansg)+AX15*COS(radiansg)+YC,AX53) -> -32.66059534 | AY22: =IF(circle_right,AY15*COS(radiansg)+AZ15*SIN(radiansg)+XC,AY53) -> -64.37798973 | AZ22: =IF(circle_right,-AY15*SIN(radiansg)+AZ15*COS(radiansg)+YC,AZ53) -> -38.47693385 | BA22: =IF(circle_right,BA15*COS(radiansg)+BB15*SIN(radiansg)+XC,BA53) -> -60.62418318 | BB22: =IF(circle_right,-BA15*SIN(radiansg)+BB15*COS(radiansg)+YC,BB53) -> -44.15550264 | BC22: =IF(circle_right,BC15*COS(radiansg)+BD15*SIN(radiansg)+XC,BC53) -> -56.20030993 | BD22: =IF(circle_right,-BC15*SIN(radiansg)+BD15*COS(radiansg)+YC,BD53) -> 26 | BE22: CIRLCE LEFT | BF22: INCIDENCE | BG22: =IF(ABS(BG21)>0,IF(ABS(BH10)<RADIUS_OF_SEMICIRCLE,ASIN(BH27),KLISI_PAR),(KLISI_PAR)) -> 0.2014270544 | BH22: =BG22 -> 0.2014270544 | BI22: =IF(ABS(BI21)>0,IF(ABS(BJ10)<RADIUS_OF_SEMICIRCLE,ASIN(BJ27),KLISI_PAR),(KLISI_PAR)) -> 0.1742728403 | BJ22: =BI22 -> 0.1742728403 | BK22: =IF(ABS(BK21)>0,IF(ABS(BL10)<RADIUS_OF_SEMICIRCLE,ASIN(BL27),KLISI_PAR),(KLISI_PAR)) -> 0.1472478665 | BL22: =BK22 -> 0.1472478665 | BM22: =IF(ABS(BM21)>0,IF(ABS(BN10)<RADIUS_OF_SEMICIRCLE,ASIN(BN27),KLISI_PAR),(KLISI_PAR)) -> 0.1203308201 | BN22: =BM22 -> 0.1203308201 | BO22: =IF(ABS(BO21)>0,IF(ABS(BP10)<RADIUS_OF_SEMICIRCLE,ASIN(BP27),KLISI_PAR),(KLISI_PAR)) -> 0.09350112238 | BP22: =BO22 -> 0.09350112238 | BQ22: =IF(ABS(BQ21)>0,IF(ABS(BR10)<RADIUS_OF_SEMICIRCLE,ASIN(BR27),KLISI_PAR),(KLISI_PAR)) -> 0.06673877754 | BR22: =BQ22 -> 0.06673877754 | BS22: =IF(ABS(BS21)>0,IF(ABS(BT10)<RADIUS_OF_SEMICIRCLE,ASIN(BT27),KLISI_PAR),(KLISI_PAR)) -> 0.04002423247 | BT22: =BS22 -> 0.04002423247 | BU22: =IF(ABS(BU21)>0,IF(ABS(BV10)<RADIUS_OF_SEMICIRCLE,ASIN(BV27),KLISI_PAR),(KLISI_PAR)) -> 0.01333824458 | BV22: =BU22 -> 0.01333824458 | BW22: =IF(ABS(BW21)>0,IF(ABS(BX10)<RADIUS_OF_SEMICIRCLE,ASIN(BX27),KLISI_PAR),(KLISI_PAR)) -> -0.01333824458 | BX22: =BW22 -> -0.01333824458 | BY22: =IF(ABS(BY21)>0,IF(ABS(BZ10)<RADIUS_OF_SEMICIRCLE,ASIN(BZ27),KLISI_PAR),(KLISI_PAR)) -> -0.04002423247 | BZ22: =BY22 -> -0.04002423247 | CA22: =IF(ABS(CA21)>0,IF(ABS(CB10)<RADIUS_OF_SEMICIRCLE,ASIN(CB27),KLISI_PAR),(KLISI_PAR)) -> -0.06673877754 | CB22: =CA22 -> -0.06673877754 | CC22: =IF(ABS(CC21)>0,IF(ABS(CD10)<RADIUS_OF_SEMICIRCLE,ASIN(CD27),KLISI_PAR),(KLISI_PAR)) -> -0.09350112238 | CD22: =CC22 -> -0.09350112238 | CE22: =IF(ABS(CE21)>0,IF(ABS(CF10)<RADIUS_OF_SEMICIRCLE,ASIN(CF27),KLISI_PAR),(KLISI_PAR)) -> -0.1203308201 | CF22: =CE22 -> -0.1203308201 | CG22: =IF(ABS(CG21)>0,IF(ABS(CH10)<RADIUS_OF_SEMICIRCLE,ASIN(CH27),KLISI_PAR),(KLISI_PAR)) -> -0.1472478665 | CH22: =CG22 -> -0.1472478665 | CI22: =IF(ABS(CI21)>0,IF(ABS(CJ10)<RADIUS_OF_SEMICIRCLE,ASIN(CJ27),KLISI_PAR),(KLISI_PAR)) -> -0.1742728403 | CJ22: =CI22 -> -0.1742728403 | CK22: =IF(ABS(CK21)>0,IF(ABS(CL10)<RADIUS_OF_SEMICIRCLE,ASIN(CL27),KLISI_PAR),(KLISI_PAR)) -> -0.2014270544 | CL22: =CK22 -> -0.2014270544 | CM22: INCIDENCE
E23: y111 | F23: =RADIUS_OF_SEMICIRCLE*COS(F20) -> 73.32668631 | G23: 56.22054786 | H23: -49.83643795 | K23: =K21*COS(radiansg)-L21*SIN(radiansg) -> 0 | L23: =K21*SIN(radiansg)+L21*COS(radiansg) -> -75 | M23: =ATAN((-RADIUS_OF_SEMICIRCLE-YSR)/(0-XSR)) -> 0.4893966578 | T23: sec refra | U23: =(U22*(V22-V18)-V22*(U22-U18)) -> 138.1408173 | V23: =SQRT((U22-U18)^2+(V22-V18)^2)*RADIUS_OF_SEMICIRCLE -> 5758.323565 | Y23: X4,Y4 | Z23: =IF(circle_right,Z18*COS(radiansg)+AA18*SIN(radiansg)+XC,Z54) -> -200.9640098 | AA23: =IF(circle_right,-Z18*SIN(radiansg)+AA18*COS(radiansg)+YC,AA54) -> -24.11461703 | AB23: =IF(circle_right,AB18*COS(radiansg)+AC18*SIN(radiansg)+XC,AB54) -> -200.8358337 | AC23: =IF(circle_right,-AB18*SIN(radiansg)+AC18*COS(radiansg)+YC,AC54) -> -20.4441338 | AD23: =IF(circle_right,AD18*COS(radiansg)+AE18*SIN(radiansg)+XC,AD54) -> -200.749799 | AE23: =IF(circle_right,-AD18*SIN(radiansg)+AE18*COS(radiansg)+YC,AE54) -> -17.98042232 | AF23: =IF(circle_right,AF18*COS(radiansg)+AG18*SIN(radiansg)+XC,AF54) -> -200.694871 | AG23: =IF(circle_right,-AF18*SIN(radiansg)+AG18*COS(radiansg)+YC,AG54) -> -16.4074903 | AH23: =IF(circle_right,AH18*COS(radiansg)+AI18*SIN(radiansg)+XC,AH54) -> -200.6622292 | AI23: =IF(circle_right,-AH18*SIN(radiansg)+AI18*COS(radiansg)+YC,AI54) -> -15.47274938 | AJ23: =IF(circle_right,AJ18*COS(radiansg)+AK18*SIN(radiansg)+XC,AJ54) -> -200.6444664 | AK23: =IF(circle_right,-AJ18*SIN(radiansg)+AK18*COS(radiansg)+YC,AK54) -> -14.96408953 | AM23: =IF(circle_right,AM18*COS(radiansg)+AN18*SIN(radiansg)+XC,AM54) -> -200.6350449 | AN23: =IF(circle_right,-AM18*SIN(radiansg)+AN18*COS(radiansg)+YC,AN54) -> -14.69429351 | AO23: =IF(circle_right,AO18*COS(radiansg)+AP18*SIN(radiansg)+XC,AO54) -> -200.6278922 | AP23: =IF(circle_right,-AO18*SIN(radiansg)+AP18*COS(radiansg)+YC,AP54) -> -14.48946587 | AQ23: =IF(circle_right,AQ18*COS(radiansg)+AR18*SIN(radiansg)+XC,AQ54) -> -200.6170654 | AR23: =IF(circle_right,-AQ18*SIN(radiansg)+AR18*COS(radiansg)+YC,AR54) -> -14.17942873 | AS23: =IF(circle_right,AS18*COS(radiansg)+AT18*SIN(radiansg)+XC,AS54) -> -200.5964333 | AT23: =IF(circle_right,-AS18*SIN(radiansg)+AT18*COS(radiansg)+YC,AT54) -> -13.58860078 | AU23: =IF(circle_right,AU18*COS(radiansg)+AV18*SIN(radiansg)+XC,AU54) -> -200.5593264 | AV23: =IF(circle_right,-AU18*SIN(radiansg)+AV18*COS(radiansg)+YC,AV54) -> -12.52599919 | AW23: =IF(circle_right,AW18*COS(radiansg)+AX18*SIN(radiansg)+XC,AW54) -> -200.4981012 | AX23: =IF(circle_right,-AW18*SIN(radiansg)+AX18*COS(radiansg)+YC,AX54) -> -10.77273885 | AY23: =IF(circle_right,AY18*COS(radiansg)+AZ18*SIN(radiansg)+XC,AY54) -> -200.4035315 | AZ23: =IF(circle_right,-AY18*SIN(radiansg)+AZ18*COS(radiansg)+YC,AZ54) -> -8.064616138 | BA23: =IF(circle_right,BA18*COS(radiansg)+BB18*SIN(radiansg)+XC,BA54) -> -200.2638838 | BB23: =IF(circle_right,-BA18*SIN(radiansg)+BB18*COS(radiansg)+YC,BB54) -> -4.065629378 | BC23: =IF(circle_right,BC18*COS(radiansg)+BD18*SIN(radiansg)+XC,BC54) -> -200.0634 | BD23: =IF(circle_right,-BC18*SIN(radiansg)+BD18*COS(radiansg)+YC,BD54) -> 26 | BE23: ray | BF23: sin(f1) | BG23: =(BG21*(BH21-BH10)-BH21*(BG21-BG10))/SQRT((BG21-BG10)^2+(BH21-BH10)^2)/RADIUS_OF_SEMICIRCLE -> 0.2000677363 | BH23: =BG23 -> 0.2000677363 | BI23: =(BI21*(BJ21-BJ10)-BJ21*(BI21-BI10))/SQRT((BI21-BI10)^2+(BJ21-BJ10)^2)/RADIUS_OF_SEMICIRCLE -> 0.1733920381 | BJ23: =BI23 -> 0.1733920381 | BK23: =(BK21*(BL21-BL10)-BL21*(BK21-BK10))/SQRT((BK21-BK10)^2+(BL21-BL10)^2)/RADIUS_OF_SEMICIRCLE -> 0.14671634 | BL23: =BK23 -> 0.14671634 | BM23: =(BM21*(BN21-BN10)-BN21*(BM21-BM10))/SQRT((BM21-BM10)^2+(BN21-BN10)^2)/RADIUS_OF_SEMICIRCLE -> 0.1200406418 | BN23: =BM23 -> 0.1200406418 | BO23: =(BO21*(BP21-BP10)-BP21*(BO21-BO10))/SQRT((BO21-BO10)^2+(BP21-BP10)^2)/RADIUS_OF_SEMICIRCLE -> 0.09336494361 | BP23: =BO23 -> 0.09336494361 | BQ23: =(BQ21*(BR21-BR10)-BR21*(BQ21-BQ10))/SQRT((BQ21-BQ10)^2+(BR21-BR10)^2)/RADIUS_OF_SEMICIRCLE -> 0.06668924544 | BR23: =BQ23 -> 0.06668924544 | BS23: =(BS21*(BT21-BT10)-BT21*(BS21-BS10))/SQRT((BS21-BS10)^2+(BT21-BT10)^2)/RADIUS_OF_SEMICIRCLE -> 0.04001354726 | BT23: =BS23 -> 0.04001354726 | BU23: =(BU21*(BV21-BV10)-BV21*(BU21-BU10))/SQRT((BU21-BU10)^2+(BV21-BV10)^2)/RADIUS_OF_SEMICIRCLE -> 0.01333784909 | BV23: =BU23 -> 0.01333784909 | BW23: =(BW21*(BX21-BX10)-BX21*(BW21-BW10))/SQRT((BW21-BW10)^2+(BX21-BX10)^2)/RADIUS_OF_SEMICIRCLE -> -0.01333784909 | BX23: =BW23 -> -0.01333784909 | BY23: =(BY21*(BZ21-BZ10)-BZ21*(BY21-BY10))/SQRT((BY21-BY10)^2+(BZ21-BZ10)^2)/RADIUS_OF_SEMICIRCLE -> -0.04001354726 | BZ23: =BY23 -> -0.04001354726 | CA23: =(CA21*(CB21-CB10)-CB21*(CA21-CA10))/SQRT((CA21-CA10)^2+(CB21-CB10)^2)/RADIUS_OF_SEMICIRCLE -> -0.06668924544 | CB23: =CA23 -> -0.06668924544 | CC23: =(CC21*(CD21-CD10)-CD21*(CC21-CC10))/SQRT((CC21-CC10)^2+(CD21-CD10)^2)/RADIUS_OF_SEMICIRCLE -> -0.09336494361 | CD23: =CC23 -> -0.09336494361 | CE23: =(CE21*(CF21-CF10)-CF21*(CE21-CE10))/SQRT((CE21-CE10)^2+(CF21-CF10)^2)/RADIUS_OF_SEMICIRCLE -> -0.1200406418 | CF23: =CE23 -> -0.1200406418 | CG23: =(CG21*(CH21-CH10)-CH21*(CG21-CG10))/SQRT((CG21-CG10)^2+(CH21-CH10)^2)/RADIUS_OF_SEMICIRCLE -> -0.14671634 | CH23: =CG23 -> -0.14671634 | CI23: =(CI21*(CJ21-CJ10)-CJ21*(CI21-CI10))/SQRT((CI21-CI10)^2+(CJ21-CJ10)^2)/RADIUS_OF_SEMICIRCLE -> -0.1733920381 | CJ23: =CI23 -> -0.1733920381 | CK23: =(CK21*(CL21-CL10)-CL21*(CK21-CK10))/SQRT((CK21-CK10)^2+(CL21-CL10)^2)/RADIUS_OF_SEMICIRCLE -> -0.2000677363 | CL23: =CK23 -> -0.2000677363 | CM23: sin(f1)
C24: second tangent | E24: x222 | F24: =RADIUS_OF_SEMICIRCLE*SIN(F21) -> 38.23688141 | G24: 134 | H24: 30 | J24: back to lab | T24: new angle | U24: =ASIN(U23/V23) -> 0.0239920646 | V24: =U24 -> 0.0239920646 | W24: KLISI_F = -(A_GONIA - dgon * I - omeGA) | BF24: f1 | BG24: =IF(ABS(BH10)<RADIUS_OF_SEMICIRCLE,IF(BG21<>BG10,ASIN(BG23),BG14),KLISI_PAR) -> 0.2014270544 | BI24: =IF(ABS(BJ10)<RADIUS_OF_SEMICIRCLE,IF(BI21<>BI10,ASIN(BI23),BI14),KLISI_PAR) -> 0.1742728403 | BK24: =IF(ABS(BL10)<RADIUS_OF_SEMICIRCLE,IF(BK21<>BK10,ASIN(BK23),BK14),KLISI_PAR) -> 0.1472478665 | BM24: =IF(ABS(BN10)<RADIUS_OF_SEMICIRCLE,IF(BM21<>BM10,ASIN(BM23),BM14),KLISI_PAR) -> 0.1203308201 | BO24: =IF(ABS(BP10)<RADIUS_OF_SEMICIRCLE,IF(BO21<>BO10,ASIN(BO23),BO14),KLISI_PAR) -> 0.09350112238 | BQ24: =IF(ABS(BR10)<RADIUS_OF_SEMICIRCLE,IF(BQ21<>BQ10,ASIN(BQ23),BQ14),KLISI_PAR) -> 0.06673877754 | BS24: =IF(ABS(BT10)<RADIUS_OF_SEMICIRCLE,IF(BS21<>BS10,ASIN(BS23),BS14),KLISI_PAR) -> 0.04002423247 | BU24: =IF(BU21<>BU10,ASIN(BU23),BU14) -> 0.01333824458 | BW24: =IF(ABS(BX10)<RADIUS_OF_SEMICIRCLE,IF(BW21<>BW10,ASIN(BW23),BW14),KLISI_PAR) -> -0.01333824458 | BY24: =IF(ABS(BZ10)<RADIUS_OF_SEMICIRCLE,IF(BY21<>BY10,ASIN(BY23),BY14),KLISI_PAR) -> -0.04002423247 | CA24: =IF(ABS(CB10)<RADIUS_OF_SEMICIRCLE,IF(CA21<>CA10,ASIN(CA23),CA14),KLISI_PAR) -> -0.06673877754 | CC24: =IF(ABS(CD10)<RADIUS_OF_SEMICIRCLE,IF(CC21<>CC10,ASIN(CC23),CC14),KLISI_PAR) -> -0.09350112238 | CE24: =IF(ABS(CF10)<RADIUS_OF_SEMICIRCLE,IF(CE21<>CE10,ASIN(CE23),CE14),KLISI_PAR) -> -0.1203308201 | CG24: =IF(ABS(CH10)<RADIUS_OF_SEMICIRCLE,IF(CG21<>CG10,ASIN(CG23),CG14),KLISI_PAR) -> -0.1472478665 | CI24: =IF(ABS(CJ10)<RADIUS_OF_SEMICIRCLE,IF(CI21<>CI10,ASIN(CI23),CI14),KLISI_PAR) -> -0.1742728403 | CK24: =IF(ABS(CL10)<RADIUS_OF_SEMICIRCLE,IF(CK21<>CK10,ASIN(CK23),CK14),KLISI_PAR) -> -0.2014270544 | CM24: f1
E25: y222 | F25: =-RADIUS_OF_SEMICIRCLE*COS(F21) -> -64.52085632 | G25: 134 | H25: 30 | J25: upper | K25: =ATAN((L20-y_SOURCE)/(K20-X_SOURCE)) -> -0.2384657174 | T25: x4,y4 | U25: =IF(SIN(U24)*nn<1,ASIN(SIN(U24)*nn),-U24) -> 0.03599241501 | V25: =IF(SIN(V24)*nn<1,ASIN(SIN(V24)*nn),-V24) -> 0.03599241501 | Z25: circle left | AX25: IF(Z40;ASIN(Z38)+ATAN((AA37-AA29)/(Z37-Z29));-2*ASIN(Z38)+AA41) | BF25: F2 | BG25: =IF(BG21<>0,-ASIN(BH21*BG21/SQRT((BG21)^2+(BH21)^2)/RADIUS_OF_SEMICIRCLE),KLISI_PAR) -> 0.1753091808 | BH25: =BG25 -> 0.1753091808 | BI25: =IF(BI21<>0,-ASIN(BJ21*BI21/SQRT((BI21)^2+(BJ21)^2)/RADIUS_OF_SEMICIRCLE),KLISI_PAR) -> 0.1492730982 | BJ25: =BI25 -> 0.1492730982 | BK25: =IF(BK21<>0,-ASIN(BL21*BK21/SQRT((BK21)^2+(BL21)^2)/RADIUS_OF_SEMICIRCLE),KLISI_PAR) -> 0.1230229688 | BL25: 0.1230229688 | BM25: =IF(BM21<>0,-ASIN(BN21*BM21/SQRT((BM21)^2+(BN21)^2)/RADIUS_OF_SEMICIRCLE),KLISI_PAR) -> 0.09660410068 | BN25: 0.09660410068 | BO25: =IF(BO21<>0,-ASIN(BP21*BO21/SQRT((BO21)^2+(BP21)^2)/RADIUS_OF_SEMICIRCLE),KLISI_PAR) -> 0.07005926265 | BP25: 0.07005926265 | BQ25: =IF(BQ21<>0,-ASIN(BR21*BQ21/SQRT((BQ21)^2+(BR21)^2)/RADIUS_OF_SEMICIRCLE),KLISI_PAR) -> 0.04342925509 | BR25: 0.04342925509 | BS25: =IF(BS21<>0,-ASIN(BT21*BS21/SQRT((BS21)^2+(BT21)^2)/RADIUS_OF_SEMICIRCLE),KLISI_PAR) -> 0.01675344941 | BT25: 0.01675344941 | BU25: =IF(BU21<>0,-ASIN(BV21*BU21/SQRT((BU21)^2+(BV21)^2)/RADIUS_OF_SEMICIRCLE),KLISI_PAR) -> -0.009929696548 | BV25: -0.009929696548 | BW25: =IF(BW21<>0,-ASIN(BX21*BW21/SQRT((BW21)^2+(BX21)^2)/RADIUS_OF_SEMICIRCLE),KLISI_PAR) -> -0.03658213975 | BX25: -0.03658213975 | BY25: =IF(BY21<>0,-ASIN(BZ21*BY21/SQRT((BY21)^2+(BZ21)^2)/RADIUS_OF_SEMICIRCLE),KLISI_PAR) -> -0.06316576256 | BZ25: =BY25 -> -0.06316576256 | CA25: =IF(CA21<>0,-ASIN(CB21*CA21/SQRT((CA21)^2+(CB21)^2)/RADIUS_OF_SEMICIRCLE),KLISI_PAR) -> -0.0896418857 | CB25: =CA25 -> -0.0896418857 | CC25: =IF(CC21<>0,-ASIN(CD21*CC21/SQRT((CC21)^2+(CD21)^2)/RADIUS_OF_SEMICIRCLE),KLISI_PAR) -> -0.1159707767 | CD25: =CC25 -> -0.1159707767 | CE25: =IF(CE21<>0,-ASIN(CF21*CE21/SQRT((CE21)^2+(CF21)^2)/RADIUS_OF_SEMICIRCLE),KLISI_PAR) -> -0.1421111473 | CF25: =CE25 -> -0.1421111473 | CG25: =IF(CG21<>0,-ASIN(CH21*CG21/SQRT((CG21)^2+(CH21)^2)/RADIUS_OF_SEMICIRCLE),KLISI_PAR) -> -0.1680196327 | CH25: =CG25 -> -0.1680196327 | CI25: =IF(CI21<>0,-ASIN(CJ21*CI21/SQRT((CI21)^2+(CJ21)^2)/RADIUS_OF_SEMICIRCLE),KLISI_PAR) -> -0.1936502469 | CJ25: =CI25 -> -0.1936502469 | CK25: =IF(CK21<>0,-ASIN(CL21*CK21/SQRT((CK21)^2+(CL21)^2)/RADIUS_OF_SEMICIRCLE),KLISI_PAR) -> -0.2189538074 | CL25: =CK25 -> -0.2189538074 | CM25: F2
J26: lower | K26: =ATAN((L21-y_SOURCE)/(K21-X_SOURCE)) -> 0.4544900728 | U26: =U25+ATAN(V22/U22) -> 0.1142725628 | V26: =U26 -> 0.1142725628 | Y26: X1,Y1 | Z26: =XSR -> 202.9683418 | AA26: =YSR -> 33.10365883 | AB26: =XSR -> 202.9683418 | AC26: =YSR -> 33.10365883 | AD26: =XSR -> 202.9683418 | AE26: =YSR -> 33.10365883 | AF26: =XSR -> 202.9683418 | AG26: =YSR -> 33.10365883 | AH26: =XSR -> 202.9683418 | AI26: =YSR -> 33.10365883 | AJ26: =XSR -> 202.9683418 | AK26: =YSR -> 33.10365883 | AM26: =XSR -> 202.9683418 | AN26: =YSR -> 33.10365883 | AO26: =XSR -> 202.9683418 | AP26: =YSR -> 33.10365883 | AQ26: =XSR -> 202.9683418 | AR26: =YSR -> 33.10365883 | AS26: =XSR -> 202.9683418 | AT26: =YSR -> 33.10365883 | AU26: =XSR -> 202.9683418 | AV26: =YSR -> 33.10365883 | AW26: =XSR -> 202.9683418 | AX26: =YSR -> 33.10365883 | AY26: =XSR -> 202.9683418 | AZ26: =YSR -> 33.10365883 | BA26: =XSR -> 202.9683418 | BB26: =YSR -> 33.10365883 | BC26: =XSR -> 202.9683418 | BD26: =YSR -> 33.10365883 | BF26: IF REFELCTION | BG26: =IF(ABS(SIN(BG22))*nn>1,FALSE,TRUE) -> TRUE | BH26: =BG26 -> TRUE | BI26: =IF(ABS(SIN(BI22))*nn>1,FALSE,TRUE) -> TRUE | BJ26: =BI26 -> TRUE | BK26: =IF(ABS(SIN(BK22))*nn>1,FALSE,TRUE) -> TRUE | BL26: =BK26 -> TRUE | BM26: =IF(ABS(SIN(BM22))*nn>1,FALSE,TRUE) -> TRUE | BN26: =BM26 -> TRUE | BO26: =IF(ABS(SIN(BO22))*nn>1,FALSE,TRUE) -> TRUE | BP26: =BO26 -> TRUE | BQ26: =IF(ABS(SIN(BQ22))*nn>1,FALSE,TRUE) -> TRUE | BR26: =BQ26 -> TRUE | BS26: =IF(ABS(SIN(BS22))*nn>1,FALSE,TRUE) -> TRUE | BT26: =BS26 -> TRUE | BU26: =IF(ABS(SIN(BU22))*nn>1,FALSE,TRUE) -> TRUE | BV26: =BU26 -> TRUE | BW26: =IF(ABS(SIN(BW22))*nn>1,FALSE,TRUE) -> TRUE | BX26: =BW26 -> TRUE | BY26: =IF(ABS(SIN(BY22))*nn>1,FALSE,TRUE) -> TRUE | BZ26: =BY26 -> TRUE | CA26: =IF(ABS(SIN(CA22))*nn>1,FALSE,TRUE) -> TRUE | CB26: =CA26 -> TRUE | CC26: =IF(ABS(SIN(CC22))*nn>1,FALSE,TRUE) -> TRUE | CD26: =CC26 -> TRUE | CE26: =IF(ABS(SIN(CE22))*nn>1,FALSE,TRUE) -> TRUE | CF26: =CE26 -> TRUE | CG26: =IF(ABS(SIN(CG22))*nn>1,FALSE,TRUE) -> TRUE | CH26: =CG26 -> TRUE | CI26: =IF(ABS(SIN(CI22))*nn>1,FALSE,TRUE) -> TRUE | CJ26: =CI26 -> TRUE | CK26: =IF(ABS(SIN(CK22))*nn>1,FALSE,TRUE) -> TRUE | CL26: =CK26 -> TRUE | CM26: IF REFELCTION
A27: if y11>radius we have two angle | U27: =IF(SIN(U24)*nn<1,-200,U22+RADIUS_OF_SEMICIRCLE*COS(U25)) -> -200 | V27: =IF(SIN(V24)*nn<1,V22+(-200-U22)*TAN(U26),U22-RADIUS_OF_SEMICIRCLE*SIN(#REF!)) -> -20.17945068 | Y27: KLISI_F | Z27: =-(A_GONIA-DGON*Z33-OMEGA) -> 0.005528082098 | AA27: =Z27 -> 0.005528082098 | AB27: =-(A_GONIA-DGON*AB33-OMEGA) -> 0.02955054949 | AC27: =AB27 -> 0.02955054949 | AD27: =-(A_GONIA-DGON*AD33-OMEGA) -> 0.05357301688 | AE27: =AD27 -> 0.05357301688 | AF27: =-(A_GONIA-DGON*AF33-OMEGA) -> 0.07759548427 | AG27: =AF27 -> 0.07759548427 | AH27: =-(A_GONIA-DGON*AH33-OMEGA) -> 0.1016179517 | AI27: =AH27 -> 0.1016179517 | AJ27: =-(A_GONIA-DGON*AJ33-OMEGA) -> 0.1256404191 | AK27: =AJ27 -> 0.1256404191 | AM27: =-(A_GONIA-DGON*AM33-OMEGA) -> 0.1496628864 | AN27: =AM27 -> 0.1496628864 | AO27: =-(A_GONIA-DGON*AO33-OMEGA) -> 0.1736853538 | AP27: =AO27 -> 0.1736853538 | AQ27: =-(A_GONIA-DGON*AQ33-OMEGA) -> 0.1977078212 | AR27: =AQ27 -> 0.1977078212 | AS27: =-(A_GONIA-DGON*AS33-OMEGA) -> 0.2217302886 | AT27: =AS27 -> 0.2217302886 | AU27: =-(A_GONIA-DGON*AU33-OMEGA) -> 0.245752756 | AV27: =AU27 -> 0.245752756 | AW27: =-(A_GONIA-DGON*AW33-OMEGA) -> 0.2697752234 | AX27: =AW27 -> 0.2697752234 | AY27: =-(A_GONIA-DGON*AY33-OMEGA) -> 0.2937976908 | AZ27: =AY27 -> 0.2937976908 | BA27: =-(A_GONIA-DGON*BA33-OMEGA) -> 0.3178201582 | BB27: =BA27 -> 0.3178201582 | BC27: =-(A_GONIA-DGON*BC33-OMEGA) -> 0.3418426256 | BD27: =BC27 -> 0.3418426256 | BE27: SINE OF ANGLE | BF27: refraction | BG27: =SIN(BG22)*nn -> 0.3001016045 | BH27: =(BG21*(BH21-BH10)-BH21*(BG21-BG10))/RADIUS_OF_SEMICIRCLE/SQRT((BG21-BG10)^2+(BH21-BH10)^2) -> 0.2000677363 | BI27: =SIN(BI22)*nn -> 0.2600880572 | BJ27: =(BI21*(BJ21-BJ10)-BJ21*(BI21-BI10))/RADIUS_OF_SEMICIRCLE/SQRT((BI21-BI10)^2+(BJ21-BJ10)^2) -> 0.1733920381 | BK27: =SIN(BK22)*nn -> 0.2200745099 | BL27: =(BK21*(BL21-BL10)-BL21*(BK21-BK10))/RADIUS_OF_SEMICIRCLE/SQRT((BK21-BK10)^2+(BL21-BL10)^2) -> 0.14671634 | BM27: =SIN(BM22)*nn -> 0.1800609627 | BN27: =(BM21*(BN21-BN10)-BN21*(BM21-BM10))/RADIUS_OF_SEMICIRCLE/SQRT((BM21-BM10)^2+(BN21-BN10)^2) -> 0.1200406418 | BO27: =SIN(BO22)*nn -> 0.1400474154 | BP27: =(BO21*(BP21-BP10)-BP21*(BO21-BO10))/RADIUS_OF_SEMICIRCLE/SQRT((BO21-BO10)^2+(BP21-BP10)^2) -> 0.09336494361 | BQ27: =SIN(BQ22)*nn -> 0.1000338682 | BR27: =(BQ21*(BR21-BR10)-BR21*(BQ21-BQ10))/RADIUS_OF_SEMICIRCLE/SQRT((BQ21-BQ10)^2+(BR21-BR10)^2) -> 0.06668924544 | BS27: =SIN(BS22)*nn -> 0.06002032089 | BT27: =(BS21*(BT21-BT10)-BT21*(BS21-BS10))/RADIUS_OF_SEMICIRCLE/SQRT((BS21-BS10)^2+(BT21-BT10)^2) -> 0.04001354726 | BU27: =SIN(BU22)*nn -> 0.02000677363 | BV27: =(BU21*(BV21-BV10)-BV21*(BU21-BU10))/RADIUS_OF_SEMICIRCLE/SQRT((BU21-BU10)^2+(BV21-BV10)^2) -> 0.01333784909 | BW27: =SIN(BW22)*nn -> -0.02000677363 | BX27: =(BW21*(BX21-BX10)-BX21*(BW21-BW10))/RADIUS_OF_SEMICIRCLE/SQRT((BW21-BW10)^2+(BX21-BX10)^2) -> -0.01333784909 | BY27: =SIN(BY22)*nn -> -0.06002032089 | BZ27: =(BY21*(BZ21-BZ10)-BZ21*(BY21-BY10))/RADIUS_OF_SEMICIRCLE/SQRT((BY21-BY10)^2+(BZ21-BZ10)^2) -> -0.04001354726 | CA27: =SIN(CA22)*nn -> -0.1000338682 | CB27: =(CA21*(CB21-CB10)-CB21*(CA21-CA10))/RADIUS_OF_SEMICIRCLE/SQRT((CA21-CA10)^2+(CB21-CB10)^2) -> -0.06668924544 | CC27: =SIN(CC22)*nn -> -0.1400474154 | CD27: =(CC21*(CD21-CD10)-CD21*(CC21-CC10))/RADIUS_OF_SEMICIRCLE/SQRT((CC21-CC10)^2+(CD21-CD10)^2) -> -0.09336494361 | CE27: =SIN(CE22)*nn -> -0.1800609627 | CF27: =(CE21*(CF21-CF10)-CF21*(CE21-CE10))/RADIUS_OF_SEMICIRCLE/SQRT((CE21-CE10)^2+(CF21-CF10)^2) -> -0.1200406418 | CG27: =SIN(CG22)*nn -> -0.2200745099 | CH27: =(CG21*(CH21-CH10)-CH21*(CG21-CG10))/RADIUS_OF_SEMICIRCLE/SQRT((CG21-CG10)^2+(CH21-CH10)^2) -> -0.14671634 | CI27: =SIN(CI22)*nn -> -0.2600880572 | CJ27: =(CI21*(CJ21-CJ10)-CJ21*(CI21-CI10))/RADIUS_OF_SEMICIRCLE/SQRT((CI21-CI10)^2+(CJ21-CJ10)^2) -> -0.1733920381 | CK27: =SIN(CK22)*nn -> -0.3001016045 | CL27: =(CK21*(CL21-CL10)-CL21*(CK21-CK10))/RADIUS_OF_SEMICIRCLE/SQRT((CK21-CK10)^2+(CL21-CL10)^2) -> -0.2000677363 | CM27: refraction | CN27: incidence
T28: X1,Y1 | Y28: TAN(KLISI_F)=K | Z28: =TAN(Z27) -> 0.005528138411 | AA28: =TAN(AA27) -> 0.005528138411 | AB28: 0.02955915402 | AC28: 0.02955915402 | AD28: 0.05362432852 | AE28: 0.05362432852 | AF28: 0.07775159593 | AG28: 0.07775159593 | AH28: 0.1019691785 | AI28: 0.1019691785 | AJ28: 0.1263057198 | AK28: 0.1263057198 | AM28: 0.1507904218 | AN28: 0.1507904218 | AO28: 0.1754531877 | AP28: 0.1754531877 | AQ28: 0.2003247721 | AR28: 0.2003247721 | AS28: 0.2254369394 | AT28: 0.2254369394 | AU28: 0.2508226331 | AV28: 0.2508226331 | AW28: 0.2765161575 | AX28: 0.2765161575 | AY28: 0.3025533748 | AZ28: 0.3025533748 | BA28: 0.328971918 | BB28: 0.328971918 | BC28: 0.3558114255 | BD28: 0.3558114255 | BE28: =-BG24+BG25 -> -0.02611787359 | BF28: GONIA ME X | BG28: =IF(BG26,-(BG25)+ASIN(SIN(BG22)*nn),-2*(BG22)+BG14) -> 0.1294899854 | BH28: =BG28 -> 0.1294899854 | BI28: =IF(BI26,-(BI25)+ASIN(SIN(BI22)*nn),-2*(BI22)+BI14) -> 0.1138402993 | BJ28: =BI28 -> 0.1138402993 | BK28: =IF(BK26,-(BK25)+ASIN(SIN(BK22)*nn),-2*(BK22)+BK14) -> 0.09886788366 | BL28: =BK28 -> 0.09886788366 | BM28: =IF(BM26,-(BM25)+ASIN(SIN(BM22)*nn),-2*(BM22)+BM14) -> 0.08444432586 | BN28: =BM28 -> 0.08444432586 | BO28: =IF(BO26,-(BO25)+ASIN(SIN(BO22)*nn),-2*(BO22)+BO14) -> 0.07045003925 | BP28: =BO28 -> 0.07045003925 | BQ28: =IF(BQ26,-(BQ25)+ASIN(SIN(BQ22)*nn),-2*(BQ22)+BQ14) -> 0.05677220491 | BR28: =BQ28 -> 0.05677220491 | BS28: =IF(BS26,-(BS25)+ASIN(SIN(BS22)*nn),-2*(BS22)+BS14) -> 0.04330296662 | BT28: =BS28 -> 0.04330296662 | BU28: =IF(BU26,-(BU25)+ASIN(SIN(BU22)*nn),-2*(BU22)+BU14) -> 0.02993780511 | BV28: =BU28 -> 0.02993780511 | BW28: =IF(BW26,-(BW25)+ASIN(SIN(BW22)*nn),-2*(BW22)+BW14) -> 0.01657403119 | BX28: =BW28 -> 0.01657403119 | BY28: =IF(BY26,-(BY25)+ASIN(SIN(BY22)*nn),-2*(BY22)+BY14) -> 0.003109346535 | BZ28: =BY28 -> 0.003109346535 | CA28: =IF(CA26,-(CA25)+ASIN(SIN(CA22)*nn),-2*(CA22)+CA14) -> -0.0105595743 | CB28: =CA28 -> -0.0105595743 | CC28: =IF(CC26,-(CC25)+ASIN(SIN(CC22)*nn),-2*(CC22)+CC14) -> -0.02453852518 | CD28: =CC28 -> -0.02453852518 | CE28: =IF(CE26,-(CE25)+ASIN(SIN(CE22)*nn),-2*(CE22)+CE14) -> -0.03893727925 | CF28: =CE28 -> -0.03893727925 | CG28: =IF(CG26,-(CG25)+ASIN(SIN(CG22)*nn),-2*(CG22)+CG14) -> -0.05387121977 | CH28: =CG28 -> -0.05387121977 | CI28: =IF(CI26,-(CI25)+ASIN(SIN(CI22)*nn),-(CI22)+CI27) -> -0.06946315058 | CJ28: =CI28 -> -0.06946315058 | CK28: =IF(CK26,-(CK25)+ASIN(SIN(CK22)*nn),-2*(CK22)+CK14) -> -0.08584535879 | CL28: =CK28 -> -0.08584535879 | CM28: GONIA ME X
T29: X2,Y2 | Y29: X2,Y2 | Z29: 0 | AA29: =AA26+AA28*(Z29-Z26) -> 31.98162174 | AB29: 0 | AC29: =AC26+AC28*(AB29-AB26) -> 27.10408635 | AD29: 0 | AE29: =AE26+AE28*(AD29-AD26) -> 22.21961779 | AF29: 0 | AG29: =AG26+AG28*(AF29-AF26) -> 17.32254633 | AH29: 0 | AI29: =AI26+AI28*(AH29-AH26) -> 12.40714375 | AJ29: 0 | AK29: =AK26+AK28*(AJ29-AJ26) -> 7.467596325 | AM29: 0 | AN29: =AN26+AN28*(AM29-AM26) -> 2.497976966 | AO29: 0 | AP29: =AP26+AP28*(AO29-AO26) -> -2.507783743 | AQ29: 0 | AR29: =AR26+AR28*(AQ29-AQ26) -> -7.55592799 | AS29: 0 | AT29: =AT26+AT28*(AS29-AS26) -> -12.65290294 | AU29: 0 | AV29: =AV26+AV28*(AU29-AU26) -> -17.80539509 | AW29: 0 | AX29: =AX26+AX28*(AW29-AW26) -> -23.02036715 | AY29: 0 | AZ29: =AZ26+AZ28*(AY29-AY26) -> -28.30509796 | BA29: 0 | BB29: =BB26+BB28*(BA29-BA26) -> -33.66722587 | BC29: 0 | BD29: =BD26+BD28*(BC29-BC26) -> -39.1147962 | BE29: f1 | BF29: reflect | BG29: =BG24-2*BG22 -> -0.2014270544 | BH29: =BG29 -> -0.2014270544 | BI29: =BI24-2*BI22 -> -0.1742728403 | BJ29: =BI29 -> -0.1742728403 | BK29: =BK24-2*BK22 -> -0.1472478665 | BL29: =BK29 -> -0.1472478665 | BM29: =BM24-2*BM22 -> -0.1203308201 | BN29: =BM29 -> -0.1203308201 | BO29: =BO24-2*BO22 -> -0.09350112238 | BP29: =BO29 -> -0.09350112238 | BQ29: =BQ24-2*BQ22 -> -0.06673877754 | BR29: =BQ29 -> -0.06673877754 | BS29: =BS24-2*BS22 -> -0.04002423247 | BT29: =BS29 -> -0.04002423247 | BU29: =BU24-2*BU22 -> -0.01333824458 | BV29: =BU29 -> -0.01333824458 | BW29: =BW24-2*BW22 -> 0.01333824458 | BX29: =BW29 -> 0.01333824458 | BY29: 0.04002423247 | BZ29: =BY29 -> 0.04002423247 | CA29: 0.06673877754 | CB29: =CA29 -> 0.06673877754 | CC29: 0.09350112238 | CD29: =CC29 -> 0.09350112238 | CE29: 0.1203308201 | CF29: =CE29 -> 0.1203308201 | CG29: 0.1472478665 | CH29: =CG29 -> 0.1472478665 | CI29: 0.1742728403 | CJ29: =CI29 -> 0.1742728403 | CK29: 0.2014270544 | CL29: =CK29 -> 0.2014270544 | CM29: reflect
T30: X3,Y3 | U30: =U3 -> -2.617462253 | V30: =V3 -> -74.95431203 | W30: CUT WITH CIRCLE | X30: X^2+Y^2=r^2 Y=Y11+TAN(KLISI)*(X-X11 Y11^2+K^2*(X-X11)^2+2*Y11*k*(X-X11)+X^2=R^2 | Z30: X^2+Y^2=r^2 Y=Y11+TAN(KLISI)*(X-X11 Y11^2+K^2*(X-X11)^2+2*Y11*k*(X-X11)+X^2=R^2 | BE30: =SIN(BE28) -> -0.02611490433 | BF30: KLISI EXO | BG30: =IF(BH11,IF(ABS(BG31)<1,ASIN(BG31)+BG25,BG29),KLISI_PAR) -> 0.480108347 | BH30: =BG30 -> 0.480108347 | BI30: =IF(BJ11,IF(ABS(BI31)<1,ASIN(BI31)+BI25,BI29),KLISI_PAR) -> 0.4123864958 | BJ30: =BI30 -> 0.4123864958 | BK30: =IF(BL11,IF(ABS(BK31)<1,ASIN(BK31)+BK25,BK29),KLISI_PAR) -> 0.3449138212 | BL30: =BK30 -> 0.3449138212 | BM30: =IF(BN11,IF(ABS(BM31)<1,ASIN(BM31)+BM25,BM29),KLISI_PAR) -> 0.2776525272 | BN30: =BM30 -> 0.2776525272 | BO30: =IF(BP11,IF(ABS(BO31)<1,ASIN(BO31)+BO25,BO29),KLISI_PAR) -> 0.2105685646 | BP30: =BO30 -> 0.2105685646 | BQ30: =IF(BR11,IF(ABS(BQ31)<1,ASIN(BQ31)+BQ25,BQ29),KLISI_PAR) -> 0.1436307151 | BR30: =BQ30 -> 0.1436307151 | BS30: =IF(BT11,IF(ABS(BS31)<1,ASIN(BS31)+BS25,BS29),KLISI_PAR) -> 0.07680986544 | BT30: =BS30 -> 0.07680986544 | BU30: =IF(BV11,IF(ABS(BU31)<1,ASIN(BU31)+BU25,BU29),KLISI_PAR) -> 0.01007841201 | BV30: =BU30 -> 0.01007841201 | BW30: =IF(BX11,IF(ABS(BW31)<1,ASIN(BW31)+BW25,BW29),KLISI_PAR) -> -0.05659024831 | BX30: =BW30 -> -0.05659024831 | BY30: =IF(BZ11,IF(ABS(BY31)<1,ASIN(BY31)+BY25,BY29),KLISI_PAR) -> -0.1232221786 | BZ30: =BY30 -> -0.1232221786 | CA30: =IF(CB11,IF(ABS(CA31)<1,ASIN(CA31)+CA25,CA29),KLISI_PAR) -> -0.1898433457 | CB30: =CA30 -> -0.1898433457 | CC30: =IF(CD11,IF(ABS(CC31)<1,ASIN(CC31)+CC25,CC29),KLISI_PAR) -> -0.2564800786 | CD30: =CC30 -> -0.2564800786 | CE30: =IF(CF11,IF(ABS(CE31)<1,ASIN(CE31)+CE25,CE29),KLISI_PAR) -> -0.3231595738 | CF30: =CE30 -> -0.3231595738 | CG30: =IF(CH11,IF(ABS(CG31)<1,ASIN(CG31)+CG25,CG29),KLISI_PAR) -> -0.3899104851 | CH30: =CG30 -> -0.3899104851 | CI30: =IF(CJ11,IF(ABS(CI31)<1,ASIN(CI31)+CI25,CI29),KLISI_PAR) -> -0.4567636444 | CJ30: =CI30 -> -0.4567636444 | CK30: =IF(CL11,IF(ABS(CK31)<1,ASIN(CK31)+CK25,CK29),KLISI_PAR) -> -0.5237529737 | CL30: =CK30 -> -0.5237529737 | CM30: KLISI EXO
A31: 1 | B31: 2 | C31: 3 | D31: 4 | E31: 5 | F31: 6 | G31: 7 | H31: 8 | T31: x4,y4 | U31: =XC+U18*COS(radiansg)+V18*SIN(radiansg) -> 0.06311885886 | V31: =YC-U18*SIN(radiansg)+V18*COS(radiansg) -> 1.807487629 | X31: x^2(1+k^2)+2*X*k(Y11-X11*K)+(Y11-X11*k)^2-R^2 K=TAN(KLISI) | Z31: =(-AA29*Z35-SQRT(Z36))/(1+Z35^2) -> -67.95684364 | AB31: =(-AC29*AB35-SQRT(AB36))/(1+AB35^2) -> -70.45341874 | AD31: =(-AE29*AD35-SQRT(AD36))/(1+AD35^2) -> -72.38444021 | AF31: =(-AG29*AF35-SQRT(AF36))/(1+AF35^2) -> -73.77409604 | AH31: =(-AI29*AH35-SQRT(AH36))/(1+AH35^2) -> -74.63919736 | AJ31: =(-AK29*AJ35-SQRT(AJ36))/(1+AJ35^2) -> -74.99070274 | AM31: =(-AN29*AM35-SQRT(AM36))/(1+AM35^2) -> -74.8346244 | AO31: =(-AP29*AO35-SQRT(AO36))/(1+AO35^2) -> -74.1724948 | AQ31: =(-AR29*AQ35-SQRT(AQ36))/(1+AQ35^2) -> -73.00147979 | AS31: =(-AT29*AS35-SQRT(AS36))/(1+AS35^2) -> -71.31416203 | AU31: =(-AV29*AU35-SQRT(AU36))/(1+AU35^2) -> -69.09796327 | AW31: =(-AX29*AW35-SQRT(AW36))/(1+AW35^2) -> -66.33410948 | AY31: =(-AZ29*AY35-SQRT(AY36))/(1+AY35^2) -> -62.99594677 | BA31: =(-BB29*BA35-SQRT(BA36))/(1+BA35^2) -> -59.04624775 | BC31: =(-BD29*BC35-SQRT(BC36))/(1+BC35^2) -> -54.43282131 | BE31: possible cut with circle | BF31: sin(δ)*n | BG31: =SIN(BG22)*nn -> 0.3001016045 | BH31: =BG31 -> 0.3001016045 | BI31: =SIN(BI22)*nn -> 0.2600880572 | BJ31: =BI31 -> 0.2600880572 | BK31: =SIN(BK22)*nn -> 0.2200745099 | BL31: =BK31 -> 0.2200745099 | BM31: =SIN(BM22)*nn -> 0.1800609627 | BN31: =BM31 -> 0.1800609627 | BO31: =SIN(BO22)*nn -> 0.1400474154 | BP31: =BO31 -> 0.1400474154 | BQ31: =SIN(BQ22)*nn -> 0.1000338682 | BR31: =BQ31 -> 0.1000338682 | BS31: =SIN(BS22)*nn -> 0.06002032089 | BT31: =BS31 -> 0.06002032089 | BU31: =SIN(BU22)*nn -> 0.02000677363 | BV31: =BU31 -> 0.02000677363 | BW31: =SIN(BW22)*nn -> -0.02000677363 | BX31: =BW31 -> -0.02000677363 | BY31: =SIN(BY22)*nn -> -0.06002032089 | BZ31: =BY31 -> -0.06002032089 | CA31: =SIN(CA22)*nn -> -0.1000338682 | CB31: =CA31 -> -0.1000338682 | CC31: =SIN(CC22)*nn -> -0.1400474154 | CD31: =CC31 -> -0.1400474154 | CE31: =SIN(CE22)*nn -> -0.1800609627 | CF31: =CE31 -> -0.1800609627 | CG31: =SIN(CG22)*nn -> -0.2200745099 | CH31: =CG31 -> -0.2200745099 | CI31: =SIN(CI22)*nn -> -0.2600880572 | CJ31: =CI31 -> -0.2600880572 | CK31: =SIN(CK22)*nn -> -0.3001016045 | CL31: =CK31 -> -0.3001016045 | CM31: sin(δ)*n | CN31: =CF21-2*RADIUS_OF_SEMICIRCLE*COS(CE22)*SIN(CE28) -> -4.936074522
T32: REF CIR LEFT | U32: =XC+U22*COS(radiansg)+V22*SIN(radiansg) -> -76.54298571 | V32: =YC-U22*SIN(radiansg)+V22*COS(radiansg) -> -3.32202546 | W32: X=(-K*(Y11-X11*K)-SQRT(R^2*(1+K^2)-(Y11-X11*K)^2))/(1+K^) | Z32: X=(-K*(Y11-X11*K)-SQRT(R^2*(1+K^2)-(Y11-X11*K)^2))/(1+K^) | BE32: =SIN(BH22) -> 0.2000677363 | BG32: =RADIUS_OF_SEMICIRCLE^2*(1+TAN(BH28)^2)-(BH21-TAN(BH28)*BG21)^2 -> 5195.828941 | BH32: =-RADIUS_OF_SEMICIRCLE^2*(1+TAN(BG28)^2)-(BH21-BG21*TAN(BG28))^2 -> 5195.828941 | BI32: =RADIUS_OF_SEMICIRCLE^2*(1+TAN(BJ28)^2)-(BJ21-TAN(BJ28)*BI21)^2 -> 5308.080376 | BJ32: =-RADIUS_OF_SEMICIRCLE^2*(1+TAN(BI28)^2)-(BJ21-BI21*TAN(BI28))^2 -> 5308.080376 | BK32: =RADIUS_OF_SEMICIRCLE^2*(1+TAN(BL28)^2)-(BL21-TAN(BL28)*BK21)^2 -> 5402.891557 | BL32: =-RADIUS_OF_SEMICIRCLE^2*(1+TAN(BK28)^2)-(BL21-BK21*TAN(BK28))^2 -> 5402.891557 | BM32: =RADIUS_OF_SEMICIRCLE^2*(1+TAN(BN28)^2)-(BN21-TAN(BN28)*BM21)^2 -> 5480.70147 | BN32: =-RADIUS_OF_SEMICIRCLE^2*(1+TAN(BM28)^2)-(BN21-BM21*TAN(BM28))^2 -> 5480.70147 | BO32: =RADIUS_OF_SEMICIRCLE^2*(1+TAN(BP28)^2)-(BP21-TAN(BP28)*BO21)^2 -> 5541.864547 | BP32: =-RADIUS_OF_SEMICIRCLE^2*(1+TAN(BO28)^2)-(BP21-BO21*TAN(BO28))^2 -> 5541.864547 | BQ32: =RADIUS_OF_SEMICIRCLE^2*(1+TAN(BR28)^2)-(BR21-TAN(BR28)*BQ21)^2 -> 5586.652781 | BR32: =-RADIUS_OF_SEMICIRCLE^2*(1+TAN(BQ28)^2)-(BR21-BQ21*TAN(BQ28))^2 -> 5586.652781 | BS32: =RADIUS_OF_SEMICIRCLE^2*(1+TAN(BT28)^2)-(BT21-TAN(BT28)*BS21)^2 -> 5615.257549 | BT32: =-RADIUS_OF_SEMICIRCLE^2*(1+TAN(BS28)^2)-(BT21-BS21*TAN(BS28))^2 -> 5615.257549 | BU32: =RADIUS_OF_SEMICIRCLE^2*(1+TAN(BV28)^2)-(BV21-TAN(BV28)*BU21)^2 -> 5627.791112 | BV32: =-RADIUS_OF_SEMICIRCLE^2*(1+TAN(BU28)^2)-(BV21-BU21*TAN(BU28))^2 -> 5627.791112 | BW32: =RADIUS_OF_SEMICIRCLE^2*(1+TAN(BX28)^2)-(BX21-TAN(BX28)*BW21)^2 -> 5624.287793 | BX32: =-RADIUS_OF_SEMICIRCLE^2*(1+TAN(BW28)^2)-(BX21-BW21*TAN(BW28))^2 -> 5624.287793 | BY32: =RADIUS_OF_SEMICIRCLE^2*(1+TAN(BZ28)^2)-(BZ21-TAN(BZ28)*BY21)^2 -> 5604.704845 | BZ32: =-RADIUS_OF_SEMICIRCLE^2*(1+TAN(BY28)^2)-(BZ21-BY21*TAN(BY28))^2 -> 5604.704845 | CA32: =RADIUS_OF_SEMICIRCLE^2*(1+TAN(CB28)^2)-(CB21-TAN(CB28)*CA21)^2 -> 5568.923029 | CB32: =-RADIUS_OF_SEMICIRCLE^2*(1+TAN(CA28)^2)-(CB21-CA21*TAN(CA28))^2 -> 5568.923029 | CC32: =RADIUS_OF_SEMICIRCLE^2*(1+TAN(CD28)^2)-(CD21-TAN(CD28)*CC21)^2 -> 5516.746947 | CD32: =-RADIUS_OF_SEMICIRCLE^2*(1+TAN(CC28)^2)-(CD21-CC21*TAN(CC28))^2 -> 5516.746947 | CE32: =RADIUS_OF_SEMICIRCLE^2*(1+TAN(CF28)^2)-(CF21-TAN(CF28)*CE21)^2 -> 5447.905184 | CF32: =-RADIUS_OF_SEMICIRCLE^2*(1+TAN(CE28)^2)-(CF21-CE21*TAN(CE28))^2 -> 5447.905184 | CG32: =RADIUS_OF_SEMICIRCLE^2*(1+TAN(CH28)^2)-(CH21-TAN(CH28)*CG21)^2 -> 5362.050329 | CH32: =-RADIUS_OF_SEMICIRCLE^2*(1+TAN(CG28)^2)-(CH21-CG21*TAN(CG28))^2 -> 5362.050329 | CI32: =RADIUS_OF_SEMICIRCLE^2*(1+TAN(CJ28)^2)-(CJ21-TAN(CJ28)*CI21)^2 -> 5258.758986 | CJ32: =-RADIUS_OF_SEMICIRCLE^2*(1+TAN(CI28)^2)-(CJ21-CI21*TAN(CI28))^2 -> 5258.758986 | CK32: =RADIUS_OF_SEMICIRCLE^2*(1+TAN(CL28)^2)-(CL21-TAN(CL28)*CK21)^2 -> 5137.531915 | CL32: =-RADIUS_OF_SEMICIRCLE^2*(1+TAN(CK28)^2)-(CL21-CK21*TAN(CK28))^2 -> 5137.531915
U33: =XC+U27*COS(radiansg)+V27*SIN(radiansg) -> -200.5824181 | V33: =YC-U27*SIN(radiansg)+V27*COS(radiansg) -> -13.18725856 | Z33: 1 | AA33: =1 -> 1 | AB33: =Z33+1 -> 2 | AC33: =AB33 -> 2 | AD33: =AB33+1 -> 3 | AE33: =AD33 -> 3 | AF33: =AD33+1 -> 4 | AG33: =AF33 -> 4 | AH33: =AF33+1 -> 5 | AI33: =AH33 -> 5 | AJ33: =AH33+1 -> 6 | AK33: =AJ33 -> 6 | AM33: =AJ33+1 -> 7 | AN33: =AM33 -> 7 | AO33: =AM33+1 -> 8 | AP33: =AO33 -> 8 | AQ33: =AO33+1 -> 9 | AR33: =AQ33 -> 9 | AS33: =AQ33+1 -> 10 | AT33: =AS33 -> 10 | AU33: =AS33+1 -> 11 | AV33: =AU33 -> 11 | AW33: =AU33+1 -> 12 | AX33: =AW33 -> 12 | AY33: =AW33+1 -> 13 | AZ33: =AY33 -> 13 | BA33: =AY33+1 -> 14 | BB33: =BA33 -> 14 | BC33: =BA33+1 -> 15 | BD33: =BC33 -> 15 | BF33: CUT OF CIRCLE | BG33: =IF(ABS(BG24-PI()/2)>0,(-TAN(BG28)*(BH21-BG21*TAN(BG28))-SQRT(BH32))/(1+TAN(BG28)^2),BG21) -> -73.81287641 | BH33: =(-TAN(BG28)*(BH21-BG21*TAN(BG28))+SQRT(BH32))/(1+TAN(BG28)^2) -> 67.94750574 | BI33: =IF(ABS(BI24-PI()/2)>0,(-TAN(BI28)*(BJ21-BI21*TAN(BI28))-SQRT(BJ32))/(1+TAN(BI28)^2),BI21) -> -74.14653616 | BJ33: =(-TAN(BI28)*(BJ21-BI21*TAN(BI28))+SQRT(BJ32))/(1+TAN(BI28)^2) -> 69.68636925 | BK33: =IF(ABS(BK24-PI()/2)>0,(-TAN(BK28)*(BL21-BK21*TAN(BK28))-SIGN(BK37)*SQRT(BL32))/(1+TAN(BK28)^2),BK21) -> 71.15208574 | BL33: =(-TAN(BK28)*(BL21-BK21*TAN(BK28))+SQRT(BL32))/(1+TAN(BK28)^2) -> 71.15208574 | BM33: =IF(ABS(BM24-PI()/2)>0,(-TAN(BM28)*(BN21-BM21*TAN(BM28))-SQRT(BN32))/(1+TAN(BM28)^2),BM21) -> -74.64698575 | BN33: =(-TAN(BM28)*(BN21-BM21*TAN(BM28))+SQRT(BN32))/(1+TAN(BM28)^2) -> 72.36322335 | BO33: =IF(ABS(BO24-PI()/2)>0,(-TAN(BO28)*(BP21-BO21*TAN(BO28))-SQRT(BP32))/(1+TAN(BO28)^2),BO21) -> -74.81510236 | BP33: =(-TAN(BO28)*(BP21-BO21*TAN(BO28))+SQRT(BP32))/(1+TAN(BO28)^2) -> 73.33456126 | BQ33: =IF(ABS(BQ24-PI()/2)>0,(-TAN(BQ28)*(BR21-BQ21*TAN(BQ28))-SQRT(BR32))/(1+TAN(BQ28)^2),BQ21) -> -74.92914849 | BR33: =(-TAN(BQ28)*(BR21-BQ21*TAN(BQ28))+SQRT(BR32))/(1+TAN(BQ28)^2) -> 74.07738655 | BS33: =IF(ABS(BS24-PI()/2)>0,(-TAN(BS28)*(BT21-BS21*TAN(BS28))-SQRT(BT32))/(1+TAN(BS28)^2),BS21) -> -74.98947186 | BT33: =(-TAN(BS28)*(BT21-BS21*TAN(BS28))+SQRT(BT32))/(1+TAN(BS28)^2) -> 74.59971975 | BU33: =IF(ABS(BU24-PI()/2)>0,(-TAN(BU28)*(BV21-BU21*TAN(BU28))-SQRT(BV32))/(1+TAN(BU28)^2),BU21) -> -74.99630221 | BV33: =(-TAN(BU28)*(BV21-BU21*TAN(BU28))+SQRT(BV32))/(1+TAN(BU28)^2) -> 74.90647399 | BW33: =IF(ABS(BW24-PI()/2)>0,(-TAN(BW28)*(BX21-BW21*TAN(BW28))-SQRT(BX32))/(1+TAN(BW28)^2),BW21) -> -74.94975379 | BX33: =(-TAN(BW28)*(BX21-BW21*TAN(BW28))+SQRT(BX32))/(1+TAN(BW28)^2) -> 74.99955143 | BY33: =IF(ABS(BY24-PI()/2)>0,(-TAN(BY28)*(BZ21-BY21*TAN(BY28))-SQRT(BZ32))/(1+TAN(BY28)^2),BY21) -> -74.8498266 | BZ33: =(-TAN(BY28)*(BZ21-BY21*TAN(BY28))+SQRT(BZ32))/(1+TAN(BY28)^2) -> 74.87787923 | CA33: =IF(ABS(CA24-PI()/2)>0,(-TAN(CA28)*(CB21-CA21*TAN(CA28))-SQRT(CB32))/(1+TAN(CA28)^2),CA21) -> -74.69640638 | CB33: =(-TAN(CA28)*(CB21-CA21*TAN(CA28))+SQRT(CB32))/(1+TAN(CA28)^2) -> 74.53738634 | CC33: =IF(ABS(CC24-PI()/2)>0,(-TAN(CC28)*(CD21-CC21*TAN(CC28))-SQRT(CD32))/(1+TAN(CC28)^2),CC21) -> -74.48926341 | CD33: =(-TAN(CC28)*(CD21-CC21*TAN(CC28))+SQRT(CD32))/(1+TAN(CC28)^2) -> 73.97092089 | CE33: =IF(ABS(CE24-PI()/2)>0,(-TAN(CE28)*(CF21-CE21*TAN(CE28))-SQRT(CF32))/(1+TAN(CE28)^2),CE21) -> -74.22804995 | CF33: =(-TAN(CE28)*(CF21-CE21*TAN(CE28))+SQRT(CF32))/(1+TAN(CE28)^2) -> 73.16810705 | CG33: =IF(ABS(CG24-PI()/2)>0,(-TAN(CG28)*(CH21-CG21*TAN(CG28))-SQRT(CH32))/(1+TAN(CG28)^2),CG21) -> -73.91229654 | CH33: =(-TAN(CG28)*(CH21-CG21*TAN(CG28))+SQRT(CH32))/(1+TAN(CG28)^2) -> 72.11513918 | CI33: =IF(ABS(CI24-PI()/2)>0,(-TAN(CI28)*(CJ21-CI21*TAN(CI28))-SQRT(CJ32))/(1+TAN(CI28)^2),CI21) -> -73.54140667 | CJ33: =(-TAN(CI28)*(CJ21-CI21*TAN(CI28))+SQRT(CJ32))/(1+TAN(CI28)^2) -> 70.79451002 | CK33: =IF(ABS(CK24-PI()/2)>0,(-TAN(CK28)*(CL21-CK21*TAN(CK28))-SQRT(CL32))/(1+TAN(CK28)^2),CK21) -> -73.11465008 | CL33: =(-TAN(CK28)*(CL21-CK21*TAN(CK28))+SQRT(CL32))/(1+TAN(CK28)^2) -> 69.18466917 | CM33: CUT OF CIRCLE
U34: =IF(U25<1,ABS(ATAN(V32/U32)),FALSE) -> 0.04337356276 | V34: =IF(U34,DEGREES(U34),"NO REFRACTION") -> 2.485122088 | Y34: sin(inc)/nn | Z34: =SIN(ATAN((AA29-AA26)/(Z29-Z26)))/nn -> 0.003685369295 | AA34: =Z34 -> 0.003685369295 | AB34: =SIN(ATAN((AC29-AC26)/(AB29-AB26)))/nn -> 0.01969749928 | AC34: =AB34 -> 0.01969749928 | AD34: =SIN(ATAN((AE29-AE26)/(AD29-AD26)))/nn -> 0.03569826279 | AE34: =AD34 -> 0.03569826279 | AF34: =SIN(ATAN((AG29-AG26)/(AF29-AF26)))/nn -> 0.05167842658 | AG34: =AF34 -> 0.05167842658 | AH34: =SIN(ATAN((AI29-AI26)/(AH29-AH26)))/nn -> 0.06762876928 | AI34: =AH34 -> 0.06762876928 | AJ34: =SIN(ATAN((AK29-AK26)/(AJ29-AJ26)))/nn -> 0.08354008671 | AK34: =AJ34 -> 0.08354008671 | AM34: =SIN(ATAN((AN29-AN26)/(AM29-AM26)))/nn -> 0.09940319724 | AN34: =AM34 -> 0.09940319724 | AO34: =SIN(ATAN((AP29-AP26)/(AO29-AO26)))/nn -> 0.115208947 | AP34: =AO34 -> 0.115208947 | AQ34: =SIN(ATAN((AR29-AR26)/(AQ29-AQ26)))/nn -> 0.1309482154 | AR34: =AQ34 -> 0.1309482154 | AS34: =SIN(ATAN((AT29-AT26)/(AS29-AS26)))/nn -> 0.1466119199 | AT34: =AS34 -> 0.1466119199 | AU34: =SIN(ATAN((AV29-AV26)/(AU29-AU26)))/nn -> 0.1621910218 | AV34: =AU34 -> 0.1621910218 | AW34: =SIN(ATAN((AX29-AX26)/(AW29-AW26)))/nn -> 0.1776765312 | AX34: =AW34 -> 0.1776765312 | AY34: =SIN(ATAN((AZ29-AZ26)/(AY29-AY26)))/nn -> 0.1930595122 | AZ34: =AY34 -> 0.1930595122 | BA34: =SIN(ATAN((BB29-BB26)/(BA29-BA26)))/nn -> 0.2083310879 | BB34: =BA34 -> 0.2083310879 | BC34: =SIN(ATAN((BD29-BD26)/(BC29-BC26)))/nn -> 0.2234824459 | BD34: =BC34 -> 0.2234824459 | BG34: =BE34+1 -> 1 | BH34: =BG34 -> 1 | BI34: =BG34+1 -> 2 | BJ34: =BI34 -> 2 | BK34: =BI34+1 -> 3 | BL34: =BK34 -> 3 | BM34: =BK34+1 -> 4 | BN34: =BM34 -> 4 | BO34: =BM34+1 -> 5 | BP34: =BO34 -> 5 | BQ34: =BO34+1 -> 6 | BR34: =BQ34 -> 6 | BS34: =BQ34+1 -> 7 | BT34: =BS34 -> 7 | BU34: =BS34+1 -> 8 | BV34: =BU34 -> 8 | BW34: =BU34+1 -> 9 | BX34: =BW34 -> 9 | BY34: =BW34+1 -> 10 | BZ34: =BY34 -> 10 | CA34: =BY34+1 -> 11 | CB34: =CA34 -> 11 | CC34: =CA34+1 -> 12 | CD34: =CC34 -> 12 | CE34: =CC34+1 -> 13 | CF34: =CE34 -> 13 | CG34: =CE34+1 -> 14 | CH34: =CG34 -> 14 | CI34: =CG34+1 -> 15 | CJ34: =CI34 -> 15 | CK34: =CI34+1 -> 16 | CL34: =CK34 -> 16
T35: X1,Y1 | Y35: klisi =refraction | Z35: =TAN(ASIN(Z34)) -> 0.003685394322 | AA35: =Z35 -> 0.003685394322 | AB35: =TAN(ASIN(AB34)) -> 0.01970132162 | AC35: =AB35 -> 0.01970132162 | AD35: =TAN(ASIN(AD34)) -> 0.03572103088 | AE35: =AD35 -> 0.03572103088 | AF35: =TAN(ASIN(AF34)) -> 0.05174757286 | AG35: =AF35 -> 0.05174757286 | AH35: =TAN(ASIN(AH34)) -> 0.06778395699 | AI35: =AH35 -> 0.06778395699 | AJ35: =TAN(ASIN(AJ34)) -> 0.08383313235 | AK35: =AJ35 -> 0.08383313235 | AM35: =TAN(ASIN(AM34)) -> 0.09989796817 | AN35: =AM35 -> 0.09989796817 | AO35: =TAN(ASIN(AO34)) -> 0.1159812336 | AP35: =AO35 -> 0.1159812336 | AQ35: =TAN(ASIN(AQ34)) -> 0.1320855766 | AR35: =AQ35 -> 0.1320855766 | AS35: =TAN(ASIN(AS34)) -> 0.1482135018 | AT35: =AS35 -> 0.1482135018 | AU35: =TAN(ASIN(AU34)) -> 0.1643673475 | AV35: =AU35 -> 0.1643673475 | AW35: =TAN(ASIN(AW34)) -> 0.1805492606 | AX35: =AW35 -> 0.1805492606 | AY35: =TAN(ASIN(AY34)) -> 0.1967611705 | AZ35: =AY35 -> 0.1967611705 | BA35: =TAN(ASIN(BA34)) -> 0.2130047614 | BB35: =BA35 -> 0.2130047614 | BC35: =TAN(ASIN(BC34)) -> 0.2292814426 | BD35: =BC35 -> 0.2292814426 | BG35: =(-TAN(BH28)*(BH21-TAN(BH28)*BG21)-SIGN(BG28)*SQRT(BG32))/(1+TAN(BH28)^2) -> -73.81287641 | BH35: =IF(BH11,TAN(BG28),TAN(KLISI_PAR)) -> 0.1302186207 | BI35: =(-TAN(BJ28)*(BJ21-TAN(BJ28)*BI21)-SIGN(BI28)*SQRT(BI32))/(1+TAN(BJ28)^2) -> -74.14653616 | BJ35: =IF(BJ11,TAN(BI28),TAN(KLISI_PAR)) -> 0.1143346374 | BK35: =(-TAN(BL28)*(BL21-TAN(BL28)*BK21)-SIGN(BK28)*SQRT(BK32))/(1+TAN(BL28)^2) -> -74.42432918 | BL35: =IF(BL11,TAN(BK28),TAN(KLISI_PAR)) -> 0.09919128806 | BM35: =(-TAN(BN28)*(BN21-TAN(BN28)*BM21)-SIGN(BM28)*SQRT(BM32))/(1+TAN(BN28)^2) -> -74.64698575 | BN35: =IF(BN11,TAN(BM28),TAN(KLISI_PAR)) -> 0.08464561981 | BO35: =(-TAN(BP28)*(BP21-TAN(BP28)*BO21)-SIGN(BO28)*SQRT(BO32))/(1+TAN(BP28)^2) -> -74.81510236 | BP35: =IF(BP11,TAN(BO28),TAN(KLISI_PAR)) -> 0.07056682384 | BQ35: =(-TAN(BR28)*(BR21-TAN(BR28)*BQ21)-SIGN(BQ28)*SQRT(BQ32))/(1+TAN(BR28)^2) -> -74.92914849 | BR35: =IF(BR11,TAN(BQ28),TAN(KLISI_PAR)) -> 0.0568332775 | BS35: =(-TAN(BT28)*(BT21-TAN(BT28)*BS21)-SIGN(BS28)*SQRT(BS32))/(1+TAN(BT28)^2) -> -74.98947186 | BT35: =IF(BT11,TAN(BS28),TAN(KLISI_PAR)) -> 0.04333005341 | BU35: =(-TAN(BV28)*(BV21-TAN(BV28)*BU21)-SIGN(BU28)*SQRT(BU32))/(1+TAN(BV28)^2) -> -74.99630221 | BV35: =IF(BV11,TAN(BU28),TAN(KLISI_PAR)) -> 0.02994675246 | BW35: =IF((-TAN(BX28)*(BX21-TAN(BX28)*BW21)-SIGN(BX37)*SIGN(BW28)*SQRT(BW32))/(1+TAN(BX28)^2)<>BW21,BW33,((-TAN(BX28)*(BX21-TAN(BX28)*BW21)+SIGN(BX37)*SIGN(BW28)*SQRT(BW32))/(1+TAN(BX28)^2))) -> -74.94975379 | BX35: =IF(BX11,TAN(BW28),TAN(KLISI_PAR)) -> 0.01657554898 | BY35: =IF((-TAN(BZ28)*(BZ21-TAN(BZ28)*BY21)-SIGN(BZ37)*SIGN(BY28)*SQRT(BY32))/(1+TAN(BZ28)^2)<>BY21,BY33,((-TAN(BZ28)*(BZ21-TAN(BZ28)*BY21)+SIGN(BZ37)*SIGN(BY28)*SQRT(BY32))/(1+TAN(BZ28)^2))) -> -74.8498266 | BZ35: =IF(BZ11,TAN(BY28),TAN(KLISI_PAR)) -> 0.003109356556 | CA35: =IF((-TAN(CB28)*(CB21-TAN(CB28)*CA21)-SIGN(CB37)*SIGN(CA28)*SQRT(CA32))/(1+TAN(CB28)^2)<>CA21,CA33,((-TAN(CB28)*(CB21-TAN(CB28)*CA21)+SIGN(CB37)*SIGN(CA28)*SQRT(CA32))/(1+TAN(CB28)^2))) -> 74.53738634 | CB35: =IF(CB11,TAN(CA28),TAN(KLISI_PAR)) -> -0.01055996679 | CC35: =IF((-TAN(CD28)*(CD21-TAN(CD28)*CC21)-SIGN(CD37)*SIGN(CC28)*SQRT(CC32))/(1+TAN(CD28)^2)<>CC21,CC33,((-TAN(CD28)*(CD21-TAN(CD28)*CC21)+SIGN(CD37)*SIGN(CC28)*SQRT(CC32))/(1+TAN(CD28)^2))) -> 73.97092089 | CD35: =IF(CD11,TAN(CC28),TAN(KLISI_PAR)) -> -0.02454345157 | CE35: =IF((-TAN(CF28)*(CF21-TAN(CF28)*CE21)-SIGN(CF37)*SIGN(CE28)*SQRT(CE32))/(1+TAN(CF28)^2)<>CE21,CE33,((-TAN(CF28)*(CF21-TAN(CF28)*CE21)+SIGN(CF37)*SIGN(CE28)*SQRT(CE32))/(1+TAN(CF28)^2))) -> 73.16810705 | CF35: =IF(CF11,TAN(CE28),TAN(KLISI_PAR)) -> -0.03895696894 | CG35: =IF((-TAN(CH28)*(CH21-TAN(CH28)*CG21)-SIGN(CH37)*SIGN(CG28)*SQRT(CG32))/(1+TAN(CH28)^2)<>CG21,CG33,((-TAN(CH28)*(CH21-TAN(CH28)*CG21)+SIGN(CH37)*SIGN(CG28)*SQRT(CG32))/(1+TAN(CH28)^2))) -> 72.11513918 | CH35: =IF(CH11,TAN(CG28),TAN(KLISI_PAR)) -> -0.05392339371 | CI35: =IF((-TAN(CJ28)*(CJ21-TAN(CJ28)*CI21)-SIGN(CJ37)*SIGN(CI28)*SQRT(CI32))/(1+TAN(CJ28)^2)<>CI21,CI33,((-TAN(CJ28)*(CJ21-TAN(CJ28)*CI21)+SIGN(CJ37)*SIGN(CI28)*SQRT(CI32))/(1+TAN(CJ28)^2))) -> 70.79451002 | CJ35: =IF(CJ11,TAN(CI28),TAN(KLISI_PAR)) -> -0.06957508953 | CK35: =IF((-TAN(CL28)*(CL21-TAN(CL28)*CK21)-SIGN(CL37)*SIGN(CK28)*SQRT(CK32))/(1+TAN(CL28)^2)<>CK21,CK33,((-TAN(CL28)*(CL21-TAN(CL28)*CK21)+SIGN(CL37)*SIGN(CK28)*SQRT(CK32))/(1+TAN(CL28)^2))) -> 69.18466917 | CL35: =IF(CL11,TAN(CK28),TAN(KLISI_PAR)) -> -0.08605685926
T36: X2,Y2 | Z36: =RADIUS_OF_SEMICIRCLE^2*(1+Z35^2)-AA29^2 -> 4602.25227 | AA36: =Z36 -> 4602.25227 | AB36: =RADIUS_OF_SEMICIRCLE^2*(1+AB35^2)-AC29^2 -> 4892.551802 | AC36: =AB36 -> 4892.551802 | AD36: =RADIUS_OF_SEMICIRCLE^2*(1+AD35^2)-AE29^2 -> 5138.466041 | AE36: =AD36 -> 5138.466041 | AF36: =RADIUS_OF_SEMICIRCLE^2*(1+AF35^2)-AG29^2 -> 5339.992077 | AG36: =AF36 -> 5339.992077 | AH36: =RADIUS_OF_SEMICIRCLE^2*(1+AH35^2)-AI29^2 -> 5496.907774 | AI36: =AH36 -> 5496.907774 | AJ36: =RADIUS_OF_SEMICIRCLE^2*(1+AJ35^2)-AK29^2 -> 5608.767472 | AK36: =AJ36 -> 5608.767472 | AM36: =RADIUS_OF_SEMICIRCLE^2*(1+AM35^2)-AN29^2 -> 5674.895384 | AN36: =AM36 -> 5674.895384 | AO36: =RADIUS_OF_SEMICIRCLE^2*(1+AO35^2)-AP29^2 -> 5694.376533 | AP36: =AO36 -> 5694.376533 | AQ36: =RADIUS_OF_SEMICIRCLE^2*(1+AQ35^2)-AR29^2 -> 5666.045075 | AR36: =AQ36 -> 5666.045075 | AS36: =RADIUS_OF_SEMICIRCLE^2*(1+AS35^2)-AT29^2 -> 5588.469784 | AT36: =AS36 -> 5588.469784 | AU36: =RADIUS_OF_SEMICIRCLE^2*(1+AU35^2)-AV29^2 -> 5459.936421 | AV36: =AU36 -> 5459.936421 | AW36: =RADIUS_OF_SEMICIRCLE^2*(1+AW35^2)-AX29^2 -> 5278.426646 | AX36: =AW36 -> 5278.426646 | AY36: =RADIUS_OF_SEMICIRCLE^2*(1+AY35^2)-AZ29^2 -> 5041.593069 | AZ36: =AY36 -> 5041.593069 | BA36: =RADIUS_OF_SEMICIRCLE^2*(1+BA35^2)-BB29^2 -> 4746.729937 | BB36: =BA36 -> 4746.729937 | BC36: =RADIUS_OF_SEMICIRCLE^2*(1+BC35^2)-BD29^2 -> 4390.738856 | BD36: =BC36 -> 4390.738856 | BG36: =BG21+20*COS(BG28)-BG21 -> 19.8325576 | BH36: =BH21+20*SIN(BH28)-BH21 -> 2.582568296 | BI36: =BI21+20*COS(BI28)-BI21 -> 19.87054376 | BJ36: =BJ21+20*SIN(BJ28)-BJ21 -> 2.271891417 | BK36: =BK21+20*COS(BK28) -> -54.52199817 | BL36: =BL21+20*SIN(BL28) -> 11.24879289 | BM36: =BM21+20*COS(BM28) -> -54.71825183 | BN36: =BN21+20*SIN(BN28) -> 8.95513418 | BO36: =BO21+20*COS(BO28) -> -54.86471392 | BP36: =BP21+20*SIN(BP28) -> 6.670958088 | BQ36: =BQ21+20*COS(BQ28) -> -54.96137067 | BR36: =BR21+20*SIN(BR28) -> 4.394083557 | BS36: =BS21+20*COS(BS28) -> -55.0082204 | BT36: =BT21+20*SIN(BT28) -> 2.12241502 | BU36: =BU21+20*COS(BU28) -> -55.00526426 | BV36: =BV21+20*SIN(BV28) -> -0.1460850573 | BW36: =BW21+20*COS(BW28) -> -54.95250071 | BX36: =BX21+20*SIN(BX28) -> -2.413422059 | BY36: =BY21+20*COS(BY28) -> -54.84992328 | BZ36: =BZ21+20*SIN(BZ28) -> -4.681594196 | CA36: =CA21+20*COS(CA28) -> -54.69752142 | CB36: =CB21+20*SIN(CB28) -> -6.952617184 | CC36: =CC21+20*COS(CC28) -> -54.4952845 | CD36: =CD21+20*SIN(CD28) -> -9.228549203 | CE36: =CE21+20*COS(CE28) -> -54.24320915 | CF36: =CF21+20*SIN(CF28) -> -11.51151674 | CG36: =CG21+20*COS(CG28) -> -53.9413106 | CH36: =CH21+20*SIN(CH28) -> -13.80374193 | CI36: =CI21+20*COS(CI28) -> -53.58963857 | CJ36: =CJ21+20*SIN(CJ28) -> -16.10757215 | CK36: =CK21+20*COS(CK28) -> -53.18829909 | CL36: =CL21+20*SIN(CL28) -> -18.42551262
T37: X3,Y3 | U37: =IF(circle_left,U30,U68) -> -2.617462253 | V37: -74.95431203 | Y37: X3,Y3 | Z37: =IF(Z36>0,(-Z35*AA29-SQRT(Z36))/(1+Z35^2),XSR) -> -67.95684364 | AA37: =AA29+AA35*(Z37-Z29) -> 31.73117398 | AB37: =IF(AB36>0,(-AB35*AC29-SQRT(AB36))/(1+AB35^2),XSR) -> -70.45341874 | AC37: =AC29+AC35*(AB37-AB29) -> 25.71606089 | AD37: =IF(AD36>0,(-AD35*AE29-SQRT(AD36))/(1+AD35^2),XSR) -> -72.38444021 | AE37: =AE29+AE35*(AD37-AD29) -> 19.63397097 | AF37: =IF(AF36>0,(-AF35*AG29-SQRT(AF36))/(1+AF35^2),XSR) -> -73.77409604 | AG37: =AG29+AG35*(AF37-AF29) -> 13.50491592 | AH37: =IF(AH36>0,(-AH35*AI29-SQRT(AH36))/(1+AH35^2),XSR) -> -74.63919736 | AI37: =AI29+AI35*(AH37-AH29) -> 7.34780361 | AJ37: =IF(AJ36>0,(-AJ35*AK29-SQRT(AJ36))/(1+AJ35^2),XSR) -> -74.99070274 | AK37: =AK29+AK35*(AJ37-AJ29) -> 1.180890818 | AM37: =IF(AM36>0,(-AM35*AN29-SQRT(AM36))/(1+AM35^2),XSR) -> -74.8346244 | AN37: =AN29+AN35*(AM37-AM29) -> -4.977849961 | AO37: =IF(AO36>0,(-AO35*AP29-SQRT(AO36))/(1+AO35^2),XSR) -> -74.1724948 | AP37: =AP29+AP35*(AO37-AO29) -> -11.11040119 | AQ37: =IF(AQ36>0,(-AQ35*AR29-SQRT(AQ36))/(1+AQ35^2),XSR) -> -73.00147979 | AR37: =AR29+AR35*(AQ37-AQ29) -> -17.19837054 | AS37: =IF(AS36>0,(-AS35*AT29-SQRT(AS36))/(1+AS35^2),XSR) -> -71.31416203 | AT37: =AT29+AT35*(AS37-AS29) -> -23.22262462 | AU37: =IF(AU36>0,(-AU35*AV29-SQRT(AU36))/(1+AU35^2),XSR) -> -69.09796327 | AV37: =AV29+AV35*(AU37-AU29) -> -29.16284403 | AW37: =IF(AW36>0,(-AW35*AX29-SQRT(AW36))/(1+AW35^2),XSR) -> -66.33410948 | AX37: =AX29+AX35*(AW37-AW29) -> -34.99694156 | AY37: =IF(AY36>0,(-AY35*AZ29-SQRT(AY36))/(1+AY35^2),XSR) -> -62.99594677 | AZ37: =AZ29+AZ35*(AY37-AY29) -> -40.70025418 | BA37: =IF(BA36>0,(-BA35*BB29-SQRT(BA36))/(1+BA35^2),XSR) -> -59.04624775 | BB37: =BB29+BB35*(BA37-BA29) -> -46.24435778 | BC37: =IF(BC36>0,(-BC35*BD29-SQRT(BC36))/(1+BC35^2),XSR) -> -54.43282131 | BD37: =BD29+BD35*(BC37-BC29) -> -51.59523199 | BG37: =IF(BG36>0,1,-1) -> 1 | BH37: =IF(BH36>0,1,-1) -> 1 | BI37: =IF(BI36>0,1,-1) -> 1 | BJ37: =IF(BJ36>0,1,-1) -> 1 | BK37: =SQRT(BK36^2+BL36^2)-RADIUS_OF_SEMICIRCLE -> -19.32968811 | BL37: =IF(BL36>0,1,-1) -> 1 | BM37: =SQRT(BM36^2+BN36^2)-RADIUS_OF_SEMICIRCLE -> -19.55379624 | BN37: =IF(BN36>0,1,-1) -> 1 | BO37: =SQRT(BO36^2+BP36^2)-RADIUS_OF_SEMICIRCLE -> -19.73121573 | BP37: =IF(BP36>0,1,-1) -> 1 | BQ37: =SQRT(BQ36^2+BR36^2)-RADIUS_OF_SEMICIRCLE -> -19.86325874 | BR37: =IF(BR36>0,1,-1) -> 1 | BS37: =SQRT(BS36^2+BT36^2)-RADIUS_OF_SEMICIRCLE -> -19.95084962 | BT37: =IF(BT36>0,1,-1) -> 1 | BU37: =SQRT(BU36^2+BV36^2)-RADIUS_OF_SEMICIRCLE -> -19.99454175 | BV37: =IF(BV36>0,1,-1) -> -1 | BW37: =SQRT(BW36^2+BX36^2)-RADIUS_OF_SEMICIRCLE -> -19.99452809 | BX37: =IF(BX36>0,1,-1) -> -1 | BY37: =SQRT(BY36^2+BZ36^2)-RADIUS_OF_SEMICIRCLE -> -19.95064571 | BZ37: =IF(BZ36>0,1,-1) -> -1 | CA37: =SQRT(CA36^2+CB36^2)-RADIUS_OF_SEMICIRCLE -> -19.8623746 | CB37: =IF(CB36>0,1,-1) -> -1 | CC37: =SQRT(CC36^2+CD36^2)-RADIUS_OF_SEMICIRCLE -> -19.72883073 | CD37: =IF(CD36>0,1,-1) -> -1 | CE37: =SQRT(CE36^2+CF36^2)-RADIUS_OF_SEMICIRCLE -> -19.54875333 | CF37: =IF(CF36>0,1,-1) -> -1 | CG37: =SQRT(CG36^2+CH36^2)-RADIUS_OF_SEMICIRCLE -> -19.32048599 | CH37: =IF(CH36>0,1,-1) -> -1 | CI37: =SQRT(CI36^2+CJ36^2)-RADIUS_OF_SEMICIRCLE -> -19.04195105 | CJ37: =IF(CJ36>0,1,-1) -> -1 | CK37: =SQRT(CK36^2+CL36^2)-RADIUS_OF_SEMICIRCLE -> -18.71061667 | CL37: =IF(CL36>0,1,-1) -> -1
T38: x4,y4 | U38: 0.06311885886 | V38: 1.807487629 | X38: refraction angle | Y38: sin( of incidedence) | Z38: =(Z37*(AA37-AA29)-AA37*(Z37-Z29))/(RADIUS_OF_SEMICIRCLE*SQRT(Z37^2+(AA37-AA29)^2)) -> 0.4264187274 | AA38: =Z38 -> 0.4264187274 | AB38: =(AB37*(AC37-AC29)-AC37*(AB37-AB29))/(RADIUS_OF_SEMICIRCLE*SQRT(AB37^2+(AC37-AC29)^2)) -> 0.3613177035 | AC38: =AB38 -> 0.3613177035 | AD38: =(AD37*(AE37-AE29)-AE37*(AD37-AD29))/(RADIUS_OF_SEMICIRCLE*SQRT(AD37^2+(AE37-AE29)^2)) -> 0.2960727375 | AE38: 0.2960727375 | AF38: =(AF37*(AG37-AG29)-AG37*(AF37-AF29))/(RADIUS_OF_SEMICIRCLE*SQRT(AF37^2+(AG37-AG29)^2)) -> 0.2306586607 | AG38: 0.2306586607 | AH38: =(AH37*(AI37-AI29)-AI37*(AH37-AH29))/(RADIUS_OF_SEMICIRCLE*SQRT(AH37^2+(AI37-AI29)^2)) -> 0.1650498436 | AI38: 0.1650498436 | AJ38: =(AJ37*(AK37-AK29)-AK37*(AJ37-AJ29))/(RADIUS_OF_SEMICIRCLE*SQRT(AJ37^2+(AK37-AK29)^2)) -> 0.09921990301 | AK38: 0.09921990301 | AM38: =(AM37*(AN37-AN29)-AN37*(AM37-AM29))/(RADIUS_OF_SEMICIRCLE*SQRT(AM37^2+(AN37-AN29)^2)) -> 0.03314140105 | AN38: 0.03314140105 | AO38: =(AO37*(AP37-AP29)-AP37*(AO37-AO29))/(RADIUS_OF_SEMICIRCLE*SQRT(AO37^2+(AP37-AP29)^2)) -> -0.03321446817 | AP38: -0.03321446817 | AQ38: =(AQ37*(AR37-AR29)-AR37*(AQ37-AQ29))/(RADIUS_OF_SEMICIRCLE*SQRT(AQ37^2+(AR37-AR29)^2)) -> -0.09987820637 | AR38: -0.09987820637 | AS38: =(AS37*(AT37-AT29)-AT37*(AS37-AS29))/(RADIUS_OF_SEMICIRCLE*SQRT(AS37^2+(AT37-AT29)^2)) -> -0.1668823572 | AT38: -0.1668823572 | AU38: =(AU37*(AV37-AV29)-AV37*(AU37-AU29))/(RADIUS_OF_SEMICIRCLE*SQRT(AU37^2+(AV37-AV29)^2)) -> -0.2342618747 | AV38: -0.2342618747 | AW38: =(AW37*(AX37-AX29)-AX37*(AW37-AW29))/(RADIUS_OF_SEMICIRCLE*SQRT(AW37^2+(AX37-AX29)^2)) -> -0.3020545174 | AX38: -0.3020545174 | AY38: =(AY37*(AZ37-AZ29)-AZ37*(AY37-AY29))/(RADIUS_OF_SEMICIRCLE*SQRT(AY37^2+(AZ37-AZ29)^2)) -> -0.3703012738 | AZ38: -0.3703012738 | BA38: =(BA37*(BB37-BB29)-BB37*(BA37-BA29))/(RADIUS_OF_SEMICIRCLE*SQRT(BA37^2+(BB37-BB29)^2)) -> -0.4390468234 | BB38: -0.4390468234 | BC38: =(BC37*(BD37-BD29)-BD37*(BC37-BC29))/(RADIUS_OF_SEMICIRCLE*SQRT(BC37^2+(BD37-BD29)^2)) -> -0.5083400398 | BD38: -0.5083400398 | BF38: X4,Y4 | BG38: =IF(BH11,IF(ABS(BG31)<1,-500,IF(BG35>0,0,BG35)),-500) -> -500 | BH38: =BH21+BH35*(BG38-BG21) -> -42.20617606 | BI38: =IF(BJ11,IF(ABS(BI31)<1,-500,IF(BI35>0,0,BI35)),-500) -> -500 | BJ38: =BJ21+BJ35*(BI38-BI21) -> -37.40746229 | BK38: =IF(BL11,IF(ABS(BK31)<1,-500,IF(BK35>0,0,BK35)),-500) -> -500 | BL38: =BL21+BL35*(BK38-BK21) -> -32.93874392 | BM38: =IF(BN11,IF(ABS(BM31)<1,-500,IF(BM35>0,0,BM35)),-500) -> -500 | BN38: =BN21+BN35*(BM38-BM21) -> -28.73601538 | BO38: =IF(BP11,IF(ABS(BO31)<1,-500,IF(BO35>0,0,BO35)),-500) -> -500 | BP38: =BP21+BP35*(BO38-BO21) -> -24.74082523 | BQ38: =IF(BR11,IF(ABS(BQ31)<1,-500,IF(BQ35>0,0,BQ35)),-500) -> -500 | BR38: =BR21+BR35*(BQ38-BQ21) -> -20.89892036 | BS38: =IF(BT11,IF(ABS(BS31)<1,-500,IF(BS35>0,0,BS35)),-500) -> -500 | BT38: =BT21+BT35*(BS38-BS21) -> -17.15910256 | BU38: =IF(BV11,IF(ABS(BU31)<1,IF(BV35>0,-500,500),IF(BU35>0,0,BU35)),-500) -> -500 | BV38: =BV21+BV35*(BU38-BU21) -> -13.47223225 | BW38: =IF(BX11,IF(BW37<0,-500,500),IF(BW35>0,0,BW35)) -> -500 | BX38: =BX21+BX35*(BW38-BW21) -> -9.790328681 | BY38: =IF(BZ11,IF(BY37<0,-500,500),IF(BY35>0,0,BY35)) -> -500 | BZ38: =BZ21+BZ35*(BY38-BY21) -> -6.065724505 | CA38: =IF(CB11,IF(CA37<0,-500,500),IF(CA35>0,0,CA35)) -> -500 | CB38: =CB21+CB35*(CA38-CA21) -> -2.250237797 | CC38: =IF(CD11,IF(CC37<0,-500,500),IF(CC35>0,0,CC35)) -> -500 | CD38: =CD21+CD35*(CC38-CC21) -> 1.705674208 | CE38: =IF(CF11,IF(CE37<0,-500,500),IF(CE35>0,0,CE35)) -> -500 | CF38: =CF21+CF35*(CE38-CE21) -> 5.853816721 | CG38: =IF(CG26,-500,CG35) -> -500 | CH38: =CH21+CH35*(CG38-CG21) -> 10.2492564 | CI38: =IF(CI26,-500,CI35) -> -500 | CJ38: =CJ21+CJ35*(CI38-CI21) -> 14.95146872 | CK38: =IF(CK26,-500,CK35) -> -500 | CL38: =CL21+CL35*(CK38-CK21) -> 20.02569904 | CM38: X4,Y4
T39: CIRCLE RIGHT | U39: -76.54298571 | V39: -3.32202546 | Y39: sin( incidence)*nn | Z39: =(Z38)*nn -> 0.6396280911 | AA39: =Z39 -> 0.6396280911 | AB39: =(AB38)*nn -> 0.5419765553 | AC39: =AB39 -> 0.5419765553 | AD39: =(AD38)*nn -> 0.4441091063 | AE39: =AD39 -> 0.4441091063 | AF39: =(AF38)*nn -> 0.3459879911 | AG39: =AF39 -> 0.3459879911 | AH39: =(AH38)*nn -> 0.2475747654 | AI39: =AH39 -> 0.2475747654 | AJ39: =(AJ38)*nn -> 0.1488298545 | AK39: =AJ39 -> 0.1488298545 | AM39: =(AM38)*nn -> 0.04971210158 | AN39: =AM39 -> 0.04971210158 | AO39: =(AO38)*nn -> -0.04982170226 | AP39: =AO39 -> -0.04982170226 | AQ39: =(AQ38)*nn -> -0.1498173095 | AR39: =AQ39 -> -0.1498173095 | AS39: =(AS38)*nn -> -0.2503235358 | AT39: =AS39 -> -0.2503235358 | AU39: =(AU38)*nn -> -0.351392812 | AV39: =AU39 -> -0.351392812 | AW39: =(AW38)*nn -> -0.4530817761 | AX39: =AW39 -> -0.4530817761 | AY39: =(AY38)*nn -> -0.5554519107 | AZ39: =AY39 -> -0.5554519107 | BA39: =(BA38)*nn -> -0.6585702351 | BB39: =BA39 -> -0.6585702351 | BC39: =(BC38)*nn -> -0.7625100597 | BD39: =BC39 -> -0.7625100597 | BF39: x1,y1 | BG39: =BG7 -> 200 | BH39: 15 | BI39: 200 | BJ39: 13 | BK39: 200 | BL39: 11 | BM39: 200 | BN39: 9 | BO39: 200 | BP39: 7 | BQ39: 200 | BR39: 5 | BS39: 200 | BT39: 3 | BU39: 200 | BV39: 1 | BW39: 200 | BX39: -1 | BY39: =BY7 -> 200 | BZ39: -3 | CA39: 200 | CB39: -5 | CC39: 200 | CD39: -7 | CE39: 200 | CF39: -9 | CG39: 200 | CH39: -11 | CI39: 200 | CJ39: -13 | CK39: 200 | CL39: -15 | CM39: x1,y1
U40: -200.5824181 | V40: -13.18725856 | X40: angle of ray | Y40: possiblity of refraction | Z40: =IF(ABS(Z39)>1,FALSE,TRUE) -> TRUE | AA40: =Z40 -> TRUE | AB40: =IF(ABS(AB39)>1,FALSE,TRUE) -> TRUE | AC40: =AB40 -> TRUE | AD40: =IF(ABS(AD39)>1,FALSE,TRUE) -> TRUE | AE40: =AD40 -> TRUE | AF40: =IF(ABS(AF39)>1,FALSE,TRUE) -> TRUE | AG40: =AF40 -> TRUE | AH40: =IF(ABS(AH39)>1,FALSE,TRUE) -> TRUE | AI40: =AH40 -> TRUE | AJ40: =IF(ABS(AJ39)>1,FALSE,TRUE) -> TRUE | AK40: =AJ40 -> TRUE | AM40: =IF(ABS(AM39)>1,FALSE,TRUE) -> TRUE | AN40: =AM40 -> TRUE | AO40: =IF(ABS(AO39)>1,FALSE,TRUE) -> TRUE | AP40: =AO40 -> TRUE | AQ40: =IF(ABS(AQ39)>1,FALSE,TRUE) -> TRUE | AR40: =AQ40 -> TRUE | AS40: =IF(ABS(AS39)>1,FALSE,TRUE) -> TRUE | AT40: =AS40 -> TRUE | AU40: =IF(ABS(AU39)>1,FALSE,TRUE) -> TRUE | AV40: =AU40 -> TRUE | AW40: =IF(ABS(AW39)>1,FALSE,TRUE) -> TRUE | AX40: =AW40 -> TRUE | AY40: =IF(ABS(AY39)>1,FALSE,TRUE) -> TRUE | AZ40: =AY40 -> TRUE | BA40: =IF(ABS(BA39)>1,FALSE,TRUE) -> TRUE | BB40: =BA40 -> TRUE | BC40: =IF(ABS(BC39)>1,FALSE,TRUE) -> TRUE | BD40: =BC40 -> TRUE | BF40: X2,Y2 | BG40: =BG10*COS(radiansg)+BH10*SIN(radiansg)+XC -> 0.5238115424 | BH40: =-BG10*SIN(radiansg)+BH10*COS(radiansg)+YC -> 15 | BI40: =BI10*COS(radiansg)+BJ10*SIN(radiansg)+XC -> 0.4539700034 | BJ40: =-BI10*SIN(radiansg)+BJ10*COS(radiansg)+YC -> 13 | BK40: =BK10*COS(radiansg)+BL10*SIN(radiansg)+XC -> 0.3841284644 | BL40: =-BK10*SIN(radiansg)+BL10*COS(radiansg)+YC -> 11 | BM40: =BM10*COS(radiansg)+BN10*SIN(radiansg)+XC -> 0.3142869254 | BN40: =-BM10*SIN(radiansg)+BN10*COS(radiansg)+YC -> 9 | BO40: =BO10*COS(radiansg)+BP10*SIN(radiansg)+XC -> 0.2444453864 | BP40: =-BO10*SIN(radiansg)+BP10*COS(radiansg)+YC -> 7 | BQ40: =BQ10*COS(radiansg)+BR10*SIN(radiansg)+XC -> 0.1746038475 | BR40: =-BQ10*SIN(radiansg)+BR10*COS(radiansg)+YC -> 5 | BS40: =BS10*COS(radiansg)+BT10*SIN(radiansg)+XC -> 0.1047623085 | BT40: =-BS10*SIN(radiansg)+BT10*COS(radiansg)+YC -> 3 | BU40: =BU10*COS(radiansg)+BV10*SIN(radiansg)+XC -> 0.03492076949 | BV40: =-BU10*SIN(radiansg)+BV10*COS(radiansg)+YC -> 1 | BW40: =BW10*COS(radiansg)+BX10*SIN(radiansg)+XC -> -0.03492076949 | BX40: =-BW10*SIN(radiansg)+BX10*COS(radiansg)+YC -> -1 | BY40: =BY10*COS(radiansg)+BZ10*SIN(radiansg)+XC -> -0.1047623085 | BZ40: =-BY10*SIN(radiansg)+BZ10*COS(radiansg)+YC -> -3 | CA40: =CA10*COS(radiansg)+CB10*SIN(radiansg)+XC -> -0.1746038475 | CB40: =-CA10*SIN(radiansg)+CB10*COS(radiansg)+YC -> -5 | CC40: =CC10*COS(radiansg)+CD10*SIN(radiansg)+XC -> -0.2444453864 | CD40: =-CC10*SIN(radiansg)+CD10*COS(radiansg)+YC -> -7 | CE40: =CE10*COS(radiansg)+CF10*SIN(radiansg)+XC -> -0.3142869254 | CF40: =-CE10*SIN(radiansg)+CF10*COS(radiansg)+YC -> -9 | CG40: =CG10*COS(radiansg)+CH10*SIN(radiansg)+XC -> -0.3841284644 | CH40: =-CG10*SIN(radiansg)+CH10*COS(radiansg)+YC -> -11 | CI40: =CI10*COS(radiansg)+CJ10*SIN(radiansg)+XC -> -0.4539700034 | CJ40: =-CI10*SIN(radiansg)+CJ10*COS(radiansg)+YC -> -13 | CK40: =CK10*COS(radiansg)+CL10*SIN(radiansg)+XC -> -0.5238115424 | CL40: =-CK10*SIN(radiansg)+CL10*COS(radiansg)+YC -> -15 | CM40: X2,Y2
R41: IF(Z40;ASIN(Z38)+ATAN((AA37-AA29)/(Z37-Z29));-2*ASIN(Z38)+AA41) | Y41: f1 | Z41: =ATAN((AA37-AA29)/(Z37-Z29)) -> 0.003685377637 | AA41: =Z41 -> 0.003685377637 | AB41: =ATAN((AC37-AC29)/(AB37-AB29)) -> 0.01969877324 | AC41: =AB41 -> 0.01969877324 | AD41: =ATAN((AE37-AE29)/(AD37-AD29)) -> 0.03570584925 | AE41: =AD41 -> 0.03570584925 | AF41: =ATAN((AG37-AG29)/(AF37-AF29)) -> 0.05170145686 | AG41: =AF41 -> 0.05170145686 | AH41: =ATAN((AI37-AI29)/(AH37-AH29)) -> 0.06768042739 | AI41: =AH41 -> 0.06768042739 | AJ41: =ATAN((AK37-AK29)/(AJ37-AJ29)) -> 0.08363756344 | AK41: =AJ41 -> 0.08363756344 | AM41: =ATAN((AN37-AN29)/(AM37-AM29)) -> 0.09956762986 | AN41: =AM41 -> 0.09956762986 | AO41: =ATAN((AP37-AP29)/(AO37-AO29)) -> 0.1154653448 | AP41: =AO41 -> 0.1154653448 | AQ41: =ATAN((AR37-AR29)/(AQ37-AQ29)) -> 0.1313253706 | AR41: =AQ41 -> 0.1313253706 | AS41: =ATAN((AT37-AT29)/(AS37-AS29)) -> 0.1471423049 | AT41: =AS41 -> 0.1471423049 | AU41: =ATAN((AV37-AV29)/(AU37-AU29)) -> 0.1629106713 | AV41: =AU41 -> 0.1629106713 | AW41: =ATAN((AX37-AX29)/(AW37-AW29)) -> 0.1786249102 | AX41: =AW41 -> 0.1786249102 | AY41: =ATAN((AZ37-AZ29)/(AY37-AY29)) -> 0.1942793698 | AZ41: =AY41 -> 0.1942793698 | BA41: =ATAN((BB37-BB29)/(BA37-BA29)) -> 0.2098682964 | BB41: =BA41 -> 0.2098682964 | BC41: =ATAN((BD37-BD29)/(BC37-BC29)) -> 0.2253858255 | BD41: =BC41 -> 0.2253858255 | BF41: X3,Y3 | BG41: =BG21*COS(radiansg)+BH21*SIN(radiansg)+XC -> -73.30405111 | BH41: =-BG21*SIN(radiansg)+BH21*COS(radiansg)+YC -> 15.85925885 | BI41: =BI21*COS(radiansg)+BJ21*SIN(radiansg)+XC -> -73.70762014 | BJ41: =-BI21*SIN(radiansg)+BJ21*COS(radiansg)+YC -> 13.863143 | BK41: =BK21*COS(radiansg)+BL21*SIN(radiansg)+XC -> -74.0553111 | BL41: =-BK21*SIN(radiansg)+BL21*COS(radiansg)+YC -> 11.8663768 | BM41: =BM21*COS(radiansg)+BN21*SIN(radiansg)+XC -> -74.34785441 | BN41: =-BM21*SIN(radiansg)+BN21*COS(radiansg)+YC -> 9.868968754 | BO41: =BO21*COS(radiansg)+BP21*SIN(radiansg)+XC -> -74.58584669 | BP41: =-BO21*SIN(radiansg)+BP21*COS(radiansg)+YC -> 7.870925807 | BQ41: =BQ21*COS(radiansg)+BR21*SIN(radiansg)+XC -> -74.76975752 | BR41: =-BQ21*SIN(radiansg)+BR21*COS(radiansg)+YC -> 5.872253423 | BS41: =BS21*COS(radiansg)+BT21*SIN(radiansg)+XC -> -74.89993468 | BT41: =-BS21*SIN(radiansg)+BT21*COS(radiansg)+YC -> 3.87295565 | BU41: =BU21*COS(radiansg)+BV21*SIN(radiansg)+XC -> -74.97660795 | BV41: =-BU21*SIN(radiansg)+BV21*COS(radiansg)+YC -> 1.873035162 | BW41: =BW21*COS(radiansg)+BX21*SIN(radiansg)+XC -> -74.99989161 | BX41: =-BW21*SIN(radiansg)+BX21*COS(radiansg)+YC -> -0.12750671 | BY41: =BY21*COS(radiansg)+BZ21*SIN(radiansg)+XC -> -74.96978568 | BZ41: =-BY21*SIN(radiansg)+BZ21*COS(radiansg)+YC -> -2.128669967 | CA41: =CA21*COS(radiansg)+CB21*SIN(radiansg)+XC -> -74.88617585 | CB41: =-CA21*SIN(radiansg)+CB21*COS(radiansg)+YC -> -4.130455938 | CC41: =CC21*COS(radiansg)+CD21*SIN(radiansg)+XC -> -74.74883236 | CD41: =-CC21*SIN(radiansg)+CD21*COS(radiansg)+YC -> -6.132867298 | CE41: =CE21*COS(radiansg)+CF21*SIN(radiansg)+XC -> -74.55740741 | CF41: =-CE21*SIN(radiansg)+CF21*COS(radiansg)+YC -> -8.135908095 | CG41: =CG21*COS(radiansg)+CH21*SIN(radiansg)+XC -> -74.31143143 | CH41: =-CG21*SIN(radiansg)+CH21*COS(radiansg)+YC -> -10.13958379 | CI41: =CI21*COS(radiansg)+CJ21*SIN(radiansg)+XC -> -74.0103078 | CJ41: =-CI21*SIN(radiansg)+CJ21*COS(radiansg)+YC -> -12.14390134 | CK41: =CK21*COS(radiansg)+CL21*SIN(radiansg)+XC -> -73.6533061 | CL41: =-CK21*SIN(radiansg)+CL21*COS(radiansg)+YC -> -14.14886923 | CM41: X3,Y3
T42: X1,Y1 | U42: =THETA -> 34 | V42: =U42 -> 34 | AB42: =-2*ASIN(AB38)+AB41 -> -0.7196625884 | BF42: X4,Y4 | BG42: =BG38*COS(radiansg)+BH38*SIN(radiansg)+XC -> -501.1683878 | BH42: =-BG38*SIN(radiansg)+BH38*COS(radiansg)+YC -> -24.73071685 | BI42: =BI38*COS(radiansg)+BJ38*SIN(radiansg)+XC -> -501.0009151 | BJ42: =-BI38*SIN(radiansg)+BJ38*COS(radiansg)+YC -> -19.93492632 | BK42: =BK38*COS(radiansg)+BL38*SIN(radiansg)+XC -> -500.8449591 | BL42: =-BK38*SIN(radiansg)+BL38*COS(radiansg)+YC -> -15.46893017 | BM42: =BM38*COS(radiansg)+BN38*SIN(radiansg)+XC -> -500.698286 | BN42: =-BM38*SIN(radiansg)+BN38*COS(radiansg)+YC -> -11.26876183 | BO42: =BO38*COS(radiansg)+BP38*SIN(radiansg)+XC -> -500.5588559 | BP42: =-BO38*SIN(radiansg)+BP38*COS(radiansg)+YC -> -7.276005438 | BQ42: =BQ38*COS(radiansg)+BR38*SIN(radiansg)+XC -> -500.4247753 | BR42: =-BQ38*SIN(radiansg)+BR38*COS(radiansg)+YC -> -3.436440952 | BS42: =BS38*COS(radiansg)+BT38*SIN(radiansg)+XC -> -500.2942576 | BT42: =-BS38*SIN(radiansg)+BT38*COS(radiansg)+YC -> 0.3010986552 | BU42: =BU38*COS(radiansg)+BV38*SIN(radiansg)+XC -> -500.1655876 | BV42: =-BU38*SIN(radiansg)+BV38*COS(radiansg)+YC -> 3.985723018 | BW42: =BW38*COS(radiansg)+BX38*SIN(radiansg)+XC -> -500.0370911 | BX42: =-BW38*SIN(radiansg)+BX38*COS(radiansg)+YC -> 7.665383674 | BY42: =BY38*COS(radiansg)+BZ38*SIN(radiansg)+XC -> -499.9071042 | BZ42: =-BY38*SIN(radiansg)+BZ38*COS(radiansg)+YC -> 11.38771892 | CA42: =CA38*COS(radiansg)+CB38*SIN(radiansg)+XC -> -499.7739457 | CB42: =-CA38*SIN(radiansg)+CB38*COS(radiansg)+YC -> 15.20088134 | CC42: =CC38*COS(radiansg)+CD38*SIN(radiansg)+XC -> -499.6358863 | CD42: =-CC38*SIN(radiansg)+CD38*COS(radiansg)+YC -> 19.15438351 | CE42: =CE38*COS(radiansg)+CF38*SIN(radiansg)+XC -> -499.4911183 | CF42: =-CE38*SIN(radiansg)+CF38*COS(radiansg)+YC -> 23.29999909 | CG42: =CG38*COS(radiansg)+CH38*SIN(radiansg)+XC -> -499.3377196 | CH42: =-CG38*SIN(radiansg)+CH38*COS(radiansg)+YC -> 27.69276118 | CI42: =CI38*COS(radiansg)+CJ38*SIN(radiansg)+XC -> -499.1736148 | CJ42: =-CI38*SIN(radiansg)+CJ38*COS(radiansg)+YC -> 32.39210904 | CK42: =CK38*COS(radiansg)+CL38*SIN(radiansg)+XC -> -498.9965267 | CL42: =-CK38*SIN(radiansg)+CL38*COS(radiansg)+YC -> 37.46324828 | CM42: X4,Y4
U43: =RADIANS(U42) -> 0.5934119457 | V43: =RADIANS(V42) -> 0.5934119457 | Y43: GONIA ME X | Z43: =IF(Z40,ASIN(Z38)+ATAN((AA37-AA29)/(Z37-Z29)),-2*ASIN(Z38)+AA41) -> 0.4442151607 | AA43: =Z43 -> 0.4442151607 | AB43: =IF(AB40,ASIN(AB38)+ATAN((AC37-AC29)/(AB37-AB29)),-2*ASIN(AB38)+AC41) -> 0.3893794541 | AC43: =AB43 -> 0.3893794541 | AD43: =IF(AD40,ASIN(AD38)+ATAN((AE37-AE29)/(AD37-AD29)),-2*ASIN(AD38)+AE41) -> 0.3362842636 | AE43: =AD43 -> 0.3362842636 | AF43: =IF(AF40,ASIN(AF38)+ATAN((AG37-AG29)/(AF37-AF29)),-2*ASIN(AF38)+AG41) -> 0.2844559993 | AG43: =AF43 -> 0.2844559993 | AH43: =IF(AH40,ASIN(AH38)+ATAN((AI37-AI29)/(AH37-AH29)),-2*ASIN(AH38)+AI41) -> 0.2334889752 | AI43: =AH43 -> 0.2334889752 | AJ43: =IF(AJ40,ASIN(AJ38)+ATAN((AK37-AK29)/(AJ37-AJ29)),-2*ASIN(AJ38)+AK41) -> 0.1830209884 | AK43: =AJ43 -> 0.1830209884 | AM43: =IF(AM40,ASIN(AM38)+ATAN((AN37-AN29)/(AM37-AM29)),-2*ASIN(AM38)+AN41) -> 0.1327151007 | AN43: =AM43 -> 0.1327151007 | AO43: =IF(AO40,ASIN(AO38)+ATAN((AP37-AP29)/(AO37-AO29)),-2*ASIN(AO38)+AP41) -> 0.08224476653 | AP43: =AO43 -> 0.08224476653 | AQ43: =IF(AQ40,ASIN(AQ38)+ATAN((AR37-AR29)/(AQ37-AQ29)),-2*ASIN(AQ38)+AR41) -> 0.0312803559 | AR43: =AQ43 -> 0.0312803559 | AS43: =IF(AS40,ASIN(AS38)+ATAN((AT37-AT29)/(AS37-AS29)),-2*ASIN(AS38)+AT41) -> -0.02052452851 | AT43: =AS43 -> -0.02052452851 | AU43: =IF(AU40,ASIN(AU38)+ATAN((AV37-AV29)/(AU37-AU29)),-2*ASIN(AU38)+AV41) -> -0.07354857463 | AV43: =AU43 -> -0.07354857463 | AW43: =IF(AW40,ASIN(AW38)+ATAN((AX37-AX29)/(AW37-AW29)),-2*ASIN(AW38)+AX41) -> -0.1282221947 | AX43: =AW43 -> -0.1282221947 | AY43: =IF(AY40,ASIN(AY38)+ATAN((AZ37-AZ29)/(AY37-AY29)),-2*ASIN(AY38)+AZ41) -> -0.1850539597 | AZ43: =AY43 -> -0.1850539597 | BA43: =IF(BA40,ASIN(BA38)+ATAN((BB37-BB29)/(BA37-BA29)),-2*ASIN(BA38)+BB41) -> -0.2446692061 | BB43: =BA43 -> -0.2446692061 | BC43: =IF(BC40,ASIN(BC38)+ATAN((BD37-BD29)/(BC37-BC29)),-2*ASIN(BC38)+BD41) -> -0.3078702714 | BD43: =BC43 -> -0.3078702714 | BG43: =RADIUS_OF_SEMICIRCLE^2*(1+(TAN(KLISI_PAR))^2)-(BH42-TAN(KLISI_PAR)*BG42)^2 -> 5579.593343 | BH43: =BG43 -> 5579.593343 | BI43: =RADIUS_OF_SEMICIRCLE^2*(1+(TAN(KLISI_PAR))^2)-(BJ42-TAN(KLISI_PAR)*BI42)^2 -> 5625.90787 | BJ43: =BI43 -> 5625.90787 | BK43: =RADIUS_OF_SEMICIRCLE^2*(1+(TAN(ANGLE_p_R+radiansg))^2)-(BL42-TAN(ANGLE_p_R+radiansg)*BK42)^2 -> 5627.775179 | BL43: =BK43 -> 5627.775179 | BM43: =RADIUS_OF_SEMICIRCLE^2*(1+(TAN(ANGLE_p_R+radiansg))^2)-(BN42-TAN(ANGLE_p_R+radiansg)*BM42)^2 -> 5593.220713 | BN43: =BM43 -> 5593.220713 | BO43: =RADIUS_OF_SEMICIRCLE^2*(1+(TAN(ANGLE_p_R+radiansg))^2)-(BP42-TAN(ANGLE_p_R+radiansg)*BO42)^2 -> 5527.73999 | BP43: =BO43 -> 5527.73999 | BQ43: =RADIUS_OF_SEMICIRCLE^2*(1+(TAN(ANGLE_p_R+radiansg))^2)-(BR42-TAN(ANGLE_p_R+radiansg)*BQ42)^2 -> 5434.772196 | BR43: =BQ43 -> 5434.772196 | BS43: =RADIUS_OF_SEMICIRCLE^2*(1+(TAN(ANGLE_p_R+radiansg))^2)-(BT42-TAN(ANGLE_p_R+radiansg)*BS42)^2 -> 5316.024042 | BT43: =BS43 -> 5316.024042 | BU43: =RADIUS_OF_SEMICIRCLE^2*(1+(TAN(ANGLE_p_R+radiansg))^2)-(BV42-TAN(ANGLE_p_R+radiansg)*BU42)^2 -> 5171.67587 | BV43: =BU43 -> 5171.67587 | BW43: =RADIUS_OF_SEMICIRCLE^2*(1+(TAN(ANGLE_p_R+radiansg))^2)-(BX42-TAN(ANGLE_p_R+radiansg)*BW42)^2 -> 5000.490135 | BX43: =BW43 -> 5000.490135 | BY43: =RADIUS_OF_SEMICIRCLE^2*(1+(TAN(ANGLE_p_R+radiansg))^2)-(BZ42-TAN(ANGLE_p_R+radiansg)*BY42)^2 -> 4799.833534 | BZ43: =BY43 -> 4799.833534 | CA43: =RADIUS_OF_SEMICIRCLE^2*(1+(TAN(ANGLE_p_R+radiansg))^2)-(CB42-TAN(ANGLE_p_R+radiansg)*CA42)^2 -> 4565.616754 | CB43: =CA43 -> 4565.616754 | CC43: =RADIUS_OF_SEMICIRCLE^2*(1+(TAN(ANGLE_p_R+radiansg))^2)-(CD42-TAN(ANGLE_p_R+radiansg)*CC42)^2 -> 4292.14917 | CD43: =CC43 -> 4292.14917 | CE43: =RADIUS_OF_SEMICIRCLE^2*(1+(TAN(ANGLE_p_R+radiansg))^2)-(CF42-TAN(ANGLE_p_R+radiansg)*CE42)^2 -> 3971.898926 | CF43: =CE43 -> 3971.898926 | CG43: =RADIUS_OF_SEMICIRCLE^2*(1+(TAN(ANGLE_p_R+radiansg))^2)-(CH42-TAN(ANGLE_p_R+radiansg)*CG42)^2 -> 3595.140886 | CH43: =CG43 -> 3595.140886 | CI43: =RADIUS_OF_SEMICIRCLE^2*(1+(TAN(ANGLE_p_R+radiansg))^2)-(CJ42-TAN(ANGLE_p_R+radiansg)*CI42)^2 -> 3149.464781 | CJ43: =CI43 -> 3149.464781 | CK43: =RADIUS_OF_SEMICIRCLE^2*(1+(TAN(ANGLE_p_R+radiansg))^2)-(CL42-TAN(ANGLE_p_R+radiansg)*CK42)^2 -> 2619.102045 | CL43: =CK43 -> 2619.102045
U44: =150*COS(U43) -> 124.3556359 | V44: =150*SIN(V43) -> 83.87893552 | BG44: =BE44+1 -> 1 | BH44: =BG44 -> 1 | BI44: =BG44+1 -> 2 | BJ44: =BI44 -> 2 | BK44: =BI44+1 -> 3 | BL44: =BK44 -> 3 | BM44: =BK44+1 -> 4 | BN44: =BM44 -> 4 | BO44: =BM44+1 -> 5 | BP44: =BO44 -> 5 | BQ44: =BO44+1 -> 6 | BR44: =BQ44 -> 6 | BS44: =BQ44+1 -> 7 | BT44: =BS44 -> 7 | BU44: =BS44+1 -> 8 | BV44: =BU44 -> 8 | BW44: =BU44+1 -> 9 | BX44: =BW44 -> 9 | BY44: =BW44+1 -> 10 | BZ44: =BY44 -> 10 | CA44: =BY44+1 -> 11 | CB44: =CA44 -> 11 | CC44: =CA44+1 -> 12 | CD44: =CC44 -> 12 | CE44: =CC44+1 -> 13 | CF44: =CE44 -> 13 | CG44: =CE44+1 -> 14 | CH44: =CG44 -> 14 | CI44: =CG44+1 -> 15 | CJ44: =CI44 -> 15 | CK44: =CI44+1 -> 16 | CL44: =CK44 -> 16
T45: IN ROTATED | Y45: klisi final | Z45: =Z43 -> 0.4442151607 | AA45: =Z45 -> 0.4442151607 | AB45: =AB43 -> 0.3893794541 | AC45: =AB45 -> 0.3893794541 | AD45: =AD43 -> 0.3362842636 | AE45: =AD45 -> 0.3362842636 | AF45: =AF43 -> 0.2844559993 | AG45: =AF45 -> 0.2844559993 | AH45: =AH43 -> 0.2334889752 | AI45: =AH45 -> 0.2334889752 | AJ45: =AJ43 -> 0.1830209884 | AK45: =AJ45 -> 0.1830209884 | AM45: =AM43 -> 0.1327151007 | AN45: =AM45 -> 0.1327151007 | AO45: =AO43 -> 0.08224476653 | AP45: =AO45 -> 0.08224476653 | AQ45: =AQ43 -> 0.0312803559 | AR45: =AQ45 -> 0.0312803559 | AS45: =AS43 -> -0.02052452851 | AT45: =AS45 -> -0.02052452851 | AU45: =AU43 -> -0.07354857463 | AV45: =AU45 -> -0.07354857463 | AW45: =AW43 -> -0.1282221947 | AX45: =AW45 -> -0.1282221947 | AY45: =AY43 -> -0.1850539597 | AZ45: =AY45 -> -0.1850539597 | BA45: =BA43 -> -0.2446692061 | BB45: =BA45 -> -0.2446692061 | BC45: =BC43 -> -0.3078702714 | BD45: =BC45 -> -0.3078702714 | BE45: CIRCLE RIGHT | BF45: x1,y1 lab | BG45: =UP_ray_x+WIDTH_BAND/NUMBER_OF_RAYS*BG44*SIN(ANGLE_p_R) -> 200 | BH45: =UP_RAY_Y-WIDTH_BAND/NUMBER_OF_RAYS*COS(ANGLE_p_R)*BH44 -> 13 | BI45: =UP_ray_x+WIDTH_BAND/NUMBER_OF_RAYS*BI44*SIN(ANGLE_p_R) -> 200 | BJ45: =UP_RAY_Y-WIDTH_BAND/NUMBER_OF_RAYS*COS(ANGLE_p_R)*BJ44 -> 11 | BK45: =UP_ray_x+WIDTH_BAND/NUMBER_OF_RAYS*BK44*SIN(ANGLE_p_R) -> 200 | BL45: =UP_RAY_Y-WIDTH_BAND/NUMBER_OF_RAYS*COS(ANGLE_p_R)*BL44 -> 9 | BM45: =UP_ray_x+WIDTH_BAND/NUMBER_OF_RAYS*BM44*SIN(ANGLE_p_R) -> 200 | BN45: =UP_RAY_Y-WIDTH_BAND/NUMBER_OF_RAYS*COS(ANGLE_p_R)*BN44 -> 7 | BO45: =UP_ray_x+WIDTH_BAND/NUMBER_OF_RAYS*BO44*SIN(ANGLE_p_R) -> 200 | BP45: =UP_RAY_Y-WIDTH_BAND/NUMBER_OF_RAYS*COS(ANGLE_p_R)*BP44 -> 5 | BQ45: =UP_ray_x+WIDTH_BAND/NUMBER_OF_RAYS*BQ44*SIN(ANGLE_p_R) -> 200 | BR45: =UP_RAY_Y-WIDTH_BAND/NUMBER_OF_RAYS*COS(ANGLE_p_R)*BR44 -> 3 | BS45: =UP_ray_x+WIDTH_BAND/NUMBER_OF_RAYS*BS44*SIN(ANGLE_p_R) -> 200 | BT45: =UP_RAY_Y-WIDTH_BAND/NUMBER_OF_RAYS*COS(ANGLE_p_R)*BT44 -> 1 | BU45: =UP_ray_x+WIDTH_BAND/NUMBER_OF_RAYS*BU44*SIN(ANGLE_p_R) -> 200 | BV45: =UP_RAY_Y-WIDTH_BAND/NUMBER_OF_RAYS*COS(ANGLE_p_R)*BV44 -> -1 | BW45: =UP_ray_x+WIDTH_BAND/NUMBER_OF_RAYS*BW44*SIN(ANGLE_p_R) -> 200 | BX45: =UP_RAY_Y-WIDTH_BAND/NUMBER_OF_RAYS*COS(ANGLE_p_R)*BX44 -> -3 | BY45: =UP_ray_x+WIDTH_BAND/NUMBER_OF_RAYS*BY44*SIN(ANGLE_p_R) -> 200 | BZ45: =UP_RAY_Y-WIDTH_BAND/NUMBER_OF_RAYS*COS(ANGLE_p_R)*BZ44 -> -5 | CA45: =UP_ray_x+WIDTH_BAND/NUMBER_OF_RAYS*CA44*SIN(ANGLE_p_R) -> 200 | CB45: =UP_RAY_Y-WIDTH_BAND/NUMBER_OF_RAYS*COS(ANGLE_p_R)*CB44 -> -7 | CC45: =UP_ray_x+WIDTH_BAND/NUMBER_OF_RAYS*CC44*SIN(ANGLE_p_R) -> 200 | CD45: =UP_RAY_Y-WIDTH_BAND/NUMBER_OF_RAYS*COS(ANGLE_p_R)*CD44 -> -9 | CE45: =UP_ray_x+WIDTH_BAND/NUMBER_OF_RAYS*CE44*SIN(ANGLE_p_R) -> 200 | CF45: =UP_RAY_Y-WIDTH_BAND/NUMBER_OF_RAYS*COS(ANGLE_p_R)*CF44 -> -11 | CG45: =UP_ray_x+WIDTH_BAND/NUMBER_OF_RAYS*CG44*SIN(ANGLE_p_R) -> 200 | CH45: =UP_RAY_Y-WIDTH_BAND/NUMBER_OF_RAYS*COS(ANGLE_p_R)*CH44 -> -13 | CI45: =UP_ray_x+WIDTH_BAND/NUMBER_OF_RAYS*CI44*SIN(ANGLE_p_R) -> 200 | CJ45: =UP_RAY_Y-WIDTH_BAND/NUMBER_OF_RAYS*COS(ANGLE_p_R)*CJ44 -> -15 | CK45: =UP_ray_x+WIDTH_BAND/NUMBER_OF_RAYS*CK44*SIN(ANGLE_p_R) -> 200 | CL45: =UP_RAY_Y-WIDTH_BAND/NUMBER_OF_RAYS*COS(ANGLE_p_R)*CL44 -> -17 | CM45: x1,y1 lab | CN45: circle right | CR45: =KLISI_PAR -> 0.03490658504
T46: X1,Y1 | U46: =U44-XC -> 124.3556359 | V46: =V44-YC -> 83.87893552 | Y46: posibile cut | Z46: =RADIUS_OF_SEMICIRCLE^2*(1+(TAN(ASIN(Z38)))^2)-Z47^2 -> 6875.03056 | AA46: =Z46 -> 6875.03056 | AB46: =RADIUS_OF_SEMICIRCLE^2*(1+(TAN(ASIN(AB38)))^2)-AB47^2 -> 6459.415123 | AC46: =AB46 -> 6459.415123 | AD46: =RADIUS_OF_SEMICIRCLE^2*(1+(TAN(ASIN(AD38)))^2)-AD47^2 -> 6157.601267 | AE46: =AD46 -> 6157.601267 | AF46: =RADIUS_OF_SEMICIRCLE^2*(1+(TAN(ASIN(AF38)))^2)-AF47^2 -> 5925.219465 | AG46: =AF46 -> 5925.219465 | AH46: =RADIUS_OF_SEMICIRCLE^2*(1+(TAN(ASIN(AH38)))^2)-AH47^2 -> 5756.077108 | AI46: =AH46 -> 5756.077108 | AJ46: =RADIUS_OF_SEMICIRCLE^2*(1+(TAN(ASIN(AJ38)))^2)-AJ47^2 -> 5641.279507 | AK46: =AJ46 -> 5641.279507 | AM46: =RADIUS_OF_SEMICIRCLE^2*(1+(TAN(ASIN(AM38)))^2)-AM47^2 -> 5575.543311 | AN46: =AM46 -> 5575.543311 | AO46: =RADIUS_OF_SEMICIRCLE^2*(1+(TAN(ASIN(AO38)))^2)-AO47^2 -> 5556.468705 | AP46: =AO46 -> 5556.468705 | AQ46: =RADIUS_OF_SEMICIRCLE^2*(1+(TAN(ASIN(AQ38)))^2)-AQ47^2 -> 5584.252258 | AR46: =AQ46 -> 5584.252258 | AS46: =RADIUS_OF_SEMICIRCLE^2*(1+(TAN(ASIN(AS38)))^2)-AS47^2 -> 5661.769003 | AT46: =AS46 -> 5661.769003 | AU46: =RADIUS_OF_SEMICIRCLE^2*(1+(TAN(ASIN(AU38)))^2)-AU47^2 -> 5795.053744 | AV46: =AU46 -> 5795.053744 | AW46: =RADIUS_OF_SEMICIRCLE^2*(1+(TAN(ASIN(AW38)))^2)-AW47^2 -> 5994.328826 | AX46: =AW46 -> 5994.328826 | AY46: =RADIUS_OF_SEMICIRCLE^2*(1+(TAN(ASIN(AY38)))^2)-AY47^2 -> 6275.918061 | AZ46: =AY46 -> 6275.918061 | BA46: =RADIUS_OF_SEMICIRCLE^2*(1+(TAN(ASIN(BA38)))^2)-BA47^2 -> 6665.773157 | BB46: =BA46 -> 6665.773157 | BC46: =RADIUS_OF_SEMICIRCLE^2*(1+(TAN(ASIN(BC38)))^2)-BC47^2 -> 7206.218826 | BD46: =BC46 -> 7206.218826 | BF46: rot+transposed | BG46: =(BG45-XC)*COS(radiansg)-(BH45-YC)*SIN(radiansg) -> 199.4244719 | BH46: =(BG45-XC)*SIN(radiansg)+(BH45-YC)*COS(radiansg) -> 19.97198009 | BI46: =(BI45-XC)*COS(radiansg)-(BJ45-YC)*SIN(radiansg) -> 199.4942709 | BJ46: =(BI45-XC)*SIN(radiansg)+(BJ45-YC)*COS(radiansg) -> 17.97319844 | BK46: =(BK45-XC)*COS(radiansg)-(BL45-YC)*SIN(radiansg) -> 199.5640699 | BL46: =(BK45-XC)*SIN(radiansg)+(BL45-YC)*COS(radiansg) -> 15.97441678 | BM46: =(BM45-XC)*COS(radiansg)-(BN45-YC)*SIN(radiansg) -> 199.6338689 | BN46: =(BM45-XC)*SIN(radiansg)+(BN45-YC)*COS(radiansg) -> 13.97563513 | BO46: =(BO45-XC)*COS(radiansg)-(BP45-YC)*SIN(radiansg) -> 199.7036679 | BP46: =(BO45-XC)*SIN(radiansg)+(BP45-YC)*COS(radiansg) -> 11.97685348 | BQ46: =(BQ45-XC)*COS(radiansg)-(BR45-YC)*SIN(radiansg) -> 199.7734669 | BR46: =(BQ45-XC)*SIN(radiansg)+(BR45-YC)*COS(radiansg) -> 9.978071822 | BS46: =(BS45-XC)*COS(radiansg)-(BT45-YC)*SIN(radiansg) -> 199.8432659 | BT46: =(BS45-XC)*SIN(radiansg)+(BT45-YC)*COS(radiansg) -> 7.979290168 | BU46: =(BU45-XC)*COS(radiansg)-(BV45-YC)*SIN(radiansg) -> 199.9130649 | BV46: =(BU45-XC)*SIN(radiansg)+(BV45-YC)*COS(radiansg) -> 5.980508513 | BW46: =(BW45-XC)*COS(radiansg)-(BX45-YC)*SIN(radiansg) -> 199.9828639 | BX46: =(BW45-XC)*SIN(radiansg)+(BX45-YC)*COS(radiansg) -> 3.981726859 | BY46: =(BY45-XC)*COS(radiansg)-(BZ45-YC)*SIN(radiansg) -> 200.0526629 | BZ46: =(BY45-XC)*SIN(radiansg)+(BZ45-YC)*COS(radiansg) -> 1.982945205 | CA46: =(CA45-XC)*COS(radiansg)-(CB45-YC)*SIN(radiansg) -> 200.1224619 | CB46: =(CA45-XC)*SIN(radiansg)+(CB45-YC)*COS(radiansg) -> -0.01583644863 | CC46: =(CC45-XC)*COS(radiansg)-(CD45-YC)*SIN(radiansg) -> 200.1922609 | CD46: =(CC45-XC)*SIN(radiansg)+(CD45-YC)*COS(radiansg) -> -2.014618103 | CE46: =(CE45-XC)*COS(radiansg)-(CF45-YC)*SIN(radiansg) -> 200.2620599 | CF46: =(CE45-XC)*SIN(radiansg)+(CF45-YC)*COS(radiansg) -> -4.013399757 | CG46: =(CG45-XC)*COS(radiansg)-(CH45-YC)*SIN(radiansg) -> 200.3318589 | CH46: =(CG45-XC)*SIN(radiansg)+(CH45-YC)*COS(radiansg) -> -6.012181411 | CI46: =(CI45-XC)*COS(radiansg)-(CJ45-YC)*SIN(radiansg) -> 200.4016579 | CJ46: =(CI45-XC)*SIN(radiansg)+(CJ45-YC)*COS(radiansg) -> -8.010963065 | CK46: =(CK45-XC)*COS(radiansg)-(CL45-YC)*SIN(radiansg) -> 200.4714568 | CL46: =(CK45-XC)*SIN(radiansg)+(CL45-YC)*COS(radiansg) -> -10.00974472 | CM46: rot+transposed | CR46: =ANGLE_p_R -> 0
Z47: =AA37+Z37*TAN(ASIN(Z38)) -> -0.3055774334 | AA47: =Z47 -> -0.3055774334 | AB47: =AC37+AB37*TAN(AB43) -> -3.193069487 | AC47: =AB47 -> -3.193069487 | AD47: =AE37-AD37*TAN(ASIN(-AD38)) -> -2.803043033 | AE47: =AD47 -> -2.803043033 | AF47: =AG37-AF37*TAN(ASIN(-AF38)) -> -3.98329256 | AG47: =AF47 -> -3.98329256 | AH47: =AI37-AH37*TAN(ASIN(-AH38)) -> -5.142688501 | AI47: =AH47 -> -5.142688501 | AJ47: =AK37-AJ37*TAN(ASIN(-AJ38)) -> -6.296576767 | AK47: =AJ47 -> -6.296576767 | AM47: =AN37-AM37*TAN(ASIN(-AM38)) -> -7.459337409 | AN47: =AM47 -> -7.459337409 | AO47: =AP37-AO37*TAN(ASIN(-AO38)) -> -8.645441172 | AP47: =AO47 -> -8.645441172 | AQ47: =AR37-AQ37*TAN(ASIN(-AQ38)) -> -9.870471765 | AR47: =AQ47 -> -9.870471765 | AS47: =AT37-AS37*TAN(ASIN(-AS38)) -> -11.15228454 | AT47: =AS47 -> -11.15228454 | AU47: =AV37-AU37*TAN(ASIN(-AU38)) -> -12.51250548 | AV47: =AU47 -> -12.51250548 | AW47: =AX37-AW37*TAN(ASIN(-AW38)) -> -13.97867461 | AX47: =AW47 -> -13.97867461 | AY47: =AZ37-AY37*TAN(ASIN(-AY38)) -> -15.58755611 | AZ47: =AY47 -> -15.58755611 | BA47: =IF(ABS(BA38)<1,BB37-BA37*TAN(ASIN(-BA38)),PI()/2) -> -17.39060043 | BB47: =BA47 -> -17.39060043 | BC47: =IF(ABS(BC38)<1,BD37-BC37*TAN(ASIN(-BC38)),PI()/2) -> -19.4635757 | BD47: =BC47 -> -19.4635757 | BF47: klisi 1 | BG47: =TAN(KLISI_PAR) -> 0.03492076949 | BH47: =TAN(KLISI_PAR) -> 0.03492076949 | BI47: =KLISI_PAR -> 0.03490658504 | BJ47: =TAN(KLISI_PAR) -> 0.03492076949 | BK47: =KLISI_PAR -> 0.03490658504 | BL47: =TAN(KLISI_PAR) -> 0.03492076949 | BM47: =KLISI_PAR -> 0.03490658504 | BN47: =TAN(KLISI_PAR) -> 0.03492076949 | BO47: =KLISI_PAR -> 0.03490658504 | BP47: =TAN(KLISI_PAR) -> 0.03492076949 | BQ47: =KLISI_PAR -> 0.03490658504 | BR47: =TAN(KLISI_PAR) -> 0.03492076949 | BS47: =KLISI_PAR -> 0.03490658504 | BT47: =TAN(KLISI_PAR) -> 0.03492076949 | BU47: =KLISI_PAR -> 0.03490658504 | BV47: =TAN(KLISI_PAR) -> 0.03492076949 | BW47: =KLISI_PAR -> 0.03490658504 | BX47: =TAN(KLISI_PAR) -> 0.03492076949 | BY47: =KLISI_PAR -> 0.03490658504 | BZ47: =TAN(KLISI_PAR) -> 0.03492076949 | CA47: =KLISI_PAR -> 0.03490658504 | CB47: =TAN(KLISI_PAR) -> 0.03492076949 | CC47: =KLISI_PAR -> 0.03490658504 | CD47: =TAN(KLISI_PAR) -> 0.03492076949 | CE47: =KLISI_PAR -> 0.03490658504 | CF47: =TAN(KLISI_PAR) -> 0.03492076949 | CG47: =KLISI_PAR -> 0.03490658504 | CH47: =TAN(KLISI_PAR) -> 0.03492076949 | CI47: =KLISI_PAR -> 0.03490658504 | CJ47: =TAN(KLISI_PAR) -> 0.03492076949 | CK47: =KLISI_PAR -> 0.03490658504 | CL47: =TAN(KLISI_PAR) -> 0.03492076949 | CM47: klisi 1
U48: =U46*COS(radiansg)-V46*SIN(radiansg) -> 121.3525492 | V48: =U46*SIN(radiansg)+V46*COS(radiansg) -> 88.16778784 | Z48: =(-TAN(AA43)*(AA37-TAN(AA43)*Z37)-SQRT(RADIUS_OF_SEMICIRCLE^2*(1+(TAN(AA43))^2)-(AA37-TAN(AA43)*Z37)^2))/(1+(TAN(AA43))^2) -> -67.95684364 | AA48: =AA37+TAN(AA43)*(Z48-Z37) -> 31.73117398 | AB48: =(-TAN(AC43)*(AC37-TAN(AC43)*AB37)-SQRT(RADIUS_OF_SEMICIRCLE^2*(1+(TAN(AC43))^2)-(AC37-TAN(AC43)*AB37)^2))/(1+(TAN(AC43))^2) -> -70.45341874 | AC48: =AC37+TAN(AC43)*(AB48-AB37) -> 25.71606089 | AD48: =(-TAN(AE43)*(AE37-TAN(AE43)*AD37)-SQRT(RADIUS_OF_SEMICIRCLE^2*(1+(TAN(AE43))^2)-(AE37-TAN(AE43)*AD37)^2))/(1+(TAN(AE43))^2) -> -72.38444021 | AE48: =AE37+TAN(AE43)*(AD48-AD37) -> 19.63397097 | AF48: =(-TAN(AG43)*(AG37-TAN(AG43)*AF37)-SQRT(RADIUS_OF_SEMICIRCLE^2*(1+(TAN(AG43))^2)-(AG37-TAN(AG43)*AF37)^2))/(1+(TAN(AG43))^2) -> -73.77409604 | AG48: =AG37+TAN(AG43)*(AF48-AF37) -> 13.50491592 | AH48: =(-TAN(AI43)*(AI37-TAN(AI43)*AH37)-SQRT(RADIUS_OF_SEMICIRCLE^2*(1+(TAN(AI43))^2)-(AI37-TAN(AI43)*AH37)^2))/(1+(TAN(AI43))^2) -> -74.63919736 | AI48: =AI37+TAN(AI43)*(AH48-AH37) -> 7.34780361 | AJ48: =(-TAN(AK43)*(AK37-TAN(AK43)*AJ37)-SQRT(RADIUS_OF_SEMICIRCLE^2*(1+(TAN(AK43))^2)-(AK37-TAN(AK43)*AJ37)^2))/(1+(TAN(AK43))^2) -> -74.99070274 | AK48: =AK37+TAN(AK43)*(AJ48-AJ37) -> 1.180890818 | AM48: =(-TAN(AN43)*(AN37-TAN(AN43)*AM37)-SQRT(RADIUS_OF_SEMICIRCLE^2*(1+(TAN(AN43))^2)-(AN37-TAN(AN43)*AM37)^2))/(1+(TAN(AN43))^2) -> -74.8346244 | AN48: =AN37+TAN(AN43)*(AM48-AM37) -> -4.977849961 | AO48: =(-TAN(AP43)*(AP37-TAN(AP43)*AO37)-SQRT(RADIUS_OF_SEMICIRCLE^2*(1+(TAN(AP43))^2)-(AP37-TAN(AP43)*AO37)^2))/(1+(TAN(AP43))^2) -> -74.1724948 | AP48: =AP37+TAN(AP43)*(AO48-AO37) -> -11.11040119 | AQ48: =(-TAN(AR43)*(AR37-TAN(AR43)*AQ37)-SQRT(RADIUS_OF_SEMICIRCLE^2*(1+(TAN(AR43))^2)-(AR37-TAN(AR43)*AQ37)^2))/(1+(TAN(AR43))^2) -> -73.00147979 | AR48: =AR37+TAN(AR43)*(AQ48-AQ37) -> -17.19837054 | AS48: =(-TAN(AT43)*(AT37-TAN(AT43)*AS37)-SQRT(RADIUS_OF_SEMICIRCLE^2*(1+(TAN(AT43))^2)-(AT37-TAN(AT43)*AS37)^2))/(1+(TAN(AT43))^2) -> -71.31416203 | AT48: =AT37+TAN(AT43)*(AS48-AS37) -> -23.22262462 | AU48: =(-TAN(AV43)*(AV37-TAN(AV43)*AU37)-SQRT(RADIUS_OF_SEMICIRCLE^2*(1+(TAN(AV43))^2)-(AV37-TAN(AV43)*AU37)^2))/(1+(TAN(AV43))^2) -> -69.09796327 | AV48: =AV37+TAN(AV43)*(AU48-AU37) -> -29.16284403 | AW48: =(-TAN(AX43)*(AX37-TAN(AX43)*AW37)-SQRT(RADIUS_OF_SEMICIRCLE^2*(1+(TAN(AX43))^2)-(AX37-TAN(AX43)*AW37)^2))/(1+(TAN(AX43))^2) -> -66.33410948 | AX48: =AX37+TAN(AX43)*(AW48-AW37) -> -34.99694156 | AY48: =(-TAN(AZ43)*(AZ37-TAN(AZ43)*AY37)-SQRT(RADIUS_OF_SEMICIRCLE^2*(1+(TAN(AZ43))^2)-(AZ37-TAN(AZ43)*AY37)^2))/(1+(TAN(AZ43))^2) -> -62.99594677 | AZ48: =AZ37+TAN(AZ43)*(AY48-AY37) -> -40.70025418 | BA48: =(-TAN(BB43)*(BB37-TAN(BB43)*BA37)-SQRT(RADIUS_OF_SEMICIRCLE^2*(1+(TAN(BB43))^2)-(BB37-TAN(BB43)*BA37)^2))/(1+(TAN(BB43))^2) -> -59.04624775 | BB48: =BB37+TAN(BB43)*(BA48-BA37) -> -46.24435778 | BC48: =(-TAN(BD43)*(BD37-TAN(BD43)*BC37)-SQRT(RADIUS_OF_SEMICIRCLE^2*(1+(TAN(BD43))^2)-(BD37-TAN(BD43)*BC37)^2))/(1+(TAN(BD43))^2) -> -54.43282131 | BD48: =BD37+TAN(BD43)*(BC48-BC37) -> -51.59523199 | BE48: circle right | BF48: TOMI KYKLO | BG48: =RADIUS_OF_SEMICIRCLE^2*(1+BH47^2)-(BH46-BH47*BG46)^2 -> 5462.653375 | BH48: =BH46-BH47*(BG46) -> 13.00792408 | BI48: =RADIUS_OF_SEMICIRCLE^2*(1+BJ47^2)-(BJ46-BJ47*BI46)^2 -> 5510.711909 | BJ48: =BJ46-BJ47*(BI46) -> 11.00670499 | BK48: =RADIUS_OF_SEMICIRCLE^2*(1+BL47^2)-(BL46-BL47*BK46)^2 -> 5550.760687 | BL48: =BL46-BL47*(BK46) -> 9.005485899 | BM48: =RADIUS_OF_SEMICIRCLE^2*(1+BN47^2)-(BN46-BN47*BM46)^2 -> 5582.79971 | BN48: =BN46-BN47*(BM46) -> 7.00426681 | BO48: =RADIUS_OF_SEMICIRCLE^2*(1+BP47^2)-(BP46-BP47*BO46)^2 -> 5606.828977 | BP48: =BP46-BP47*(BO46) -> 5.003047721 | BQ48: =RADIUS_OF_SEMICIRCLE^2*(1+BR47^2)-(BR46-BR47*BQ46)^2 -> 5622.848488 | BR48: =BR46-BR47*(BQ46) -> 3.001828633 | BS48: =RADIUS_OF_SEMICIRCLE^2*(1+BT47^2)-(BT46-BT47*BS46)^2 -> 5630.858244 | BT48: =BT46-BT47*(BS46) -> 1.000609544 | BU48: =RADIUS_OF_SEMICIRCLE^2*(1+BV47^2)-(BV46-BV47*BU46)^2 -> 5630.858244 | BV48: =BV46-BV47*(BU46) -> -1.000609544 | BW48: =RADIUS_OF_SEMICIRCLE^2*(1+BX47^2)-(BX46-BX47*BW46)^2 -> 5622.848488 | BX48: =BX46-BX47*(BW46) -> -3.001828633 | BY48: =RADIUS_OF_SEMICIRCLE^2*(1+BZ47^2)-(BZ46-BZ47*BY46)^2 -> 5606.828977 | BZ48: =BZ46-BZ47*(BY46) -> -5.003047721 | CA48: =RADIUS_OF_SEMICIRCLE^2*(1+CB47^2)-(CB46-CB47*CA46)^2 -> 5582.79971 | CB48: =CB46-CB47*(CA46) -> -7.00426681 | CC48: =RADIUS_OF_SEMICIRCLE^2*(1+CD47^2)-(CD46-CD47*CC46)^2 -> 5550.760687 | CD48: =CD46-CD47*(CC46) -> -9.005485899 | CE48: =RADIUS_OF_SEMICIRCLE^2*(1+CF47^2)-(CF46-CF47*CE46)^2 -> 5510.711909 | CF48: =CF46-CF47*(CE46) -> -11.00670499 | CG48: =RADIUS_OF_SEMICIRCLE^2*(1+CH47^2)-(CH46-CH47*CG46)^2 -> 5462.653375 | CH48: =CH46-CH47*(CG46) -> -13.00792408 | CI48: =RADIUS_OF_SEMICIRCLE^2*(1+CJ47^2)-(CJ46-CJ47*CI46)^2 -> 5406.585085 | CJ48: =CJ46-CJ47*(CI46) -> -15.00914316 | CK48: =RADIUS_OF_SEMICIRCLE^2*(1+CL47^2)-(CL46-CL47*CK46)^2 -> 5342.507039 | CL48: =CL46-CL47*(CK46) -> -17.01036225 | CM48: TOMI KYKLO | CO48: =(R[-1]C[-5]*(R[-5]C[-4]-R[-1]C[-4])-R[-1]C[-4]*(R[-5]C[-5]-R[-1]C[-5]))/SQRT((R[-1]C[-5]-R[-5]C[-5])^2+(R[-1]C[-4]-R[-5]C[-4])^2)/RADIUS_OF_SEMICIRCLE
T49: X=0,Y=h | Y49: X4,Y4 | Z49: =IF(Z40,-200,Z48) -> -200 | AA49: =IF(AA40,AA37+TAN(AA45)*(Z49-Z37),AA37+TAN(AA45)*(Z49-Z37)) -> -31.11346985 | AB49: =IF(AB40,-200,AB48) -> -200 | AC49: =IF(AC40,AC37+TAN(AC45)*(AB49-AB37),AC37+TAN(AC45)*(AB49-AB37)) -> -27.44074931 | AD49: =IF(AD40,-200,AD48) -> -200 | AE49: =IF(AE40,AE37+TAN(AE45)*(AD49-AD37),AE37+TAN(AE45)*(AD49-AD37)) -> -24.97553609 | AF49: =IF(AF40,-200,AF48) -> -200 | AG49: =IF(AG40,AG37+TAN(AG45)*(AF49-AF37),AG37+TAN(AG45)*(AF49-AF37)) -> -23.40164529 | AH49: =IF(AH40,-200,AH48) -> -200 | AI49: =IF(AI40,AI37+TAN(AI45)*(AH49-AH37),AI37+TAN(AI45)*(AH49-AH37)) -> -22.4663346 | AJ49: =IF(AJ40,-200,AJ48) -> -200 | AK49: =IF(AK40,AK37+TAN(AK45)*(AJ49-AJ37),AK37+TAN(AK45)*(AJ49-AJ37)) -> -21.9573647 | AM49: =IF(AM40,-200,AM48) -> -200 | AN49: =IF(AN40,AN37+TAN(AN45)*(AM49-AM37),AN37+TAN(AN45)*(AM49-AM37)) -> -21.68740423 | AO49: =IF(AO40,-200,AO48) -> -200 | AP49: =IF(AP40,AP37+TAN(AP45)*(AO49-AO37),AP37+TAN(AP45)*(AO49-AO37)) -> -21.48245174 | AQ49: =IF(AQ40,-200,AQ48) -> -200 | AR49: =IF(AR40,AR37+TAN(AR45)*(AQ49-AQ37),AR37+TAN(AR45)*(AQ49-AQ37)) -> -21.17222562 | AS49: =IF(AS40,-200,AS48) -> -200 | AT49: =IF(AT40,AT37+TAN(AT45)*(AS49-AS37),AT37+TAN(AT45)*(AS49-AS37)) -> -20.58103754 | AU49: =IF(AU40,-200,AU48) -> -200 | AV49: =IF(AV40,AV37+TAN(AV45)*(AU49-AU37),AV37+TAN(AV45)*(AU49-AU37)) -> -19.51778824 | AW49: =IF(AW40,-200,AW48) -> -200 | AX49: =IF(AX40,AX37+TAN(AX45)*(AW49-AW37),AX37+TAN(AX45)*(AW49-AW37)) -> -17.76345921 | AY49: =IF(AY40,-200,AY48) -> -200 | AZ49: =IF(AZ40,AZ37+TAN(AZ45)*(AY49-AY37),AZ37+TAN(AZ45)*(AY49-AY37)) -> -15.05368578 | BA49: =IF(BA40,-200,BA48) -> -200 | BB49: =IF(BB40,BB37+TAN(BB45)*(BA49-BA37),BB37+TAN(BB45)*(BA49-BA37)) -> -11.05226146 | BC49: =IF(BC40,-200,BC48) -> -200 | BD49: =IF(BD40,BD37+TAN(BD45)*(BC49-BC37),BD37+TAN(BD45)*(BC49-BC37)) -> -5.307657789 | BE49: X2,Y2 | BF49: X2,Y2 | BG49: =IF(BG48>0,IF((-BH47*BH48+SQRT(BG48))/(1+BH47^2)>0,(-BH47*BH48+SQRT(BG48))/(1+BH47^2),0),0) -> 73.36605139 | BH49: =BH46+BH47*(BG49-BG46) -> 15.56992304 | BI49: =IF(BI48>0,IF((-BJ47*BJ48+SQRT(BI48))/(1+BJ47^2)>0,(-BJ47*BJ48+SQRT(BI48))/(1+BJ47^2),0),0) -> 73.7598596 | BJ49: =BJ46+BJ47*(BI49-BI46) -> 13.58245604 | BK49: =IF(BK48>0,IF((-BL47*BL48+SQRT(BK48))/(1+BL47^2)>0,(-BL47*BL48+SQRT(BK48))/(1+BL47^2),0),0) -> 74.09858858 | BL49: =BL46+BL47*(BK49-BK46) -> 11.59306563 | BM49: =IF(BM48>0,IF((-BN47*BN48+SQRT(BM48))/(1+BN47^2)>0,(-BN47*BN48+SQRT(BM48))/(1+BN47^2),0),0) -> 74.38283379 | BN49: =BN46+BN47*(BM49-BM46) -> 9.601772603 | BO49: =IF(BO48>0,IF((-BP47*BP48+SQRT(BO48))/(1+BP47^2)>0,(-BP47*BP48+SQRT(BO48))/(1+BP47^2),0),0) -> 74.61306392 | BP49: =BP46+BP47*(BO49-BO46) -> 7.608593328 | BQ49: =IF(BQ48>0,IF((-BR47*BR48+SQRT(BQ48))/(1+BR47^2)>0,(-BR47*BR48+SQRT(BQ48))/(1+BR47^2),0),0) -> 74.78962608 | BR49: =BR46+BR47*(BQ49-BQ46) -> 5.613539926 | BS49: =IF(BS48>0,IF((-BT47*BT48+SQRT(BS48))/(1+BT47^2)>0,(-BT47*BT48+SQRT(BS48))/(1+BT47^2),0),0) -> 74.91274963 | BT49: =BT46+BT47*(BS49-BS46) -> 3.616620406 | BU49: =IF(BU48>0,IF((-BV47*BV48+SQRT(BU48))/(1+BV47^2)>0,(-BV47*BV48+SQRT(BU48))/(1+BV47^2),0),0) -> 74.98254862 | BV49: =BV46+BV47*(BU49-BU46) -> 1.617838752 | BW49: =IF(BW48>0,IF((-BX47*BX48+SQRT(BW48))/(1+BX47^2)>0,(-BX47*BX48+SQRT(BW48))/(1+BX47^2),0),0) -> 74.99902306 | BX49: =BX46+BX47*(BW49-BW46) -> -0.3828050364 | BY49: =IF(BY48>0,IF((-BZ47*BZ48+SQRT(BY48))/(1+BZ47^2)>0,(-BZ47*BZ48+SQRT(BY48))/(1+BZ47^2),0),0) -> 74.96205889 | BZ49: =BZ46+BZ47*(BY49-BY46) -> -2.385314942 | CA49: =IF(CA48>0,IF((-CB47*CB48+SQRT(CA48))/(1+CB47^2)>0,(-CB47*CB48+SQRT(CA48))/(1+CB47^2),0),0) -> 74.87142675 | CB49: =CB46+CB47*(CA49-CA46) -> -4.389698975 | CC49: =IF(CC48>0,IF((-CD47*CD48+SQRT(CC48))/(1+CD47^2)>0,(-CD47*CD48+SQRT(CC48))/(1+CD47^2),0),0) -> 74.72677952 | CD49: =CD46+CD47*(CC49-CC46) -> -6.395969256 | CE49: =IF(CE48>0,IF((-CF47*CF48+SQRT(CE48))/(1+CF47^2)>0,(-CF47*CF48+SQRT(CE48))/(1+CF47^2),0),0) -> 74.52764853 | CF49: =CF46+CF47*(CE49-CE46) -> -8.404142152 | CG49: =IF(CG48>0,IF((-CH47*CH48+SQRT(CG48))/(1+CH47^2)>0,(-CH47*CH48+SQRT(CG48))/(1+CH47^2),0),0) -> 74.2734383 | CH49: =CH46+CH47*(CG49-CG46) -> -10.41423846 | CI49: =IF(CI48>0,IF((-CJ47*CJ48+SQRT(CI48))/(1+CJ47^2)>0,(-CJ47*CJ48+SQRT(CI48))/(1+CJ47^2),0),0) -> 73.96341984 | CJ49: =CJ46+CJ47*(CI49-CI46) -> -12.42628363 | CK49: =IF(CK48>0,IF((-CL47*CL48+SQRT(CK48))/(1+CL47^2)>0,(-CL47*CL48+SQRT(CK48))/(1+CL47^2),0),0) -> 73.59672209 | CL49: =CL46+CL47*(CK49-CK46) -> -14.44030809 | CM49: X2,Y2 | CO49: =(R[-1]C*(R[-5]C[1]-R[-1]C[1])-R[-1]C[1]*(R[-5]C-R[-1]C))/SQRT((R[-1]C-R[-5]C)^2+(R[-1]C[1]-R[-5]C[1])^2)/RADIUS_OF_SEMICIRCLE
T50: KLISI out | Z50: in lab frame | AC50: =AB37+TAN(AC43)*(-AB37) -> -41.54428836 | BE50: CIRCLE_RIGHT | BF50: asin(incidence) | BG50: =(BG49*(BH49-BH46)-BH49*(BG49-BG46))/SQRT((BG49-BG46)^2+(BH49-BH46)^2)/RADIUS_OF_SEMICIRCLE -> 0.1733333333 | BH50: =BG50 -> 0.1733333333 | BI50: =(BI49*(BJ49-BJ46)-BJ49*(BI49-BI46))/SQRT((BI49-BI46)^2+(BJ49-BJ46)^2)/RADIUS_OF_SEMICIRCLE -> 0.1466666667 | BJ50: =BI50 -> 0.1466666667 | BK50: =(BK49*(BL49-BL46)-BL49*(BK49-BK46))/SQRT((BK49-BK46)^2+(BL49-BL46)^2)/RADIUS_OF_SEMICIRCLE -> 0.12 | BL50: =BK50 -> 0.12 | BM50: =(BM49*(BN49-BN46)-BN49*(BM49-BM46))/SQRT((BM49-BM46)^2+(BN49-BN46)^2)/RADIUS_OF_SEMICIRCLE -> 0.09333333333 | BN50: =BM50 -> 0.09333333333 | BO50: =(BO49*(BP49-BP46)-BP49*(BO49-BO46))/SQRT((BO49-BO46)^2+(BP49-BP46)^2)/RADIUS_OF_SEMICIRCLE -> 0.06666666667 | BP50: =BO50 -> 0.06666666667 | BQ50: =(BQ49*(BR49-BR46)-BR49*(BQ49-BQ46))/SQRT((BQ49-BQ46)^2+(BR49-BR46)^2)/RADIUS_OF_SEMICIRCLE -> 0.04 | BR50: =BQ50 -> 0.04 | BS50: =(BS49*(BT49-BT46)-BT49*(BS49-BS46))/SQRT((BS49-BS46)^2+(BT49-BT46)^2)/RADIUS_OF_SEMICIRCLE -> 0.01333333333 | BT50: =BS50 -> 0.01333333333 | BU50: =(BU49*(BV49-BV46)-BV49*(BU49-BU46))/SQRT((BU49-BU46)^2+(BV49-BV46)^2)/RADIUS_OF_SEMICIRCLE -> -0.01333333333 | BV50: =BU50 -> -0.01333333333 | BW50: =(BW49*(BX49-BX46)-BX49*(BW49-BW46))/SQRT((BW49-BW46)^2+(BX49-BX46)^2)/RADIUS_OF_SEMICIRCLE -> -0.04 | BX50: =BW50 -> -0.04 | BY50: =(BY49*(BZ49-BZ46)-BZ49*(BY49-BY46))/SQRT((BY49-BY46)^2+(BZ49-BZ46)^2)/RADIUS_OF_SEMICIRCLE -> -0.06666666667 | BZ50: =BY50 -> -0.06666666667 | CA50: =(CA49*(CB49-CB46)-CB49*(CA49-CA46))/SQRT((CA49-CA46)^2+(CB49-CB46)^2)/RADIUS_OF_SEMICIRCLE -> -0.09333333333 | CB50: =CA50 -> -0.09333333333 | CC50: =(CC49*(CD49-CD46)-CD49*(CC49-CC46))/SQRT((CC49-CC46)^2+(CD49-CD46)^2)/RADIUS_OF_SEMICIRCLE -> -0.12 | CD50: =CC50 -> -0.12 | CE50: =(CE49*(CF49-CF46)-CF49*(CE49-CE46))/SQRT((CE49-CE46)^2+(CF49-CF46)^2)/RADIUS_OF_SEMICIRCLE -> -0.1466666667 | CF50: =CE50 -> -0.1466666667 | CG50: =(CG49*(CH49-CH46)-CH49*(CG49-CG46))/SQRT((CG49-CG46)^2+(CH49-CH46)^2)/RADIUS_OF_SEMICIRCLE -> -0.1733333333 | CH50: =CG50 -> -0.1733333333 | CI50: =(CI49*(CJ49-CJ46)-CJ49*(CI49-CI46))/SQRT((CI49-CI46)^2+(CJ49-CJ46)^2)/RADIUS_OF_SEMICIRCLE -> -0.2 | CJ50: =CI50 -> -0.2 | CK50: =(CK49*(CL46-CL49)-CL49*(CK46-CK49))/SQRT((CK49-CK46)^2+(CL49-CL46)^2)/RADIUS_OF_SEMICIRCLE -> 0.2266666667 | CL50: =CK50 -> 0.2266666667 | CM50: sin(incidence) | CO50: =ATAN2(CK45-CK49,CL45-CL49)-ATAN2(CL49,CK49) -> -1.784791078 | CP50: =(CK49*(CL46-CL49)-CL49*(CK46-CK49))/SQRT((CK46-CK49)^2+(CL49-CL46)^2)/RADIUS_OF_SEMICIRCLE -> 0.2266666667
T51: DEGREES | U51: =htrx -> -0.06281909406 | V51: =htry -> 1.798903489 | Y51: X1,Y1 | Z51: =XSR*COS(radiansg)+YSR*SIN(radiansg)+XC -> 204 | AA51: =-XSR*SIN(radiansg)+YSR*COS(radiansg)+YC -> 26 | AB51: =XSR*COS(radiansg)+YSR*SIN(radiansg)+XC -> 204 | AC51: =-XSR*SIN(radiansg)+YSR*COS(radiansg)+YC -> 26 | AD51: =XSR*COS(radiansg)+YSR*SIN(radiansg)+XC -> 204 | AE51: =-XSR*SIN(radiansg)+YSR*COS(radiansg)+YC -> 26 | AF51: =XSR*COS(radiansg)+YSR*SIN(radiansg)+XC -> 204 | AG51: =-XSR*SIN(radiansg)+YSR*COS(radiansg)+YC -> 26 | AH51: =XSR*COS(radiansg)+YSR*SIN(radiansg)+XC -> 204 | AI51: =-XSR*SIN(radiansg)+YSR*COS(radiansg)+YC -> 26 | AJ51: =XSR*COS(radiansg)+YSR*SIN(radiansg)+XC -> 204 | AK51: =-XSR*SIN(radiansg)+YSR*COS(radiansg)+YC -> 26 | AM51: =XSR*COS(radiansg)+YSR*SIN(radiansg)+XC -> 204 | AN51: =-XSR*SIN(radiansg)+YSR*COS(radiansg)+YC -> 26 | AO51: =XSR*COS(radiansg)+YSR*SIN(radiansg)+XC -> 204 | AP51: =-XSR*SIN(radiansg)+YSR*COS(radiansg)+YC -> 26 | AQ51: =XSR*COS(radiansg)+YSR*SIN(radiansg)+XC -> 204 | AR51: =-XSR*SIN(radiansg)+YSR*COS(radiansg)+YC -> 26 | AS51: =XSR*COS(radiansg)+YSR*SIN(radiansg)+XC -> 204 | AT51: =-XSR*SIN(radiansg)+YSR*COS(radiansg)+YC -> 26 | AU51: =XSR*COS(radiansg)+YSR*SIN(radiansg)+XC -> 204 | AV51: =-XSR*SIN(radiansg)+YSR*COS(radiansg)+YC -> 26 | AW51: =XSR*COS(radiansg)+YSR*SIN(radiansg)+XC -> 204 | AX51: =-XSR*SIN(radiansg)+YSR*COS(radiansg)+YC -> 26 | AY51: =XSR*COS(radiansg)+YSR*SIN(radiansg)+XC -> 204 | AZ51: =-XSR*SIN(radiansg)+YSR*COS(radiansg)+YC -> 26 | BA51: =XSR*COS(radiansg)+YSR*SIN(radiansg)+XC -> 204 | BB51: =-XSR*SIN(radiansg)+YSR*COS(radiansg)+YC -> 26 | BC51: =XSR*COS(radiansg)+YSR*SIN(radiansg)+XC -> 204 | BD51: =-XSR*SIN(radiansg)+YSR*COS(radiansg)+YC -> 26 | BF51: INCIDENCE | BG51: =IF(ABS(BH49)<RADIUS_OF_SEMICIRCLE,ASIN(BG50),KLISI_PAR) -> 0.1742132329 | BH51: =BG51 -> 0.1742132329 | BI51: =IF(ABS(BJ49)<RADIUS_OF_SEMICIRCLE,ASIN(BI50),KLISI_PAR) -> 0.14719765 | BJ51: =BI51 -> 0.14719765 | BK51: =IF(ABS(BL49)<RADIUS_OF_SEMICIRCLE,ASIN(BK50),KLISI_PAR) -> 0.1202898824 | BL51: =BK51 -> 0.1202898824 | BM51: =IF(ABS(BN49)<RADIUS_OF_SEMICIRCLE,ASIN(BM50),KLISI_PAR) -> 0.09346937346 | BN51: =BM51 -> 0.09346937346 | BO51: =IF(ABS(BP49)<RADIUS_OF_SEMICIRCLE,ASIN(BO50),KLISI_PAR) -> 0.06671614841 | BP51: =BO51 -> 0.06671614841 | BQ51: =IF(ABS(BR49)<RADIUS_OF_SEMICIRCLE,ASIN(BQ50),KLISI_PAR) -> 0.04001067435 | BR51: =BQ51 -> 0.04001067435 | BS51: =IF(ABS(BT49)<RADIUS_OF_SEMICIRCLE,ASIN(BS50),KLISI_PAR) -> 0.01333372843 | BT51: =BS51 -> 0.01333372843 | BU51: =IF(ABS(BV49)<RADIUS_OF_SEMICIRCLE,ASIN(BU50),KLISI_PAR) -> -0.01333372843 | BV51: =BU51 -> -0.01333372843 | BW51: =IF(ABS(BX49)<RADIUS_OF_SEMICIRCLE,ASIN(BW50),KLISI_PAR) -> -0.04001067435 | BX51: =BW51 -> -0.04001067435 | BY51: =IF(ABS(BZ49)<RADIUS_OF_SEMICIRCLE,ASIN(BY50),KLISI_PAR) -> -0.06671614841 | BZ51: =BY51 -> -0.06671614841 | CA51: =IF(ABS(CB49)<RADIUS_OF_SEMICIRCLE,ASIN(CA50),KLISI_PAR) -> -0.09346937346 | CB51: =CA51 -> -0.09346937346 | CC51: =IF(ABS(CD49)<RADIUS_OF_SEMICIRCLE,ASIN(CC50),KLISI_PAR) -> -0.1202898824 | CD51: =CC51 -> -0.1202898824 | CE51: =IF(ABS(CF49)<RADIUS_OF_SEMICIRCLE,ASIN(CE50),KLISI_PAR) -> -0.14719765 | CF51: =CE51 -> -0.14719765 | CG51: =IF(ABS(CH49)<RADIUS_OF_SEMICIRCLE,ASIN(CG50),KLISI_PAR) -> -0.1742132329 | CH51: =CG51 -> -0.1742132329 | CI51: =IF(ABS(CJ49)<RADIUS_OF_SEMICIRCLE,ASIN(CI50),KLISI_PAR) -> -0.2013579208 | CJ51: =CI51 -> -0.2013579208 | CK51: =IF(ABS(CL49)<RADIUS_OF_SEMICIRCLE,ASIN(CK50),KLISI_PAR) -> 0.2286539017 | CL51: =CK51 -> 0.2286539017 | CM51: INCIDENCE | CO51: =(R[-1]C*(R[-1]C[1]-R[-4]C[1])-R[-1]C[1]*(R[-1]C-R[-4]C))/SQRT((R[-1]C-R[-4]C)^2+(R[-1]C[1]-R[-4]C[1])^2)/RADIUS_OF_SEMICIRCLE
U52: =ATAN((V48-htry)/(U48-htrx)) -> 0.6183032065 | V52: =U52 -> 0.6183032065 | Y52: X2,Y2 | Z52: =Z29*COS(radiansg)+AA29*SIN(radiansg)+XC -> 1.116142503 | AA52: =-Z29*SIN(radiansg)+AA29*COS(radiansg)+YC -> 31.9621394 | AB52: =AB29*COS(radiansg)+AC29*SIN(radiansg)+XC -> 0.9459189723 | AC52: =-AB29*SIN(radiansg)+AC29*COS(radiansg)+YC -> 27.08757528 | AD52: =AD29*COS(radiansg)+AE29*SIN(radiansg)+XC -> 0.7754534778 | AE52: =-AD29*SIN(radiansg)+AE29*COS(radiansg)+YC -> 22.2060822 | AF52: =AF29*COS(radiansg)+AG29*SIN(radiansg)+XC -> 0.6045481486 | AG52: =-AF29*SIN(radiansg)+AG29*COS(radiansg)+YC -> 17.3119939 | AH52: =AH29*COS(radiansg)+AI29*SIN(radiansg)+XC -> 0.4330030725 | AI52: =-AH29*SIN(radiansg)+AI29*COS(radiansg)+YC -> 12.39958566 | AJ52: =AJ29*COS(radiansg)+AK29*SIN(radiansg)+XC -> 0.2606153533 | AK52: =-AJ29*SIN(radiansg)+AK29*COS(radiansg)+YC -> 7.463047268 | AM52: =AM29*COS(radiansg)+AN29*SIN(radiansg)+XC -> 0.0871781389 | AN52: =-AM29*SIN(radiansg)+AN29*COS(radiansg)+YC -> 2.496455266 | AO52: =AO29*COS(radiansg)+AP29*SIN(radiansg)+XC -> -0.08752039047 | AP52: =-AO29*SIN(radiansg)+AP29*COS(radiansg)+YC -> -2.506256069 | AQ52: =AQ29*COS(radiansg)+AR29*SIN(radiansg)+XC -> -0.263698084 | AR52: =-AQ29*SIN(radiansg)+AR29*COS(radiansg)+YC -> -7.551325123 | AS52: =AS29*COS(radiansg)+AT29*SIN(radiansg)+XC -> -0.4415799444 | AT52: =-AS29*SIN(radiansg)+AT29*COS(radiansg)+YC -> -12.64519513 | AU52: =AU29*COS(radiansg)+AV29*SIN(radiansg)+XC -> -0.6213993271 | AV52: =-AU29*SIN(radiansg)+AV29*COS(radiansg)+YC -> -17.79454852 | AW52: =AW29*COS(radiansg)+AX29*SIN(radiansg)+XC -> -0.8033992274 | AX52: =-AW29*SIN(radiansg)+AX29*COS(radiansg)+YC -> -23.00634376 | AY52: =AY29*COS(radiansg)+AZ29*SIN(radiansg)+XC -> -0.9878336729 | AZ52: =-AY29*SIN(radiansg)+AZ29*COS(radiansg)+YC -> -28.28785526 | BA52: =BA29*COS(radiansg)+BB29*SIN(radiansg)+XC -> -1.174969238 | BB52: =-BA29*SIN(radiansg)+BB29*COS(radiansg)+YC -> -33.6467167 | BC52: =BC29*COS(radiansg)+BD29*SIN(radiansg)+XC -> -1.365086701 | BD52: =-BC29*SIN(radiansg)+BD29*COS(radiansg)+YC -> -39.09096852 | BF52: degrees | BG52: =DEGREES(BG51) -> 9.98168298 | BH52: =DEGREES(BH51) -> 9.98168298 | BI52: =DEGREES(BI51) -> 8.433804098 | BJ52: 8.433804098 | BK52: 6.892102579 | BL52: 6.892102579 | BM52: 5.355400613 | BN52: 5.355400613 | BO52: 3.822553729 | BP52: 3.822553729 | BQ52: 2.292442776 | BR52: 2.292442776 | BS52: 0.763966364 | BT52: 0.763966364 | BU52: -0.763966364 | BV52: -0.763966364 | BW52: -2.292442776 | BX52: -2.292442776 | BY52: =DEGREES(BY51) -> -3.822553729 | BZ52: -3.822553729 | CA52: -5.355400613 | CB52: -5.355400613 | CC52: -6.892102579 | CD52: -6.892102579 | CE52: -8.433804098 | CF52: -8.433804098 | CG52: -9.98168298 | CH52: -9.98168298 | CI52: -11.53695903 | CJ52: -11.53695903 | CK52: 13.10090353 | CL52: 13.10090353 | CM52: degrees | CO52: =ATAN(CL49/CK49) -> -0.1937473166
U53: =DEGREES(U52) -> 35.42616419 | V53: =U53 -> 35.42616419 | Y53: X3,Y3 | Z53: =Z37*COS(radiansg)+AA37*SIN(radiansg)+XC -> -66.80804417 | AA53: =-Z37*SIN(radiansg)+AA37*COS(radiansg)+YC -> 34.08350384 | AB53: =AB37*COS(radiansg)+AC37*SIN(radiansg)+XC -> -69.51302284 | AC53: =-AB37*SIN(radiansg)+AC37*COS(radiansg)+YC -> 28.15918422 | AD53: =AD37*COS(radiansg)+AE37*SIN(radiansg)+XC -> -71.65512986 | AE53: =-AD37*SIN(radiansg)+AE37*COS(radiansg)+YC -> 22.14819101 | AF53: =AF37*COS(radiansg)+AG37*SIN(radiansg)+XC -> -73.25784008 | AG53: =-AF37*SIN(radiansg)+AG37*COS(radiansg)+YC -> 16.07136791 | AH53: =AH37*COS(radiansg)+AI37*SIN(radiansg)+XC -> -74.33729453 | AI53: =-AH37*SIN(radiansg)+AI37*COS(radiansg)+YC -> 9.948197949 | AJ53: =AJ37*COS(radiansg)+AK37*SIN(radiansg)+XC -> -74.90380793 | AK53: =-AJ37*SIN(radiansg)+AK37*COS(radiansg)+YC -> 3.797309234 | AM53: =AM37*COS(radiansg)+AN37*SIN(radiansg)+XC -> -74.96276163 | AN53: =-AM37*SIN(radiansg)+AN37*COS(radiansg)+YC -> -2.363126861 | AO53: =AO37*COS(radiansg)+AP37*SIN(radiansg)+XC -> -74.51505833 | AP53: =-AO37*SIN(radiansg)+AP37*COS(radiansg)+YC -> -8.515050295 | AQ53: =AQ37*COS(radiansg)+AR37*SIN(radiansg)+XC -> -73.55722373 | AR53: =-AQ37*SIN(radiansg)+AR37*COS(radiansg)+YC -> -14.64017885 | AS53: =AS37*COS(radiansg)+AT37*SIN(radiansg)+XC -> -72.08117728 | AT53: =-AS37*SIN(radiansg)+AT37*COS(radiansg)+YC -> -20.71964967 | AU53: =AU37*COS(radiansg)+AV37*SIN(radiansg)+XC -> -70.07363924 | AV53: =-AU37*SIN(radiansg)+AV37*COS(radiansg)+YC -> -26.73359467 | AW53: =AW37*COS(radiansg)+AX37*SIN(radiansg)+XC -> -67.51507618 | AX53: =-AW37*SIN(radiansg)+AX37*COS(radiansg)+YC -> -32.66059534 | AY53: =AY37*COS(radiansg)+AZ37*SIN(radiansg)+XC -> -64.37798973 | AZ53: =-AY37*SIN(radiansg)+AZ37*COS(radiansg)+YC -> -38.47693385 | BA53: =BA37*COS(radiansg)+BB37*SIN(radiansg)+XC -> -60.62418318 | BB53: =-BA37*SIN(radiansg)+BB37*COS(radiansg)+YC -> -44.15550264 | BC53: =BC37*COS(radiansg)+BD37*SIN(radiansg)+XC -> -56.20030993 | BD53: =-XSR*SIN(radiansg)+YSR*COS(radiansg)+YC -> 26 | BF53: refraction | BG53: =ASIN(BG50/nn) -> 0.1158142838 | BH53: =BG53 -> 0.1158142838 | BI53: =ASIN(BI50/nn) -> 0.09793425255 | BJ53: =BI53 -> 0.09793425255 | BK53: =ASIN(BK50/nn) -> 0.08008558003 | BL53: =BK53 -> 0.08008558003 | BM53: =ASIN(BM50/nn) -> 0.06226244231 | BN53: =BM53 -> 0.06226244231 | BO53: =ASIN(BO50/nn) -> 0.04445908938 | BP53: =BO53 -> 0.04445908938 | BQ53: =ASIN(BQ50/nn) -> 0.02666982817 | BR53: =BQ53 -> 0.02666982817 | BS53: =ASIN(BS50/nn) -> 0.008889005948 | BT53: =BS53 -> 0.008889005948 | BU53: =ASIN(BU50/nn) -> -0.008889005948 | BV53: =BU53 -> -0.008889005948 | BW53: =ASIN(BW50/nn) -> -0.02666982817 | BX53: =BW53 -> -0.02666982817 | BY53: =ASIN(BY50/nn) -> -0.04445908938 | BZ53: =BY53 -> -0.04445908938 | CA53: =ASIN(CA50/nn) -> -0.06226244231 | CB53: =CA53 -> -0.06226244231 | CC53: =ASIN(CC50/nn) -> -0.08008558003 | CD53: =CC53 -> -0.08008558003 | CE53: =ASIN(CE50/nn) -> -0.09793425255 | CF53: =CE53 -> -0.09793425255 | CG53: =ASIN(CG50/nn) -> -0.1158142838 | CH53: =CG53 -> -0.1158142838 | CI53: =ASIN(CI50/nn) -> -0.1337315894 | CJ53: =CI53 -> -0.1337315894 | CK53: =ASIN(CK50/nn) -> 0.1516921949 | CL53: =CK53 -> 0.1516921949 | CM53: refraction | CO53: =ATAN((CL45-CL49)/(CK45-CK49)) -> -0.0202474347
T54: X2,Y2 | Y54: X4,Y4 | Z54: =Z49*COS(radiansg)+AA49*SIN(radiansg)+XC -> -200.9640098 | AA54: =-Z49*SIN(radiansg)+AA49*COS(radiansg)+YC -> -24.11461703 | AB54: =AB49*COS(radiansg)+AC49*SIN(radiansg)+XC -> -200.8358337 | AC54: =-AB49*SIN(radiansg)+AC49*COS(radiansg)+YC -> -20.4441338 | AD54: =AD49*COS(radiansg)+AE49*SIN(radiansg)+XC -> -200.749799 | AE54: =-AD49*SIN(radiansg)+AE49*COS(radiansg)+YC -> -17.98042232 | AF54: =AF49*COS(radiansg)+AG49*SIN(radiansg)+XC -> -200.694871 | AG54: =-AF49*SIN(radiansg)+AG49*COS(radiansg)+YC -> -16.4074903 | AH54: =AH49*COS(radiansg)+AI49*SIN(radiansg)+XC -> -200.6622292 | AI54: =-AH49*SIN(radiansg)+AI49*COS(radiansg)+YC -> -15.47274938 | AJ54: =AJ49*COS(radiansg)+AK49*SIN(radiansg)+XC -> -200.6444664 | AK54: =-AJ49*SIN(radiansg)+AK49*COS(radiansg)+YC -> -14.96408953 | AM54: =AM49*COS(radiansg)+AN49*SIN(radiansg)+XC -> -200.6350449 | AN54: =-AM49*SIN(radiansg)+AN49*COS(radiansg)+YC -> -14.69429351 | AO54: =AO49*COS(radiansg)+AP49*SIN(radiansg)+XC -> -200.6278922 | AP54: =-AO49*SIN(radiansg)+AP49*COS(radiansg)+YC -> -14.48946587 | AQ54: =AQ49*COS(radiansg)+AR49*SIN(radiansg)+XC -> -200.6170654 | AR54: =-AQ49*SIN(radiansg)+AR49*COS(radiansg)+YC -> -14.17942873 | AS54: =AS49*COS(radiansg)+AT49*SIN(radiansg)+XC -> -200.5964333 | AT54: =-AS49*SIN(radiansg)+AT49*COS(radiansg)+YC -> -13.58860078 | AU54: =AU49*COS(radiansg)+AV49*SIN(radiansg)+XC -> -200.5593264 | AV54: =-AU49*SIN(radiansg)+AV49*COS(radiansg)+YC -> -12.52599919 | AW54: =AW49*COS(radiansg)+AX49*SIN(radiansg)+XC -> -200.4981012 | AX54: =-AW49*SIN(radiansg)+AX49*COS(radiansg)+YC -> -10.77273885 | AY54: =AY49*COS(radiansg)+AZ49*SIN(radiansg)+XC -> -200.4035315 | AZ54: =-AY49*SIN(radiansg)+AZ49*COS(radiansg)+YC -> -8.064616138 | BA54: =BA49*COS(radiansg)+BB49*SIN(radiansg)+XC -> -200.2638838 | BB54: =-BA49*SIN(radiansg)+BB49*COS(radiansg)+YC -> -4.065629378 | BC54: =BC49*COS(radiansg)+BD49*SIN(radiansg)+XC -> -200.0634 | BD54: =-XSR*SIN(radiansg)+YSR*COS(radiansg)+YC -> 26 | BF54: KLISI insice | BG54: =IF(BG49<>0,ATAN(BH49/BG49)-BG53,KLISI_PAR) -> 0.09330553412 | BH54: =TAN(BG54) -> 0.09357725063 | BI54: =IF(BI49<>0,ATAN(BJ49/BI49)-BI53,KLISI_PAR) -> 0.08416998247 | BJ54: =TAN(BI54) -> 0.0843693172 | BK54: =IF(BK49<>0,ATAN(BL49/BK49)-BK53,KLISI_PAR) -> 0.0751108874 | BL54: =TAN(BK54) -> 0.07525245655 | BM54: =IF(BM49<>0,ATAN(BN49/BM49)-BM53,KLISI_PAR) -> 0.06611351619 | BN54: =TAN(BM54) -> 0.06621001223 | BO54: =IF(BO49<>0,ATAN(BP49/BO49)-BO53,KLISI_PAR) -> 0.05716364407 | BP54: =TAN(BO54) -> 0.05722598977 | BQ54: =IF(BQ49<>0,ATAN(BR49/BQ49)-BQ53,KLISI_PAR) -> 0.04824743122 | BR54: =TAN(BQ54) -> 0.04828490314 | BS54: =IF(BS49<>0,ATAN(BT49/BS49)-BS53,KLISI_PAR) -> 0.03935130752 | BT54: =TAN(BS54) -> 0.03937163227 | BU54: =IF(BU49<>0,ATAN(BV49/BU49)-BU53,KLISI_PAR) -> 0.03046186256 | BV54: =TAN(BU54) -> 0.03047128817 | BW54: =IF(BW49<>0,ATAN(BX49/BW49)-BW53,KLISI_PAR) -> 0.02156573886 | BX54: =TAN(BW54) -> 0.02156908275 | BY54: =IF(BY49<>0,ATAN(BZ49/BY49)-BY53,KLISI_PAR) -> 0.01264952601 | BZ54: =TAN(BY54) -> 0.01265020074 | CA54: =IF(CA49<>0,ATAN(CB49/CA49)-CA53,KLISI_PAR) -> 0.00369965389 | CB54: =TAN(CA54) -> 0.00369967077 | CC54: =IF(CC49<>0,ATAN(CD49/CC49)-CC53,KLISI_PAR) -> -0.005297717321 | CD54: =TAN(CC54) -> -0.005297766883 | CE54: =IF(CE49<>0,ATAN(CF49/CE49)-CE53,KLISI_PAR) -> -0.01435681239 | CF54: =TAN(CE54) -> -0.01435779887 | CG54: =IF(CG49<>0,ATAN(CH49/CG49)-CG53,KLISI_PAR) -> -0.02349236404 | CH54: =TAN(CG54) -> -0.02349668673 | CI54: =IF(CI49<>0,ATAN(CJ49/CI49)-CI53,KLISI_PAR) -> -0.03271974634 | CJ54: =TAN(CI54) -> -0.03273142773 | CK54: =IF(CK49<>0,-ABS(ATAN(CL49/CK49))+CK53,KLISI_PAR) -> -0.0420551217 | CL54: =TAN(CK54) -> -0.04207993261 | CM54: KLISI insice | CO54: =CO53-CO52 -> 0.1734998819 | CP54: =DEGREES(CO54) -> 9.94081098
T55: exterior prod | U55: =RADIUS_OF_SEMICIRCLE^2*(1+(TAN(U52))^2)-(U48*TAN(U52)-V48)^2 -> 8467.961149 | V55: =U55 -> 8467.961149 | BF55: tomi eytheia | BG55: 0 | BH55: =BH49+BH54*(BG55-BG49) -> 8.704529667 | BI55: 0 | BJ55: =BJ49+BJ54*(BI55-BI49) -> 7.359387051 | BK55: 0 | BL55: =BL49+BL54*(BK55-BK49) -> 6.016964813 | BM55: 0 | BN55: =BN49+BN54*(BM55-BM49) -> 4.676884268 | BO55: 0 | BP55: =BP49+BP54*(BO55-BO49) -> 3.338786895 | BQ55: 0 | BR55: =BR49+BR54*(BQ55-BQ49) -> 2.002330075 | BS55: 0 | BT55: =BT49+BT54*(BS55-BS49) -> 0.6671831751 | BU55: 0 | BV55: =BV49+BV54*(BU55-BU49) -> -0.6669760947 | BW55: 0 | BX55: =BX49+BX54*(BW55-BW49) -> -2.000465171 | BY55: 0 | BZ55: =BZ49+BZ54*(BY55-BY49) -> -3.333600035 | CA55: 0 | CB55: =CB49+CB54*(CA55-CA49) -> -4.666698604 | CC55: 0 | CD55: =CD49+CD54*(CC55-CC49) -> -6.000084198 | CE55: 0 | CF55: =CF49+CF54*(CE55-CE49) -> -7.334089164 | CG55: 0 | CH55: =CH49+CH54*(CG55-CG49) -> -8.669058745 | CI55: 0 | CJ55: =CJ49+CJ54*(CI55-CI49) -> -10.0053553 | CK55: 0 | CL55: =CL49+CL54*(CK55-CK49) -> -11.34336298 | CM55: tomi eytheia
T56: incd=asin(ext) | U56: =((U48*TAN(U52)-V48)+SQRT(U55))/(1+(TAN(U52))^2) -> 59.87832996 | V56: =V48+TAN(V52)*(U56-U48) -> 44.43807055 | BF56: TOMI KYKLO | BG56: =RADIUS_OF_SEMICIRCLE^2*(1+BH54^2)-(BH56)^2 -> 5598.487611 | BH56: =BH49-BH54*BG49 -> 8.704529667 | BI56: =RADIUS_OF_SEMICIRCLE^2*(1+BJ54^2)-(BJ56)^2 -> 5610.879194 | BJ56: =BJ49-BJ54*BI49 -> 7.359387051 | BK56: =RADIUS_OF_SEMICIRCLE^2*(1+BL54^2)-(BL56)^2 -> 5620.650128 | BL56: =BL49-BL54*BK49 -> 6.016964813 | BM56: =RADIUS_OF_SEMICIRCLE^2*(1+BN54^2)-(BN56)^2 -> 5627.785436 | BN56: =BN49-BN54*BM49 -> 4.676884268 | BO56: =RADIUS_OF_SEMICIRCLE^2*(1+BP54^2)-(BP56)^2 -> 5632.27333 | BP56: =BP49-BP54*BO49 -> 3.338786895 | BQ56: =RADIUS_OF_SEMICIRCLE^2*(1+BR54^2)-(BR56)^2 -> 5634.104979 | BR56: =BR49-BR54*BQ49 -> 2.002330075 | BS56: =RADIUS_OF_SEMICIRCLE^2*(1+BT54^2)-(BT56)^2 -> 5633.274322 | BT56: =BT49-BT54*BS49 -> 0.6671831751 | BU56: =RADIUS_OF_SEMICIRCLE^2*(1+BV54^2)-(BV56)^2 -> 5629.777952 | BV56: =BV49-BV54*BU49 -> -0.6669760947 | BW56: =RADIUS_OF_SEMICIRCLE^2*(1+BX54^2)-(BX56)^2 -> 5623.615032 | BX56: =BX49-BX54*BW49 -> -2.000465171 | BY56: =RADIUS_OF_SEMICIRCLE^2*(1+BZ54^2)-(BZ56)^2 -> 5614.787266 | BZ56: =BZ49-BZ54*BY49 -> -3.333600035 | CA56: =RADIUS_OF_SEMICIRCLE^2*(1+CB54^2)-(CB56)^2 -> 5603.298917 | CB56: =CB49-CB54*CA49 -> -4.666698604 | CC56: =RADIUS_OF_SEMICIRCLE^2*(1+CD54^2)-(CD56)^2 -> 5589.156863 | CD56: =CD49-CD54*CC49 -> -6.000084198 | CE56: =RADIUS_OF_SEMICIRCLE^2*(1+CF54^2)-(CF56)^2 -> 5572.37071 | CF56: =CF49-CF54*CE49 -> -7.334089164 | CG56: =RADIUS_OF_SEMICIRCLE^2*(1+CH54^2)-(CH56)^2 -> 5552.952951 | CH56: =CH49-CH54*CG49 -> -8.669058745 | CI56: =RADIUS_OF_SEMICIRCLE^2*(1+CJ54^2)-(CJ56)^2 -> 5530.919189 | CJ56: =CJ49-CJ54*CI49 -> -10.0053553 | CK56: =RADIUS_OF_SEMICIRCLE^2*(1+CL54^2)-(CL56)^2 -> 5506.28842 | CL56: =CL49-CL54*CK49 -> -11.34336298 | CM56: TOMI KYKLO
T57: refraction= | U57: =U56*(V48-V56)-V56*(U48-U56) -> -113.3332486 | V57: =SQRT((U56-U48)^2+(V56-V48)^2)*RADIUS_OF_SEMICIRCLE -> 5658.086592 | BF57: x kyklo y kyklo | BG57: =IF(BG56>0,(-BH54*BH56-SQRT(BG56))/(1+BH54^2),0) -> -74.98100166 | BH57: =BH49+BH54*(BG57-BG49) -> 1.688013682 | BI57: =IF(BI56>0,(-BJ54*BJ56-SQRT(BI56))/(1+BJ54^2),0) -> -74.99289554 | BJ57: =BJ49+BJ54*(BI57-BI49) -> 1.03228766 | BK57: =IF(BK56>0,(-BL54*BL56-SQRT(BK56))/(1+BL54^2),0) -> -74.99907197 | BL57: =BL49+BL54*(BK57-BK49) -> 0.3731004086 | BM57: =IF(BM56>0,(-BN54*BN56-SQRT(BM56))/(1+BN54^2),0) -> -74.99944385 | BN57: =BN49+BN54*(BM57-BM49) -> -0.288829827 | BO57: =IF(BO56>0,(-BP54*BP56-SQRT(BO56))/(1+BP54^2),0) -> -74.99394737 | BP57: =BP49+BP54*(BO57-BO49) -> -0.9528159694 | BQ57: =IF(BQ56>0,(-BR54*BR56-SQRT(BQ56))/(1+BR54^2),0) -> -74.98254094 | BR57: =BR49+BR54*(BQ57-BQ49) -> -1.618194652 | BS57: =IF(BS56>0,(-BT54*BT56-SQRT(BS56))/(1+BT54^2),0) -> -74.9652045 | BT57: =BT49+BT54*(BS57-BS49) -> -2.28431929 | BU57: =IF(BU56>0,(-BV54*BV56-SQRT(BU56))/(1+BV54^2),0) -> -74.94193909 | BV57: =BV49+BV54*(BU57-BU49) -> -2.950553516 | BW57: =IF(BW56>0,(-BX54*BX56-SQRT(BW56))/(1+BX54^2),0) -> -74.91276679 | BX57: =BX49+BX54*(BW57-BW49) -> -3.616264837 | BY57: =IF(BY56>0,(-BZ54*BZ56-SQRT(BY56))/(1+BZ54^2),0) -> -74.87773096 | BZ57: =BZ49+BZ54*(BY57-BY49) -> -4.280818363 | CA57: =IF(CA56>0,(-CB54*CB56-SQRT(CA56))/(1+CB54^2),0) -> -74.83689672 | CB57: =CB49+CB54*(CA57-CA49) -> -4.943570483 | CC57: =IF(CC56>0,(-CD54*CD56-SQRT(CC56))/(1+CD54^2),0) -> -74.79035183 | CD57: =CD49+CD54*(CC57-CC49) -> -5.603862349 | CE57: =IF(CE56>0,(-CF54*CF56-SQRT(CE56))/(1+CF54^2),0) -> -74.73820787 | CF57: =CF49+CF54*(CE57-CE49) -> -6.261013008 | CG57: =IF(CG56>0,(-CH54*CH56-SQRT(CG56))/(1+CH54^2),0) -> -74.68060183 | CH57: =CH49+CH54*(CG57-CG49) -> -6.914312039 | CI57: =IF(CI56>0,(-CJ54*CJ56-SQRT(CI56))/(1+CJ54^2),0) -> -74.61769801 | CJ57: =CJ49+CJ54*(CI57-CI49) -> -7.563011508 | CK57: =IF(CK56>0,(-CL54*CL56-SQRT(CK56))/(1+CL54^2),0) -> -74.54969055 | CL57: =CL49+CL54*(CK57-CK49) -> -8.206317025 | CM57: x kyklo y kyklo
T58: interior klisi | U58: =ASIN(ABS(U57)/V57) -> 0.02003165321 | V58: =U58 -> 0.02003165321 | BE58: sin(inc)/nn | BF58: X3,Y3 | BG58: =IF(BG57>0,BG57,BG55) -> 0 | BH58: =IF(BG57>0,BH57,BH55) -> 8.704529667 | BI58: =IF(BI57>BI57,BI57,BI55) -> 0 | BJ58: =IF(BI57>0,BJ57,BJ55) -> 7.359387051 | BK58: =IF(BK57>BK57,BK57,BK55) -> 0 | BL58: =IF(BK57>0,BL57,BL55) -> 6.016964813 | BM58: =IF(BM57>BM57,BM57,BM55) -> 0 | BN58: =IF(BM57>0,BN57,BN55) -> 4.676884268 | BO58: =IF(BO57>BO57,BO57,BO55) -> 0 | BP58: =IF(BO57>0,BP57,BP55) -> 3.338786895 | BQ58: =IF(BQ57>BQ57,BQ57,BQ55) -> 0 | BR58: =IF(BQ57>0,BR57,BR55) -> 2.002330075 | BS58: =IF(BS57>BS57,BS57,BS55) -> 0 | BT58: =IF(BS57>0,BT57,BT55) -> 0.6671831751 | BU58: =IF(BU57>BU57,BU57,BU55) -> 0 | BV58: =IF(BU57>0,BV57,BV55) -> -0.6669760947 | BW58: =IF(BW57>BW57,BW57,BW55) -> 0 | BX58: =IF(BW57>0,BX57,BX55) -> -2.000465171 | BY58: =IF(BY57>BY57,BY57,BY55) -> 0 | BZ58: =IF(BY57>0,BZ57,BZ55) -> -3.333600035 | CA58: =IF(CA57>CA57,CA57,CA55) -> 0 | CB58: =IF(CA57>0,CB57,CB55) -> -4.666698604 | CC58: =IF(CC57>CC57,CC57,CC55) -> 0 | CD58: =IF(CC57>0,CD57,CD55) -> -6.000084198 | CE58: =IF(CE57>CE57,CE57,CE55) -> 0 | CF58: =IF(CE57>0,CF57,CF55) -> -7.334089164 | CG58: =IF(CG57>CG57,CG57,CG55) -> 0 | CH58: =IF(CG57>0,CH57,CH55) -> -8.669058745 | CI58: =IF(CI57>CI57,CI57,CI55) -> 0 | CJ58: =IF(CI57>0,CJ57,CJ55) -> -10.0053553 | CK58: =IF(CK57>CK57,CK57,CK55) -> 0 | CL58: =IF(CK57>0,CL57,CL55) -> -11.34336298 | CM58: X3,Y3
T59: X3,Y3 | U59: =ASIN(SIN(U58)/nn) -> 0.01335393927 | V59: =U59 -> 0.01335393927 | AB59: X=(-K*(Y11-X11*K)-SQRT(R^2*(1+K^2)-(Y11-X11*K)^2))/(1+K^) | BE59: =TAN(KLISI_PAR) -> 0.03492076949 | BF59: klisi telos | BG59: =IF(BG49<>0,IF(ABS(SIN(BG54))*nn<1,ASIN(SIN(BG54)*nn),-BG54),KLISI_PAR) -> 0.1402142971 | BH59: =TAN(BG59) -> 0.1411404544 | BI59: =IF(BI49<>0,IF(ABS(SIN(BI54))*nn<1,ASIN(SIN(BI54)*nn),-BI54),KLISI_PAR) -> 0.1264426016 | BJ59: =TAN(BI59) -> 0.1271207825 | BK59: =IF(BK49<>0,IF(ABS(SIN(BK54))*nn<1,ASIN(SIN(BK54)*nn),-BK54),KLISI_PAR) -> 0.1127994765 | BL59: =TAN(BK59) -> 0.1132803336 | BM59: =IF(BM49<>0,IF(ABS(SIN(BM54))*nn<1,ASIN(SIN(BM54)*nn),-BM54),KLISI_PAR) -> 0.09926096302 | BN59: =TAN(BM59) -> 0.0995882504 | BO59: =IF(BO49<>0,IF(ABS(SIN(BO54))*nn<1,ASIN(SIN(BO54)*nn),-BO54),KLISI_PAR) -> 0.08580402309 | BP59: =TAN(BO59) -> 0.08601521758 | BQ59: =IF(BQ49<>0,IF(ABS(SIN(BQ54))*nn<1,ASIN(SIN(BQ54)*nn),-BQ54),KLISI_PAR) -> 0.07240632289 | BR59: =TAN(BQ59) -> 0.0725331231 | BS59: =IF(BS49<>0,IF(ABS(SIN(BS54))*nn<1,ASIN(SIN(BS54)*nn),-BS54),KLISI_PAR) -> 0.05904603237 | BT59: =TAN(BS59) -> 0.05911474823 | BU59: =IF(BU49<>0,IF(ABS(SIN(BU54))*nn<1,ASIN(SIN(BU54)*nn),-BU54),KLISI_PAR) -> 0.04570163497 | BV59: =TAN(BU59) -> 0.04573347965 | BW59: =IF(BW49<>0,IF(ABS(SIN(BW54))*nn<1,ASIN(SIN(BW54)*nn),-BW54),KLISI_PAR) -> 0.03235174401 | BX59: =TAN(BW59) -> 0.03236303556 | BY59: =IF(BY49<>0,IF(ABS(SIN(BY54))*nn<1,ASIN(SIN(BY54)*nn),-BY54),KLISI_PAR) -> 0.01897492163 | BZ59: =TAN(BY59) -> 0.01897719925 | CA59: =IF(CA49<>0,IF(ABS(SIN(CA54))*nn<1,ASIN(SIN(CA54)*nn),-CA54),KLISI_PAR) -> 0.00554949666 | CB59: =TAN(CA59) -> 0.00554955363 | CC59: =IF(CC49<>0,IF(ABS(SIN(CC54))*nn<1,ASIN(SIN(CC54)*nn),-CC54),KLISI_PAR) -> -0.007946622447 | CD59: =TAN(CC59) -> -0.007946789725 | CE59: =IF(CE49<>0,IF(ABS(SIN(CE54))*nn<1,ASIN(SIN(CE54)*nn),-CE54),KLISI_PAR) -> -0.02153614352 | CF59: =TAN(CE59) -> -0.02153947366 | CG59: =IF(CG49<>0,IF(ABS(SIN(CG54))*nn<1,ASIN(SIN(CG54)*nn),-CG54),KLISI_PAR) -> -0.03524259984 | CH59: =TAN(CG59) -> -0.03525719801 | CI59: =IF(CI49<>0,IF(ABS(SIN(CI54))*nn<1,ASIN(SIN(CI54)*nn),-CI54),KLISI_PAR) -> -0.04909057742 | CJ59: =TAN(CI59) -> -0.04913004968 | CK59: =IF(CK49<>0,IF(ABS(SIN(CK54))*nn<1,ASIN(SIN(CK54)*nn),-CK54),KLISI_PAR) -> -0.06310596597 | CL59: =TAN(CK59) -> -0.06318986992 | CM59: klisi telos
T60: refra out | U60: =-U59+ATAN(V56/U56) -> 0.6250974038 | V60: =U60 -> 0.6250974038 | BD60: =BG92 -> 0.001219460142 | BG60: =-BG54 -> -0.09330553412 | BH60: =TAN(BG60) -> -0.09357725063 | BI60: =-BI54 -> -0.08416998247 | BJ60: =TAN(BI60) -> -0.0843693172 | BK60: =-BK54 -> -0.0751108874 | BL60: =TAN(BK60) -> -0.07525245655 | BM60: =-BM54 -> -0.06611351619 | BN60: =TAN(BM60) -> -0.06621001223 | BO60: =-BO54 -> -0.05716364407 | BP60: =TAN(BO60) -> -0.05722598977 | BQ60: =-BQ54 -> -0.04824743122 | BR60: =TAN(BQ60) -> -0.04828490314 | BS60: =-BS54 -> -0.03935130752 | BT60: =TAN(BS60) -> -0.03937163227 | BU60: =-BU54 -> -0.03046186256 | BV60: =TAN(BU60) -> -0.03047128817 | BW60: =-BW54 -> -0.02156573886 | BX60: =TAN(BW60) -> -0.02156908275 | BY60: =-BY54 -> -0.01264952601 | BZ60: =TAN(BY60) -> -0.01265020074 | CA60: =-CA54 -> -0.00369965389 | CB60: =TAN(CA60) -> -0.00369967077 | CC60: =-CC54 -> 0.005297717321 | CD60: =TAN(CC60) -> 0.005297766883 | CE60: =-CE54 -> 0.01435681239 | CF60: =TAN(CE60) -> 0.01435779887 | CG60: =-CG54 -> 0.02349236404 | CH60: =TAN(CG60) -> 0.02349668673 | CI60: =-CI54 -> 0.03271974634 | CJ60: =TAN(CI60) -> 0.03273142773 | CK60: =-CK54 -> 0.0420551217 | CL60: =TAN(CK60) -> 0.04207993261 | CO60: =ASIN(SIN(R[-1]C)/nn) | CP60: =CO60 -> =ASIN(SIN(R[-1]C)/nn)
T61: SIN(REF)*NN | U61: 0 | V61: =V56+TAN(V60)*(U61-U56) -> 1.227918144 | BD61: =RADIUS_OF_SEMICIRCLE^2 -> 5625 | BF61: tomi kyklo | BG61: =RADIUS_OF_SEMICIRCLE^2*(1+BH59^2)-BH61^2 -> 5661.05459 | BH61: =BH58-BH60*BH59 -> 8.717737202 | BI61: =RADIUS_OF_SEMICIRCLE^2*(1+BJ59^2)-BJ61^2 -> 5661.579722 | BJ61: =BJ58-BJ60*BJ59 -> 7.370112145 | BK61: =RADIUS_OF_SEMICIRCLE^2*(1+BL59^2)-BL61^2 -> 5660.978576 | BL61: =BL58-BL60*BK58 -> 6.016964813 | BM61: =RADIUS_OF_SEMICIRCLE^2*(1+BN59^2)-BN61^2 -> 5658.914489 | BN61: =BN58-BN60*BM58 -> 4.676884268 | BO61: =RADIUS_OF_SEMICIRCLE^2*(1+BP59^2)-BP61^2 -> 5655.469726 | BP61: =BP58-BP60*BO58 -> 3.338786895 | BQ61: =RADIUS_OF_SEMICIRCLE^2*(1+BR59^2)-BR61^2 -> 5650.584103 | BR61: =BR58-BR60*BQ58 -> 2.002330075 | BS61: =RADIUS_OF_SEMICIRCLE^2*(1+BT59^2)-BT61^2 -> 5644.21173 | BT61: =BT58-BT60*BS58 -> 0.6671831751 | BU61: =RADIUS_OF_SEMICIRCLE^2*(1+BV59^2)-BV61^2 -> 5636.320118 | BV61: =BV58-BV60*BU58 -> -0.6669760947 | BW61: =RADIUS_OF_SEMICIRCLE^2*(1+BX59^2)-BX61^2 -> 5626.889573 | BX61: =BX58-BX60*BW58 -> -2.000465171 | BY61: =RADIUS_OF_SEMICIRCLE^2*(1+BZ59^2)-BZ61^2 -> 5615.912865 | BZ61: =BZ58-BZ60*BY58 -> -3.333600035 | CA61: =RADIUS_OF_SEMICIRCLE^2*(1+CB59^2)-CB61^2 -> 5603.39516 | CB61: =CB58-CB60*CA58 -> -4.666698604 | CC61: =RADIUS_OF_SEMICIRCLE^2*(1+CD59^2)-CD61^2 -> 5589.354217 | CD61: =CD58-CD60*CC58 -> -6.000084198 | CE61: =RADIUS_OF_SEMICIRCLE^2*(1+CF59^2)-CF61^2 -> 5573.820849 | CF61: =CF58-CF60*CE58 -> -7.334089164 | CG61: =RADIUS_OF_SEMICIRCLE^2*(1+CH59^2)-CH61^2 -> 5556.839689 | CH61: =CH58-CH60*CG58 -> -8.669058745 | CI61: =RADIUS_OF_SEMICIRCLE^2*(1+CJ59^2)-CJ61^2 -> 5538.470275 | CJ61: =CJ58-CJ60*CI58 -> -10.0053553 | CK61: =RADIUS_OF_SEMICIRCLE^2*(1+CL59^2)-CL61^2 -> 5518.788514 | CL61: =CL58-CL60*CK58 -> -11.34336298 | CM61: tomi kyklo | CO61: =ATAN2(R[-4]C;R[-4]C[1])-R[-1]C
T62: out klisi | U62: =IF(SIN(U60)*nn<1,ASIN(SIN(U60)*nn),-U60) -> 1.071175724 | V62: =U62 -> 1.071175724 | BD62: =BD61*(1+BD60) -> 5631.859463 | BF62: X4,Y4 | BG62: =IF(BG49=0,-200,IF(ABS(SIN(BG54))*nn<1,-200,(-BH60*BH61+SQRT(BG61))/(1+BH60^2))) -> -200 | BH62: =IF(BG62=-200,BH58+BH59*(BG62-BG58),BH58+BH60*(BG62-BG58)) -> -19.52356122 | BI62: =IF(BI49=0,-200,IF(ABS(SIN(BI54))*nn<1,-200,(-BJ60*BJ61+SQRT(BI61))/(1+BJ60^2))) -> -200 | BJ62: =IF(BI62=-200,BJ58+BJ59*(BI62-BI58),BJ58+BJ60*(BI62-BI58)) -> -18.06476944 | BK62: =IF(BK49=0,-200,IF(ABS(SIN(BK54))*nn<1,-200,(-BL60*BL61+SQRT(BK61))/(1+BL60^2))) -> -200 | BL62: =IF(BK62=-200,BL58+BL59*(BK62-BK58),BL58+BL60*(BK62-BK58)) -> -16.63910192 | BM62: =IF(BM49=0,-200,IF(ABS(SIN(BM54))*nn<1,-200,(-BN60*BN61+SQRT(BM61))/(1+BN60^2))) -> -200 | BN62: =IF(BM62=-200,BN58+BN59*(BM62-BM58),BN58+BN60*(BM62-BM58)) -> -15.24076581 | BO62: =IF(BO49=0,-200,IF(ABS(SIN(BO54))*nn<1,-200,(-BP60*BP61+SQRT(BO61))/(1+BP60^2))) -> -200 | BP62: =IF(BO62=-200,BP58+BP59*(BO62-BO58),BP58+BP60*(BO62-BO58)) -> -13.86425662 | BQ62: =IF(BQ49=0,-200,IF(ABS(SIN(BQ54))*nn<1,-200,(-BR60*BR61+SQRT(BQ61))/(1+BR60^2))) -> -200 | BR62: =IF(BQ62=-200,BR58+BR59*(BQ62-BQ58),BR58+BR60*(BQ62-BQ58)) -> -12.50429454 | BS62: =IF(BS49=0,-200,IF(ABS(SIN(BS54))*nn<1,-200,(-BT60*BT61+SQRT(BS61))/(1+BT60^2))) -> -200 | BT62: =IF(BS62=-200,BT58+BT59*(BS62-BS58),BT58+BT60*(BS62-BS58)) -> -11.15576647 | BU62: =IF(BU49=0,-200,IF(ABS(SIN(BU54))*nn<1,-200,(-BV60*BV61+SQRT(BU61))/(1+BV60^2))) -> -200 | BV62: =IF(BU62=-200,BV58+BV59*(BU62-BU58),BV58+BV60*(BU62-BU58)) -> -9.813672025 | BW62: =IF(BW49=0,-200,IF(ABS(SIN(BW54))*nn<1,-200,(-BX60*BX61+SQRT(BW61))/(1+BX60^2))) -> -200 | BX62: =IF(BW62=-200,BX58+BX59*(BW62-BW58),BX58+BX60*(BW62-BW58)) -> -8.473072284 | BY62: =IF(BY49=0,-200,IF(ABS(SIN(BY54))*nn<1,-200,(-BZ60*BZ61+SQRT(BY61))/(1+BZ60^2))) -> -200 | BZ62: =IF(BY62=-200,BZ58+BZ59*(BY62-BY58),BZ58+BZ60*(BY62-BY58)) -> -7.129039886 | CA62: =IF(CA49=0,-200,IF(ABS(SIN(CA54))*nn<1,-200,(-CB60*CB61+SQRT(CA61))/(1+CB60^2))) -> -200 | CB62: =IF(CA62=-200,CB58+CB59*(CA62-CA58),CB58+CB60*(CA62-CA58)) -> -5.77660933 | CC62: =IF(CC49=0,-200,IF(ABS(SIN(CC54))*nn<1,-200,(-CD60*CD61+SQRT(CC61))/(1+CD60^2))) -> -200 | CD62: =IF(CC62=-200,CD58+CD59*(CC62-CC58),CD58+CD60*(CC62-CC58)) -> -4.410726253 | CE62: =IF(CE49=0,-200,IF(ABS(SIN(CE54))*nn<1,-200,(-CF60*CF61+SQRT(CE61))/(1+CF60^2))) -> -200 | CF62: =IF(CE62=-200,CF58+CF59*(CE62-CE58),CF58+CF60*(CE62-CE58)) -> -3.026194432 | CG62: =IF(CG49=0,-200,IF(ABS(SIN(CG54))*nn<1,-200,(-CH60*CH61+SQRT(CG61))/(1+CH60^2))) -> -200 | CH62: =IF(CG62=-200,CH58+CH59*(CG62-CG58),CH58+CH60*(CG62-CG58)) -> -1.617619143 | CI62: =IF(CI49=0,-200,IF(ABS(SIN(CI54))*nn<1,-200,(-CJ60*CJ61+SQRT(CI61))/(1+CJ60^2))) -> -200 | CJ62: =IF(CI62=-200,CJ58+CJ59*(CI62-CI58),CJ58+CJ60*(CI62-CI58)) -> -0.1793453618 | CK62: =IF(CK49=0,-200,IF(ABS(SIN(CK54))*nn<1,-200,(-CL60*CL61+SQRT(CK61))/(1+CL60^2))) -> -200 | CL62: =IF(CK62=-200,CL58+CL59*(CK62-CK58),CL58+CL60*(CK62-CK58)) -> 1.294611004 | CM62: X4,Y4
U63: =SIN(U60)*nn -> 0.8777643916 | V63: =SIN(V60)*nn -> 0.8777643916 | BE63: klisi =refraction | BF63: sin(inc)*nn | BG63: =SIN(BG54)*nn -> 0.1397553119 | BI63: =SIN(BI54)*nn -> 0.1261059491 | BK63: =SIN(BK54)*nn -> 0.1125604237 | BM63: =SIN(BM54)*nn -> 0.09909804458 | BO63: =SIN(BO54)*nn -> 0.08569877558 | BQ63: =SIN(BQ54)*nn -> 0.07234307233 | BS63: =SIN(BS54)*nn -> 0.05901172833 | BU63: =SIN(BU54)*nn -> 0.04568572759 | BW63: =SIN(BW54)*nn -> 0.03234610089 | BY63: =SIN(BY54)*nn -> 0.01897378301 | CA63: =SIN(CA54)*nn -> 0.005549468175 | CC63: =SIN(CC54)*nn -> -0.007946538811 | CE63: =SIN(CE54)*nn -> -0.02153447879 | CG63: =SIN(CG54)*nn -> -0.03523530484 | CI63: =SIN(CI54)*nn -> -0.04907086269 | CK63: =SIN(CK54)*nn -> -0.06306408917 | CL63: =TAN(CK59) -> -0.06318986992 | CM63: sin(inc)*nn
T64: x4,y4 | U64: =U62 -> 1.071175724 | V64: =U64 -> 1.071175724 | BF64: `X1,Y1 | BG64: =BG7 -> 200 | BH64: =BH45 -> 13 | BI64: 200 | BJ64: =BJ45 -> 11 | BK64: 200 | BL64: =BL45 -> 9 | BM64: 200 | BN64: =BN45 -> 7 | BO64: 200 | BP64: =BP45 -> 5 | BQ64: 200 | BR64: =BR45 -> 3 | BS64: 200 | BT64: =BT45 -> 1 | BU64: 200 | BV64: =BV45 -> -1 | BW64: 200 | BX64: =BX45 -> -3 | BY64: 200 | BZ64: =BZ45 -> -5 | CA64: 200 | CB64: =CB45 -> -7 | CC64: 200 | CD64: =CD45 -> -9 | CE64: 200 | CF64: =CF45 -> -11 | CG64: 200 | CH64: =CH45 -> -13 | CI64: 200 | CJ64: =CJ45 -> -15 | CK64: 200 | CL64: =CL45 -> -17 | CM64: `X1,Y1
U65: =(-V61*TAN(U64)+SQRT(RADIUS_OF_SEMICIRCLE^2*(1+(TAN(U64))^2)-V61^2))/(1+(TAN(U64))^2) -> 35.41445908 | V65: =V61+TAN(V64)*U65 -> 66.11214781 | BF65: X2,Y2 | BG65: =BG49*COS(radiansg)+BH49*SIN(radiansg)+XC -> 73.86474125 | BH65: =-BG49*SIN(radiansg)+BH49*COS(radiansg)+YC -> 13 | BI65: =BI49*COS(radiansg)+BJ49*SIN(radiansg)+XC -> 74.18894796 | BJ65: =-BI49*SIN(radiansg)+BJ49*COS(radiansg)+YC -> 11 | BK65: =BK49*COS(radiansg)+BL49*SIN(radiansg)+XC -> 74.45804188 | BL65: =-BK49*SIN(radiansg)+BL49*COS(radiansg)+YC -> 9 | BM65: =BM49*COS(radiansg)+BN49*SIN(radiansg)+XC -> 74.67261881 | BN65: =-BM49*SIN(radiansg)+BN49*COS(radiansg)+YC -> 7 | BO65: =BO49*COS(radiansg)+BP49*SIN(radiansg)+XC -> 74.83314774 | BP65: =-BO49*SIN(radiansg)+BP49*COS(radiansg)+YC -> 5 | BQ65: =BQ49*COS(radiansg)+BR49*SIN(radiansg)+XC -> 74.93997598 | BR65: =-BQ49*SIN(radiansg)+BR49*COS(radiansg)+YC -> 3 | BS65: =BS49*COS(radiansg)+BT49*SIN(radiansg)+XC -> 74.99333304 | BT65: =-BS49*SIN(radiansg)+BT49*COS(radiansg)+YC -> 1 | BU65: =BU49*COS(radiansg)+BV49*SIN(radiansg)+XC -> 74.99333304 | BV65: =-BU49*SIN(radiansg)+BV49*COS(radiansg)+YC -> -1 | BW65: =BW49*COS(radiansg)+BX49*SIN(radiansg)+XC -> 74.93997598 | BX65: =-BW49*SIN(radiansg)+BX49*COS(radiansg)+YC -> -3 | BY65: =BY49*COS(radiansg)+BZ49*SIN(radiansg)+XC -> 74.83314774 | BZ65: =-BY49*SIN(radiansg)+BZ49*COS(radiansg)+YC -> -5 | CA65: =CA49*COS(radiansg)+CB49*SIN(radiansg)+XC -> 74.67261881 | CB65: =-CA49*SIN(radiansg)+CB49*COS(radiansg)+YC -> -7 | CC65: =CC49*COS(radiansg)+CD49*SIN(radiansg)+XC -> 74.45804188 | CD65: =-CC49*SIN(radiansg)+CD49*COS(radiansg)+YC -> -9 | CE65: =CE49*COS(radiansg)+CF49*SIN(radiansg)+XC -> 74.18894796 | CF65: =-CE49*SIN(radiansg)+CF49*COS(radiansg)+YC -> -11 | CG65: =CG49*COS(radiansg)+CH49*SIN(radiansg)+XC -> 73.86474125 | CH65: =-CG49*SIN(radiansg)+CH49*COS(radiansg)+YC -> -13 | CI65: =CI49*COS(radiansg)+CJ49*SIN(radiansg)+XC -> 73.48469228 | CJ65: =-CI49*SIN(radiansg)+CJ49*COS(radiansg)+YC -> -15 | CK65: =CK49*COS(radiansg)+CL49*SIN(radiansg)+XC -> 73.04792947 | CL65: =-CK49*SIN(radiansg)+CL49*COS(radiansg)+YC -> -17 | CM65: X2,Y2
T66: X1,Y1 | U66: =IF(U63<1,-200,U65) -> -200 | V66: =IF(V62<1,V61+TAN(V64)*(U66--U61),V65) -> 66.11214781 | BF66: X3,Y3 | BG66: =BG58*COS(radiansg)+BH58*SIN(radiansg)+XC -> 0.3037837044 | BH66: =-BG58*SIN(radiansg)+BH58*COS(radiansg)+YC -> 8.699227102 | BI66: =BI58*COS(radiansg)+BJ58*SIN(radiansg)+XC -> 0.2568389041 | BJ66: =-BI58*SIN(radiansg)+BJ58*COS(radiansg)+YC -> 7.354903912 | BK66: =BK58*COS(radiansg)+BL58*SIN(radiansg)+XC -> 0.2099890436 | BL66: =-BK58*SIN(radiansg)+BL58*COS(radiansg)+YC -> 6.013299441 | BM66: =BM58*COS(radiansg)+BN58*SIN(radiansg)+XC -> 0.1632209071 | BN66: =-BM58*SIN(radiansg)+BN58*COS(radiansg)+YC -> 4.674035236 | BO66: =BO58*COS(radiansg)+BP58*SIN(radiansg)+XC -> 0.1165219822 | BP66: =-BO58*SIN(radiansg)+BP58*COS(radiansg)+YC -> 3.336752997 | BQ66: =BQ58*COS(radiansg)+BR58*SIN(radiansg)+XC -> 0.06988031183 | BR66: =-BQ58*SIN(radiansg)+BR58*COS(radiansg)+YC -> 2.001110309 | BS66: =BS58*COS(radiansg)+BT58*SIN(radiansg)+XC -> 0.02328435702 | BT66: =-BS58*SIN(radiansg)+BT58*COS(radiansg)+YC -> 0.6667767451 | BU66: =BU58*COS(radiansg)+BV58*SIN(radiansg)+XC -> -0.02327713002 | BV66: =-BU58*SIN(radiansg)+BV58*COS(radiansg)+YC -> -0.6665697908 | BW66: =BW58*COS(radiansg)+BX58*SIN(radiansg)+XC -> -0.06981522765 | BX66: =-BW58*SIN(radiansg)+BX58*COS(radiansg)+YC -> -1.999246542 | BY66: =BY58*COS(radiansg)+BZ58*SIN(radiansg)+XC -> -0.1163409634 | BZ66: =-BY58*SIN(radiansg)+BZ58*COS(radiansg)+YC -> -3.331569296 | CA66: =CA58*COS(radiansg)+CB58*SIN(radiansg)+XC -> -0.1628654325 | CB66: =-CA58*SIN(radiansg)+CB58*COS(radiansg)+YC -> -4.663855778 | CC66: =CC58*COS(radiansg)+CD58*SIN(radiansg)+XC -> -0.2093999187 | CD66: =-CC58*SIN(radiansg)+CD58*COS(radiansg)+YC -> -5.996429109 | CE66: =CE58*COS(radiansg)+CF58*SIN(radiansg)+XC -> -0.2559560206 | CF66: =-CE58*SIN(radiansg)+CF58*COS(radiansg)+YC -> -7.329621436 | CG66: =CG58*COS(radiansg)+CH58*SIN(radiansg)+XC -> -0.3025457871 | CH66: =-CG58*SIN(radiansg)+CH58*COS(radiansg)+YC -> -8.663777789 | CI66: =CI58*COS(radiansg)+CJ58*SIN(radiansg)+XC -> -0.3491818642 | CJ66: =-CI58*SIN(radiansg)+CJ58*COS(radiansg)+YC -> -9.999260306 | CK66: =CK58*COS(radiansg)+CL58*SIN(radiansg)+XC -> -0.3958776589 | CL66: =-CK58*SIN(radiansg)+CL58*COS(radiansg)+YC -> -11.33645291 | CM66: X3,Y3
T67: X2,Y2 | U67: =THETA -> 34 | V67: =THETA -> 34 | BF67: for graph | BG67: =BE67+1 -> 1 | BH67: =BG67 -> 1 | BI67: =BG67+1 -> 2 | BJ67: =BI67 -> 2 | BK67: =BI67+1 -> 3 | BL67: =BK67 -> 3 | BM67: =BK67+1 -> 4 | BN67: =BM67 -> 4 | BO67: =BM67+1 -> 5 | BP67: =BO67 -> 5 | BQ67: =BO67+1 -> 6 | BR67: =BQ67 -> 6 | BS67: =BQ67+1 -> 7 | BT67: =BS67 -> 7 | BU67: =BS67+1 -> 8 | BV67: =BU67 -> 8 | BW67: =BU67+1 -> 9 | BX67: =BW67 -> 9 | BY67: =BW67+1 -> 10 | BZ67: =BY67 -> 10 | CA67: =BY67+1 -> 11 | CB67: =CA67 -> 11 | CC67: =CA67+1 -> 12 | CD67: =CC67 -> 12 | CE67: =CC67+1 -> 13 | CF67: =CE67 -> 13 | CG67: =CE67+1 -> 14 | CH67: =CG67 -> 14 | CI67: =CG67+1 -> 15 | CJ67: =CI67 -> 15 | CK67: =CI67+1 -> 16 | CL67: =CK67 -> 16 | CM67: for graph
T68: X3,Y3 | U68: =U48*COS(radiansg)+V48*SIN(radiansg)+XC -> 124.3556359 | V68: =-U48*SIN(radiansg)+V48*COS(radiansg)+YC -> 83.87893552 | BF68: `X1,Y1 | BG68: =IF(circle_right,BG64,BG7) -> 200 | BH68: 15 | BI68: 200 | BJ68: 13 | BK68: 200 | BL68: 11 | BM68: 200 | BN68: 9 | BO68: 200 | BP68: 7 | BQ68: 200 | BR68: 5 | BS68: 200 | BT68: 3 | BU68: 200 | BV68: 1 | BW68: 200 | BX68: -1 | BY68: 200 | BZ68: -3 | CA68: 200 | CB68: -5 | CC68: 200 | CD68: -7 | CE68: 200 | CF68: -9 | CG68: 200 | CH68: -11 | CI68: 200 | CJ68: -13 | CK68: 200 | CL68: -15 | CM68: `X1,Y1
T69: x4,y4 | U69: =U56*COS(radiansg)+V56*SIN(radiansg)+XC -> 61.39271999 | V69: =-U56*SIN(radiansg)+V56*COS(radiansg)+YC -> 42.3212765 | BF69: X2,Y2 | BG69: =IF(circle_right,BG65,BG40) -> 0.5238115424 | BH69: 15 | BI69: 0.4539700034 | BJ69: 13 | BK69: 0.3841284644 | BL69: 11 | BM69: 0.3142869254 | BN69: 9 | BO69: 0.2444453864 | BP69: 7 | BQ69: 0.1746038475 | BR69: 5 | BS69: 0.1047623085 | BT69: 3 | BU69: 0.03492076949 | BV69: 1 | BW69: -0.03492076949 | BX69: -1 | BY69: -0.1047623085 | BZ69: -3 | CA69: -0.1746038475 | CB69: -5 | CC69: -0.2444453864 | CD69: -7 | CE69: -0.3142869254 | CF69: -9 | CG69: -0.3841284644 | CH69: -11 | CI69: -0.4539700034 | CJ69: -13 | CK69: -0.5238115424 | CL69: -15 | CM69: X2,Y2
T70: REF CIR RIGHT | U70: =U61*COS(radiansg)+V61*SIN(radiansg)+XC -> 0.04285372521 | V70: =-U61*SIN(radiansg)+V61*COS(radiansg)+YC -> 1.227170129 | BF70: X3,Y3 | BG70: =IF(circle_right,BG66,BG41) -> -73.30405111 | BH70: =IF(circle_right,BH66,BH21) -> 13.29132333 | BI70: =IF(circle_right,BI66,BI41) -> -73.70762014 | BJ70: =IF(circle_right,BJ66,BJ21) -> 11.2823391 | BK70: =IF(circle_right,BK66,BK41) -> -74.0553111 | BL70: =IF(circle_right,BL66,BL21) -> 9.274655038 | BM70: =IF(circle_right,BM66,BM41) -> -74.34785441 | BN70: =IF(circle_right,BN66,BN21) -> 7.268254145 | BO70: =IF(circle_right,BO66,BO41) -> -74.58584669 | BP70: =IF(circle_right,BP66,BP21) -> 5.263122541 | BQ70: =IF(circle_right,BQ66,BQ41) -> -74.76975752 | BR70: =IF(circle_right,BR66,BR21) -> 3.259249299 | BS70: =IF(circle_right,BS66,BS41) -> -74.89993468 | BT70: =IF(circle_right,BT66,BT21) -> 1.256626327 | BU70: =IF(circle_right,BU66,BU41) -> -74.97660795 | BV70: =IF(circle_right,BV66,BV21) -> -0.7447517221 | BW70: =IF(circle_right,BW66,BW41) -> -74.99989161 | BX70: =IF(circle_right,BX66,BX21) -> -2.744887506 | BY70: =IF(circle_right,BY66,BY41) -> -74.96978568 | BZ70: =IF(circle_right,BZ66,BZ21) -> -4.743781026 | CA70: =IF(circle_right,CA66,CA41) -> -74.88617585 | CB70: =IF(circle_right,CB66,CB21) -> -6.741429623 | CC70: =IF(circle_right,CC66,CC41) -> -74.74883236 | CD70: =IF(circle_right,CD66,CD21) -> -8.73782795 | CE70: =IF(circle_right,CE66,CE41) -> -74.55740741 | CF70: =IF(circle_right,CF66,CF21) -> -10.73296791 | CG70: =IF(circle_right,CG66,CG41) -> -74.31143143 | CH70: =IF(circle_right,CH66,CH21) -> -12.72683859 | CI70: =IF(circle_right,CI66,CI41) -> -74.0103078 | CJ70: =IF(circle_right,CJ66,CJ21) -> -14.7194261 | CK70: =IF(circle_right,CK66,CK41) -> -73.6533061 | CL70: =IF(circle_right,CL66,CL21) -> -16.71071344 | CM70: X3,Y3
U71: =U66*COS(radiansg)+V66*SIN(radiansg)+XC -> -197.5708847 | V71: =-U66*SIN(radiansg)+V66*COS(radiansg)+YC -> 73.05177341 | BE71: GONIA ME X | BF71: X4,Y4 | BG71: =IF(circle_right,BG62*COS(radiansg)+BH62*SIN(radiansg),BG42) -> -501.1683878 | BH71: -24.73071685 | BI71: -501.0009151 | BJ71: -19.93492632 | BK71: =IF(circle_right,BK62*COS(radiansg)+BL62*SIN(radiansg),BK42) -> -500.8449591 | BL71: =IF(circle_right,BL62*COS(radiansg)+BM62*SIN(radiansg),BL42) -> -15.46893017 | BM71: -500.698286 | BN71: -11.26876183 | BO71: -500.5588559 | BP71: -7.276005438 | BQ71: -500.4247753 | BR71: -3.436440952 | BS71: -500.2942576 | BT71: 0.3010986552 | BU71: -500.1655876 | BV71: 3.985723018 | BW71: -500.0370911 | BX71: 7.665383674 | BY71: -499.9071042 | BZ71: 11.38771892 | CA71: -499.7739457 | CB71: =IF(circle_right,CB62*COS(radiansg)+CA62*SIN(radiansg),CB42) -> 15.20088134 | CC71: -499.6358863 | CD71: =IF(circle_right,CD62*COS(radiansg)+CC62*SIN(radiansg),CD42) -> 19.15438351 | CE71: -499.4911183 | CF71: =IF(circle_right,CF62*COS(radiansg)+CE62*SIN(radiansg),CF42) -> 23.29999909 | CG71: -499.3377196 | CH71: =IF(circle_right,CH62*COS(radiansg)+CG62*SIN(radiansg),CH42) -> 27.69276118 | CI71: -499.1736148 | CJ71: =IF(circle_right,CJ62*COS(radiansg)+CI62*SIN(radiansg),CJ42) -> 32.39210904 | CK71: =IF(circle_right,CK62*COS(radiansg)+CL62*SIN(radiansg),CK42) -> -498.9965267 | CL71: =IF(circle_right,CL62*COS(radiansg)+CK62*SIN(radiansg),CL42) -> 37.46324828 | CM71: X4,Y4
T72: REF CIR LEFT | U72: =IF(U63<1,ATAN(V70/U70),FALSE) -> 1.535889742 | V72: =IF(U72,DEGREES(U72),"NO REFRACTION") -> 88 | BF72: t4 | BG72: =(BH71-BH70)/(BG71-BG70) -> 0.08886470995 | BH72: =BG72 -> 0.08886470995 | BI72: =(BJ71-BJ70)/(BI71-BI70) -> 0.07305816821 | BJ72: =BI72 -> 0.07305816821 | BK72: =(BL71-BL70)/(BK71-BK70) -> 0.05797606697 | BL72: =BK72 -> 0.05797606697 | BM72: =(BN71-BN70)/(BM71-BM70) -> 0.0434783563 | BN72: =BM72 -> 0.0434783563 | BO72: =(BP71-BP70)/(BO71-BO70) -> 0.02943643778 | BP72: =BO72 -> 0.02943643778 | BQ72: =(BR71-BR70)/(BQ71-BQ70) -> 0.01573032144 | BR72: =BQ72 -> 0.01573032144 | BS72: =(BT71-BT70)/(BS71-BS70) -> 0.002246216322 | BT72: =BS72 -> 0.002246216322 | BU72: =(BV71-BV70)/(BU71-BU70) -> -0.01112558172 | BV72: =BU72 -> -0.01112558172 | BW72: =(BX71-BX70)/(BW71-BW70) -> -0.02449261193 | BX72: =BW72 -> -0.02449261193 | BY72: =(BZ71-BZ70)/(BY71-BY70) -> -0.03796206933 | BZ72: =BY72 -> -0.03796206933 | CA72: =(CB71-CB70)/(CA71-CA70) -> -0.05164260428 | CB72: =CA72 -> -0.05164260428 | CC72: =(CD71-CD70)/(CC71-CC70) -> -0.06564617867 | CD72: =CC72 -> -0.06564617867 | CE72: =(CF71-CF70)/(CE71-CE70) -> -0.08009006142 | CF72: =CE72 -> -0.08009006142 | CG72: =(CH71-CH70)/(CG71-CG70) -> -0.09509905832 | CH72: =CG72 -> -0.09509905832 | CI72: =(CJ71-CJ70)/(CI71-CI70) -> -0.1108080927 | CJ72: =CI72 -> -0.1108080927 | CK72: =(CL71-CL70)/(CK71-CK70) -> -0.1273652878 | CL72: =CK72 -> -0.1273652878 | CM72: t4
BE73: posibile cut | BF73: t2 | BG73: =(BH68-BH69)/(BG68-BG69) -> -8.905107187e-18 | BI73: =(BJ68-BJ69)/(BI68-BI69) -> -8.90199038e-18 | BK73: =(BL68-BL69)/(BK68-BK69) -> -8.898875754e-18 | BM73: =(BN68-BN69)/(BM68-BM69) -> -8.895763307e-18 | BO73: =(BP68-BP69)/(BO68-BO69) -> -4.446326519e-18 | BQ73: =(BR68-BR69)/(BQ68-BQ69) -> 4.44477247e-18 | BS73: =(BT68-BT69)/(BS68-BS69) -> -2.221609754e-18 | BU73: =(BV68-BV69)/(BU68-BU69) -> -1.110416908e-18 | BW73: =(BX68-BX69)/(BW68-BW69) -> 1.110029209e-18 | BY73: =(BZ68-BZ69)/(BY68-BY69) -> 0 | CA73: =(CB68-CB69)/(CA68-CA69) -> 4.437018496e-18 | CC73: =(CD68-CD69)/(CC68-CC69) -> 0 | CE73: =(CF68-CF69)/(CE68-CE69) -> 8.867848952e-18 | CG73: =(CH68-CH69)/(CG68-CG69) -> 8.864758167e-18 | CI73: =(CJ68-CJ69)/(CI68-CI69) -> 8.861669536e-18 | CK73: =(CL68-CL69)/(CK68-CK69) -> 0 | CM73: t2
U74: =U34 -> 0.04337356276 | V74: =V34 -> 2.485122088 | BG74: =(BH68-BH71+BG72*BG71-BG73*BG68)/(BG72-BG73) -> -54.07620834 | BH74: ="Paralllel band with inclination = " & ANGLE_p & "°" & " index of refraction = " & nn -> Paralllel band with inclination = 0° index of refraction = 1,5 | BI74: =(BJ68-BJ71+BI72*BI71-BI73*BI68)/(BI72-BI73) -> -50.19675283 | BK74: =(BL68-BL71+BK72*BK71-BK73*BK68)/(BK72-BK73) -> -44.29570421 | BM74: =(BN68-BN71+BM72*BM71-BM73*BM68)/(BM72-BM73) -> -34.51778718 | BO74: =(BP68-BP71+BO72*BO71-BO73*BO68)/(BO72-BO73) -> -15.5815109 | BQ74: =(BR68-BR71+BQ72*BQ71-BQ73*BQ68)/(BQ72-BQ73) -> 35.8923614 | BS74: =(BT68-BT71+BS72*BS71-BS73*BS68)/(BS72-BS73) -> 701.2379894 | BU74: =(BV68-BV71+BU72*BU71-BU73*BU68)/(BU72-BU73) -> -231.8000232 | BW74: =(BX68-BX71+BW72*BW71-BW73*BW68)/(BW72-BW73) -> -146.241273 | BY74: =(BZ68-BZ71+BY72*BY71-BY73*BY68)/(BY72-BY73) -> -120.9046111 | CA74: =(CB68-CB71+CA72*CA71-CA73*CA68)/(CA72-CA73) -> -108.6069699 | CC74: =(CD68-CD71+CC72*CC71-CC73*CC68)/(CC72-CC73) -> -101.2214768 | CE74: =(CF68-CF71+CE72*CE71-CE73*CE68)/(CE72-CE73) -> -96.19514726 | CG74: =(CH68-CH71+CG72*CG71-CG73*CG68)/(CG72-CG73) -> -92.46974572 | CI74: =(CJ68-CJ71+CI72*CI71-CI73*CI68)/(CI72-CI73) -> -89.5274605 | CK74: =(CL68-CL71+CK72*CK71-CK73*CK68)/(CK72-CK73) -> -87.0848577
O75: =COUNTA(O9:O74) -> 3 | P75: =COUNTA(P9:P74) -> 3 | Q75: =COUNTA(Q9:Q74) -> 1 | R75: =COUNTA(R9:R74) -> 2 | U75: =THETA -> 34 | V75: =THETA -> 34 | BG75: =IF(OR(BG74<0,ABS(BG74)>RADIUS_OF_SEMICIRCLE),"",BG74) ->  | BI75: =IF(OR(BI74<0,ABS(BI74)>RADIUS_OF_SEMICIRCLE),"",BI74) ->  | BK75: =IF(OR(BK74<0,ABS(BK74)>RADIUS_OF_SEMICIRCLE),"",BK74) ->  | BM75: =IF(OR(BM74<0,ABS(BM74)>RADIUS_OF_SEMICIRCLE),"",BM74) ->  | BO75: =IF(OR(BO74<0,ABS(BO74)>RADIUS_OF_SEMICIRCLE),"",BO74) ->  | BQ75: =IF(OR(BQ74<0,ABS(BQ74)>RADIUS_OF_SEMICIRCLE),"",BQ74) -> 35.8923614 | BS75: =IF(OR(BS74<0,ABS(BS74)>RADIUS_OF_SEMICIRCLE),"",BS74) ->  | BU75: =IF(OR(BU74<0,ABS(BU74)>RADIUS_OF_SEMICIRCLE),"",BU74) ->  | BW75: =IF(OR(BW74<0,ABS(BW74)>RADIUS_OF_SEMICIRCLE),"",BW74) ->  | BY75: =IF(OR(BY74<0,ABS(BY74)>RADIUS_OF_SEMICIRCLE),"",BY74) ->  | CA75: =IF(OR(CA74<0,ABS(CA74)>RADIUS_OF_SEMICIRCLE),"",CA74) ->  | CC75: =IF(OR(CC74<0,ABS(CC74)>RADIUS_OF_SEMICIRCLE),"",CC74) ->  | CE75: =IF(OR(CE74<0,ABS(CE74)>RADIUS_OF_SEMICIRCLE),"",CE74) ->  | CG75: =IF(OR(CG74<0,ABS(CG74)>RADIUS_OF_SEMICIRCLE),"",CG74) ->  | CI75: =IF(OR(CI74<0,ABS(CI74)>RADIUS_OF_SEMICIRCLE),"",CI74) ->  | CK75: =IF(OR(CK74<0,ABS(CK74)>RADIUS_OF_SEMICIRCLE),"",CK74) -> 
U76: =IF(circle_left,V74,V72) -> 2.485122088 | BE76: X4,Y4 | BF76: Y4C5Y1CT | BG76: =BH71+BG72*(BG75-BG71) ->  | BH76: =BH68+BG73*(BG75-BG68) ->  | BI76: =BJ71+BI72*(BI75-BI71) ->  | BJ76: =BJ68+BI73*(BI75-BI68) ->  | BK76: =BL71+BK72*(BK75-BK71) ->  | BL76: =BL68+BK73*(BK75-BK68) ->  | BM76: =BN71+BM72*(BM75-BM71) ->  | BN76: =BN68+BM73*(BM75-BM68) ->  | BO76: =BP71+BO72*(BO75-BO71) ->  | BP76: =BP68+BO73*(BO75-BO68) ->  | BQ76: =BR71+BQ72*(BQ75-BQ71) -> 5 | BR76: =BR68+BQ73*(BQ75-BQ68) -> 5 | BS76: =BT71+BS72*(BS75-BS71) ->  | BT76: =BT68+BS73*(BS75-BS68) ->  | BU76: =BV71+BU72*(BU74-BU71) -> 1 | BV76: =BV68+BU73*(BU74-BU68) -> 1 | BW76: =BX71+BW72*(BW74-BW71) -> -1 | BX76: =BX68+BW73*(BW74-BW68) -> -1 | BY76: =BZ71+BY72*(BY74-BY71) -> -3 | BZ76: =BZ68+BY73*(BY74-BY68) -> -3 | CA76: =CB71+CA72*(CA74-CA71) -> -5 | CB76: =CB68+CA73*(CA74-CA68) -> -5 | CC76: =CD71+CC72*(CC74-CC71) -> -7 | CD76: =CD68+CC73*(CC74-CC68) -> -7 | CE76: =CF71+CE72*(CE74-CE71) -> -9 | CF76: =CF68+CE73*(CE74-CE68) -> -9 | CG76: =CH71+CG72*(CG74-CG71) -> -11 | CH76: =CH68+CG73*(CG74-CG68) -> -11 | CI76: =CJ71+CI72*(CI74-CI71) -> -13 | CJ76: =CJ68+CI73*(CI74-CI68) -> -13 | CK76: =CL71+CK72*(CK74-CK71) -> -15 | CL76: =CL68+CK73*(CK74-CK68) -> -15
BG77: 0 | BH77: =0 -> 0 | BI77: =BG77+1 -> 1 | BJ77: =BI77 -> 1 | BK77: =BI77+1 -> 2 | BL77: =BK77 -> 2 | BM77: =BK77+1 -> 3 | BN77: =BM77 -> 3 | BO77: =BM77+1 -> 4 | BP77: =BO77 -> 4 | BQ77: =BO77+1 -> 5 | BR77: =BQ77 -> 5 | BS77: =BQ77+1 -> 6 | BT77: =BS77 -> 6 | BU77: =BS77+1 -> 7 | BV77: =BU77 -> 7 | BW77: =BU77+1 -> 8 | BX77: =BW77 -> 8 | BY77: =BW77+1 -> 9 | BZ77: =BY77 -> 9 | CA77: =BY77+1 -> 10 | CB77: =CA77 -> 10
BF78: h1 | BG78: =AVERAGE(BG75:CL75) -> 35.8923614 | BH78: =STDEV(BG75:CH75) ->  | CM78: h1
BG80: =BG72-BG73 -> 0.08886470995
BE81: X1,Y1 | BG81: =BH70-BH69 -> -1.70867667
BE82: X2,Y2 | BG82: =BG70*BG72-BG73*BG69 -> -6.51414324
BG83: =BG82+BG81 -> -8.22281991 | BI83: =150*0.5/1.5 -> 50
BG84: =BG83/BG80 -> -92.53189387
BG86: =IF(circle_right,BG71,BG42) -> -501.1683878 | BH86: -24.73071685 | BI86: -501.0009151 | BJ86: -19.93492632 | BK86: -500.8449591 | BL86: -15.46893017 | BM86: -500.698286 | BN86: -11.26876183 | BO86: -500.5588559 | BP86: -7.276005438 | BQ86: -500.4247753 | BR86: -3.436440952 | BS86: -500.2942576 | BT86: 0.3010986552 | BU86: -500.1655876 | BV86: 3.985723018 | BW86: -500.0370911 | BX86: 7.665383674 | BY86: -499.9071042 | BZ86: 11.38771892 | CA86: -499.7739457 | CB86: 15.20088134 | CC86: -499.6358863 | CD86: 19.15438351 | CE86: -499.4911183 | CF86: 23.29999909 | CG86: -499.3377196 | CH86: 27.69276118 | CI86: -499.1736148 | CJ86: 32.39210904 | CK86: -498.9965267 | CL86: 37.46324828
BF87: X=(-K*(Y11-X11*K)+SQRT(R^2*(1+K^2)-(Y11-X11*K)^2))/(1+K^) | CM87: X=(-K*(Y11-X11*K)+SQRT(R^2*(1+K^2)-(Y11-X11*K)^2))/(1+K^)
BF88: =BG88^2 -> 0.001219460142 | BG88: =TAN(RADIANS(ANGLE_p+ANGLE)) -> 0.03492076949 | CM88: =CN88^2 -> 0
BG89: =ATAN(4) -> 1.325817664
BG90: =RADIANS(ANGLE+ANGLE_p) -> 0.03490658504
BG91: =TAN(BG90) -> 0.03492076949
BG92: =BG91^2 -> 0.001219460142
BD93: =(BG95*BG86-BI95*BI86+BJ86-BH86)/(BH95-BJ95) -> -198.5370241 | BE93: =BH86+BH95*(BD93-BG86) -> 2.162531508 | BG93: =(BH71-BH70)/(BG71-BG70) -> 0.08886470995
BE94: =nn -> 1.5 | BG94: TANF
BG95: =(BH71-BH70)/(BG71-BG70) -> 0.08886470995 | BH95: =BG95 -> 0.08886470995 | BI95: =(BJ71-BJ70)/(BI71-BI70) -> 0.07305816821 | BJ95: =BI95 -> 0.07305816821 | BK95: =(BL71-BL70)/(BK71-BK70) -> 0.05797606697 | BL95: =BK95 -> 0.05797606697 | BM95: =(BN71-BN70)/(BM71-BM70) -> 0.0434783563 | BN95: =BM95 -> 0.0434783563 | BO95: =(BP71-BP70)/(BO71-BO70) -> 0.02943643778 | BP95: =BO95 -> 0.02943643778 | BQ95: =(BR71-BR70)/(BQ71-BQ70) -> 0.01573032144 | BR95: =BQ95 -> 0.01573032144 | BS95: =(BT71-BT70)/(BS71-BS70) -> 0.002246216322 | BT95: =BS95 -> 0.002246216322 | BU95: =(BV71-BV70)/(BU71-BU70) -> -0.01112558172 | BV95: =BU95 -> -0.01112558172 | BW95: =(BX71-BX70)/(BW71-BW70) -> -0.02449261193 | BX95: =BW95 -> -0.02449261193 | BY95: =(BZ71-BZ70)/(BY71-BY70) -> -0.03796206933 | BZ95: =BY95 -> -0.03796206933 | CA95: =(CB71-CB70)/(CA71-CA70) -> -0.05164260428 | CB95: =CA95 -> -0.05164260428 | CC95: =(CD71-CD70)/(CC71-CC70) -> -0.06564617867 | CD95: =CC95 -> -0.06564617867 | CE95: =(CF71-CF70)/(CE71-CE70) -> -0.08009006142 | CF95: =CE95 -> -0.08009006142 | CG95: =(CH71-CH70)/(CG71-CG70) -> -0.09509905832 | CH95: =CG95 -> -0.09509905832 | CI95: =(CJ71-CJ70)/(CI71-CI70) -> -0.1108080927 | CJ95: =CI95 -> -0.1108080927 | CK95: =(CL71-CL70)/(CK71-CK70) -> -0.1273652878 | CL95: =CK95 -> -0.1273652878
BG96: ="XCUT "&BG77 -> XCUT 0 | BH96: ="YCYT "&BH77 -> YCYT 0 | BI96: ="XCUT "&BI77 -> XCUT 1 | BJ96: ="YCYT "&BJ77 -> YCYT 1 | BK96: ="XCUT "&BK77 -> XCUT 2 | BL96: ="YCYT "&BL77 -> YCYT 2 | BM96: ="XCUT "&BM77 -> XCUT 3 | BN96: ="YCYT "&BN77 -> YCYT 3 | BO96: ="XCUT "&BO77 -> XCUT 4 | BP96: ="YCYT "&BP77 -> YCYT 4 | BQ96: ="XCUT "&BQ77 -> XCUT 5 | BR96: ="YCYT "&BR77 -> YCYT 5 | BS96: ="XCUT "&BS77 -> XCUT 6 | BT96: ="YCYT "&BT77 -> YCYT 6 | BU96: ="XCUT "&BU77 -> XCUT 7 | BV96: ="YCYT "&BV77 -> YCYT 7 | BW96: ="XCUT "&BW77 -> XCUT 8 | BX96: ="YCYT "&BX77 -> YCYT 8 | BY96: ="XCUT "&BY77 -> XCUT 9 | BZ96: ="YCYT "&BZ77 -> YCYT 9 | CA96: ="XCUT "&CA77 -> XCUT 10 | CB96: ="YCYT "&CB77 -> YCYT 10 | CC96: ="XCUT "&CC77 -> XCUT | CD96: ="YCYT "&CD77 -> YCYT | CE96: ="XCUT "&CE77 -> XCUT | CF96: ="YCYT "&CF77 -> YCYT | CG96: ="XCUT "&CG77 -> XCUT | CH96: ="YCYT "&CH77 -> YCYT | CI96: ="XCUT "&CI77 -> XCUT | CJ96: ="YCYT "&CJ77 -> YCYT | CK96: ="XCUT "&CK77 -> XCUT | CL96: ="YCYT "&CL77 -> YCYT
BA97: xcut(arkoft) = (Y1(j) - Y1(i) + X1(i) * TANF(i) - X1(j) * TANF(j)) / (TANF(i) - TANF(j))
BA98: ycut(arkoft) = Y1(i) + TANF(i) * (xcut(arkoft) - X1(i))
BA99: X1(i) = Worksheets("CALC_POINT").Cells(86, 58 + 2 * i - 1).Value | BG99: =(BJ86-BH86+BG86*BG95-BI86*BI95)/(BG95-BI95) -> -198.5370241 | BH99: =$BH$86+$BH$95*(BG99-$BG$86) -> 2.162531508
BA100: Y1(i) = Worksheets("CALC_POINT").Cells(86, 59 + 2 * i - 1).Value | BG100: =(BL86-BH86+BG95*BG86-BK95*BK86)/(BG95-BK95) -> -201.9310418 | BH100: =$BH$86+$BH$95*(BG100-$BG$86) -> 1.860923114 | BI100: =(BL86-BJ86+BI95*BI86-BK95*BK86)/(BI95-BK95) -> -205.4880847 | BJ100: =$BJ$86+$BJ$95*(BI100-$BI$86) -> 1.654699755
BG101: =(BN86-BH86+BG95*BG86-BM95*BM86)/(BG95-BM95) -> -205.0107394 | BH101: 1.587246676 | BI101: =(BN86-BJ86+BI95*BI86-BM95*BM86)/(BI95-BM95) -> -208.4700938 | BJ101: 1.436839635 | BK101: =(BN86-BL86+BK95*BK86-BM95*BM86)/(BK95-BM95) -> -211.5723051 | BL101: =$BL$86+$BL$95*(BK101-$BK$86) -> 1.301960584
BG102: =(BP86-BH86+BG95*BG86-BP95*BO86)/(BG95-BP95) -> -207.7597403 | BH102: 1.342957508 | BI102: =(BP86-BJ86+BI95*BI86-BO95*BO86)/(BI95-BO95) -> -211.1016354 | BJ102: 1.24458402 | BK102: =(BP86-BL86+BK95*BK86-BO95*BO86)/(BK95-BO95) -> -214.0681821 | BL102: =$BL$86+$BL$95*(BK102-$BK$86) -> 1.157259455 | BM102: =(BP86-BN86+BM95*BM86-BO95*BO86)/(BM95-BO95) -> -216.6450737 | BN102: =$BN$86+$BN$95*(BM102-$BM$86) -> 1.081404945
BC103: =IF(circle_left,"circle left","circle right") -> circle left | BG103: =(BR86-BH86+BG95*BG86-BQ95*BQ86)/(BG95-BQ95) -> -210.1619397 | BH103: 1.129486753 | BI103: =(BR86-BJ86+BI95*BI86-BQ95*BQ86)/(BI95-BQ95) -> -213.3671833 | BJ103: 1.079067241 | BK103: =(BR86-BL86+BK95*BK86-BQ95*BQ86)/(BK95-BQ95) -> -216.1800906 | BL103: =$BL$86+$BL$95*(BK103-$BK$86) -> 1.034819306 | BM103: =(BR86-BN86+BM95*BM86-BQ95*BQ86)/(BM95-BQ95) -> -218.5875526 | BN103: =$BN$86+$BN$95*(BM103-$BM$86) -> 0.9969491539 | BO103: =(BR86-BP86+BO95*BO86-BQ95*BQ86)/(BO95-BQ95) -> -220.5776226 | BP103: =$BP$86+$BP$95*(BO103-$BO$86) -> 0.9656447131
BC104: 150 | BD104: 150 | BG104: =(BT86-BH86+BG95*BG86-BS95*BS86)/(BG95-BS95) -> -212.201783 | BH104: 0.9482166739 | BI104: =(BT86-BJ86+BI95*BI86-BS95*BS86)/(BI95-BS95) -> -215.2520107 | BJ104: 0.9413652025 | BK104: =(BT86-BL86+BK95*BK86-BS95*BS86)/(BK95-BS95) -> -217.8944101 | BL104: =$BL$86+$BL$95*(BK104-$BK$86) -> 0.9354298019 | BM104: =(BT86-BN86+BM95*BM86-BS95*BS86)/(BM95-BS95) -> -220.1173374 | BN104: =$BN$86+$BN$95*(BM104-$BM$86) -> 0.9304366264 | BO104: =(BT86-BP86+BO95*BO86-BS95*BS86)/(BO95-BS95) -> -221.9105278 | BP104: =$BP$86+$BP$95*(BO104-$BO$86) -> 0.9264087328 | BQ104: =(BT86-BR86+BQ95*BQ86-BS95*BS86)/(BQ95-BS95) -> -223.2653788 | BR104: =$BR$86+$BR$95*(BQ104-$BQ$86) -> 0.9233654444
BC105: PUSH BUTTON | BG105: =(BV86-BH86+BG95*BG86-BU95*BU86)/(BG95-BU95) -> -213.8645294 | BH105: 0.8004571978 | BI105: =(BV86-BJ86+BI95*BI86-BU95*BU86)/(BI95-BU95) -> -216.7424583 | BJ105: 0.8324758316 | BK105: =(BV86-BL86+BK95*BK86-BU95*BU86)/(BK95-BU95) -> -219.1988339 | BL105: 0.859804439 | BM105: =(BV86-BN86+BM95*BM86-BU95*BU86)/(BM95-BU95) -> -221.2237283 | BN105: 0.882332567 | BO105: =(BV86-BP86+BO95*BO86-BU95*BU86)/(BO95-BU95) -> -222.8087849 | BP105: 0.8999672434 | BQ105: =(BV86-BR86+BQ95*BQ86-BU95*BU86)/(BQ95-BU95) -> -223.9474757 | BR105: =$BR$86+$BR$95*(BQ105-$BQ$86) -> 0.912635841 | BS105: =(BV86-BT86+BS95*BS86-BU95*BU86)/(BS95-BU95) -> -224.6353014 | BT105: =$BT$86+$BT$95*(BS105-$BS$86) -> 0.9202883019
BC106: 150 | BD106: 190 | BG106: =(BX86-BH86+BG95*BG86-BW95*BW86)/(BG95-BW95) -> -215.1364986 | BH106: =$BH$86+$BH$95*(BG106-$BG$86) -> 0.6874240245 | BI106: =(BX86-BJ86+BI95*BI86-BW95*BW86)/(BI95-BW95) -> -217.8261776 | BJ106: 0.7533012888 | BK106: =(BX86-BL86+BK95*BK86-BW95*BW86)/(BK95-BW95) -> -220.0826023 | BL106: 0.8085670239 | BM106: =(BX86-BN86+BM95*BM86-BW95*BW86)/(BM95-BW95) -> -221.8977865 | BN106: 0.8530256257 | BO106: =(BX86-BP86+BO95*BO86-BW95*BW86)/(BO95-BW95) -> -223.2654754 | BP106: 0.8865239004 | BQ106: =(BX86-BR86+BQ95*BQ86-BW95*BW86)/(BQ95-BW95) -> -224.1813714 | BR106: =$BR$86+$BR$95*(BQ106-$BQ$86) -> 0.9089565856 | BS106: =(BX86-BT86+BS95*BS86-BW95*BW86)/(BS95-BW95) -> -224.6432967 | BT106: 0.9202703426 | BU106: =(BX86-BV86+BU95*BU86-BW95*BW86)/(BU95-BW95) -> -224.6512949 | BV106: =$BV$86+$BV$95*(BU106-$BU$86) -> 0.9204662395
BG107: =(BZ86-BH86+BG95*BG86-BY95*BY86)/(BG95-BZ95) -> -216.0052944 | BH107: 0.6102187341 | BI107: =(BZ86-BJ86+BI95*BI86-BY95*BY86)/(BI95-BY95) -> -218.492345 | BJ107: 0.7046323198 | BK107: =(BZ86-BL86+BK95*BK86-BY95*BY86)/(BK95-BY95) -> -220.5366996 | BL107: 0.7822402508 | BM107: =(BZ86-BN86+BM95*BM86-BY95*BY86)/(BM95-BY95) -> -222.1325065 | BN107: 0.8428203848 | BO107: =(BZ86-BP86+BO95*BO86-BY95*BY86)/(BO95-BY95) -> -223.2757675 | BP107: 0.8862209383 | BQ107: =(BZ86-BR86+BQ95*BQ86-BY95*BY86)/(BQ95-BY95) -> -223.964526 | BR107: 0.9123676345 | BS107: =(BZ86-BT86+BS95*BS86-BY95*BY86)/(BS95-BY95) -> -224.1989894 | BT107: 0.9212683529 | BU107: =(BZ86-BV86+BU95*BU86-BY95*BY86)/(BU95-BY95) -> -223.9815886 | BV107: 0.9130153669 | BW107: =(BZ86-BX86+BW95*BW86-BY95*BY86)/(BW95-BY95) -> -223.316975 | BX107: =$BX$86+$BX$95*(BW107-$BW$86) -> 0.8877852584
BB108: =IF(circle_right,BG71,1000) -> 1000 | BC108: =IF(circle_right,BH71,1000) -> 1000 | BG108: =(CB86-BH86+BG95*BG86-CA95*CA86)/(BG95-CA95) -> -216.4600007 | BH108: 0.5698113907 | BI108: =(CB86-BJ86+BI95*BI86-CA95*CA86)/(BI95-CA95) -> -218.7318413 | BJ108: 0.6871351558 | BK108: =(CB86-BL86+BK95*BK86-CA95*CA86)/(BK95-CA95) -> -220.5540097 | BL108: 0.7812366772 | BM108: =(CB86-BN86+BM95*BM86-CA95*CA86)/(BM95-CA95) -> -221.922942 | BN108: 0.8519319057 | BO108: =(CB86-BP86+BO95*BO86-CA95*CA86)/(BO95-CA95) -> -222.8370055 | BP108: 0.8991365279 | BQ108: =(CB86-BR86+BQ95*BQ86-CA95*CA86)/(BQ95-CA95) -> -223.2966466 | BR108: 0.9228735911 | BS108: =(CB86-BT86+BS95*BS86-CA95*CA86)/(BS95-CA95) -> -223.3044705 | BT108: 0.9232776359 | BU108: =(CB86-BV86+BU95*BU86-CA95*CA86)/(BU95-CA95) -> -222.8652575 | BV108: 0.9005955345 | BW108: =(CB86-BX86+BW95*BW86-CA95*CA86)/(BW95-CA95) -> -221.9859197 | BX108: =$BX$86+$BX$95*(BW108-$BW$86) -> 0.855184238 | BY108: =(CB86-BZ86+BY95*BY86-CA95*CA86)/(BY95-CA95) -> -220.6754013 | BZ108: =$BZ$86+$BZ$95*(BY108-$BY$86) -> 0.7875056562
BB109: =IF(circle_right,RADIUS_OF_SEMICIRCLE,1000) -> 1000 | BC109: =IF(circle_right,BC108+BG72*(RADIUS_OF_SEMICIRCLE-BB108),1000) -> 1000 | BG109: =(CD86-BH86+BG95*BG86-CC95*CC86)/(BG95-CC95) -> -216.4913426 | BH109: 0.5670262025 | BI109: =(CD86-BJ86+BI95*BI86-CC95*CC86)/(BI95-CC95) -> -218.5373901 | BJ109: 0.7013414035 | BK109: =(CD86-BL86+BK95*BK86-CC95*CC86)/(BK95-CC95) -> -220.1294252 | BL109: 0.8058524196 | BM109: =(CD86-BN86+BM95*BM86-CC95*CC86)/(BM95-CC95) -> -221.266279 | BN109: 0.8804825322 | BO109: =(CD86-BP86+BO95*BO86-CC95*CC86)/(BO95-CC95) -> -221.9487444 | BP109: 0.9252837731 | BQ109: =(CD86-BR86+BQ95*BQ86-CC95*CC86)/(BQ95-CC95) -> -222.1796802 | BR109: 0.9404438316 | BS109: =(CD86-BT86+BS95*BS86-CC95*CC86)/(BS95-CC95) -> -221.9640497 | BT109: 0.926288511 | BU109: =(CD86-BV86+BU95*BU86-CC95*CC86)/(BU95-CC95) -> -221.3088948 | BV109: 0.8832800934 | BW109: =(CD86-BX86+BW95*BW86-CC95*CC86)/(BW95-CC95) -> -220.2232546 | BX109: 0.8120119669 | BY109: =(CD86-BZ86+BY95*BY86-CC95*CC86)/(BY95-CC95) -> -218.7180325 | BZ109: =$BZ$86+$BZ$95*(BY109-$BY$86) -> 0.7131998856 | CA109: =(CD86-CB86+CA95*CA86-CC95*CC86)/(CA95-CC95) -> -216.805817 | CB109: =$CB$86+$CB$95*(CA109-$CA$86) -> 0.5876702429
BB110: =IF(circle_right,BG68,1000) -> 1000 | BC110: =IF(circle_right,BH68,1000) -> 1000 | BG110: =(CF86-BH86+BG95*BG86-CE95*CE86)/(BG95-CE95) -> -216.0918069 | BH110: 0.6025308305 | BI110: =(CF86-BJ86+BI95*BI86-CE95*CE86)/(BI95-CE95) -> -217.9036489 | BJ110: 0.7476413737 | BK110: =(CF86-BL86+BK95*BK86-CE95*CE86)/(BK95-CE95) -> -219.2599034 | BL110: 0.8562638735 | BM110: =(CF86-BN86+BM95*BM86-CE95*CE86)/(BM95-CE95) -> -220.1618537 | BN110: 0.9285011307 | BO110: =(CF86-BP86+BO95*BO86-CE95*CE86)/(BO95-CE95) -> -220.6127248 | BP110: 0.9646114287 | BQ110: =(CF86-BR86+BQ95*BQ86-CE95*CE86)/(BQ95-CE95) -> -220.6177458 | BR110: 0.9650135617 | BS110: =(CF86-BT86+BS95*BS86-CE95*CE86)/(BS95-CE95) -> -220.1841464 | BT110: 0.9302865588 | BU110: =(CF86-BV86+BU95*BU86-CE95*CE86)/(BU95-CE95) -> -219.3210943 | BV110: 0.8611646562 | BW110: =(CF86-BX86+BW95*BW86-CE95*CE86)/(BW95-CE95) -> -218.0395795 | BX110: 0.7585280583 | BY110: =(CF86-BZ86+BY95*BY86-CE95*CE86)/(BY95-CE95) -> -216.3522535 | BZ110: 0.62339002 | CA110: =(CF86-CB86+CA95*CA86-CE95*CE86)/(CA95-CE95) -> -214.2732285 | CB110: =$CB$86+$CB$95*(CA110-$CA$86) -> 0.4568807803 | CC110: =(CF86-CD86+CC95*CC86-CE95*CE86)/(CC95-CE95) -> -211.8178437 | CD110: =$CD$86+$CD$95*(CC110-$CC$86) -> 0.2602288583
BB111: =IF(circle_right,0,1000) -> 1000 | BC111: =IF(circle_right,BC110+BG73*(RADIUS_OF_SEMICIRCLE-BB110),1000) -> 1000 | BG111: =(CH86-BH86+BG95*BG86-CG95*CG86)/(BG95-CG95) -> -215.2557141 | BH111: 0.6768299699 | BI111: =(CH86-BJ86+BI95*BI86-CG95*CG86)/(BI95-CG95) -> -216.8272474 | BJ111: 0.8262813014 | BK111: =(CH86-BL86+BK95*BK86-CG95*CG86)/(BK95-CG95) -> -217.9444661 | BL111: 0.932527752 | BM111: =(CH86-BN86+BM95*BM86-CG95*CG86)/(BM95-CG95) -> -218.6111097 | BN111: 0.9959249303 | BO111: =(CH86-BP86+BO95*BO86-CG95*CG86)/(BO95-CG95) -> -218.8327888 | BP111: 1.017006405 | BQ111: =(CH86-BR86+BQ95*BQ86-CG95*CG86)/(BQ95-CG95) -> -218.6170076 | BR111: 0.9964858171 | BS111: =(CH86-BT86+BS95*BS86-CG95*CG86)/(BS95-CG95) -> -217.973123 | BT111: 0.9352529957 | BU111: =(CH86-BV86+BU95*BU86-CG95*CG86)/(BU95-CG95) -> -216.9122487 | BV111: 0.834364848 | BW111: =(CH86-BX86+BW95*BW86-CG95*CG86)/(BW95-CG95) -> -215.4471124 | BX111: 0.6950317691 | BY111: =(CF86-BZ86+BY95*BY86-CE95*CE86)/(BY95-CE95) -> -216.3522535 | BZ111: 0.62339002 | CA111: =(CH86-CB86+CA95*CA86-CG95*CG86)/(CA95-CG95) -> -211.3619064 | CB111: =$CB$86+$CB$95*(CA111-$CA$86) -> 0.3065325244 | CC111: =(CH86-CD86+CC95*CC86-CG95*CG86)/(CC95-CG95) -> -208.7735617 | CD111: =$CD$86+$CD$95*(CC111-$CC$86) -> 0.06038337615 | CE111: =(CH86-CF86+CE95*CE86-CG95*CG86)/(CE95-CG95) -> -205.843902 | CF111: =$CF$86+$CF$95*(CE111-$CE$86) -> -0.2182244983
BD112: =BG117 -> -217.0266875 | BE112: =BH117+BH116 -> 1.214285174 | BG112: =(CJ86-BH86+BG95*BG86-CI95*CI86)/(BG95-CI95) -> -213.9792358 | BH112: 0.7902638488 | BI112: =(CJ86-BJ86+BI95*BI86-CI95*CI86)/(BI95-CI95) -> -215.3067657 | BJ112: 0.9373649075 | BK112: =(CJ86-BL86+BK95*BK86-CI95*CI86)/(BK95-CI95) -> -216.1841368 | BL112: 1.034584724 | BM112: =(CJ86-BN86+BM95*BM86-CI95*CI86)/(BM95-CI95) -> -216.617493 | BN112: 1.082604106 | BO112: =(CJ86-BP86+BO95*BO86-CI95*CI86)/(BO95-CI95) -> -216.6147315 | BP112: 1.08229811 | BQ112: =(CJ86-BR86+BQ95*BQ86-CI95*CI86)/(BQ95-CI95) -> -216.1854876 | BR112: 1.034734408 | BS112: =(CJ86-BT86+BS95*BS86-CI95*CI86)/(BS95-CI95) -> -215.3410616 | BT112: 0.941165175 | BU112: =(CJ86-BV86+BU95*BU86-CI95*CI86)/(BU95-CI95) -> -214.0942963 | BV112: 0.8030134885 | BW112: =(CJ86-BX86+BW95*BW86-CI95*CI86)/(BW95-CI95) -> -212.4594132 | BX112: 0.6218552118 | BY112: =(CJ86-BZ86+BY95*BY86-CI95*CI86)/(BY95-CI95) -> -210.4518161 | BZ112: 0.3993972058 | CA112: =(CJ86-CB86+CA95*CA86-CI95*CI86)/(CA95-CI95) -> -208.0878685 | CB112: =$CB$86+$CB$95*(CA112-$CA$86) -> 0.1374526802 | CC112: =(CJ86-CD86+CC95*CC86-CI95*CI86)/(CC95-CI95) -> -205.3846518 | CD112: =$CD$86+$CD$95*(CC112-$CC$86) -> -0.1620856055 | CE112: =(CJ86-CF86+CE95*CE86-CI95*CI86)/(CE95-CI95) -> -202.3597096 | CF112: =$CF$86+$CF$95*(CE112-$CE$86) -> -0.4972736817 | CG112: =(CJ86-CH86+CG95*CG86-CI95*CI86)/(CG95-CI95) -> -199.0307823 | CH112: =$CH$86+$CH$95*(CG112-$CG$86) -> -0.8661457637
BD113: =BD112 -> -217.0266875 | BE113: =BH117-BH116 -> 0.4438006099 | BI113: ± | BJ113: =nn*RADIUS_OF_SEMICIRCLE/f_semicircle^2*BG116 -> 0.03225766111 | BK113: dn
BH114: =RADIUS_OF_SEMICIRCLE/(ABS(BG117)+RADIUS_OF_SEMICIRCLE)+1 -> 1.256825842 | BI114: ="Index of refraction from n=R/f+1 f="& TEXT(BH115,"0.00") &TEXT(BI113,"0") & TEXT(BG116,"0,00") & " n = "&TEXT(BL115,"0,00")&TEXT(BI113,"0")&TEXT(dn,"0,000") -> Index of refraction from n=R/f+1 f=142±5,78 n = 1,53±0,032
BD115: =BG117+BG116 -> -211.2427943 | BE115: =BH117 -> 0.8290428918 | BG115: f_semicircle | BH115: =IF(circle_left,ABS(BG117)-RADIUS_OF_SEMICIRCLE,ABS(BG117)+ABS(h1_)) -> 142.0266875 | BI115: -100 | BJ115: 100 | BL115: =RADIUS_OF_SEMICIRCLE/BH115+1 -> 1.528069768
BD116: =BG117-BG116 -> -222.8105808 | BE116: =BE115 -> 0.8290428918 | BF116: stdecv | BG116: =STDEV(BG98:BG112,BI98:BI112,BK98:BK112,BM98:BM112,BO98:BO112,BQ98,BQ98:BQ112,BS98:BS112,BU98:BU112,BW98:BW112,BY98:BY112,CA97,CA98:CA112,CC98:CC112,CE98:CE112,CG98:CG112) -> 5.78389325 | BH116: =STDEV(BH98:BH112,BJ98:BJ112,BL98:BL112,BN98:BN112,BP98:BP112,BR98,BR98:BR112,BT98:BT112,BV98:BV112,BX98:BX112,BZ98:BZ112,CB97,CB98:CB112,CD98:CD112,CF98:CF112,CH98:CH112) -> 0.385242282 | BK116: =TEXT(ABS(BG118)+RADIUS_OF_SEMICIRCLE,"0,00") -> 292,03
BF117: average | BG117: =AVERAGE(BG99:BG113,BI99:BI113,BK99:BK113,BM99:BM113,BO99:BO113,BQ99,BQ99:BQ113,BS99:BS113,BU99:BU113,BW99:BW113,BY99:BY113,CA98,CA99:CA113,CC99:CC113,CE99:CE113,CG99:CG113) -> -217.0266875 | BH117: =AVERAGE(BH99:BH113,BJ99:BJ113,BL99:BL113,BN99:BN113,BP99:BP113,BR99,BR99:BR113,BT99:BT113,BV99:BV113,BX99:BX113,BZ99:BZ113,CB98,CB99:CB113,CD99:CD113,CF99:CF113,CH99:CH113) -> 0.8290428918 | BL117: =IF(circle_right,ABS(h1_),-RADIUS_OF_SEMICIRCLE) -> -75 | BM117: =RADIUS_OF_SEMICIRCLE -> 75
BG118: =BG117 -> -217.0266875 | BH118: =BH117 -> 0.8290428918 | BJ118: =RADIUS_OF_SEMICIRCLE -> 75 | BL118: =BL117 -> -75 | BM118: =-BM117 -> -75
BJ119: =2*RADIUS_OF_SEMICIRCLE -> 150 | BL119: =IF(circle_right,ABS(h1_)-f_semicircle,-RADIUS_OF_SEMICIRCLE-f_semicircle) -> -217.0266875 | BM119: =IF(circle_right,BM117,-RADIUS_OF_SEMICIRCLE) -> -75
BL120: =IF(circle_left,-RADIUS_OF_SEMICIRCLE,ABS(h1_)) -> -75 | BM120: =BM119 -> -75
BJ121: 150
BF122: =AVERAGE(BG122:CH122) ->  | BG122: =IF(circle_right,(BH68-BH71)/BH72+BG71) -> FALSE | BI122: =IF(circle_right,(BJ68-BJ71)/BJ72+BI71) -> FALSE | BK122: =IF(circle_right,(BL68-BL71)/BL72+BK71) -> FALSE | BM122: =IF(circle_right,(BN68-BN71)/BN72+BM71) -> FALSE | BO122: =IF(circle_right,(BP68-BP71)/BP72+BO71) -> FALSE | BQ122: =IF(circle_right,(BR68-BR71)/BR72+BQ71) -> FALSE | BS122: =IF(circle_right,(BT68-BT71)/BT72+BS71) -> FALSE | BU122: =IF(circle_right,(BV68-BV71)/BV72+BU71) -> FALSE | BW122: =IF(circle_right,(BX68-BX71)/BX72+BW71) -> FALSE | BY122: =IF(circle_right,(BZ68-BZ71)/BZ72+BY71) -> FALSE | CA122: =IF(circle_right,(CB68-CB71)/CB72+CA71) -> FALSE | CC122: =IF(circle_right,(CD68-CD71)/CD72+CC71) -> FALSE | CE122: =IF(circle_right,(CF68-CF71)/CF72+CE71) -> FALSE | CG122: =IF(circle_right,(CH68-CH71)/CH72+CG71) -> FALSE
A127: h | B127: =h -> 1.8 | C127: =(h-YC)*SIN(radiansg) -> 0.06281909406 | D127: =radiansg -> 0.03490658504 | AC127: =AK129 -> 1.243071184 | AD127: =(-TAN(critical_angle)*AC127+SQRT(RADIUS_OF_SEMICIRCLE^2*(TAN(critical_angle)^2+1)-AC127^2))/(TAN(critical_angle)^2+1) -> 55.27974652 | AE127: =AC127+TAN(critical_angle)*AD127 -> 50.68677958 | AF127: =ATAN(AE127/AD127) -> 0.7420817112 | AG127: =ATAN((AE127-htry)/(AD127-htrx)) -> 0.7235500394 | AH127: =(AF127-critical_angle) -> 0.012354055 | AI127: =IF(ABS(SIN(AH127)*nn)<1,ASIN(SIN(AH127)*nn),-3) -> 0.01853167181 | AJ127: =AF127-AG127 -> 0.01853167181 | AK127: =IF(OR(AL127,AI127>AJ127),1,0) -> 1 | AM127: =1 -> 1 | AN127: =TAN(AG127) -> 0.8833684444 | AO127: =((htrx*AN127-htry)*AN127+SQRT(rad_of_gon^2*(AN127^2+1)-(htrx*AN127-htry)^2))/(AN127^2+1) -> 111.4940842 | AP127: =htry+AN127*(AO127-htrx) -> 100.3447516 | AQ127: =DEGREES(AN127) -> 50.61328362
B128: htrx | C128: htry | D128: the point at which the ray meets the y axis in the transformed | AI128: T1 | AJ128: T2 | AK128: find yd1
B129: =(0-XC)*COS(radiansg)-(h-YC)*SIN(radiansg) -> -0.06281909406 | C129: =(0-XC)*SIN(radiansg)+(h-YC)*COS(radiansg) -> 1.798903489 | AI129: =AI131/AC131 -> 0.01490932599 | AJ129: =AJ131/AC131 -> -0.0001537846992 | AK129: =(AJ138-AI138)/(AI129-AJ129)+AC138 -> 1.243071184 | AL129: =(AJ132-AI132)/(AI129-AJ129) -> 0
U131: single ray | AC131: =AC133-AC138 -> 0.1805709406 | AD131: =AD133-AD138 -> -0.09087577895 | AE131: 0.09928917292 | AF131: 0.001794646455 | AG131: 0.001822415502 | AH131: 0.001794646455 | AI131: =AI133-AI138 -> 0.002692191017 | AJ131: -2.776904779e-05 | AK131: =AK141-AK133 -> 0
B132: 6 | C132: 6 | D132: 10 | E132: =D132 -> 10 | F132: =D132+10 -> 20 | G132: =F132 -> 20 | H132: =F132+10 -> 30 | I132: =H132 -> 30 | J132: =H132+10 -> 40 | K132: =J132 -> 40 | L132: =J132+10 -> 50 | M132: =L132 -> 50 | N132: =L132+10 -> 60 | O132: =N132 -> 60 | P132: =N132+10 -> 70 | Q132: =P132 -> 70 | R132: =P132+10 -> 80 | S132: =R132 -> 80 | U132: =THETA -> 34 | V132: =U132 -> 34
B133: =RADIANS(B132) -> 0.1047197551 | C133: 0.1047197551 | D133: 0.1745329252 | E133: 0.1745329252 | F133: 0.3490658504 | G133: 0.3490658504 | H133: 0.5235987756 | I133: 0.5235987756 | J133: 0.6981317008 | K133: 0.6981317008 | L133: 0.872664626 | M133: 0.872664626 | N133: 1.047197551 | O133: 1.047197551 | P133: 1.221730476 | Q133: 1.221730476 | R133: 1.396263402 | S133: 1.396263402 | U133: =Semicircle!A57/10 -> 34 | V133: =RADIANS(U133) -> 0.5934119457 | AC133: =AM136 -> 1.243070941 | AD133: =(-TAN(critical_angle)*AC133+SQRT(RADIUS_OF_SEMICIRCLE^2*(TAN(critical_angle)^2+1)-AC133^2))/(TAN(critical_angle)^2+1) -> 55.27974664 | AE133: =AC133+TAN(critical_angle)*AD133 -> 50.68677945 | AF133: =ATAN(AE133/AD133) -> 0.7420817088 | AG133: =ATAN((AE133-htry)/(AD133-htrx)) -> 0.723550037 | AH133: =(AF133-critical_angle) -> 0.01235405258 | AI133: =IF(ABS(SIN(AH133)*nn)<1,ASIN(SIN(AH133)*nn),-3) -> 0.01853166817 | AJ133: =AF133-AG133 -> 0.01853167184 | AK133: =IF(OR(AL133,AI133>AJ133),1,0) -> 0 | AM133: =1 -> 1 | AN133: =TAN(AG133) -> 0.88336844 | AO133: =((htrx*AN133-htry)*AN133+SQRT(rad_of_gon^2*(AN133^2+1)-(htrx*AN133-htry)^2))/(AN133^2+1) -> 111.4940845 | AP133: =htry+AN133*(AO133-htrx) -> 100.3447514 | AQ133: =DEGREES(AN133) -> 50.61328337
A134: X1,Y1 | B134: =150*COS(B133) -> 149.1782843 | C134: =150*SIN(C133) -> 15.67926949 | D134: =150*COS(D133) -> 147.721163 | E134: =150*SIN(E133) -> 26.04722665 | F134: =150*COS(F133) -> 140.9538931 | G134: =150*SIN(G133) -> 51.3030215 | H134: =150*COS(H133) -> 129.9038106 | I134: =150*SIN(I133) -> 75 | J134: =150*COS(J133) -> 114.9066665 | K134: =150*SIN(K133) -> 96.41814145 | L134: =150*COS(L133) -> 96.41814145 | M134: =150*SIN(M133) -> 114.9066665 | N134: =150*COS(N133) -> 75 | O134: =150*SIN(O133) -> 129.9038106 | P134: =150*COS(P133) -> 51.3030215 | Q134: =150*SIN(Q133) -> 140.9538931 | R134: =150*COS(R133) -> 26.04722665 | S134: =150*SIN(S133) -> 147.721163 | T134: X1,Y1 | U134: =150*COS(V133) -> 124.3556359 | V134: =150*SIN(V133) -> 83.87893552 | W134: X1,Y1 | AI134: T1 | AJ134: T2 | AK134: find yd1 | AP134: INC1=INC10+T1*(yd1-yd10)
B135: we do a transformation by xc, yc | AI135: =AI137/AC137 -> 0.0149093396 | AJ135: =AJ137/AC137 -> -0.0001537914051 | AK135: =(AJ138-AI138)/(AI135-AJ135)+AC138 -> 1.243070941 | AL135: =(AJ138-AI138)/(AI135-AJ135) -> 0.1805709406 | AP135: INC2=INC20+T2(yd1-yd10)
B136: =B134-XC -> 149.1782843 | C136: =C134-YC -> 15.67926949 | D136: =D134-XC -> 147.721163 | E136: =E134-YC -> 26.04722665 | F136: =F134-XC -> 140.9538931 | G136: =G134-YC -> 51.3030215 | H136: =H134-XC -> 129.9038106 | I136: =I134-YC -> 75 | J136: =J134-XC -> 114.9066665 | K136: =K134-YC -> 96.41814145 | L136: =L134-XC -> 96.41814145 | M136: =M134-YC -> 114.9066665 | N136: =N134-XC -> 75 | O136: =O134-YC -> 129.9038106 | P136: =P134-XC -> 51.3030215 | Q136: =Q134-YC -> 140.9538931 | R136: =R134-XC -> 26.04722665 | S136: =S134-YC -> 147.721163 | U136: =U134-XC -> 124.3556359 | V136: =V134-YC -> 83.87893552 | AF136: DTHETA2 | AG136: DTHETA1 | AH136: DREFR | AI136: DINC1 | AJ136: DINC2 | AK136: dy | AM136: =AK135 -> 1.243070941 | AP136: yd1*(T1-T2)=INC20-INC10+yd10*(T1-T2)
A137: IN ROTATED | B137: we do a transformation by gonia | F137: x11=x1cosg-y1singy11=x1sing+y1cosg | T137: IN ROTATED | W137: IN ROTATED | AC137: =-AC138+AC141 -> 0.1875 | AD137: =-AD138+AD141 -> -0.09436654787 | AE137: =-AE138+AE141 -> 0.1030959937 | AF137: =-AF138+AF141 -> 0.001863513285 | AG137: =-AG138+AG141 -> 0.001892349173 | AH137: 0.001863513285 | AI137: =-AI138+AI141 -> 0.002795501174 | AJ137: -2.883588845e-05 | AM137: =DEGREES(AM136) -> 71.22271853 | AP137: yd1=(INC20-INC10)/(T1-T2)+yd10
A138: X1,Y1 | B138: =B136*COS(radiansg)-C136*SIN(radiansg) -> 148.5402103 | C138: =B136*SIN(radiansg)+C136*COS(radiansg) -> 20.87596514 | D138: =D136*COS(radiansg)-E136*SIN(radiansg) -> 146.7221401 | E138: =D136*SIN(radiansg)+E136*COS(radiansg) -> 31.18675362 | F138: =F136*COS(radiansg)-G136*SIN(radiansg) -> 139.0775782 | G138: =F136*SIN(radiansg)+G136*COS(radiansg) -> 56.19098901 | H138: =H136*COS(radiansg)-I136*SIN(radiansg) -> 127.2072144 | I138: =H136*SIN(radiansg)+I136*COS(radiansg) -> 79.48788963 | J138: =J136*COS(radiansg)-K136*SIN(radiansg) -> 111.4717238 | K138: =J136*SIN(radiansg)+K136*COS(radiansg) -> 100.369591 | L138: =L136*COS(radiansg)-M136*SIN(radiansg) -> 92.3492213 | M138: =L136*SIN(radiansg)+M136*COS(radiansg) -> 118.201613 | N138: =N136*COS(radiansg)-O136*SIN(radiansg) -> 70.42073442 | O138: =N136*SIN(radiansg)+O136*COS(radiansg) -> 132.4421389 | P138: =P136*COS(radiansg)-Q136*SIN(radiansg) -> 46.35254916 | Q138: =P136*SIN(radiansg)+Q136*COS(radiansg) -> 142.6584774 | R138: =R136*COS(radiansg)-S136*SIN(radiansg) -> 20.87596514 | S138: =R136*SIN(radiansg)+S136*COS(radiansg) -> 148.5402103 | T138: X1,Y1 | U138: =U136*COS(radiansg)-V136*SIN(radiansg) -> 121.3525492 | V138: =U136*SIN(radiansg)+V136*COS(radiansg) -> 88.16778784 | W138: X1,Y1 | X138: 0 | Y138: =150 -> 150 | AC138: =AC141-RADIUS_OF_SEMICIRCLE/400 -> 1.0625 | AD138: =(-TAN(critical_angle)*AC138+SQRT(RADIUS_OF_SEMICIRCLE^2*(TAN(critical_angle)^2+1)-AC138^2))/(TAN(critical_angle)^2+1) -> 55.37062242 | AE138: =AC138+TAN(critical_angle)*AD138 -> 50.58749028 | AF138: =ATAN(AE138/AD138) -> 0.7402870624 | AG138: =ATAN((AE138-htry)/(AD138-htrx)) -> 0.7217276215 | AH138: =(AF138-critical_angle) -> 0.01055940612 | AI138: =IF(ABS(SIN(AH138)*nn)<1,ASIN(SIN(AH138)*nn),-3) -> 0.01583947716 | AJ138: =AF138-AG138 -> 0.01855944089 | AK138: =IF(OR(AL138,AI138>AJ138),1,0) -> 0 | AM138: =1 -> 1 | AN138: =TAN(AG138) -> 0.8801291324 | AO138: =((htrx*AN138-htry)*AN138+SQRT(rad_of_gon^2*(AN138^2+1)-(htrx*AN138-htry)^2))/(AN138^2+1) -> 111.6753788 | AP138: =htry+AN138*(AO138-htrx) -> 100.1429467 | AQ138: =DEGREES(AN138) -> 50.42768471
B139: we find the point at which the line from x1, y1 meets the radius | AF139: =DEGREES(AF138) -> 42.4153243
B140: the point y at whih it cuts the diameter is (0,h) in lab so it is (-xc, h-yc) in the fist trnsforamtion and it is (htrx, htry) by the second transformation | AC140: y | AD140: x2 | AE140: y2 | AF140: θ2 | AG140: θ1 | AH140: refraction | AI140: inc | AJ140: INC 2
A141: X=0,Y=h | B141: =htrx -> -0.06281909406 | C141: =htry -> 1.798903489 | D141: =htrx -> -0.06281909406 | E141: =htry -> 1.798903489 | F141: =htrx -> -0.06281909406 | G141: =htry -> 1.798903489 | H141: =htrx -> -0.06281909406 | I141: =htry -> 1.798903489 | J141: =htrx -> -0.06281909406 | K141: =htry -> 1.798903489 | L141: =htrx -> -0.06281909406 | M141: =htry -> 1.798903489 | N141: =htrx -> -0.06281909406 | O141: =htry -> 1.798903489 | P141: =htrx -> -0.06281909406 | Q141: =htry -> 1.798903489 | R141: =htrx -> -0.06281909406 | S141: =htry -> 1.798903489 | T141: X=0,Y=h | U141: =htrx -> -0.06281909406 | V141: =htry -> 1.798903489 | W141: X=0,Y=h | AC141: =VLOOKUP(1,AB146:AK546,2,FALSE) -> 1.25 | AD141: =VLOOKUP(1,AB146:AL546,3,FALSE) -> 55.27625587 | AE141: =VLOOKUP(1,AB146:AK546,4,FALSE) -> 50.69058627 | AF141: =VLOOKUP(1,AB146:AK546,5,FALSE) -> 0.7421505756 | AG141: =VLOOKUP(1,AB146:AK546,6,FALSE) -> 0.7236199706 | AH141: =VLOOKUP(1,AB146:AK546,7,FALSE) -> 0.01242291941 | AI141: =VLOOKUP(1,AB146:AK546,8,FALSE) -> 0.01863497833 | AJ141: =VLOOKUP(1,AB146:AM546,9,FALSE) -> 0.018530605 | AM141: =VLOOKUP(1,AB146:AM546,11,FALSE) -> 0 | AN141: =VLOOKUP(1,AB146:AP546,13,FALSE) -> 0.8834929534 | AO141: =VLOOKUP(1,AB146:AP546,14,FALSE) -> 111.4871202 | AS141: we find the x1 in transformed plane by finding the cut from htrx,htry to the circle of radius 150
B142: we calculate the refraction angle in the new frame sin(theta) = sin(incidence)/n | AB142: =1 -> 1 | AC142: =AB142+1 -> 2 | AD142: =AC142+1 -> 3 | AE142: 4 | AF142: 5 | AG142: 6 | AH142: 7 | AI142: 8 | AJ142: 9 | AK142: 10 | AM142: =AK142+1 -> 11 | AT142: tthet1
A143: incidence | B143: =ATAN((C138-htry)/(B138-htrx)) -> 0.1276776576 | C143: =B143 -> 0.1276776576 | D143: =ATAN((E138-htry)/(D138-htrx)) -> 0.1975976939 | E143: =D143 -> 0.1975976939 | F143: =ATAN((G138-htry)/(F138-htrx)) -> 0.3726501364 | G143: =F143 -> 0.3726501364 | H143: =ATAN((I138-htry)/(H138-htrx)) -> 0.5480507065 | I143: =H143 -> 0.5480507065 | J143: =ATAN((K138-htry)/(J138-htrx)) -> 0.7237745602 | K143: =J143 -> 0.7237745602 | L143: =ATAN((M138-htry)/(L138-htrx)) -> 0.899786353 | M143: =L143 -> 0.899786353 | N143: =ATAN((O138-htry)/(N138-htrx)) -> 1.076041202 | O143: =N143 -> 1.076041202 | P143: =ATAN((Q138-htry)/(P138-htrx)) -> 1.252486035 | Q143: =P143 -> 1.252486035 | R143: =ATAN((S138-htry)/(R138-htrx)) -> 1.429061292 | S143: =R143 -> 1.429061292 | T143: incidence | U143: =ATAN((V138-htry)/(U138-htrx)) -> 0.6183032065 | V143: =U143 -> 0.6183032065 | W143: incidence | AR143: x1 | AS143: =AO127 -> 111.4940842 | AT143: y1 | AU143: =AP127 -> 100.3447516
A144: in degrees | B144: =DEGREES(B143) -> 7.315390921 | C144: =DEGREES(C143) -> 7.315390921 | D144: =DEGREES(D143) -> 11.3215139 | E144: 11.3215139 | F144: 21.35128005 | G144: 21.35128005 | H144: 31.40099244 | I144: 31.40099244 | J144: 41.46922762 | K144: 41.46922762 | L144: 51.55396049 | M144: 51.55396049 | N144: =DEGREES(N143) -> 61.65261945 | O144: 61.65261945 | P144: 71.76216371 | Q144: 71.76216371 | R144: 81.87918068 | S144: 81.87918068 | T144: in degrees | U144: =DEGREES(U143) -> 35.42616419 | V144: =DEGREES(V143) -> 35.42616419 | W144: in degrees | AA144: at circle | AB144: =SUM(AB146:AB302) -> 0 | AC144: =COUNTA(AC146:AC302) -> 157 | AF144: for point on circle | AG144: for line from htrx, htry to point on circle | AH144: refraction angle in the case the refracted is the critical angle | AI144: incident angle in case refracted= critical | AJ144: incident angle = θ2-θ1 | AK144: comparison of the two angles (8 and 9) | AN144: rad of gon | AO144: 150
A145: refraction | B145: =ASIN(SIN(B143)/nn) -> 0.08498964577 | C145: 0.08498964577 | D145: 0.1312527569 | E145: 0.1312527569 | F145: 0.2451721214 | G145: 0.2451721214 | H145: 0.3547432478 | I145: 0.3547432478 | J145: 0.4572457452 | K145: 0.4572457452 | L145: 0.5493457947 | M145: 0.5493457947 | N145: 0.6270065573 | O145: 0.6270065573 | P145: 0.6856510449 | Q145: 0.6856510449 | R145: 0.7207942635 | S145: 0.7207942635 | T145: refraction | U145: =ASIN(SIN(U143)/nn) -> 0.3967637892 | V145: =ASIN(SIN(V143)/nn) -> 0.3967637892 | W145: refraction | AC145: ytrial | AD145: x2 | AE145: y2 | AF145: θ2 | AG145: θ1 | AH145: ref | AI145: inc | AN145: TTHET1 | AO145: X1 | AP145: Y1
A146: in degrees | B146: =DEGREES(B145) -> 4.869548005 | C146: =DEGREES(C145) -> 4.869548005 | D146: 7.52022902 | E146: 7.52022902 | F146: 14.04732781 | G146: 14.04732781 | H146: 20.32529091 | I146: 20.32529091 | J146: 26.1982514 | K146: 26.1982514 | L146: 31.47519553 | M146: 31.47519553 | N146: =DEGREES(N145) -> 35.92482946 | O146: 35.92482946 | P146: 39.28491109 | Q146: 39.28491109 | R146: 41.2984692 | S146: 41.2984692 | T146: in degrees | U146: =DEGREES(U145) -> 22.73289058 | V146: =DEGREES(V145) -> 22.73289058 | W146: in degrees | AB146: =IF(ISERROR(AK146),0,IF(AK146=1,1+AB145,0)) -> 0 | AC146: =-RADIUS_OF_SEMICIRCLE -> -75 | AD146: =(-TAN(critical_angle)*AC146+SQRT(RADIUS_OF_SEMICIRCLE^2*(TAN(critical_angle)^2+1)-AC146^2))/(TAN(critical_angle)^2+1) -> 74.53559925 | AE146: =AC146+TAN(critical_angle)*AD146 -> -8.333333333 | AF146: =ATAN(AE146/AD146) -> -0.1113410143 | AG146: =ATAN((AE146-htry)/(AD146-htrx)) -> -0.134997644 | AH146: =(AF146-critical_angle) -> -0.8410686706 | AI146: =IF(ABS(SIN(AH146)*nn)<1,ASIN(SIN(AH146)*nn),-3) -> -3 | AJ146: =AF146-AG146 -> 0.02365662962 | AK146: =IF(OR(AL146,AI146>AJ146),1,0) -> 0 | AM146: =1 -> 1 | AN146: =TAN(AG146) -> -0.1358237486 | AO146: =((htrx*AN146-htry)*AN146+SQRT(rad_of_gon^2*(AN146^2+1)-(htrx*AN146-htry)^2))/(AN146^2+1) -> 148.8636212 | AP146: =htry+AN146*(AO146-htrx) -> -18.4288439 | AQ146: =DEGREES(AN146) -> -7.782127555
A147: X2,Y2 | B147: =0 -> 0 | C147: =C138+(0-B138)*TAN(C143) -> 1.806967952 | D147: =0 -> 0 | E147: =E138+(0-D138)*TAN(E143) -> 1.811480514 | F147: =0 -> 0 | G147: =G138+(0-F138)*TAN(G143) -> 1.823460423 | H147: =0 -> 0 | I147: =I138+(0-H138)*TAN(I143) -> 1.837249921 | J147: =0 -> 0 | K147: =K138+(0-J138)*TAN(K143) -> 1.854421009 | L147: =0 -> 0 | M147: =M138+(0-L138)*TAN(M143) -> 1.878030762 | N147: =0 -> 0 | O147: =O138+(0-N138)*TAN(O143) -> 1.915340434 | P147: =0 -> 0 | Q147: =Q138+(0-P138)*TAN(Q143) -> 1.989544459 | R147: =0 -> 0 | S147: =S138+(0-R138)*TAN(S143) -> 2.239146621 | T147: X2,Y2 | U147: =0 -> 0 | V147: =V138+(0-U138)*TAN(V143) -> 1.843589883 | W147: X2,Y2 | X147: 0 | Y147: =RADIUS_OF_SEMICIRCLE -> 75 | AB147: 0 | AC147: =AC146+RADIUS_OF_SEMICIRCLE/300 -> -74.75 | AD147: 74.56607585 | AE147: -8.056074232 | AF147: =ATAN(AE147/AD147) -> -0.1076219578 | AG147: -0.1312934612 | AH147: -0.837349614 | AI147: -3 | AJ147: =AF147-AG147 -> 0.02367150345 | AK147: 0 | AM147: =AM146+1 -> 2 | AN147: =TAN(AG147) -> -0.1320531106 | AO147: 148.9309965 | AP147: -17.87619332 | AQ147: =DEGREES(AN147) -> -7.566085911
A148: point at | B148: semicricel we must find the cut of semicircel with the line that has inclination -angle of refraction and starting point htrx, htry with circel (x))^2+(y)^2=R^2 | T148: point at | W148: point at | AB148: 0 | AC148: -74.5 | AD148: 74.59540219 | AE148: -7.779843957 | AF148: -0.103918187 | AG148: -0.1276041816 | AH148: -0.8336458433 | AI148: -3 | AJ148: 0.02368599455 | AK148: 0 | AM148: =AM147+1 -> 3 | AN148: =TAN(AG148) -> -0.128301308 | AO148: 148.9960586 | AP148: -17.32554549 | AQ148: -7.351123456
A149: semcircele | B149: =RADIUS_OF_SEMICIRCLE^2*(1+(TAN(B145))^2)-(C147-B147*TAN(B145))^2 -> 5662.562052 | C149: =RADIUS_OF_SEMICIRCLE^2*(1+(TAN(C145))^2)-(C147-B147*TAN(C145))^2 -> 5662.562052 | D149: =RADIUS_OF_SEMICIRCLE^2*(1+(TAN(D145))^2)-(E147-D147*TAN(D145))^2 -> 5719.745909 | E149: =RADIUS_OF_SEMICIRCLE^2*(1+(TAN(E145))^2)-(E147-D147*TAN(E145))^2 -> 5719.745909 | F149: =RADIUS_OF_SEMICIRCLE^2*(1+(TAN(F145))^2)-(G147-F147*TAN(F145))^2 -> 5973.815865 | G149: =RADIUS_OF_SEMICIRCLE^2*(1+(TAN(G145))^2)-(G147-F147*TAN(G145))^2 -> 5973.815865 | H149: =RADIUS_OF_SEMICIRCLE^2*(1+(TAN(H145))^2)-(I147-H147*TAN(H145))^2 -> 6393.407601 | I149: =RADIUS_OF_SEMICIRCLE^2*(1+(TAN(I145))^2)-(I147-H147*TAN(I145))^2 -> 6393.407601 | J149: =RADIUS_OF_SEMICIRCLE^2*(1+(TAN(J145))^2)-(K147-J147*TAN(J145))^2 -> 6983.298955 | K149: =RADIUS_OF_SEMICIRCLE^2*(1+(TAN(K145))^2)-(K147-J147*TAN(K145))^2 -> 6983.298955 | L149: =RADIUS_OF_SEMICIRCLE^2*(1+(TAN(L145))^2)-(M147-L147*TAN(L145))^2 -> 7729.697791 | M149: =RADIUS_OF_SEMICIRCLE^2*(1+(TAN(M145))^2)-(M147-L147*TAN(M145))^2 -> 7729.697791 | N149: =RADIUS_OF_SEMICIRCLE^2*(1+(TAN(N145))^2)-(O147-N147*TAN(N145))^2 -> 8574.220749 | O149: =RADIUS_OF_SEMICIRCLE^2*(1+(TAN(O145))^2)-(O147-N147*TAN(O145))^2 -> 8574.220749 | P149: =RADIUS_OF_SEMICIRCLE^2*(1+(TAN(P145))^2)-(Q147-P147*TAN(P145))^2 -> 9385.332025 | Q149: =RADIUS_OF_SEMICIRCLE^2*(1+(TAN(Q145))^2)-(Q147-P147*TAN(Q145))^2 -> 9385.332025 | R149: =RADIUS_OF_SEMICIRCLE^2*(1+(TAN(R145))^2)-(S147-R147*TAN(R145))^2 -> 9960.893196 | S149: =RADIUS_OF_SEMICIRCLE^2*(1+(TAN(S145))^2)-(S147-R147*TAN(S145))^2 -> 9960.893196 | T149: semcircele | U149: =RADIUS_OF_SEMICIRCLE^2*(1+(TAN(U145))^2)-(V147-U147*TAN(U145))^2 -> 6609.055067 | V149: =RADIUS_OF_SEMICIRCLE^2*(1+(TAN(V145))^2)-(V147-U147*TAN(V145))^2 -> 6609.055067 | W149: semcircele | AB149: 0 | AC149: -74.25 | AD149: 74.62359231 | AE149: -7.504629947 | AF149: -0.100229465 | AG149: -0.1239295725 | AH149: -0.8299571212 | AI149: -3 | AJ149: 0.02370010751 | AK149: 0 | AM149: 4 | AN149: -0.1245679537 | AO149: 149.0588355 | AP149: -16.77687587 | AQ149: -7.137218008
B150: =(-(C147-B147*TAN(B145))+SQRT(B149))/(1+(TAN(B145))^2) -> 72.91380853 | C150: =(-(C147-B147*TAN(C145))+SQRT(C149))/(1+(TAN(C145))^2) -> 72.91380853 | D150: =(-(E147-D147*TAN(D145))+SQRT(D149))/(1+(TAN(D145))^2) -> 72.55313144 | E150: =(-(E147-D147*TAN(E145))+SQRT(E149))/(1+(TAN(E145))^2) -> 72.55313144 | F150: =(-(G147-F147*TAN(F145))+SQRT(F149))/(1+(TAN(F145))^2) -> 71.02089537 | G150: =(-(G147-F147*TAN(G145))+SQRT(G149))/(1+(TAN(G145))^2) -> 71.02089537 | H150: =(-(I147-H147*TAN(H145))+SQRT(H149))/(1+(TAN(H145))^2) -> 68.69603665 | I150: =(-(I147-H147*TAN(I145))+SQRT(I149))/(1+(TAN(I145))^2) -> 68.69603665 | J150: =(-(K147-J147*TAN(J145))+SQRT(J149))/(1+(TAN(J145))^2) -> 65.78583646 | K150: =(-(K147-J147*TAN(K145))+SQRT(K149))/(1+(TAN(K145))^2) -> 65.78583646 | L150: =(-(M147-L147*TAN(L145))+SQRT(L149))/(1+(TAN(L145))^2) -> 62.58433926 | M150: =(-(M147-L147*TAN(M145))+SQRT(M149))/(1+(TAN(M145))^2) -> 62.58433926 | N150: =(-(O147-N147*TAN(N145))+SQRT(N149))/(1+(TAN(N145))^2) -> 59.46507525 | O150: =(-(O147-N147*TAN(O145))+SQRT(O149))/(1+(TAN(O145))^2) -> 59.46507525 | P150: =(-(Q147-P147*TAN(P145))+SQRT(P149))/(1+(TAN(P145))^2) -> 56.84637638 | Q150: =(-(Q147-P147*TAN(Q145))+SQRT(Q149))/(1+(TAN(Q145))^2) -> 56.84637638 | R150: =(-(S147-R147*TAN(R145))+SQRT(R149))/(1+(TAN(R145))^2) -> 55.06812831 | S150: =(-(S147-R147*TAN(S145))+SQRT(S149))/(1+(TAN(S145))^2) -> 55.06812831 | U150: =(-(V147-U147*TAN(U145))+SQRT(U149))/(1+(TAN(U145))^2) -> 67.58766848 | V150: =(-(V147-U147*TAN(V145))+SQRT(V149))/(1+(TAN(V145))^2) -> 67.58766848 | AB150: 0 | AC150: -74 | AD150: 74.65065993 | AE150: -7.230419935 | AF150: -0.09655556008 | AG150: -0.1202694069 | AH150: -0.8262832163 | AI150: -3 | AJ150: 0.0237138468 | AK150: 0 | AM150: 5 | AN150: -0.12085267 | AO150: 149.1193545 | AP150: -16.23016051 | AQ150: -6.924347933
A151: X3,Y3 | B151: =(-(C147-B147*TAN(B145))-SQRT(B149))/(1+(TAN(B145))^2) -> -76.5017029 | C151: =C147+TAN(C145)*(B151-B147) -> -4.710584856 | D151: =(-(E147-D147*TAN(D145))-SQRT(D149))/(1+(TAN(D145))^2) -> -76.11403627 | E151: =E147+TAN(E145)*(D151-D147) -> -8.236462558 | F151: =(-(G147-F147*TAN(F145))-SQRT(F149))/(1+(TAN(F145))^2) -> -74.45295933 | G151: =G147+TAN(G145)*(F151-F147) -> -16.80508391 | H151: =(-(I147-H147*TAN(H145))-SQRT(H149))/(1+(TAN(H145))^2) -> -71.92720164 | I151: =I147+TAN(I145)*(H151-H147) -> -24.80552953 | J151: =(-(K147-J147*TAN(J145))-SQRT(J149))/(1+(TAN(J145))^2) -> -68.77181315 | K151: =K147+TAN(K145)*(J151-J147) -> -31.98289933 | L151: =(-(M147-L147*TAN(L145))-SQRT(L149))/(1+(TAN(L145))^2) -> -65.31642667 | M151: =M147+TAN(M145)*(L151-L147) -> -38.1090419 | N151: =(-(O147-N147*TAN(N145))-SQRT(N149))/(1+(TAN(N145))^2) -> -61.97706616 | O151: =O147+TAN(O145)*(N151-N147) -> -42.98951804 | P151: =(-(Q147-P147*TAN(P145))-SQRT(P149))/(1+(TAN(P145))^2) -> -59.23019608 | Q151: =Q147+TAN(Q145)*(P151-P147) -> -46.46376682 | R151: =(-(S147-R147*TAN(R145))-SQRT(R149))/(1+(TAN(R145))^2) -> -57.59578581 | S151: =S147+TAN(S145)*(R151-R147) -> -48.35726115 | T151: X3,Y3 | U151: =(-(V147-U147*TAN(U145))-SQRT(U149))/(1+(TAN(U145))^2) -> -70.72423269 | V151: =V147+TAN(V145)*(U151-U147) -> -27.78871229 | W151: X3,Y3 | AB151: 0 | AC151: -73.75 | AD151: 74.67661844 | AE151: -6.957201938 | AF151: -0.09289624618 | AG151: -0.116623463 | AH151: -0.8226239024 | AI151: -3 | AJ151: 0.02372721682 | AK151: 0 | AM151: 6 | AN151: -0.1171550886 | AO151: 149.1776424 | AP151: -15.685376 | AQ151: -6.712492126
A152: ext prod | B152: =(B151*(C151-C147)-C151*(B151-B147)) -> 138.2361254 | C152: =SQRT((B151-B147)^2+(C151-C147)^2)*RADIUS_OF_SEMICIRCLE -> 5758.412399 | D152: =(D151*(E151-E147)-E151*(D151-D147)) -> 137.8790935 | E152: =SQRT((D151-D147)^2+(E151-E147)^2)*RADIUS_OF_SEMICIRCLE -> 5758.0796 | F152: =(F151*(G151-G147)-G151*(F151-F147)) -> 135.7620247 | G152: =SQRT((F151-F147)^2+(G151-G147)^2)*RADIUS_OF_SEMICIRCLE -> 5756.105039 | H152: =(H151*(I151-I147)-I151*(H151-H147)) -> 132.1482455 | I152: =SQRT((H151-H147)^2+(I151-I147)^2)*RADIUS_OF_SEMICIRCLE -> 5752.729803 | J152: =(J151*(K151-K147)-K151*(J151-J147)) -> 127.5318952 | K152: =SQRT((J151-J147)^2+(K151-K147)^2)*RADIUS_OF_SEMICIRCLE -> 5748.409497 | L152: =(L151*(M151-M147)-M151*(L151-L147)) -> 122.6662585 | M152: =SQRT((L151-L147)^2+(M151-M147)^2)*RADIUS_OF_SEMICIRCLE -> 5743.845301 | N152: =(N151*(O151-O147)-O151*(N151-N147)) -> 118.7071808 | O152: =SQRT((N151-N147)^2+(O151-O147)^2)*RADIUS_OF_SEMICIRCLE -> 5740.123441 | P152: =(P151*(Q151-Q147)-Q151*(P151-P147)) -> 117.8411084 | Q152: =SQRT((P151-P147)^2+(Q151-Q147)^2)*RADIUS_OF_SEMICIRCLE -> 5739.308294 | R152: =(R151*(S151-S147)-S151*(R151-R147)) -> 128.9654092 | S152: =SQRT((R151-R147)^2+(S151-S147)^2)*RADIUS_OF_SEMICIRCLE -> 5749.752125 | T152: ext prod | U152: =(U151*(V151-V147)-V151*(U151-U147)) -> 130.3864799 | V152: =SQRT((U151-U147)^2+(V151-V147)^2)*RADIUS_OF_SEMICIRCLE -> 5751.08217 | W152: ext prod | AB152: 0 | AC152: -73.5 | AD152: 74.70148093 | AE152: -6.684964249 | AF152: -0.0892513024 | AG152: -0.1129915242 | AH152: -0.8189789586 | AI152: -3 | AJ152: 0.02374022184 | AK152: 0 | AM152: 7 | AN152: -0.1134748501 | AO152: 149.2337251 | AP152: -15.14249948 | AQ152: -6.501629991
A153: sec incidence | B153: =ASIN(B152/C152) -> 0.02400825029 | C153: =B153 -> 0.02400825029 | D153: =ASIN(D152/E152) -> 0.02394761494 | E153: =D153 -> 0.02394761494 | F153: =ASIN(F152/G152) -> 0.02358793212 | G153: =F153 -> 0.02358793212 | H153: =ASIN(H152/I152) -> 0.0229734187 | I153: =H153 -> 0.0229734187 | J153: =ASIN(J152/K152) -> 0.02218741713 | K153: =J153 -> 0.02218741713 | L153: =ASIN(L152/M152) -> 0.02135774527 | M153: =L153 -> 0.02135774527 | N153: =ASIN(N152/O152) -> 0.02068172313 | O153: =N153 -> 0.02068172313 | P153: =ASIN(P152/Q152) -> 0.02053372701 | Q153: =P153 -> 0.02053372701 | R153: =ASIN(R152/S152) -> 0.02243161486 | S153: =R153 -> 0.02243161486 | T153: sec incidence | U153: =ASIN(U152/V152) -> 0.02267358533 | V153: =U153 -> 0.02267358533 | W153: sec incidence | AB153: 0 | AC153: -73.25 | AD153: 74.72526019 | AE153: -6.413695429 | AF153: -0.08562051288 | AG153: -0.1093733789 | AH153: -0.8153481691 | AI153: -3 | AJ153: 0.02375286603 | AK153: 0 | AM153: 8 | AN153: -0.1098116036 | AO153: 149.2876282 | AP153: -14.60150863 | AQ153: -6.291741428
A154: sec refra | B154: =IF(SIN(B153)*nn<1,ASIN(SIN(B153)*nn),-B153) -> 0.03601670229 | C154: 0.03601670229 | D154: 0.03592571656 | E154: 0.03592571656 | F154: 0.03538600166 | G154: 0.03538600166 | H154: 0.03446391899 | I154: 0.03446391899 | J154: 0.03328454058 | K154: 0.03328454058 | L154: 0.03203966374 | M154: 0.03203966374 | N154: 0.03102535029 | O154: 0.03102535029 | P154: 0.03080329716 | Q154: 0.03080329716 | R154: 0.03365095121 | S154: 0.03365095121 | T154: sec refra | U154: =IF(SIN(U153)*nn<1,ASIN(SIN(U153)*nn),-U153) -> 0.0340140224 | V154: =IF(SIN(V153)*nn<1,ASIN(SIN(V153)*nn),-V153) -> 0.0340140224 | W154: sec refra | AB154: 0 | AC154: -73 | AD154: 74.74796873 | AE154: -6.143384295 | AF154: -0.0820036667 | AG154: -0.1057688202 | AH154: -0.8117313229 | AI154: -3 | AJ154: 0.02376515349 | AK154: 0 | AM154: 9 | AN154: -0.1061650066 | AO154: 149.3393767 | AP154: -14.06238161 | AQ154: -6.082806811
A155: new angle | B155: =B154+ATAN(C151/B151) -> 0.09751396103 | C155: =B155 -> 0.09751396103 | D155: =D154+ATAN(E151/D151) -> 0.1437184139 | E155: =D155 -> 0.1437184139 | F155: =F154+ATAN(G151/F151) -> 0.257380046 | G155: =F155 -> 0.257380046 | H155: =H154+ATAN(I151/H151) -> 0.3665612366 | I155: =H155 -> 0.3665612366 | J155: =J154+ATAN(K151/J151) -> 0.4685901096 | K155: =J155 -> 0.4685901096 | L155: =L154+ATAN(M151/L151) -> 0.5602031277 | M155: =L155 -> 0.5602031277 | N155: =N154+ATAN(O151/N151) -> 0.637467324 | O155: =N155 -> 0.637467324 | P155: =P154+ATAN(Q151/P151) -> 0.6959970348 | Q155: =P155 -> 0.6959970348 | R155: =R154+ATAN(S151/R151) -> 0.7320745725 | S155: =R155 -> 0.7320745725 | T155: new angle | U155: =U154+ATAN(V151/U151) -> 0.4083989887 | V155: =U155 -> 0.4083989887 | W155: new angle | AB155: 0 | AC155: -72.75 | AD155: 74.76961876 | AE155: -5.874019917 | AF155: -0.07840055765 | AG155: -0.1021776459 | AH155: -0.8081282139 | AI155: -3 | AJ155: 0.02377708822 | AK155: 0 | AM155: 10 | AN155: -0.1025347246 | AO155: 149.3889947 | AP155: -13.52509708 | AQ155: -5.874806972
A156: x4,y4 | B156: =IF(SIN(B153)*nn<1,-200,B151+RADIUS_OF_SEMICIRCLE*COS(B154)) -> -200 | C156: =IF(SIN(C153)*nn<1,C151+(-200-B151)*TAN(B155),B151-RADIUS_OF_SEMICIRCLE*SIN(D155)) -> -16.79171031 | D156: =IF(SIN(D153)*nn<1,-200,D151+RADIUS_OF_SEMICIRCLE*COS(D154)) -> -200 | E156: =IF(SIN(E153)*nn<1,E151+(-200-D151)*TAN(D155),D151-RADIUS_OF_SEMICIRCLE*SIN(F155)) -> -26.16476332 | F156: =IF(SIN(F153)*nn<1,-200,F151+RADIUS_OF_SEMICIRCLE*COS(F154)) -> -200 | G156: =IF(SIN(G153)*nn<1,G151+(-200-F151)*TAN(F155),F151-RADIUS_OF_SEMICIRCLE*SIN(H155)) -> -49.8513409 | H156: =IF(SIN(H153)*nn<1,-200,H151+RADIUS_OF_SEMICIRCLE*COS(H154)) -> -200 | I156: =IF(SIN(I153)*nn<1,I151+(-200-H151)*TAN(H155),H151-RADIUS_OF_SEMICIRCLE*SIN(J155)) -> -73.97425623 | J156: =IF(SIN(J153)*nn<1,-200,J151+RADIUS_OF_SEMICIRCLE*COS(J154)) -> -200 | K156: =IF(SIN(K153)*nn<1,K151+(-200-J151)*TAN(J155),J151-RADIUS_OF_SEMICIRCLE*SIN(L155)) -> -98.40975214 | L156: =IF(SIN(L153)*nn<1,-200,L151+RADIUS_OF_SEMICIRCLE*COS(L154)) -> -200 | M156: =IF(SIN(M153)*nn<1,M151+(-200-L151)*TAN(L155),L151-RADIUS_OF_SEMICIRCLE*SIN(N155)) -> -122.5869619 | N156: =IF(SIN(N153)*nn<1,-200,N151+RADIUS_OF_SEMICIRCLE*COS(N154)) -> -200 | O156: =IF(SIN(O153)*nn<1,O151+(-200-N151)*TAN(N155),N151-RADIUS_OF_SEMICIRCLE*SIN(P155)) -> -145.2113138 | P156: =IF(SIN(P153)*nn<1,-200,P151+RADIUS_OF_SEMICIRCLE*COS(P154)) -> -200 | Q156: =IF(SIN(Q153)*nn<1,Q151+(-200-P151)*TAN(P155),P151-RADIUS_OF_SEMICIRCLE*SIN(R155)) -> -164.0724996 | R156: =IF(SIN(R153)*nn<1,-200,R151+RADIUS_OF_SEMICIRCLE*COS(R154)) -> -200 | S156: =IF(SIN(S153)*nn<1,S151+(-200-R151)*TAN(R155),R151-RADIUS_OF_SEMICIRCLE*SIN(T155)) -> -176.3303084 | T156: x4,y4 | U156: =IF(SIN(U153)*nn<1,-200,U151+RADIUS_OF_SEMICIRCLE*COS(U154)) -> -200 | V156: =IF(SIN(V153)*nn<1,V151+(-200-U151)*TAN(U155),U151-RADIUS_OF_SEMICIRCLE*SIN(W155)) -> -83.73009581 | W156: x4,y4 | X156: =0 -> 0 | Y156: =-200 -> -200 | AB156: 0 | AC156: -72.5 | AD156: 74.79022224 | AE156: -5.605591607 | AF156: -0.07481098414 | AG156: -0.09859965825 | AH156: -0.8045386404 | AI156: -3 | AJ156: 0.02378867411 | AK156: 0 | AM156: 11 | AN156: -0.09892043081 | AO156: 149.4365063 | AP156: -12.98963418 | AQ156: -5.667723193
AB157: 0 | AC157: -72.25 | AD157: 74.80979085 | AE157: -5.338088912 | AF157: -0.07123474902 | AG157: -0.09503466401 | AH157: -0.8009624053 | AI157: -3 | AJ157: 0.02379991499 | AK157: 0 | AM157: 12 | AN157: -0.09532180602 | AO157: 149.4819345 | AP157: -12.45597251 | AQ157: -5.46153718
B158: IN LAB FRAME | D158: xx=xc+xr*cos(gonia)+YR*sin(gonia), yy=yx-xr*sin(gonia)+yr*sin(gonia) | AB158: 0 | AC158: -72 | AD158: 74.82833602 | AE158: -5.071501607 | AF158: -0.06767165947 | AG158: -0.09148247406 | AH158: -0.7973993157 | AI158: -3 | AJ158: 0.02381081459 | AK158: 0 | AM158: 13 | AN158: -0.09173853822 | AO158: 149.5253023 | AP158: -11.9240921 | AQ158: -5.256231059
A159: X1,Y1 | B159: =B134 -> 149.1782843 | C159: 15.67926949 | D159: 147.721163 | E159: 26.04722665 | F159: 140.9538931 | G159: 51.3030215 | H159: 129.9038106 | I159: 75 | J159: 114.9066665 | K159: 96.41814145 | L159: 96.41814145 | M159: 114.9066665 | N159: 75 | O159: 129.9038106 | P159: 51.3030215 | Q159: 140.9538931 | R159: 26.04722665 | S159: 147.721163 | T159: X1,Y1 | U159: =U134 -> 124.3556359 | V159: =V134 -> 83.87893552 | W159: X1,Y1 | AB159: 0 | AC159: -71.75 | AD159: 74.84586894 | AE159: -4.805819688 | AF159: -0.06412152683 | AG159: -0.08794290339 | AH159: -0.7938491831 | AI159: -3 | AJ159: 0.02382137657 | AK159: 0 | AM159: 14 | AN159: -0.08817032242 | AO159: 149.5666319 | AP159: -11.39397345 | AQ159: -5.051787353
A160: X2,Y2 | B160: =XC+B147*COS(radiansg)+C147*SIN(radiansg) -> 0.06306227209 | C160: =YC-B147*SIN(radiansg)+C147*COS(radiansg) -> 1.805867196 | D160: =XC+D147*COS(radiansg)+E147*SIN(radiansg) -> 0.06321975822 | E160: =YC-D147*SIN(radiansg)+E147*COS(radiansg) -> 1.810377009 | F160: =XC+F147*COS(radiansg)+G147*SIN(radiansg) -> 0.063637851 | G160: =YC-F147*SIN(radiansg)+G147*COS(radiansg) -> 1.82234962 | H160: =XC+H147*COS(radiansg)+I147*SIN(radiansg) -> 0.06411909756 | I160: =YC-H147*SIN(radiansg)+I147*COS(radiansg) -> 1.836130718 | J160: =XC+J147*COS(radiansg)+K147*SIN(radiansg) -> 0.0647183599 | K160: =YC-J147*SIN(radiansg)+K147*COS(radiansg) -> 1.853291346 | L160: =XC+L147*COS(radiansg)+M147*SIN(radiansg) -> 0.06554232838 | M160: =YC-L147*SIN(radiansg)+M147*COS(radiansg) -> 1.876886716 | N160: =XC+N147*COS(radiansg)+O147*SIN(radiansg) -> 0.06684441717 | O160: =YC-N147*SIN(radiansg)+O147*COS(radiansg) -> 1.914173661 | P160: =XC+P147*COS(radiansg)+Q147*SIN(radiansg) -> 0.06943410027 | Q160: =YC-P147*SIN(radiansg)+Q147*COS(radiansg) -> 1.988332482 | R160: =XC+R147*COS(radiansg)+S147*SIN(radiansg) -> 0.07814509011 | S160: =YC-R147*SIN(radiansg)+S147*COS(radiansg) -> 2.237782593 | T160: X2,Y2 | U160: =XC+U147*COS(radiansg)+V147*SIN(radiansg) -> 0.06434035905 | V160: =YC-U147*SIN(radiansg)+V147*COS(radiansg) -> 1.842466818 | W160: X2,Y2 | AB160: 0 | AC160: -71.5 | AD160: 74.86240055 | AE160: -4.541033365 | AF160: -0.06058416651 | AG160: -0.08441577101 | AH160: -0.7903118227 | AI160: -3 | AJ160: 0.0238316045 | AK160: 0 | AM160: 15 | AN160: -0.08461686044 | AO160: 149.605945 | AP160: -10.86559744 | AQ160: -4.848188979
A161: X3,Y3 | B161: =XC+B151*COS(radiansg)+C151*SIN(radiansg) -> -76.61949717 | C161: =YC-B151*SIN(radiansg)+C151*COS(radiansg) -> -2.037844367 | D161: =XC+D151*COS(radiansg)+E151*SIN(radiansg) -> -76.35511805 | E161: =YC-D151*SIN(radiansg)+E151*COS(radiansg) -> -5.57510357 | F161: =XC+F151*COS(radiansg)+G151*SIN(radiansg) -> -74.99409357 | G161: =YC-F151*SIN(radiansg)+G151*COS(radiansg) -> -14.1964759 | H161: =XC+H151*COS(radiansg)+I151*SIN(radiansg) -> -72.74908603 | I161: =YC-H151*SIN(radiansg)+I151*COS(radiansg) -> -22.28019554 | J161: =XC+J151*COS(radiansg)+K151*SIN(radiansg) -> -69.84610631 | K161: =YC-J151*SIN(radiansg)+K151*COS(radiansg) -> -29.56331455 | L161: =XC+L151*COS(radiansg)+M151*SIN(radiansg) -> -66.60662405 | M161: =YC-L151*SIN(radiansg)+M151*COS(radiansg) -> -35.80631649 | N161: =XC+N151*COS(radiansg)+O151*SIN(radiansg) -> -63.43962394 | O161: =YC-N151*SIN(radiansg)+O151*COS(radiansg) -> -40.80036157 | P161: =XC+P151*COS(radiansg)+Q151*SIN(radiansg) -> -60.81567672 | Q161: =YC-P151*SIN(radiansg)+Q151*COS(radiansg) -> -44.36835832 | R161: =XC+R151*COS(radiansg)+S151*SIN(radiansg) -> -59.24834409 | S161: =YC-R151*SIN(radiansg)+S151*COS(radiansg) -> -46.31773928 | T161: X3,Y3 | U161: =XC+U151*COS(radiansg)+V151*SIN(radiansg) -> -71.65096147 | V161: =YC-U151*SIN(radiansg)+V151*COS(radiansg) -> -25.30354403 | W161: X3,Y3 | AB161: 0 | AC161: -71.25 | AD161: 74.87794156 | AE161: -4.277133059 | AF161: -0.05705939785 | AG161: -0.08090089974 | AH161: -0.7867870541 | AI161: -3 | AJ161: 0.02384150189 | AK161: 0 | AM161: 16 | AN161: -0.08107786063 | AO161: 149.6432632 | AP161: -10.33894538 | AQ161: -4.645419226
A162: x4,y4 | B162: =XC+B156*COS(radiansg)+C156*SIN(radiansg) -> -200.4641876 | C162: =YC-B156*SIN(radiansg)+C156*COS(radiansg) -> -9.801581918 | D162: =XC+D156*COS(radiansg)+E156*SIN(radiansg) -> -200.7913025 | E162: =YC-D156*SIN(radiansg)+E156*COS(radiansg) -> -19.16892511 | F162: =XC+F156*COS(radiansg)+G156*SIN(radiansg) -> -201.6179521 | G162: =YC-F156*SIN(radiansg)+G156*COS(radiansg) -> -42.84107347 | H162: =XC+H156*COS(radiansg)+I156*SIN(radiansg) -> -202.4598297 | I162: =YC-H156*SIN(radiansg)+I156*COS(radiansg) -> -66.94929377 | J162: =XC+J156*COS(radiansg)+K156*SIN(radiansg) -> -203.3126162 | K162: =YC-J156*SIN(radiansg)+K156*COS(radiansg) -> -91.36990424 | L162: =XC+L156*COS(radiansg)+M156*SIN(radiansg) -> -204.1563887 | M162: =YC-L156*SIN(radiansg)+M156*COS(radiansg) -> -115.5323859 | N162: =XC+N156*COS(radiansg)+O156*SIN(radiansg) -> -204.9459672 | O162: =YC-N156*SIN(radiansg)+O156*COS(radiansg) -> -138.1429556 | P162: =XC+P156*COS(radiansg)+Q156*SIN(radiansg) -> -205.6042131 | Q162: =YC-P156*SIN(radiansg)+Q156*COS(radiansg) -> -156.9926517 | R162: =XC+R156*COS(radiansg)+S156*SIN(radiansg) -> -206.0320044 | S162: =YC-R156*SIN(radiansg)+S156*COS(radiansg) -> -169.2429934 | T162: x4,y4 | U162: =XC+U156*COS(radiansg)+V156*SIN(radiansg) -> -202.8003036 | V162: =YC-U156*SIN(radiansg)+V156*COS(radiansg) -> -76.69919036 | W162: x4,y4 | AB162: 0 | AC162: -71 | AD162: 74.89250247 | AE162: -4.014109391 | AF162: -0.053547044 | AG162: -0.07739811616 | AH162: -0.7832747002 | AI162: -3 | AJ162: 0.02385107216 | AK162: 0 | AM162: 17 | AN162: -0.07755303771 | AO162: 149.6786071 | AP162: -9.813998985 | AQ162: -4.443461749
